Workbook

Sheet Avtor
A1: Авторская программа
A2: автоматизации обработки и оценки результатов
A3: тестовых испытаний обучающихся общеобразовательных организаций
A6: Всероссийские соревнования школьников
A7: "Президентские состязания"
D9: Муниципальный этап
A20: Автор и разработчик программы:
B22: методист МБУ "ЦОДОУ" Гессель Т.Т.
E32: г. Снежинск

Sheet TabLiza (hidden)
A1: юноши | M1: девушки | Y1: юноши | AK1: юноши | AR1: девушки | BD1: девушки | BK1: юноши | BW1: девушки | CI1: юноши | CU1: девушки | DG1: юноши | DS1: девушки | EE1: юноши | EQ1: девушки
A2: 7-8 лет | B2: 9 лет | C2: 10 лет | D2: 11 лет | E2: 12 лет | F2: 13 лет | G2: 14 лет | H2: 15 лет | I2: 16 лет | J2: 17 лет | M2: 7-8 лет | N2: 9 лет | O2: 10 лет | P2: 11 лет | Q2: 12 лет | R2: 13 лет | S2: 14 лет | T2: 15 лет | U2: 16 лет | V2: 17 лет | Y2: 7-8 лет | Z2: 9 лет | AA2: 10 лет | AB2: 11 лет | AC2: 12 лет | AD2: 13 лет | AE2: 14 лет | AF2: 15 лет | AG2: 16 лет | AH2: 17 лет | AK2: 13 лет | AL2: 14 лет | AM2: 15 лет | AN2: 16 лет | AO2: 17 лет | AR2: 7-8 лет | AS2: 9 лет | AT2: 10 лет | AU2: 11 лет | AV2: 12 лет | AW2: 13 лет | AX2: 14 лет | AY2: 15 лет | AZ2: 16 лет | BA2: 17 лет | BD2: 13 лет | BE2: 14 лет | BF2: 15 лет | BG2: 16 лет | BH2: 17 лет | BK2: 7-8 лет | BL2: 9 лет | BM2: 10 лет | BN2: 11 лет | BO2: 12 лет | BP2: 13 лет | BQ2: 14 лет | BR2: 15 лет | BS2: 16 лет | BT2: 17 лет | BW2: 7-8 лет | BX2: 9 лет | BY2: 10 лет | BZ2: 11 лет | CA2: 12 лет | CB2: 13 лет | CC2: 14 лет | CD2: 15 лет | CE2: 16 лет | CF2: 17 лет | CI2: 7-8 лет | CJ2: 9 лет | CK2: 10 лет | CL2: 11 лет | CM2: 12 лет | CN2: 13 лет | CO2: 14 лет | CP2: 15 лет | CQ2: 16 лет | CR2: 17 лет | CU2: 7-8 лет | CV2: 9 лет | CW2: 10 лет | CX2: 11 лет | CY2: 12 лет | CZ2: 13 лет | DA2: 14 лет | DB2: 15 лет | DC2: 16 лет | DD2: 17 лет | DG2: 7-8 лет | DH2: 9 лет | DI2: 10 лет | DJ2: 11 лет | DK2: 12 лет | DL2: 13 лет | DM2: 14 лет | DN2: 15 лет | DO2: 16 лет | DP2: 17 лет | DS2: 7-8 лет | DT2: 9 лет | DU2: 10 лет | DV2: 11 лет | DW2: 12 лет | DX2: 13 лет | DY2: 14 лет | DZ2: 15 лет | EA2: 16 лет | EB2: 17 лет | EE2: 7-8 лет | EF2: 9 лет | EG2: 10 лет | EH2: 11 лет | EI2: 12 лет | EJ2: 13 лет | EK2: 14 лет | EL2: 15 лет | EM2: 16 лет | EN2: 17 лет | EQ2: 7-8 лет | ER2: 9 лет | ES2: 10 лет | ET2: 11 лет | EU2: 12 лет | EV2: 13 лет | EW2: 14 лет | EX2: 15 лет | EY2: 16 лет | EZ2: 17 лет
A3: Бег 1000м | B3: Бег 1000м | C3: Бег 1000м | D3: Бег 1000м | E3: Бег 1000м | F3: Бег 1000м | G3: Бег 1000м | H3: Бег 1000м | I3: Бег 1000м | J3: Бег 1000м | K3: очки | M3: Бег 1000м | N3: Бег 1000м | O3: Бег 1000м | P3: Бег 1000м | Q3: Бег 1000м | R3: Бег 1000м | S3: Бег 1000м | T3: Бег 1000м | U3: Бег 1000м | V3: Бег 1000м | W3: Очки | Y3: Бег 30м | Z3: Бег 30м | AA3: Бег 30м | AB3: Бег 30м | AC3: Бег 30м | AD3: Бег 30м | AE3: Бег 30м | AF3: Бег 30м | AG3: Бег 30м | AH3: Бег 30м | AI3: Очки | AK3: Бег 60 м | AL3: Бег 60 м | AM3: Бег 60 м | AN3: Бег 100 м | AO3: Бег 100 м | AP3: Очки | AR3: Бег 30м | AS3: Бег 30м | AT3: Бег 30м | AU3: Бег 30м | AV3: Бег 30м | AW3: Бег 30м | AX3: Бег 30м | AY3: Бег 30м | AZ3: Бег 30м | BA3: Бег 30м | BB3: Очки | BD3: Бег 60 м | BE3: Бег 60 м | BF3: Бег 60 м | BG3: Бег 100 м | BH3: Бег 100 м | BI3: Очки | BK3: Подтя- | BL3: Подтя- | BM3: Подтя- | BN3: Подтя- | BO3: Подтя- | BP3: Подтя- | BQ3: Подтя- | BR3: Подтя- | BS3: Подтя- | BT3: Подтя- | BU3: Очки | BW3: Отжимание | BX3: Отжимание | BY3: Отжимание | BZ3: Отжимание | CA3: Отжимание | CB3: Отжимание | CC3: Отжимание | CD3: Отжимание | CE3: Отжимание | CF3: Отжимание | CG3: Очки | CI3: Прыжок в | CJ3: Прыжок в | CK3: Прыжок в | CL3: Прыжок в | CM3: Прыжок в | CN3: Прыжок в | CO3: Прыжок в | CP3: Прыжок в | CQ3: Прыжок в | CR3: Прыжок в | CS3: Очки | CU3: Прыжок в | CV3: Прыжок в | CW3: Прыжок в | CX3: Прыжок в | CY3: Прыжок в | CZ3: Прыжок в | DA3: Прыжок в | DB3: Прыжок в | DC3: Прыжок в | DD3: Прыжок в | DE3: Очки | DG3: Подъём | DH3: Подъём | DI3: Подъём | DJ3: Подъём | DK3: Подъём | DL3: Подъём | DM3: Подъём | DN3: Подъём | DO3: Подъём | DP3: Подъём | DQ3: Очки | DS3: Подъём | DT3: Подъём | DU3: Подъём | DV3: Подъём | DW3: Подъём | DX3: Подъём | DY3: Подъём | DZ3: Подъём | EA3: Подъём | EB3: Подъём | EC3: Очки | EE3: Наклон | EF3: Наклон | EG3: Наклон | EH3: Наклон | EI3: Наклон | EJ3: Наклон | EK3: Наклон | EL3: Наклон | EM3: Наклон | EN3: Наклон | EO3: Очки | EQ3: Наклон | ER3: Наклон | ES3: Наклон | ET3: Наклон | EU3: Наклон | EV3: Наклон | EW3: Наклон | EX3: Наклон | EY3: Наклон | EZ3: Наклон | FA3: Очки
A4: (мин., сек.) | B4: (мин., сек.) | C4: (мин., сек.) | D4: (мин., сек.) | E4: (мин., сек.) | F4: (мин., сек.) | G4: (мин., сек.) | H4: (мин., сек.) | I4: (мин., сек.) | J4: (мин., сек.) | M4: (мин., сек.) | N4: (мин., сек.) | O4: (мин., сек.) | P4: (мин., сек.) | Q4: (мин., сек.) | R4: (мин., сек.) | S4: (мин., сек.) | T4: (мин., сек.) | U4: (мин., сек.) | V4: (мин., сек.) | Y4: (сек) | Z4: (сек) | AA4: (сек) | AB4: (сек) | AC4: (сек) | AD4: (сек) | AE4: (сек) | AF4: (сек) | AG4: (сек) | AH4: (сек) | AK4: (сек) | AL4: (сек) | AM4: (сек) | AN4: (сек) | AO4: (сек) | AR4: (сек) | AS4: (сек) | AT4: (сек) | AU4: (сек) | AV4: (сек) | AW4: (сек) | AX4: (сек) | AY4: (сек) | AZ4: (сек) | BA4: (сек) | BD4: (сек) | BE4: (сек) | BF4: (сек) | BG4: (сек) | BH4: (сек) | BK4: гивание | BL4: гивание | BM4: гивание | BN4: гивание | BO4: гивание | BP4: гивание | BQ4: гивание | BR4: гивание | BS4: гивание | BT4: гивание | BW4: в упоре лёжа | BX4: в упоре лёжа | BY4: в упоре лёжа | BZ4: в упоре лёжа | CA4: в упоре лёжа | CB4: в упоре лёжа | CC4: в упоре лёжа | CD4: в упоре лёжа | CE4: в упоре лёжа | CF4: в упоре лёжа | CI4: длину с/м | CJ4: длину с/м | CK4: длину с/м | CL4: длину с/м | CM4: длину с/м | CN4: длину с/м | CO4: длину с/м | CP4: длину с/м | CQ4: длину с/м | CR4: длину с/м | CU4: длину с/м | CV4: длину с/м | CW4: длину с/м | CX4: длину с/м | CY4: длину с/м | CZ4: длину с/м | DA4: длину с/м | DB4: длину с/м | DC4: длину с/м | DD4: длину с/м | DG4: туловища | DH4: туловища | DI4: туловища | DJ4: туловища | DK4: туловища | DL4: туловища | DM4: туловища | DN4: туловища | DO4: туловища | DP4: туловища | DS4: туловища | DT4: туловища | DU4: туловища | DV4: туловища | DW4: туловища | DX4: туловища | DY4: туловища | DZ4: туловища | EA4: туловища | EB4: туловища | EE4: сидя | EF4: сидя | EG4: сидя | EH4: сидя | EI4: сидя | EJ4: сидя | EK4: сидя | EL4: сидя | EM4: сидя | EN4: сидя | EQ4: сидя | ER4: сидя | ES4: сидя | ET4: сидя | EU4: сидя | EV4: сидя | EW4: сидя | EX4: сидя | EY4: сидя | EZ4: сидя
A5: =B5+0.0058% -> 00:03:30.022 | B5: =C5+0.0058% -> 00:03:25.011 | C5: 00:03:20 | D5: 00:03:10 | E5: 00:03:00 | F5: 00:02:55 | G5: 00:02:50 | H5: =G5-0.0058% -> 00:02:44.989 | I5: 00:02:39.978 | J5: 00:02:30 | K5: 70 | M5: 00:03:55.022 | N5: 00:03:50.011 | O5: 00:03:45 | P5: 00:03:25 | Q5: 00:03:15 | R5: 00:03:10 | S5: 00:03:05 | T5: 00:02:59.989 | U5: 00:02:54.978 | V5: 00:02:49.966 | W5: 70 | Y5: 5.2 | Z5: 5 | AA5: 4.8 | AB5: 4.6 | AC5: 4.4 | AD5: 4.3 | AE5: 4.2 | AF5: 4 | AG5: 3.8 | AH5: 3.6 | AI5: 70 | AK5: 7.6 | AL5: 7.4 | AM5: 7.2 | AN5: 11.2 | AO5: 11 | AP5: 70 | AR5: 5.5 | AS5: 5.3 | AT5: 5.1 | AU5: 4.8 | AV5: 4.6 | AW5: 4.5 | AX5: 4.4 | AY5: 4.2 | AZ5: 4 | BA5: 3.8 | BB5: 70 | BD5: 8 | BE5: 7.8 | BF5: 7.8 | BG5: 12.2 | BH5: 12.2 | BI5: 70 | BK5: 0 | BL5: 0 | BM5: 0 | BN5: 0 | BO5: 0 | BP5: 0 | BQ5: 0 | BR5: 0 | BS5: 0 | BT5: 0 | BU5: 0 | BW5: 0 | BX5: 0 | BY5: 0 | BZ5: 0 | CA5: 0 | CB5: 0 | CC5: 0 | CD5: 0 | CE5: 0 | CF5: 0 | CG5: 0 | CI5: 0 | CJ5: 0 | CK5: 0 | CL5: 0 | CM5: 0 | CN5: 0 | CO5: 0 | CP5: 0 | CQ5: 0 | CR5: 0 | CS5: 0 | CU5: 0 | CV5: 0 | CW5: 0 | CX5: 0 | CY5: 0 | CZ5: 0 | DA5: 0 | DB5: 0 | DC5: 0 | DD5: 0 | DE5: 0 | DG5: 0 | DH5: 0 | DI5: 0 | DJ5: 0 | DK5: 0 | DL5: 0 | DM5: 0 | DN5: 0 | DO5: 0 | DP5: 0 | DQ5: 0 | DS5: 0 | DT5: 0 | DU5: 0 | DV5: 0 | DW5: 0 | DX5: 0 | DY5: 0 | DZ5: 0 | EA5: 0 | EB5: 0 | EC5: 0 | EE5: -20 | EF5: -20 | EG5: -20 | EH5: -20 | EI5: -20 | EJ5: -20 | EK5: -20 | EL5: -20 | EM5: -20 | EN5: -20 | EO5: 0 | EQ5: -20 | ER5: -20 | ES5: -20 | ET5: -20 | EU5: -20 | EV5: -20 | EW5: -20 | EX5: -20 | EY5: -20 | EZ5: -20 | FA5: 0
A6: =B6+0.0058% -> 00:03:33.022 | B6: =C6+0.0058% -> 00:03:28.011 | C6: 00:03:23 | D6: 00:03:13 | E6: 00:03:03 | F6: 00:02:57 | G6: 00:02:52 | H6: 00:02:46.989 | I6: 00:02:41.978 | J6: 00:02:36.966 | K6: 69 | M6: 00:03:59.022 | N6: 00:03:54.011 | O6: 00:03:49 | P6: 00:03:29 | Q6: 00:03:18 | R6: 00:03:13 | S6: 00:03:08 | T6: 00:03:02.989 | U6: 00:02:57.978 | V6: 00:02:52.966 | W6: 69 | Y6: - | Z6: - | AA6: - | AB6: - | AC6: - | AD6: - | AE6: - | AF6: - | AG6: - | AH6: - | AI6: 69 | AK6: 7.7 | AL6: 7.5 | AM6: 7.3 | AN6: 11.3 | AO6: 11.2 | AP6: 69 | AR6: - | AS6: - | AT6: - | AU6: - | AV6: - | AW6: - | AX6: - | AY6: - | AZ6: - | BA6: - | BB6: 69 | BD6: 8.1 | BE6: 7.9 | BF6: 7.9 | BG6: 12.4 | BH6: 12.4 | BI6: 69 | BQ6: 1 | BR6: 3 | BS6: 5 | BT6: 7 | BU6: 1 | CA6: 1 | CB6: 2 | CC6: 3 | CD6: 6 | CE6: 9 | CF6: 12 | CG6: 1 | CI6: =CJ6-15 -> 70 | CJ6: 85 | CK6: 100 | CL6: 110 | CM6: 118 | CN6: 130 | CO6: 145 | CP6: =CO6+15 -> 160 | CQ6: 175 | CR6: 190 | CS6: 1 | CU6: 58 | CV6: 73 | CW6: 88 | CX6: 100 | CY6: 107 | CZ6: 116 | DA6: 116 | DB6: 121 | DC6: 126 | DD6: 131 | DE6: 1 | DI6: 1 | DJ6: 2 | DK6: 4 | DL6: 5 | DM6: 6 | DN6: =DM6+1 -> 7 | DO6: =DN6+1 -> 8 | DP6: =DO6+1 -> 9 | DQ6: 1 | DU6: 1 | DV6: 2 | DW6: 2 | DX6: 3 | DY6: 3 | DZ6: 4 | EA6: 5 | EB6: 6 | EC6: 1 | EH6: -4 | EI6: -3 | EJ6: -3 | EK6: -3 | EL6: -2 | EM6: -1 | EN6: 0 | EO6: 1 | ES6: -3 | ET6: -2 | EU6: -3 | EV6: -3 | EW6: -3 | EX6: -2 | EY6: -1 | EZ6: 0 | FA6: 1
A7: 00:03:36.022 | B7: =C7+0.0058% -> 00:03:31.011 | C7: 00:03:26 | D7: 00:03:16 | E7: 00:03:06 | F7: 00:02:59 | G7: 00:02:54 | H7: 00:02:48.989 | I7: 00:02:43.978 | J7: 00:02:38.966 | K7: 68 | M7: 00:04:03.022 | N7: 00:03:58.011 | O7: 00:03:53 | P7: 00:03:33 | Q7: 00:03:21 | R7: 00:03:16 | S7: 00:03:11 | T7: 00:03:05.989 | U7: 00:03:00.978 | V7: 00:02:55.966 | W7: 68 | Y7: 5.3 | Z7: 5.1 | AA7: 4.9 | AB7: 4.7 | AC7: 4.5 | AD7: 4.4 | AE7: 4.3 | AF7: - | AG7: - | AH7: - | AI7: 68 | AK7: 7.8 | AL7: 7.6 | AM7: 7.4 | AN7: 11.4 | AO7: 11.4 | AP7: 68 | AR7: 5.6 | AS7: 5.4 | AT7: 5.2 | AU7: 4.9 | AV7: 4.7 | AW7: 4.6 | AX7: 4.5 | AY7: 4.3 | AZ7: 4.1 | BA7: 3.9 | BB7: 68 | BD7: 8.2 | BE7: 8 | BF7: 8 | BG7: 12.6 | BH7: 12.6 | BI7: 68 | BU7: 2 | BY7: 1 | BZ7: 1 | CA7: 2 | CB7: 3 | CC7: 4 | CD7: 7 | CE7: 10 | CF7: 13 | CG7: 2 | CI7: 73 | CJ7: 88 | CK7: 103 | CL7: 113 | CM7: 121 | CN7: 134 | CO7: 149 | CP7: 164 | CQ7: 179 | CR7: 194 | CS7: 2 | CU7: 61 | CV7: 76 | CW7: 91 | CX7: 103 | CY7: 110 | CZ7: 119 | DA7: 119 | DB7: 124 | DC7: 129 | DD7: 134 | DE7: 2 | DI7: 2 | DJ7: 3 | DK7: 5 | DL7: 6 | DM7: 7 | DN7: =DM7+1 -> 8 | DO7: 9 | DP7: 10 | DQ7: 2 | DU7: 2 | DV7: 3 | DW7: 3 | DX7: 4 | DY7: 4 | DZ7: 5 | EA7: 6 | EB7: =EB6+1 -> 7 | EC7: 2 | EF7: -6 | EG7: -4 | EI7: -2 | EJ7: -2 | EK7: -2 | EL7: -1 | EM7: 0 | EN7: =EM7+1 -> 1 | EO7: 2 | EQ7: -9 | ER7: -5 | ET7: -1 | EU7: -2 | EV7: -2 | EW7: -2 | EX7: -1 | EY7: 0 | EZ7: 1 | FA7: 2
A8: 00:03:39.022 | B8: 00:03:34.011 | C8: 00:03:29 | D8: 00:03:19 | E8: 00:03:09 | F8: 00:03:01 | G8: 00:02:56 | H8: 00:02:50.989 | I8: 00:02:45.978 | J8: 00:02:40.966 | K8: 67 | M8: 00:04:07.022 | N8: 00:04:02.011 | O8: 00:03:57 | P8: 00:03:37 | Q8: 00:03:24 | R8: 00:03:19 | S8: 00:03:14 | T8: 00:03:08.989 | U8: 00:03:03.978 | V8: 00:02:58.966 | W8: 67 | Y8: - | Z8: - | AA8: - | AB8: - | AC8: - | AD8: - | AE8: - | AF8: 4.1 | AG8: 3.9 | AH8: 3.7 | AI8: 67 | AK8: 7.9 | AL8: 7.7 | AM8: 7.5 | AN8: 11.5 | AO8: 11.6 | AP8: 67 | AR8: - | AS8: - | AT8: - | AU8: - | AV8: - | AW8: - | AX8: - | AY8: - | AZ8: - | BA8: - | BB8: 67 | BD8: 8.3 | BE8: 8.1 | BF8: 8.1 | BG8: 12.8 | BH8: 12.8 | BI8: 67 | BU8: 3 | CA8: 3 | CB8: 4 | CC8: 5 | CD8: 8 | CE8: 11 | CF8: 14 | CG8: 3 | CI8: 76 | CJ8: 91 | CK8: 106 | CL8: 116 | CM8: 124 | CN8: 137 | CO8: 153 | CP8: 168 | CQ8: 183 | CR8: 198 | CS8: 3 | CU8: 64 | CV8: 79 | CW8: 94 | CX8: 106 | CY8: 113 | CZ8: 122 | DA8: 122 | DB8: 127 | DC8: 132 | DD8: 137 | DE8: 3 | DI8: 3 | DJ8: 4 | DK8: 6 | DL8: 7 | DM8: 8 | DN8: 9 | DO8: 10 | DP8: 11 | DQ8: 3 | DU8: 3 | DV8: 4 | DW8: 4 | DX8: 5 | DY8: 5 | DZ8: 6 | EA8: 7 | EB8: =EB7+1 -> 8 | EC8: 3 | EH8: -3 | EO8: 3 | ES8: -2 | ET8: 0 | EU8: -1 | EV8: -1 | EW8: -1 | EX8: 0 | EY8: 1 | EZ8: 2 | FA8: 3
A9: 00:03:42.022 | B9: 00:03:37.011 | C9: 00:03:32 | D9: 00:03:22 | E9: 00:03:12 | F9: 00:03:03 | G9: 00:02:58 | H9: 00:02:52.989 | I9: 00:02:47.978 | J9: 00:02:42.966 | K9: 66 | M9: 00:04:11.022 | N9: 00:04:06.011 | O9: 00:04:01 | P9: 00:03:41 | Q9: 00:03:27 | R9: 00:03:22 | S9: 00:03:17 | T9: 00:03:11.989 | U9: 00:03:06.978 | V9: 00:03:01.966 | W9: 66 | Y9: 5.4 | Z9: 5.2 | AA9: 5 | AB9: 4.8 | AC9: - | AD9: - | AE9: - | AF9: - | AG9: - | AH9: - | AI9: 66 | AK9: 8 | AL9: 7.8 | AM9: 7.6 | AN9: 11.6 | AO9: 11.8 | AP9: 66 | AR9: 5.7 | AS9: 5.5 | AT9: 5.3 | AU9: 5 | AV9: 4.8 | AW9: 4.7 | AX9: 4.6 | AY9: 4.4 | AZ9: 4.2 | BA9: 4 | BB9: 66 | BD9: 8.4 | BE9: 8.2 | BF9: 8.2 | BG9: 13 | BH9: 13 | BI9: 66 | BP9: 1 | BQ9: 2 | BR9: 4 | BS9: 6 | BT9: 8 | BU9: 4 | BY9: 2 | BZ9: 2 | CA9: 4 | CB9: 5 | CC9: 6 | CD9: 9 | CE9: 12 | CF9: 15 | CG9: 4 | CI9: 79 | CJ9: 94 | CK9: 109 | CL9: 119 | CM9: 127 | CN9: 140 | CO9: 157 | CP9: 172 | CQ9: 187 | CR9: 202 | CS9: 4 | CU9: 67 | CV9: 82 | CW9: 97 | CX9: 108 | CY9: 116 | CZ9: 125 | DA9: 125 | DB9: 130 | DC9: 135 | DD9: 140 | DE9: 4 | DH9: =DI9-3 -> 1 | DI9: 4 | DJ9: 5 | DK9: 7 | DL9: 8 | DM9: 9 | DN9: 10 | DO9: 11 | DP9: 12 | DQ9: 4 | DU9: 4 | DV9: 5 | DW9: 5 | DX9: 6 | DY9: 6 | DZ9: 7 | EA9: 8 | EB9: 9 | EC9: 4 | EI9: -1 | EJ9: -1 | EK9: -1 | EL9: 0 | EM9: =EL9+1 -> 1 | EN9: =EM9+1 -> 2 | EO9: 4 | EU9: 0 | EV9: 0 | EW9: 0 | EX9: 1 | EY9: 2 | EZ9: 3 | FA9: 4
A10: 00:03:45.022 | B10: 00:03:40.011 | C10: 00:03:35 | D10: 00:03:25 | E10: 00:03:15 | F10: 00:03:05 | G10: 00:03:00 | H10: 00:02:54.989 | I10: 00:02:49.978 | J10: 00:02:44.966 | K10: 65 | M10: 00:04:15.022 | N10: 00:04:10.011 | O10: 00:04:05 | P10: 00:03:45 | Q10: 00:03:30 | R10: 00:03:25 | S10: 00:03:20 | T10: 00:03:14.989 | U10: 00:03:09.978 | V10: 00:03:04.966 | W10: 65 | Y10: - | Z10: - | AA10: - | AB10: - | AC10: 4.6 | AD10: 4.5 | AE10: 4.4 | AF10: - | AG10: - | AH10: - | AI10: 65 | AK10: - | AL10: - | AM10: - | AN10: 11.7 | AO10: 11.9 | AP10: 65 | AR10: - | AS10: - | AT10: - | AU10: - | AV10: - | AW10: - | AX10: - | AY10: - | AZ10: - | BA10: - | BB10: 65 | BD10: 8.5 | BE10: 8.3 | BF10: 8.3 | BG10: 13.2 | BH10: 13.2 | BI10: 65 | BU10: 5 | CA10: 5 | CB10: 6 | CC10: 7 | CD10: 10 | CE10: 13 | CF10: 16 | CG10: 5 | CI10: 82 | CJ10: 97 | CK10: 112 | CL10: 122 | CM10: 130 | CN10: 143 | CO10: 161 | CP10: 176 | CQ10: 191 | CR10: 206 | CS10: 5 | CU10: 70 | CV10: 85 | CW10: 100 | CX10: 110 | CY10: 119 | CZ10: 128 | DA10: 128 | DB10: 133 | DC10: 138 | DD10: 143 | DE10: 5 | DH10: 2 | DI10: 5 | DJ10: 6 | DK10: 8 | DL10: 9 | DM10: 10 | DN10: 11 | DO10: 12 | DP10: 13 | DQ10: 5 | DU10: 5 | DW10: 6 | DX10: 7 | DY10: 7 | DZ10: 8 | EA10: 9 | EB10: 10 | EC10: 5 | EG10: -3 | EH10: -2 | EO10: 5 | EQ10: -8 | ER10: -4 | ES10: -1 | ET10: 1 | EU10: 1 | EV10: 1 | EW10: 1 | EX10: 2 | EY10: 3 | EZ10: 4 | FA10: 5
A11: 00:03:48.022 | B11: 00:03:43.011 | C11: 00:03:38 | D11: 00:03:28 | E11: 00:03:17 | F11: 00:03:07 | G11: 00:03:02 | H11: 00:02:56.989 | I11: 00:02:51.978 | J11: 00:02:46.966 | K11: 64 | M11: 00:04:18.022 | N11: 00:04:13.011 | O11: 00:04:08 | P11: 00:03:48 | Q11: 00:03:33 | R11: 00:03:28 | S11: 00:03:22 | T11: 00:03:16.989 | U11: 00:03:11.978 | V11: 00:03:06.966 | W11: 64 | Y11: 5.5 | Z11: 5.3 | AA11: 5.1 | AB11: - | AC11: - | AD11: - | AE11: - | AF11: 4.2 | AG11: 4 | AH11: 3.8 | AI11: 64 | AK11: 8.1 | AL11: 7.9 | AM11: 7.7 | AN11: 11.8 | AO11: 12 | AP11: 64 | AR11: 5.8 | AS11: 5.6 | AT11: 5.4 | AU11: 5.1 | AV11: 4.9 | AW11: 4.8 | AX11: 4.7 | AY11: 4.5 | AZ11: 4.3 | BA11: 4.1 | BB11: 64 | BD11: 8.6 | BE11: 8.4 | BF11: 8.4 | BG11: 13.4 | BH11: 13.4 | BI11: 64 | BO11: 1 | BU11: 6 | BY11: 3 | BZ11: 3 | CA11: 6 | CB11: 7 | CC11: 8 | CD11: 11 | CE11: 14 | CF11: 17 | CG11: 6 | CI11: 85 | CJ11: 100 | CK11: 115 | CL11: 125 | CM11: 133 | CN11: 146 | CO11: 164 | CP11: 179 | CQ11: 194 | CR11: 209 | CS11: 6 | CU11: 72 | CV11: 87 | CW11: 102 | CX11: 112 | CY11: 122 | CZ11: 131 | DA11: 131 | DB11: 136 | DC11: 141 | DD11: 146 | DE11: 6 | DG11: =DH11-2 -> 1 | DH11: 3 | DI11: 6 | DJ11: 7 | DK11: 9 | DL11: 10 | DM11: 11 | DN11: 12 | DO11: 13 | DP11: 14 | DQ11: 6 | DV11: 6 | DW11: 7 | DX11: 8 | DY11: 8 | DZ11: 9 | EA11: 10 | EB11: 11 | EC11: 6 | EE11: -9 | EF11: -5 | EI11: 0 | EJ11: 0 | EK11: 0 | EL11: =EK11+1 -> 1 | EM11: =EL11+1 -> 2 | EN11: =EM11+1 -> 3 | EO11: 6 | EV11: 2 | EW11: 2 | EX11: 3 | EY11: 4 | EZ11: 5 | FA11: 6
A12: 00:03:51.022 | B12: 00:03:46.011 | C12: 00:03:41 | D12: 00:03:31 | E12: 00:03:19 | F12: 00:03:09 | G12: 00:03:04 | H12: 00:02:58.989 | I12: 00:02:53.978 | J12: 00:02:48.966 | K12: 63 | M12: 00:04:21.022 | N12: 00:04:16.011 | O12: 00:04:11 | P12: 00:03:51 | Q12: 00:03:36 | R12: 00:03:31 | S12: 00:03:24 | T12: 00:03:18.989 | U12: 00:03:13.978 | V12: 00:03:08.966 | W12: 63 | Y12: - | Z12: - | AA12: - | AB12: 4.9 | AC12: - | AD12: - | AE12: - | AF12: - | AG12: - | AH12: - | AI12: 63 | AK12: - | AL12: - | AM12: - | AN12: 11.9 | AO12: 12.1 | AP12: 63 | AR12: - | AS12: - | AT12: - | AU12: - | AV12: - | AW12: - | AX12: - | AY12: - | AZ12: - | BA12: - | BB12: 63 | BD12: 8.7 | BE12: 8.5 | BF12: 8.5 | BG12: 13.6 | BH12: 13.6 | BI12: 63 | BP12: 2 | BQ12: 3 | BR12: 5 | BS12: 7 | BT12: 9 | BU12: 7 | CB12: 8 | CC12: 9 | CD12: 12 | CE12: 15 | CF12: 18 | CG12: 7 | CI12: 88 | CJ12: 103 | CK12: 118 | CL12: 128 | CM12: 136 | CN12: 149 | CO12: 167 | CP12: 182 | CQ12: 197 | CR12: 212 | CS12: 7 | CU12: 74 | CV12: 89 | CW12: 104 | CX12: 114 | CY12: 124 | CZ12: 134 | DA12: 134 | DB12: 139 | DC12: 144 | DD12: 149 | DE12: 7 | DG12: =DH12-2 -> 2 | DH12: 4 | DI12: 7 | DJ12: 8 | DK12: 10 | DL12: 11 | DM12: 12 | DN12: 13 | DO12: 14 | DP12: 15 | DQ12: 7 | DT12: 1 | DU12: 6 | DW12: 8 | DX12: 9 | DY12: 9 | DZ12: 10 | EA12: 11 | EB12: 12 | EC12: 7 | EH12: -1 | EK12: 1 | EL12: =EK12+1 -> 2 | EM12: 3 | EN12: 4 | EO12: 7 | ES12: 0 | ET12: 2 | EU12: 2 | EV12: 3 | EW12: 3 | EX12: 4 | EY12: 5 | EZ12: 6 | FA12: 7
A13: 00:03:54.022 | B13: 00:03:49.011 | C13: 00:03:44 | D13: 00:03:34 | E13: 00:03:21 | F13: 00:03:11 | G13: 00:03:06 | H13: 00:03:00.989 | I13: 00:02:55.978 | J13: 00:02:50.966 | K13: 62 | M13: 00:04:24.022 | N13: 00:04:19.011 | O13: 00:04:14 | P13: 00:03:54 | Q13: 00:03:39 | R13: 00:03:34 | S13: 00:03:26 | T13: 00:03:20.989 | U13: 00:03:15.978 | V13: 00:03:10.966 | W13: 62 | Y13: 5.6 | Z13: 5.4 | AA13: 5.2 | AB13: - | AC13: 4.7 | AD13: 4.6 | AE13: 4.5 | AF13: - | AG13: - | AH13: - | AI13: 62 | AK13: 8.2 | AL13: 8 | AM13: 7.8 | AN13: 12 | AO13: 12.2 | AP13: 62 | AR13: 5.9 | AS13: 5.7 | AT13: 5.5 | AU13: 5.2 | AV13: 5 | AW13: - | AX13: - | AY13: - | AZ13: - | BA13: - | BB13: 62 | BD13: 8.8 | BE13: 8.6 | BF13: 8.6 | BG13: 13.8 | BH13: 13.8 | BI13: 62 | BU13: 8 | BY13: 4 | BZ13: 4 | CA13: 7 | CB13: 9 | CC13: 10 | CD13: 13 | CE13: 16 | CF13: 19 | CG13: 8 | CI13: 91 | CJ13: 106 | CK13: 121 | CL13: 131 | CM13: 139 | CN13: 152 | CO13: 170 | CP13: 185 | CQ13: 200 | CR13: 215 | CS13: 8 | CU13: 76 | CV13: 91 | CW13: 106 | CX13: 116 | CY13: 126 | CZ13: 137 | DA13: 137 | DB13: 142 | DC13: 147 | DD13: 152 | DE13: 8 | DG13: =DH13-2 -> 3 | DH13: 5 | DI13: 8 | DJ13: 9 | DK13: 11 | DL13: 12 | DM13: 13 | DN13: 14 | DO13: 15 | DP13: 16 | DQ13: 8 | DV13: 7 | DW13: 9 | DX13: 10 | DY13: 10 | DZ13: 11 | EA13: 12 | EB13: 13 | EC13: 8 | EG13: -2 | EI13: 1 | EJ13: 2 | EK13: 2 | EL13: 3 | EM13: 4 | EN13: 5 | EO13: 8 | EQ13: -7 | ER13: -3 | EV13: 4 | EW13: 4 | EX13: 5 | EY13: 6 | EZ13: 7 | FA13: 8
A14: 00:03:57.022 | B14: 00:03:52.011 | C14: 00:03:47 | D14: 00:03:37 | E14: 00:03:23 | F14: 00:03:13 | G14: 00:03:08 | H14: 00:03:02.989 | I14: 00:02:57.978 | J14: 00:02:52.966 | K14: 61 | M14: 00:04:27.022 | N14: 00:04:22.011 | O14: 00:04:17 | P14: 00:03:57 | Q14: 00:03:42 | R14: 00:03:37 | S14: 00:03:28 | T14: 00:03:22.989 | U14: 00:03:17.978 | V14: 00:03:12.966 | W14: 61 | Y14: - | Z14: - | AA14: - | AB14: - | AC14: - | AD14: - | AE14: - | AF14: 4.3 | AG14: 4.1 | AH14: 3.9 | AI14: 61 | AK14: - | AL14: - | AM14: - | AN14: 12.1 | AO14: 12.3 | AP14: 61 | AR14: - | AS14: - | AT14: - | AU14: - | AV14: - | AW14: 4.9 | AX14: 4.8 | AY14: 4.6 | AZ14: 4.4 | BA14: 4.2 | BB14: 61 | BD14: - | BE14: - | BF14: - | BG14: 13.9 | BH14: 13.9 | BI14: 61 | BU14: 9 | CB14: 10 | CC14: 11 | CD14: 14 | CE14: 17 | CF14: 20 | CG14: 9 | CI14: 93 | CJ14: 108 | CK14: 123 | CL14: 134 | CM14: 142 | CN14: 155 | CO14: 173 | CP14: 188 | CQ14: 203 | CR14: 218 | CS14: 9 | CU14: 78 | CV14: 93 | CW14: 108 | CX14: 118 | CY14: 128 | CZ14: 140 | DA14: 140 | DB14: 145 | DC14: 150 | DD14: 155 | DE14: 9 | DG14: =DH14-2 -> 4 | DH14: 6 | DI14: 9 | DJ14: 10 | DK14: 12 | DL14: 13 | DM14: 14 | DN14: 15 | DO14: 16 | DP14: 17 | DQ14: 9 | DT14: 2 | DU14: 7 | DW14: 10 | DX14: 11 | DY14: 11 | DZ14: 12 | EA14: 13 | EB14: 14 | EC14: 9 | EH14: 0 | EO14: 9 | ES14: 1 | ET14: 3 | EU14: 3 | FA14: 9
A15: 00:04:00.022 | B15: 00:03:55.011 | C15: 00:03:50 | D15: 00:03:40 | E15: 00:03:25 | F15: 00:03:15 | G15: 00:03:10 | H15: 00:03:04.989 | I15: 00:02:59.978 | J15: 00:02:54.966 | K15: 60 | M15: 00:04:30.022 | N15: 00:04:25.011 | O15: 00:04:20 | P15: 00:04:00 | Q15: 00:03:45 | R15: 00:03:40 | S15: 00:03:30 | T15: 00:03:24.989 | U15: 00:03:19.978 | V15: 00:03:14.966 | W15: 60 | Y15: - | Z15: - | AA15: - | AB15: 5 | AC15: - | AD15: - | AE15: - | AF15: - | AG15: - | AH15: - | AI15: 60 | AK15: 8.3 | AL15: 8.1 | AM15: 7.9 | AN15: 12.2 | AO15: 12.4 | AP15: 60 | AR15: - | AS15: - | AT15: - | AU15: 5.3 | AV15: - | AW15: - | AX15: - | AY15: - | AZ15: - | BA15: - | BB15: 60 | BD15: 8.9 | BE15: 8.7 | BF15: 8.7 | BG15: 14 | BH15: 14 | BI15: 60 | BO15: 2 | BP15: 3 | BQ15: 4 | BR15: 6 | BS15: 8 | BT15: 10 | BU15: 10 | BX15: 1 | BY15: 5 | BZ15: 5 | CA15: 8 | CB15: 11 | CC15: 12 | CD15: 15 | CE15: 18 | CF15: 21 | CG15: 10 | CI15: 95 | CJ15: 110 | CK15: 125 | CL15: 137 | CM15: 145 | CN15: 158 | CO15: 176 | CP15: 191 | CQ15: 206 | CR15: 221 | CS15: 10 | CU15: 80 | CV15: 95 | CW15: 110 | CX15: 120 | CY15: 130 | CZ15: 143 | DA15: 143 | DB15: 148 | DC15: 153 | DD15: 158 | DE15: 10 | DG15: =DH15-2 -> 5 | DH15: 7 | DI15: 10 | DK15: 13 | DL15: 14 | DM15: 15 | DN15: 16 | DO15: 17 | DP15: 18 | DQ15: 10 | DV15: 8 | DX15: 12 | DY15: 12 | DZ15: 13 | EA15: 14 | EB15: 15 | EC15: 10 | EE15: -8 | EF15: -4 | EI15: 2 | EJ15: 3 | EK15: 3 | EL15: =EK15+1 -> 4 | EM15: =EL15+1 -> 5 | EN15: =EM15+1 -> 6 | EO15: 10 | EV15: 5 | EW15: 5 | EX15: 6 | EY15: 7 | EZ15: 8 | FA15: 10
A16: 00:04:03.022 | B16: 00:03:58.011 | C16: 00:03:53 | D16: 00:03:42 | E16: 00:03:27 | F16: 00:03:17 | G16: 00:03:12 | H16: 00:03:06.989 | I16: 00:03:01.978 | J16: 00:02:56.966 | K16: 59 | M16: 00:04:33.022 | N16: 00:04:28.011 | O16: 00:04:23 | P16: 00:04:03 | Q16: 00:03:48 | R16: 00:03:42 | S16: 00:03:32 | T16: 00:03:26.989 | U16: 00:03:21.978 | V16: 00:03:16.966 | W16: 59 | Y16: 5.7 | Z16: 5.5 | AA16: 5.3 | AB16: - | AC16: 4.8 | AD16: - | AE16: - | AF16: - | AG16: - | AH16: - | AI16: 59 | AK16: - | AL16: - | AM16: - | AN16: 12.3 | AO16: 12.5 | AP16: 59 | AR16: 6 | AS16: 5.8 | AT16: 5.6 | AU16: - | AV16: 5.1 | AW16: - | AX16: - | AY16: - | AZ16: - | BA16: - | BB16: 59 | BD16: - | BE16: - | BF16: - | BG16: 14.1 | BH16: 14.1 | BI16: 59 | BU16: 11 | CD16: 16 | CE16: 19 | CF16: 22 | CG16: 11 | CI16: 97 | CJ16: 112 | CK16: 127 | CL16: 140 | CM16: 148 | CN16: 161 | CO16: 179 | CP16: 194 | CQ16: 209 | CR16: 224 | CS16: 11 | CU16: 82 | CV16: 97 | CW16: 112 | CX16: 122 | CY16: 132 | CZ16: 146 | DA16: 146 | DB16: 151 | DC16: 156 | DD16: 161 | DE16: 11 | DJ16: 11 | DK16: 14 | DL16: 15 | DM16: 16 | DN16: =DM16+1 -> 17 | DO16: =DN16+1 -> 18 | DP16: =DO16+1 -> 19 | DQ16: 11 | DT16: 3 | DU16: 8 | DW16: 11 | DX16: 13 | DY16: 13 | DZ16: 14 | EA16: 15 | EB16: 16 | EC16: 11 | EG16: -1 | EO16: 11 | EQ16: -6 | ER16: -2 | ES16: 2 | ET16: 4 | EU16: 5 | FA16: 11
A17: 00:04:06.022 | B17: 00:04:01.011 | C17: 00:03:56 | D17: 00:03:44 | E17: 00:03:29 | F17: 00:03:19 | G17: 00:03:14 | H17: 00:03:08.989 | I17: 00:03:03.978 | J17: 00:02:58.966 | K17: 58 | M17: 00:04:36.022 | N17: 00:04:31.011 | O17: 00:04:26 | P17: 00:04:06 | Q17: 00:03:51 | R17: 00:03:44 | S17: 00:03:34 | T17: 00:03:28.989 | U17: 00:03:23.978 | V17: 00:03:18.966 | W17: 58 | Y17: - | Z17: - | AA17: - | AB17: - | AC17: - | AD17: 4.7 | AE17: 4.6 | AF17: 4.4 | AG17: 4.2 | AH17: 4 | AI17: 58 | AK17: 8.4 | AL17: 8.2 | AM17: 8 | AN17: 12.4 | AO17: 12.6 | AP17: 58 | AR17: - | AS17: - | AT17: - | AU17: - | AV17: - | AW17: 5 | AX17: 4.9 | AY17: 4.7 | AZ17: 4.5 | BA17: 4.3 | BB17: 58 | BD17: 9 | BE17: 8.8 | BF17: 8.8 | BG17: 14.2 | BH17: 14.2 | BI17: 58 | BM17: 1 | BU17: 12 | BX17: 2 | BY17: 6 | BZ17: 6 | CA17: 9 | CB17: 12 | CC17: 13 | CD17: 17 | CE17: 20 | CF17: 23 | CG17: 12 | CI17: 99 | CJ17: 114 | CK17: 129 | CL17: 143 | CM17: 151 | CN17: 164 | CO17: 182 | CP17: 197 | CQ17: 212 | CR17: 227 | CS17: 12 | CU17: 84 | CV17: 99 | CW17: 114 | CX17: 124 | CY17: 134 | CZ17: 148 | DA17: 148 | DB17: 153 | DC17: 158 | DD17: 163 | DE17: 12 | DG17: =DH17-2 -> 6 | DH17: =DI17-3 -> 8 | DI17: 11 | DK17: 15 | DL17: 16 | DM17: 17 | DN17: =DM17+1 -> 18 | DO17: 19 | DP17: 20 | DQ17: 12 | DV17: 9 | DX17: 14 | DY17: 14 | DZ17: 15 | EA17: 16 | EB17: 17 | EC17: 12 | EH17: 1 | EI17: 3 | EJ17: 4 | EK17: 4 | EL17: =EK17+1 -> 5 | EM17: =EL17+1 -> 6 | EN17: =EM17+1 -> 7 | EO17: 12 | EV17: 6 | EW17: 6 | EX17: 7 | EY17: 8 | EZ17: 9 | FA17: 12
A18: 00:04:09.022 | B18: 00:04:04.011 | C18: 00:03:59 | D18: 00:03:46 | E18: 00:03:31 | F18: 00:03:21 | G18: 00:03:16 | H18: 00:03:10.989 | I18: 00:03:05.978 | J18: 00:03:00.966 | K18: 57 | M18: 00:04:39.022 | N18: 00:04:34.011 | O18: 00:04:29 | P18: 00:04:09 | Q18: 00:03:54 | R18: 00:03:46 | S18: 00:03:36 | T18: 00:03:30.989 | U18: 00:03:25.978 | V18: 00:03:20.966 | W18: 57 | Y18: - | Z18: - | AA18: - | AB18: 5.1 | AC18: - | AD18: - | AE18: - | AF18: - | AG18: - | AH18: - | AI18: 57 | AK18: - | AL18: - | AM18: - | AN18: 12.5 | AO18: - | AP18: 57 | AR18: - | AS18: - | AT18: - | AU18: 5.4 | AV18: - | AW18: - | AX18: - | AY18: - | AZ18: - | BA18: - | BB18: 57 | BD18: - | BE18: - | BF18: - | BG18: 14.3 | BH18: 14.3 | BI18: 57 | BN18: 1 | BO18: 3 | BP18: 4 | BQ18: 5 | BR18: 7 | BS18: 9 | BT18: 11 | BU18: 13 | CG18: 13 | CI18: 101 | CJ18: 116 | CK18: 131 | CL18: 146 | CM18: 154 | CN18: 167 | CO18: 185 | CP18: 200 | CQ18: 215 | CR18: 230 | CS18: 13 | CU18: 86 | CV18: 101 | CW18: 116 | CX18: 126 | CY18: 136 | CZ18: 150 | DA18: 150 | DB18: 155 | DC18: 160 | DD18: 165 | DE18: 13 | DJ18: 12 | DL18: 17 | DM18: 18 | DN18: 19 | DO18: 20 | DP18: 21 | DQ18: 13 | DT18: 4 | DU18: 9 | DW18: 12 | DX18: 15 | DY18: 15 | DZ18: 16 | EA18: 17 | EB18: 18 | EC18: 13 | EO18: 13 | ET18: 5 | EU18: 6 | FA18: 13
A19: 00:04:12.022 | B19: 00:04:07.011 | C19: 00:04:02 | D19: 00:03:48 | E19: 00:03:33 | F19: 00:03:23 | G19: 00:03:18 | H19: 00:03:12.989 | I19: 00:03:07.978 | J19: 00:03:02.966 | K19: 56 | M19: 00:04:42.022 | N19: 00:04:37.011 | O19: 00:04:32 | P19: 00:04:12 | Q19: 00:03:57 | R19: 00:03:48 | S19: 00:03:38 | T19: 00:03:32.989 | U19: 00:03:27.978 | V19: 00:03:22.966 | W19: 56 | Y19: 5.8 | Z19: 5.6 | AA19: 5.4 | AB19: - | AC19: 4.9 | AD19: - | AE19: - | AF19: - | AG19: - | AH19: - | AI19: 56 | AK19: 8.5 | AL19: 8.3 | AM19: 8.1 | AN19: 12.6 | AO19: 12.7 | AP19: 56 | AR19: 6.1 | AS19: 5.9 | AT19: 5.7 | AU19: - | AV19: 5.2 | AW19: - | AX19: - | AY19: - | AZ19: - | BA19: - | BB19: 56 | BD19: 9.1 | BE19: 8.9 | BF19: 8.9 | BG19: 14.4 | BH19: 14.4 | BI19: 56 | BU19: 14 | BX19: 3 | BY19: 7 | BZ19: 7 | CA19: 10 | CB19: 13 | CC19: 14 | CD19: 18 | CE19: 21 | CF19: 24 | CG19: 14 | CI19: 103 | CJ19: 118 | CK19: 133 | CL19: 148 | CM19: 157 | CN19: 170 | CO19: 187 | CP19: 202 | CQ19: 217 | CR19: 232 | CS19: 14 | CU19: 88 | CV19: 103 | CW19: 118 | CX19: 128 | CY19: 138 | CZ19: 152 | DA19: 152 | DB19: 157 | DC19: 162 | DD19: 167 | DE19: 14 | DG19: =DH19-2 -> 7 | DH19: =DI19-3 -> 9 | DI19: 12 | DK19: 16 | DL19: 18 | DM19: 19 | DN19: 20 | DO19: 21 | DP19: 22 | DQ19: 14 | DV19: 10 | DX19: 16 | DY19: 16 | DZ19: 17 | EA19: 18 | EB19: 19 | EC19: 14 | EE19: -7 | EF19: -3 | EG19: 0 | EI19: 4 | EJ19: 5 | EK19: 5 | EL19: =EK19+1 -> 6 | EM19: =EL19+1 -> 7 | EN19: =EM19+1 -> 8 | EO19: 14 | EQ19: -5 | ER19: -1 | ES19: 3 | EV19: 7 | EW19: 7 | EX19: 8 | EY19: 9 | EZ19: 10 | FA19: 14
A20: 00:04:15.022 | B20: 00:04:10.011 | C20: 00:04:05 | D20: 00:03:50 | E20: 00:03:35 | F20: 00:03:25 | G20: 00:03:20 | H20: 00:03:14.989 | I20: 00:03:09.978 | J20: 00:03:04.966 | K20: 55 | M20: 00:04:45.022 | N20: 00:04:40.011 | O20: 00:04:35 | P20: 00:04:15 | Q20: 4,00,0 | R20: 00:03:50 | S20: 00:03:40 | T20: 00:03:34.989 | U20: 00:03:29.978 | V20: 00:03:24.966 | W20: 55 | Y20: - | Z20: - | AA20: - | AB20: - | AC20: - | AD20: - | AE20: - | AF20: - | AG20: - | AH20: - | AI20: 55 | AK20: - | AL20: - | AM20: - | AN20: 12.7 | AO20: - | AP20: 55 | AR20: - | AS20: - | AT20: - | AU20: - | AV20: - | AW20: - | AX20: - | AY20: - | AZ20: - | BA20: - | BB20: 55 | BD20: - | BE20: - | BF20: - | BG20: 14.5 | BH20: 14.5 | BI20: 55 | BU20: 15 | CG20: 15 | CI20: 105 | CJ20: 120 | CK20: 135 | CL20: 150 | CM20: 160 | CN20: 173 | CO20: 189 | CP20: 204 | CQ20: 219 | CR20: 234 | CS20: 15 | CU20: 90 | CV20: 105 | CW20: 120 | CX20: 130 | CY20: 140 | CZ20: 154 | DA20: 154 | DB20: 159 | DC20: 164 | DD20: 169 | DE20: 15 | DJ20: 13 | DL20: 19 | DM20: 20 | DN20: 21 | DO20: 22 | DP20: 23 | DQ20: 15 | DS20: 1 | DT20: 5 | DU20: 10 | DW20: 13 | DX20: 17 | DY20: 17 | DZ20: 18 | EA20: 19 | EB20: 20 | EC20: 15 | EH20: 2 | EO20: 15 | ET20: 6 | EU20: 7 | FA20: 15
A21: 00:04:17.022 | B21: 00:04:12.011 | C21: 00:04:07 | D21: 00:03:52 | E21: 00:03:37 | F21: 00:03:27 | G21: 00:03:22 | H21: 00:03:16.989 | I21: 00:03:11.978 | J21: 00:03:06.966 | K21: 54 | M21: 00:04:47.022 | N21: 00:04:42.011 | O21: 00:04:37 | P21: 00:04:17 | Q21: 00:04:02 | R21: 00:03:52 | S21: 00:03:42 | T21: 00:03:36.989 | U21: 00:03:31.978 | V21: 00:03:26.966 | W21: 54 | Y21: - | Z21: - | AA21: - | AB21: 5.2 | AC21: - | AD21: 4.8 | AE21: 4.7 | AF21: 4.5 | AG21: 4.3 | AH21: 4.1 | AI21: 54 | AK21: 8.6 | AL21: 8.4 | AM21: 8.2 | AN21: 12.8 | AO21: 12.8 | AP21: 54 | AR21: - | AS21: - | AT21: - | AU21: 5.5 | AV21: - | AW21: 5.1 | AX21: 5 | AY21: 4.8 | AZ21: 4.6 | BA21: 4.4 | BB21: 54 | BD21: 9.2 | BE21: 9.0 | BF21: 9 | BG21: 14.6 | BH21: 14.6 | BI21: 54 | BO21: 4 | BP21: 5 | BQ21: 6 | BR21: 8 | BS21: 10 | BT21: 12 | BU21: 16 | BW21: 1 | BX21: 4 | BY21: 8 | BZ21: 8 | CA21: 11 | CB21: 14 | CC21: 15 | CD21: 19 | CE21: 22 | CF21: 25 | CG21: 16 | CI21: 107 | CJ21: 122 | CK21: 137 | CL21: 152 | CM21: 162 | CN21: 176 | CO21: 191 | CP21: 206 | CQ21: 221 | CR21: 236 | CS21: 16 | CU21: 92 | CV21: 107 | CW21: 122 | CX21: 132 | CY21: 142 | CZ21: 156 | DA21: 156 | DB21: 161 | DC21: 166 | DD21: 171 | DE21: 16 | DG21: =DH21-2 -> 8 | DH21: =DI21-3 -> 10 | DI21: 13 | DK21: 17 | DL21: 20 | DM21: 21 | DN21: 22 | DO21: 23 | DP21: 24 | DQ21: 16 | DV21: 11 | DX21: 18 | DY21: 18 | DZ21: 19 | EA21: 20 | EB21: 21 | EC21: 16 | EI21: 5 | EJ21: 6 | EK21: 6 | EL21: =EK21+1 -> 7 | EM21: =EL21+1 -> 8 | EN21: =EM21+1 -> 9 | EO21: 16 | EV21: 8 | EW21: 8 | EX21: 9 | EY21: 10 | EZ21: 11 | FA21: 16
A22: 00:04:19.022 | B22: 00:04:14.011 | C22: 00:04:09 | D22: 00:03:54 | E22: 00:03:39 | F22: 00:03:29 | G22: 00:03:24 | H22: 00:03:18.989 | I22: 00:03:13.978 | J22: 00:03:08.966 | K22: 53 | M22: 00:04:49.022 | N22: 00:04:44.011 | O22: 00:04:39 | P22: 00:04:19 | Q22: 00:04:04 | R22: 00:03:54 | S22: 00:03:44 | T22: 00:03:38.989 | U22: 00:03:33.978 | V22: 00:03:28.966 | W22: 53 | Y22: 5.9 | Z22: 5.7 | AA22: 5.5 | AB22: - | AC22: 5 | AD22: - | AE22: - | AF22: - | AG22: - | AH22: - | AI22: 53 | AK22: - | AL22: - | AM22: - | AN22: 12.9 | AO22: - | AP22: 53 | AR22: 6.2 | AS22: 6 | AT22: 5.8 | AU22: - | AV22: 5.3 | AW22: - | AX22: - | AY22: - | AZ22: - | BA22: - | BB22: 53 | BD22: - | BE22: - | BF22: - | BG22: 14.7 | BH22: 14.7 | BI22: 53 | BN22: 2 | BU22: 17 | CG22: 17 | CI22: 109 | CJ22: 124 | CK22: 139 | CL22: 154 | CM22: 164 | CN22: 178 | CO22: 193 | CP22: 208 | CQ22: 223 | CR22: 238 | CS22: 17 | CU22: 94 | CV22: 109 | CW22: 124 | CX22: 134 | CY22: 144 | CZ22: 158 | DA22: 158 | DB22: 163 | DC22: 168 | DD22: 173 | DE22: 17 | DJ22: 14 | DL22: 21 | DM22: 22 | DN22: 23 | DO22: 24 | DP22: 25 | DQ22: 17 | DS22: 2 | DT22: 6 | DU22: 11 | DW22: 14 | DX22: 19 | DY22: 19 | DZ22: 20 | EA22: 21 | EB22: 22 | EC22: 17 | EG22: 1 | EO22: 17 | EQ22: -4 | ER22: 0 | ES22: 4 | EU22: 8 | FA22: 17
A23: 00:04:21.022 | B23: 00:04:16.011 | C23: 00:04:11 | D23: 00:03:56 | E23: 00:03:41 | F23: 00:03:31 | G23: 00:03:26 | H23: 00:03:20.989 | I23: 00:03:15.978 | J23: 00:03:10.966 | K23: 52 | M23: 00:04:51.022 | N23: 00:04:46.011 | O23: 00:04:41 | P23: 00:04:21 | Q23: 00:04:06 | R23: 00:03:56 | S23: 00:03:46 | T23: 00:03:40.989 | U23: 00:03:35.978 | V23: 00:03:30.966 | W23: 52 | Y23: - | Z23: - | AA23: - | AB23: - | AC23: - | AD23: - | AE23: - | AF23: - | AG23: - | AH23: - | AI23: 52 | AK23: 8.7 | AL23: 8.5 | AM23: 8.3 | AN23: 13 | AO23: 12.9 | AP23: 52 | AR23: - | AS23: - | AT23: - | AU23: - | AV23: - | AW23: - | AX23: - | AY23: - | AZ23: - | BA23: - | BB23: 52 | BD23: 9.3 | BE23: 9.1 | BF23: 9.1 | BG23: 14.8 | BH23: 14.8 | BI23: 52 | BL23: 1 | BM23: 2 | BU23: 18 | BW23: 2 | BX23: 5 | BY23: 9 | BZ23: 9 | CA23: 12 | CB23: 15 | CC23: 16 | CD23: 20 | CE23: 23 | CF23: 26 | CG23: 18 | CI23: 111 | CJ23: 126 | CK23: 141 | CL23: 156 | CM23: 166 | CN23: 180 | CO23: 195 | CP23: 210 | CQ23: 225 | CR23: 240 | CS23: 18 | CU23: 96 | CV23: 111 | CW23: 126 | CX23: 136 | CY23: 146 | CZ23: 160 | DA23: 160 | DB23: 165 | DC23: 170 | DD23: 175 | DE23: 18 | DG23: =DH23-2 -> 9 | DH23: =DI23-3 -> 11 | DI23: 14 | DK23: 18 | DL23: 22 | DM23: 23 | DN23: 24 | DO23: 25 | DP23: 26 | DQ23: 18 | DV23: 12 | EC23: 18 | EE23: -6 | EF23: -2 | EH23: 3 | EI23: 6 | EJ23: 7 | EK23: 7 | EL23: =EK23+1 -> 8 | EM23: =EL23+1 -> 9 | EN23: =EM23+1 -> 10 | EO23: 18 | ET23: 7 | EV23: 9 | EW23: 9 | EX23: 10 | EY23: 11 | EZ23: 12 | FA23: 18
A24: 00:04:23.022 | B24: 00:04:18.011 | C24: 00:04:13 | D24: 00:03:58 | E24: 00:03:43 | F24: 00:03:33 | G24: 00:03:28 | H24: 00:03:22.989 | I24: 00:03:17.978 | J24: 00:03:12.966 | K24: 51 | M24: 00:04:53.022 | N24: 00:04:48.011 | O24: 00:04:43 | P24: 00:04:23 | Q24: 00:04:08 | R24: 00:03:58 | S24: 00:03:48 | T24: 00:03:42.989 | U24: 00:03:37.978 | V24: 00:03:32.966 | W24: 51 | Y24: - | Z24: - | AA24: - | AB24: - | AC24: - | AD24: - | AE24: - | AF24: - | AG24: - | AH24: - | AI24: 51 | AK24: - | AL24: - | AM24: - | AN24: 13.1 | AO24: - | AP24: 51 | AR24: - | AS24: - | AT24: - | AU24: - | AV24: - | AW24: - | AX24: - | AY24: - | AZ24: - | BA24: - | BB24: 51 | BD24: - | BE24: - | BF24: - | BG24: 14.9 | BH24: 14.9 | BI24: 51 | BP24: 6 | BQ24: 7 | BR24: 9 | BS24: 11 | BT24: 13 | BU24: 19 | CG24: 19 | CI24: 113 | CJ24: 128 | CK24: 143 | CL24: 158 | CM24: 168 | CN24: 182 | CO24: 197 | CP24: 212 | CQ24: 227 | CR24: 242 | CS24: 19 | CU24: 98 | CV24: 113 | CW24: 128 | CX24: 138 | CY24: 148 | CZ24: 162 | DA24: 162 | DB24: 167 | DC24: 172 | DD24: 177 | DE24: 19 | DJ24: 15 | DM24: 24 | DN24: 25 | DO24: 26 | DP24: 27 | DQ24: 19 | DS24: 3 | DT24: 7 | DU24: 12 | DW24: 15 | DX24: 20 | DY24: 20 | DZ24: 21 | EA24: 22 | EB24: 23 | EC24: 19 | EO24: 19 | EU24: 9 | FA24: 19
A25: 00:04:25.022 | B25: 00:04:20.011 | C25: 00:04:15 | D25: 00:04:00 | E25: 00:03:45 | F25: 00:03:35 | G25: 00:03:30 | H25: =G25-0.0058% -> 00:03:24.989 | I25: 00:03:19.978 | J25: 00:03:14.966 | K25: 50 | M25: 00:04:55.022 | N25: 00:04:50.011 | O25: 00:04:45 | P25: 00:04:25 | Q25: 00:04:10 | R25: 00:04:00 | S25: 00:03:50 | T25: 00:03:44.989 | U25: 00:03:39.978 | V25: 00:03:34.966 | W25: 50 | Y25: 6 | Z25: 5.8 | AA25: 5.6 | AB25: 5.3 | AC25: 5.1 | AD25: 4.9 | AE25: 4.8 | AF25: 4.6 | AG25: 4.4 | AH25: 4.2 | AI25: 50 | AK25: 8.8 | AL25: 8.6 | AM25: 8.4 | AN25: 13.2 | AO25: 13 | AP25: 50 | AR25: 6.3 | AS25: 6.1 | AT25: 5.9 | AU25: 5.6 | AV25: 5.4 | AW25: 5.2 | AX25: 5.1 | AY25: 4.9 | AZ25: 4.7 | BA25: 4.5 | BB25: 50 | BD25: 9.4 | BE25: 9.2 | BF25: 9.2 | BG25: 15 | BH25: 15 | BI25: 50 | BO25: 5 | BU25: 20 | BW25: 3 | BX25: 6 | BY25: 10 | BZ25: 10 | CA25: 13 | CB25: 16 | CC25: 17 | CD25: 21 | CE25: 24 | CF25: 27 | CG25: 20 | CI25: 115 | CJ25: 130 | CK25: 145 | CL25: 160 | CM25: 170 | CN25: 184 | CO25: 199 | CP25: 214 | CQ25: 229 | CR25: 244 | CS25: 20 | CU25: 100 | CV25: 115 | CW25: 130 | CX25: 140 | CY25: 150 | CZ25: 164 | DA25: 164 | DB25: 169 | DC25: 174 | DD25: 179 | DE25: 20 | DG25: =DH25-2 -> 10 | DH25: =DI25-3 -> 12 | DI25: 15 | DK25: 19 | DL25: 23 | DM25: 25 | DN25: 26 | DO25: 27 | DP25: 28 | DQ25: 20 | DV25: 13 | EC25: 20 | EG25: 2 | EI25: 7 | EJ25: 8 | EK25: 8 | EL25: =EK25+1 -> 9 | EM25: =EL25+1 -> 10 | EN25: =EM25+1 -> 11 | EO25: 20 | EQ25: -3 | ER25: 1 | ES25: 5 | EV25: 10 | EW25: 10 | EX25: 11 | EY25: 12 | EZ25: 13 | FA25: 20
A26: 00:04:26.022 | B26: 00:04:21.011 | C26: 00:04:16 | D26: 00:04:01 | E26: 00:03:46 | F26: 00:03:36 | G26: 00:03:31 | H26: 00:03:25.989 | I26: 00:03:20.978 | J26: 00:03:15.966 | K26: 49 | M26: 00:04:56.022 | N26: 00:04:51.011 | O26: 00:04:46 | P26: 00:04:26 | Q26: 00:04:11 | R26: 00:04:01 | S26: 00:03:51 | T26: 00:03:45.989 | U26: 00:03:40.978 | V26: 00:03:35.966 | W26: 49 | Y26: - | Z26: - | AA26: - | AB26: - | AC26: - | AD26: - | AE26: - | AF26: - | AG26: - | AH26: - | AI26: 49 | AK26: - | AL26: - | AM26: - | AN26: - | AO26: - | AP26: 49 | AR26: - | AS26: - | AT26: - | AU26: - | AV26: - | AW26: - | AX26: - | AY26: - | AZ26: - | BA26: - | BB26: 49 | BD26: - | BE26: - | BF26: - | BG26: - | BH26: - | BI26: 49 | BN26: 3 | BU26: 21 | CG26: 21 | CI26: =CJ26-15 -> 117 | CJ26: 132 | CK26: 147 | CL26: 162 | CM26: 172 | CN26: 186 | CO26: 201 | CP26: =CO26+15 -> 216 | CQ26: 231 | CR26: 246 | CS26: 21 | CU26: 102 | CV26: 117 | CW26: 132 | CX26: 142 | CY26: 152 | CZ26: 166 | DA26: 166 | DB26: 171 | DC26: 176 | DD26: 181 | DE26: 21 | DJ26: 16 | DQ26: 21 | DS26: 4 | DT26: 8 | DU26: 13 | DW26: 16 | DX26: 21 | DY26: 21 | DZ26: 22 | EA26: 23 | EB26: 24 | EC26: 21 | EH26: 4 | EO26: 21 | ET26: 8 | EU26: 10 | FA26: 21
A27: 00:04:27.022 | B27: 00:04:22.011 | C27: 00:04:17 | D27: 00:04:02 | E27: 00:03:47 | F27: 00:03:37 | G27: 00:03:32 | H27: 00:03:26.989 | I27: 00:03:21.978 | J27: 00:03:16.966 | K27: 48 | M27: 00:04:57.022 | N27: 00:04:52.011 | O27: 00:04:47 | P27: 00:04:27 | Q27: 00:04:12 | R27: 00:04:02 | S27: 00:03:52 | T27: 00:03:46.989 | U27: 00:03:41.978 | V27: 00:03:36.966 | W27: 48 | Y27: - | Z27: - | AA27: - | AB27: - | AC27: - | AD27: - | AE27: - | AF27: - | AG27: - | AH27: - | AI27: 48 | AK27: - | AL27: - | AM27: - | AN27: 13.3 | AO27: - | AP27: 48 | AR27: - | AS27: - | AT27: - | AU27: - | AV27: - | AW27: - | AX27: - | AY27: - | AZ27: - | BA27: - | BB27: 48 | BD27: - | BE27: - | BF27: - | BG27: 15.1 | BH27: 15.1 | BI27: 48 | BP27: 7 | BQ27: 8 | BR27: 10 | BS27: 12 | BT27: 14 | BU27: 22 | BZ27: 11 | CA27: 14 | CB27: 17 | CC27: 18 | CD27: 22 | CE27: 25 | CF27: 28 | CG27: 22 | CI27: 119 | CJ27: 134 | CK27: 149 | CL27: 164 | CM27: 174 | CN27: 188 | CO27: 203 | CP27: 218 | CQ27: 233 | CR27: 248 | CS27: 22 | CU27: 104 | CV27: 119 | CW27: 134 | CX27: 144 | CY27: 154 | CZ27: 168 | DA27: 168 | DB27: 173 | DC27: 178 | DD27: 183 | DE27: 22 | DG27: =DH27-2 -> 11 | DH27: =DI27-3 -> 13 | DI27: 16 | DK27: 20 | DL27: 24 | DM27: 26 | DN27: =DM27+1 -> 27 | DO27: =DN27+1 -> 28 | DP27: =DO27+1 -> 29 | DQ27: 22 | DV27: 14 | EC27: 22 | EE27: -5 | EF27: -1 | EI27: 8 | EJ27: 9 | EK27: 9 | EL27: =EK27+1 -> 10 | EM27: =EL27+1 -> 11 | EN27: =EM27+1 -> 12 | EO27: 22 | EV27: 11 | EW27: 11 | EX27: 12 | EY27: 13 | EZ27: 14 | FA27: 22
A28: 00:04:28.022 | B28: 00:04:23.011 | C28: 00:04:18 | D28: 00:04:03 | E28: 00:03:48 | F28: 00:03:38 | G28: 00:03:33 | H28: 00:03:27.989 | I28: 00:03:22.978 | J28: 00:03:17.966 | K28: 47 | M28: 00:04:58.022 | N28: 00:04:53.011 | O28: 00:04:48 | P28: 00:04:28 | Q28: 00:04:13 | R28: 00:04:03 | S28: 00:03:53 | T28: 00:03:47.989 | U28: 00:03:42.978 | V28: 00:03:37.966 | W28: 47 | Y28: - | Z28: - | AA28: - | AB28: - | AC28: - | AD28: - | AE28: - | AF28: - | AG28: - | AH28: - | AI28: 47 | AK28: 8.9 | AL28: 8.7 | AM28: 8.5 | AN28: - | AO28: 13.1 | AP28: 47 | AR28: - | AS28: - | AT28: - | AU28: - | AV28: - | AW28: - | AX28: - | AY28: - | AZ28: - | BA28: - | BB28: 47 | BD28: 9.5 | BE28: 9.3 | BF28: 9.3 | BG28: - | BH28: - | BI28: 47 | BU28: 23 | BW28: 4 | BX28: 7 | BY28: 11 | CG28: 23 | CI28: 121 | CJ28: 136 | CK28: 151 | CL28: 166 | CM28: 176 | CN28: 190 | CO28: 205 | CP28: 220 | CQ28: 235 | CR28: 250 | CS28: 23 | CU28: 106 | CV28: 121 | CW28: 136 | CX28: 146 | CY28: 156 | CZ28: 170 | DA28: 170 | DB28: 175 | DC28: 180 | DD28: 185 | DE28: 23 | DJ28: 17 | DQ28: 23 | DS28: 5 | DT28: 9 | DU28: 14 | DW28: 17 | DX28: 22 | DY28: 22 | DZ28: 23 | EA28: 24 | EB28: 25 | EC28: 23 | EG28: 3 | EO28: 23 | EQ28: -2 | ER28: 2 | ES28: 6 | EU28: 11 | FA28: 23
A29: 00:04:29.022 | B29: 00:04:24.011 | C29: 00:04:19 | D29: 00:04:04 | E29: 00:03:49 | F29: 00:03:39 | G29: 00:03:34 | H29: 00:03:28.989 | I29: 00:03:23.978 | J29: 00:03:18.966 | K29: 46 | M29: 00:04:59.022 | N29: 00:04:54.011 | O29: 00:04:49 | P29: 00:04:29 | Q29: 00:04:14 | R29: 00:04:04 | S29: 00:03:54 | T29: 00:03:48.989 | U29: 00:03:43.978 | V29: 00:03:38.966 | W29: 46 | Y29: 6.1 | Z29: 5.9 | AA29: 5.7 | AB29: - | AC29: - | AD29: - | AE29: - | AF29: - | AG29: - | AH29: - | AI29: 46 | AK29: - | AL29: - | AM29: - | AN29: 13.4 | AO29: - | AP29: 46 | AR29: 6.4 | AS29: 6.2 | AT29: 6 | AU29: - | AW29: - | AX29: - | AY29: - | AZ29: - | BA29: - | BB29: 46 | BD29: - | BE29: - | BF29: - | BG29: 15.2 | BH29: 15.2 | BI29: 46 | BM29: 3 | BO29: 6 | BU29: 24 | BZ29: 12 | CA29: 15 | CB29: 18 | CC29: 19 | CD29: 23 | CE29: 26 | CF29: 29 | CG29: 24 | CI29: 123 | CJ29: 138 | CK29: 153 | CL29: 168 | CM29: 178 | CN29: 192 | CO29: 207 | CP29: 222 | CQ29: 237 | CR29: 252 | CS29: 24 | CU29: 108 | CV29: 123 | CW29: 138 | CX29: 148 | CY29: 158 | CZ29: 172 | DA29: 172 | DB29: 177 | DC29: 182 | DD29: 187 | DE29: 24 | DG29: =DH29-2 -> 12 | DH29: =DI29-3 -> 14 | DI29: 17 | DK29: 21 | DL29: 25 | DM29: 27 | DN29: =DM29+1 -> 28 | DO29: =DN29+1 -> 29 | DP29: =DO29+1 -> 30 | DQ29: 24 | DV29: 15 | EC29: 24 | EH29: 5 | EI29: 9 | EJ29: 10 | EK29: 10 | EL29: =EK29+1 -> 11 | EM29: =EL29+1 -> 12 | EN29: =EM29+1 -> 13 | EO29: 24 | ET29: 9 | EV29: 12 | EW29: 12 | EX29: 13 | EY29: 14 | EZ29: 15 | FA29: 24
A30: 00:04:30.022 | B30: 00:04:25.011 | C30: 00:04:20 | D30: 00:04:05 | E30: 00:03:50 | F30: 00:03:40 | G30: 00:03:35 | H30: 00:03:29.989 | I30: 00:03:24.978 | J30: 00:03:19.966 | K30: 45 | M30: 00:05:00.022 | N30: 00:04:55.011 | O30: 00:04:50 | P30: 00:04:30 | Q30: 00:04:15 | R30: 00:04:05 | S30: 00:03:55 | T30: 00:03:49.989 | U30: 00:03:44.978 | V30: 00:03:39.966 | W30: 45 | Y30: - | Z30: - | AA30: - | AB30: 5.4 | AC30: 5.2 | AD30: 5 | AE30: 4.9 | AF30: 4.7 | AG30: 4.5 | AH30: 4.3 | AI30: 45 | AK30: - | AL30: - | AM30: - | AN30: - | AO30: - | AP30: 45 | AR30: - | AS30: - | AT30: - | AU30: 5.7 | AV30: 5.5 | AW30: 5.3 | AX30: 5.2 | AY30: 5 | AZ30: 4.8 | BA30: 4.6 | BB30: 45 | BD30: 9.6 | BE30: - | BF30: - | BG30: - | BH30: - | BI30: 45 | BN30: 4 | BU30: 25 | CG30: 25 | CI30: 125 | CJ30: 140 | CK30: 155 | CL30: 170 | CM30: 180 | CN30: 194 | CO30: 209 | CP30: 224 | CQ30: 239 | CR30: 254 | CS30: 25 | CU30: 110 | CV30: 125 | CW30: 140 | CX30: 150 | CY30: 160 | CZ30: 174 | DA30: 174 | DB30: 179 | DC30: 184 | DD30: 189 | DE30: 25 | DJ30: 18 | DQ30: 25 | DS30: 6 | DT30: 10 | DU30: 15 | DW30: 18 | DX30: 23 | DY30: 23 | DZ30: 24 | EA30: 25 | EB30: 26 | EC30: 25 | EO30: 25 | EU30: 12 | FA30: 25
A31: 00:04:32.022 | B31: 00:04:27.011 | C31: 00:04:22 | D31: 00:04:06 | E31: 00:03:51 | F31: 00:03:41 | G31: 00:03:36 | H31: 00:03:30.989 | I31: 00:03:25.978 | J31: 00:03:20.966 | K31: 44 | M31: 00:05:02.022 | N31: 00:04:57.011 | O31: 00:04:52 | P31: 00:04:32 | Q31: 00:04:16 | R31: 00:04:06 | S31: 00:03:57 | T31: 00:03:51.989 | U31: 00:03:46.978 | V31: 00:03:41.966 | W31: 44 | Y31: - | Z31: - | AA31: - | AB31: - | AC31: - | AD31: - | AE31: - | AF31: - | AG31: - | AH31: - | AI31: 44 | AK31: 9 | AL31: 8.8 | AM31: 8.6 | AN31: 13.5 | AO31: 13.2 | AP31: 44 | AR31: - | AS31: - | AT31: - | AU31: - | AV31: - | AW31: - | AX31: - | AY31: - | AZ31: - | BA31: - | BB31: 44 | BD31: - | BE31: 9.4 | BF31: 9.4 | BG31: 15.3 | BH31: 15.3 | BI31: 44 | BP31: 8 | BQ31: 9 | BR31: =BQ31+2 -> 11 | BS31: =BR31+2 -> 13 | BT31: =BS31+2 -> 15 | BU31: 26 | BW31: 5 | BX31: 8 | BY31: 12 | BZ31: 13 | CA31: 16 | CB31: 19 | CC31: 20 | CD31: 24 | CE31: 27 | CF31: 30 | CG31: 26 | CI31: 127 | CJ31: 142 | CK31: 157 | CL31: 172 | CM31: 182 | CN31: 196 | CO31: 211 | CP31: 226 | CQ31: 241 | CR31: 256 | CS31: 26 | CU31: 112 | CV31: 127 | CW31: 142 | CX31: 152 | CY31: 162 | CZ31: 176 | DA31: 176 | DB31: 181 | DC31: 186 | DD31: 191 | DE31: 26 | DG31: =DH31-2 -> 13 | DH31: =DI31-3 -> 15 | DI31: 18 | DK31: 22 | DL31: 26 | DM31: 28 | DN31: =DM31+1 -> 29 | DO31: =DN31+1 -> 30 | DP31: =DO31+1 -> 31 | DQ31: 26 | DV31: 16 | EC31: 26 | EE31: -4 | EF31: =EG31-4 -> 0 | EG31: 4 | EI31: 10 | EJ31: 11 | EK31: 11 | EL31: =EK31+1 -> 12 | EM31: =EL31+1 -> 13 | EN31: =EM31+1 -> 14 | EO31: 26 | EQ31: -1 | ER31: 3 | ES31: 7 | EV31: 13 | EW31: 13 | EX31: 14 | EY31: 15 | EZ31: 16 | FA31: 26
A32: 00:04:34.022 | B32: 00:04:29.011 | C32: 00:04:24 | D32: 00:04:08 | E32: 00:03:53 | F32: 00:03:42 | G32: 00:03:37 | H32: 00:03:31.989 | I32: 00:03:26.978 | J32: 00:03:21.966 | K32: 43 | M32: 00:05:04.022 | N32: 00:04:59.011 | O32: 00:04:54 | P32: 00:04:34 | Q32: 00:04:17 | R32: 00:04:07 | S32: 00:03:59 | T32: 00:03:53.989 | U32: 00:03:48.978 | V32: 00:03:43.966 | W32: 43 | Y32: - | Z32: - | AA32: - | AB32: - | AC32: - | AD32: - | AE32: - | AF32: - | AG32: - | AH32: - | AI32: 43 | AK32: - | AL32: - | AM32: - | AN32: - | AO32: - | AP32: 43 | AR32: - | AS32: - | AT32: - | AU32: - | AV32: - | AW32: - | AX32: - | AY32: - | AZ32: - | BA32: - | BB32: 43 | BD32: 9.7 | BE32: - | BF32: - | BG32: - | BH32: - | BI32: 43 | BU32: 27 | CG32: 27 | CI32: 129 | CJ32: 144 | CK32: 159 | CL32: 174 | CM32: 184 | CN32: 198 | CO32: 212 | CP32: 227 | CQ32: 242 | CR32: 257 | CS32: 27 | CU32: 114 | CV32: 129 | CW32: 144 | CX32: 154 | CY32: 164 | CZ32: 178 | DA32: 178 | DB32: 183 | DC32: 188 | DD32: 193 | DE32: 27 | DJ32: 19 | DQ32: 27 | DS32: 7 | DU32: 16 | DW32: 19 | DX32: 24 | DY32: 24 | DZ32: 25 | EA32: 26 | EB32: 27 | EC32: 27 | EH32: 6 | EO32: 27 | ET32: 10 | FA32: 27
A33: 00:04:36.022 | B33: 00:04:31.011 | C33: 00:04:26 | D33: 00:04:10 | E33: 00:03:55 | F33: 00:03:43 | G33: 00:03:38 | H33: 00:03:32.989 | I33: 00:03:27.978 | J33: 00:03:22.966 | K33: 42 | M33: 00:05:06.022 | N33: 00:05:01.011 | O33: 00:04:56 | P33: 00:04:36 | Q33: 00:04:18 | R33: 00:04:08 | S33: 00:04:01 | T33: 00:03:55.989 | U33: 00:03:50.978 | V33: 00:03:45.966 | W33: 42 | Y33: 6.2 | Z33: 6 | AA33: 5.8 | AB33: - | AC33: - | AD33: - | AE33: - | AF33: - | AG33: - | AH33: - | AI33: 42 | AK33: 9.1 | AL33: - | AM33: - | AN33: 13.6 | AO33: - | AP33: 42 | AR33: 6.5 | AS33: 6.3 | AT33: 6.1 | AU33: - | AW33: - | AX33: - | AY33: - | AZ33: - | BA33: - | BB33: 42 | BD33: - | BE33: - | BF33: - | BG33: 15.4 | BH33: 15.4 | BI33: 42 | BO33: 7 | BU33: 28 | BZ33: 14 | CA33: 17 | CB33: 20 | CC33: 21 | CD33: 25 | CE33: 28 | CF33: 31 | CG33: 28 | CI33: 131 | CJ33: 146 | CK33: 161 | CL33: 176 | CM33: 186 | CN33: 200 | CO33: 213 | CP33: 228 | CQ33: 243 | CR33: 258 | CS33: 28 | CU33: 116 | CV33: 131 | CW33: 146 | CX33: 156 | CY33: 166 | CZ33: 180 | DA33: 180 | DB33: 185 | DC33: 190 | DD33: 195 | DE33: 28 | DG33: =DH33-2 -> 14 | DH33: =DI33-3 -> 16 | DI33: 19 | DK33: 23 | DL33: 27 | DM33: 29 | DN33: =DM33+1 -> 30 | DO33: =DN33+1 -> 31 | DP33: =DO33+1 -> 32 | DQ33: 28 | DV33: 17 | EC33: 28 | EO33: 28 | EU33: 13 | FA33: 28
A34: 00:04:38.022 | B34: 00:04:33.011 | C34: 00:04:28 | D34: 00:04:12 | E34: 00:03:57 | F34: 00:03:44 | G34: 00:03:39 | H34: 00:03:33.989 | I34: 00:03:28.978 | J34: 00:03:23.966 | K34: 41 | M34: 00:05:08.022 | N34: 00:05:03.011 | O34: 00:04:58 | P34: 00:04:38 | Q34: 00:04:20 | R34: 00:04:09 | S34: 00:04:03 | T34: 00:03:57.989 | U34: 00:03:52.978 | V34: 00:03:47.966 | W34: 41 | Y34: - | Z34: - | AA34: - | AB34: - | AC34: - | AD34: - | AE34: - | AF34: - | AG34: - | AH34: - | AI34: 41 | AK34: - | AL34: 8.9 | AM34: 8.7 | AN34: - | AO34: 13.3 | AP34: 41 | AR34: - | AS34: - | AT34: - | AU34: - | AV34: - | AW34: - | AX34: - | AY34: - | AZ34: - | BA34: - | BB34: 41 | BD34: 9.8 | BE34: 9.5 | BF34: 9.5 | BG34: - | BH34: - | BI34: 41 | BN34: 5 | BU34: 29 | BW34: 6 | BX34: 9 | BY34: 13 | CG34: 29 | CI34: 133 | CJ34: 148 | CK34: 163 | CL34: 178 | CM34: 188 | CN34: 202 | CO34: 214 | CP34: 229 | CQ34: 244 | CR34: 259 | CS34: 29 | CU34: 118 | CV34: 133 | CW34: 148 | CX34: 158 | CY34: 168 | CZ34: 182 | DA34: 182 | DB34: 187 | DC34: 192 | DD34: 197 | DE34: 29 | DJ34: 20 | DQ34: 29 | DS34: 8 | DT34: 12 | DU34: 17 | DW34: 20 | DX34: 25 | DY34: 25 | DZ34: 26 | EA34: 27 | EB34: 28 | EC34: 29 | EI34: 11 | EJ34: 12 | EK34: 12 | EL34: =EK34+1 -> 13 | EM34: =EL34+1 -> 14 | EN34: =EM34+1 -> 15 | EO34: 29 | EQ34: 0 | ER34: 4 | ES34: 8 | EV34: 14 | EW34: 14 | EX34: 15 | EY34: 16 | EZ34: 17 | FA34: 29
A35: 00:04:40.022 | B35: 00:04:35.011 | C35: 00:04:30 | D35: 00:04:14 | E35: 00:03:59 | F35: 00:03:45 | G35: 00:03:40 | H35: 00:03:34.989 | I35: 00:03:29.978 | J35: 00:03:24.966 | K35: 40 | M35: 00:05:10.022 | N35: 00:05:05.011 | O35: 00:05:00 | P35: 00:04:40 | Q35: 00:04:22 | R35: 00:04:10 | S35: 00:04:05 | T35: 00:03:59.989 | U35: 00:03:54.978 | V35: 00:03:49.966 | W35: 40 | Y35: - | Z35: - | AA35: - | AB35: 5.5 | AC35: 5.3 | AD35: 5.1 | AE35: 5 | AF35: 4.8 | AG35: 4.6 | AH35: 4.4 | AI35: 40 | AK35: 9.2 | AL35: - | AM35: - | AN35: 13.7 | AO35: - | AP35: 40 | AR35: - | AS35: - | AT35: - | AU35: 5.8 | AV35: 5.6 | AW35: 5.4 | AX35: 5.3 | AY35: 5.1 | AZ35: 4.9 | BA35: 4.7 | BB35: 40 | BD35: - | BE35: - | BF35: - | BG35: 15.5 | BH35: 15.5 | BI35: 40 | BL35: =BM35-2 -> 2 | BM35: 4 | BP35: 9 | BQ35: 10 | BR35: =BQ35+2 -> 12 | BS35: =BR35+2 -> 14 | BT35: =BS35+2 -> 16 | BU35: 30 | BZ35: 15 | CA35: 18 | CB35: 21 | CC35: 22 | CD35: 26 | CE35: 29 | CF35: 32 | CG35: 30 | CI35: 135 | CJ35: 150 | CK35: 165 | CL35: 180 | CM35: 190 | CN35: 204 | CO35: 215 | CP35: 230 | CQ35: 245 | CR35: 260 | CS35: 30 | CU35: 120 | CV35: 135 | CW35: 150 | CX35: 160 | CY35: 170 | CZ35: 184 | DA35: 184 | DB35: 189 | DC35: 194 | DD35: 199 | DE35: 30 | DG35: =DH35-2 -> 15 | DH35: =DI35-3 -> 17 | DI35: 20 | DK35: 24 | DL35: 28 | DM35: 30 | DN35: =DM35+1 -> 31 | DO35: =DN35+1 -> 32 | DP35: =DO35+1 -> 33 | DQ35: 30 | DV35: 18 | EC35: 30 | EE35: -3 | EF35: =EG35-4 -> 1 | EG35: 5 | EH35: 7 | EO35: 30 | ET35: 11 | FA35: 30
A36: 00:04:42.022 | B36: 00:04:37.011 | C36: 00:04:32 | D36: 00:04:16 | E36: 00:04:01 | F36: 00:03:47 | G36: 00:03:41 | H36: 00:03:35.989 | I36: 00:03:30.978 | J36: 00:03:25.966 | K36: 39 | M36: 00:05:12.022 | N36: 00:05:07.011 | O36: 00:05:02 | P36: 00:04:42 | Q36: 00:04:24 | R36: 00:04:12 | S36: 00:04:07 | T36: 00:04:01.989 | U36: 00:03:56.978 | V36: 00:03:51.966 | W36: 39 | Y36: - | Z36: - | AA36: - | AB36: - | AC36: - | AD36: - | AE36: - | AF36: - | AG36: - | AH36: - | AI36: 39 | AK36: - | AL36: - | AM36: - | AN36: - | AO36: 13.4 | AP36: 39 | AR36: - | AS36: - | AT36: - | AU36: - | AV36: - | AW36: - | AX36: - | AY36: - | AZ36: - | BA36: - | BB36: 39 | BD36: 9.9 | BE36: 9.6 | BF36: 9.6 | BG36: - | BH36: - | BI36: 39 | BU36: 31 | CG36: 31 | CI36: 136 | CJ36: 151 | CK36: 166 | CL36: 181 | CM36: 192 | CN36: 206 | CO36: 216 | CP36: 231 | CQ36: 246 | CR36: 261 | CS36: 31 | CU36: 121 | CV36: 136 | CW36: 151 | CX36: 162 | CY36: 172 | CZ36: 186 | DA36: 186 | DB36: 191 | DC36: 196 | DD36: 201 | DE36: 31 | DJ36: 21 | DQ36: 31 | DW36: 21 | DX36: 26 | DY36: 26 | DZ36: 27 | EA36: 28 | EB36: 29 | EC36: 31 | EO36: 31 | EU36: 14 | FA36: 31
A37: 00:04:44.022 | B37: 00:04:39.011 | C37: 00:04:34 | D37: 00:04:18 | E37: 00:04:03 | F37: 00:03:49 | G37: 00:03:42 | H37: 00:03:36.989 | I37: 00:03:31.978 | J37: 00:03:26.966 | K37: 38 | M37: 00:05:14.022 | N37: 00:05:09.011 | O37: 00:05:04 | P37: 00:04:44 | Q37: 00:04:26 | R37: 00:04:14 | S37: 00:04:09 | T37: 00:04:03.989 | U37: 00:03:58.978 | V37: 00:03:53.966 | W37: 38 | Y37: 6.3 | Z37: 6.1 | AA37: 5.9 | AB37: - | AD37: - | AE37: - | AF37: - | AG37: - | AH37: - | AI37: 38 | AK37: 9.3 | AL37: 9 | AM37: 8.8 | AN37: 13.8 | AO37: - | AP37: 38 | AR37: 6.6 | AS37: 6.4 | AT37: 6.2 | AU37: - | AV37: - | AW37: - | AX37: - | AY37: - | AZ37: - | BA37: - | BB37: 38 | BD37: - | BE37: - | BF37: - | BG37: 15.6 | BH37: 15.6 | BI37: 38 | BU37: 32 | BW37: 7 | BX37: 10 | BY37: 14 | BZ37: 16 | CA37: 19 | CB37: 22 | CC37: 23 | CD37: 27 | CE37: 30 | CF37: 33 | CG37: 32 | CI37: 137 | CJ37: 152 | CK37: 167 | CL37: 182 | CM37: 194 | CN37: 207 | CO37: 217 | CP37: 232 | CQ37: 247 | CR37: 262 | CS37: 32 | CU37: 122 | CV37: 137 | CW37: 152 | CX37: 164 | CY37: 174 | CZ37: 188 | DA37: 188 | DB37: 193 | DC37: 198 | DD37: 203 | DE37: 32 | DG37: =DH37-2 -> 16 | DH37: =DI37-3 -> 18 | DI37: 21 | DK37: 25 | DL37: 29 | DM37: 31 | DN37: =DM37+1 -> 32 | DO37: =DN37+1 -> 33 | DP37: =DO37+1 -> 34 | DQ37: 32 | DS37: 9 | DT37: 13 | DU37: 18 | DV37: 19 | EC37: 32 | EI37: 12 | EJ37: 13 | EK37: 13 | EL37: =EK37+1 -> 14 | EM37: =EL37+1 -> 15 | EN37: =EM37+1 -> 16 | EO37: 32 | EQ37: 1 | ER37: 5 | ES37: 9 | EV37: 15 | EW37: 15 | EX37: 16 | EY37: 17 | EZ37: 18 | FA37: 32
A38: 00:04:46.022 | B38: 00:04:41.011 | C38: 00:04:36 | D38: 00:04:20 | E38: 00:04:05 | F38: 00:03:51 | G38: 00:03:43 | H38: 00:03:37.989 | I38: 00:03:32.978 | J38: 00:03:27.966 | K38: 37 | M38: 00:05:16.022 | N38: 00:05:11.011 | O38: 00:05:06 | P38: 00:04:46 | Q38: 00:04:29 | R38: 00:04:16 | S38: 00:04:11 | T38: 00:04:05.989 | U38: 00:04:00.978 | V38: 00:03:55.966 | W38: 37 | Y38: - | Z38: - | AA38: - | AB38: - | AC38: - | AD38: - | AE38: - | AF38: - | AG38: - | AH38: - | AI38: 37 | AK38: - | AL38: - | AM38: - | AN38: - | AO38: 13.5 | AP38: 37 | AR38: - | AS38: - | AT38: - | AU38: - | AV38: - | AW38: - | AX38: - | AY38: - | AZ38: - | BA38: - | BB38: 37 | BD38: 10 | BE38: 9.7 | BF38: 9.7 | BG38: 15.7 | BH38: 15.7 | BI38: 37 | BN38: 6 | BO38: 8 | BU38: 33 | CG38: 33 | CI38: 138 | CJ38: 153 | CK38: 168 | CL38: 183 | CM38: 196 | CN38: 208 | CO38: 218 | CP38: 233 | CQ38: 248 | CR38: 263 | CS38: 33 | CU38: 123 | CV38: 138 | CW38: 153 | CX38: 166 | CY38: 176 | CZ38: 190 | DA38: 190 | DB38: 195 | DC38: 200 | DD38: 205 | DE38: 33 | DJ38: 22 | DQ38: 33 | DW38: 22 | DX38: 27 | DY38: 27 | DZ38: 28 | EA38: 29 | EB38: 30 | EC38: 33 | EO38: 33 | ET38: 12 | FA38: 33
A39: 00:04:48.022 | B39: 00:04:43.011 | C39: 00:04:38 | D39: 00:04:22 | E39: 00:04:07 | F39: 00:03:53 | G39: 00:03:44 | H39: 00:03:38.989 | I39: 00:03:33.978 | J39: 00:03:28.966 | K39: 36 | M39: 00:05:18.022 | N39: 00:05:13.011 | O39: 00:05:08 | P39: 00:04:48 | Q39: 00:04:32 | R39: 00:04:18 | S39: 00:04:13 | T39: 00:04:07.989 | U39: 00:04:02.978 | V39: 00:03:57.966 | W39: 36 | Y39: - | Z39: - | AA39: - | AB39: 5.6 | AC39: - | AD39: 5.2 | AE39: 5.1 | AF39: - | AG39: - | AH39: - | AI39: 36 | AK39: 9.4 | AL39: 9.1 | AM39: 8.9 | AN39: 13.9 | AO39: - | AP39: 36 | AR39: - | AS39: - | AT39: - | AU39: - | AV39: - | AW39: 5.5 | AX39: - | AY39: 5.2 | AZ39: 5 | BA39: 4.8 | BB39: 36 | BD39: - | BE39: - | BF39: - | BG39: 15.8 | BH39: 15.8 | BI39: 36 | BU39: 34 | BZ39: 17 | CA39: 20 | CB39: 23 | CC39: 24 | CD39: 28 | CE39: 31 | CF39: 34 | CG39: 34 | CI39: 139 | CJ39: 154 | CK39: 169 | CL39: 184 | CM39: 198 | CN39: 209 | CO39: 219 | CP39: 234 | CQ39: 249 | CR39: 264 | CS39: 34 | CU39: 124 | CV39: 139 | CW39: 154 | CX39: 168 | CY39: 178 | CZ39: 192 | DA39: 192 | DB39: 197 | DC39: 202 | DD39: 207 | DE39: 34 | DK39: 26 | DL39: 30 | DM39: 32 | DN39: =DM39+1 -> 33 | DO39: =DN39+1 -> 34 | DP39: =DO39+1 -> 35 | DQ39: 34 | DV39: 20 | EC39: 34 | EE39: -2 | EF39: =EG39-4 -> 2 | EG39: 6 | EH39: 8 | EO39: 34 | EU39: 15 | FA39: 34
A40: 00:04:50.022 | B40: 00:04:45.011 | C40: 00:04:40 | D40: 00:04:24 | E40: 00:04:09 | F40: 00:03:55 | G40: 00:03:45 | H40: 00:03:39.989 | I40: 00:03:34.978 | J40: 00:03:29.966 | K40: 35 | M40: 00:05:20.022 | N40: 00:05:15.011 | O40: 00:05:10 | P40: 00:04:50 | Q40: 00:04:35 | R40: 00:04:20 | S40: 00:04:15 | T40: 00:04:09.989 | U40: 00:04:04.978 | V40: 00:03:59.966 | W40: 35 | Y40: 6.4 | Z40: 6.2 | AA40: 6 | AB40: - | AC40: 5.4 | AD40: - | AE40: - | AF40: 4.9 | AG40: 4.7 | AH40: 4.5 | AI40: 35 | AK40: - | AL40: - | AM40: - | AN40: 14 | AO40: 13.6 | AP40: 35 | AR40: 6.7 | AS40: 6.5 | AT40: 6.3 | AU40: 5.9 | AV40: 5.7 | AW40: - | AX40: 5.4 | AY40: - | AZ40: - | BA40: - | BB40: 35 | BD40: 10.1 | BE40: 9.8 | BF40: 9.8 | BG40: 15.9 | BH40: 15.9 | BI40: 35 | BP40: 10 | BQ40: 11 | BR40: =BQ40+2 -> 13 | BS40: =BR40+2 -> 15 | BT40: =BS40+2 -> 17 | BU40: 35 | BW40: 8 | BX40: 11 | BY40: 15 | CG40: 35 | CI40: 140 | CJ40: 155 | CK40: 170 | CL40: 185 | CM40: 200 | CN40: 210 | CO40: 220 | CP40: 235 | CQ40: 250 | CR40: 265 | CS40: 35 | CU40: 125 | CV40: 140 | CW40: 155 | CX40: 170 | CY40: 180 | CZ40: 194 | DA40: 194 | DB40: 199 | DC40: 204 | DD40: 209 | DE40: 35 | DG40: =DH40-2 -> 17 | DH40: =DI40-3 -> 19 | DI40: 22 | DJ40: 23 | DQ40: 35 | DS40: 10 | DT40: 14 | DU40: 19 | DW40: 23 | DX40: 28 | DY40: 28 | DZ40: 29 | EA40: 30 | EB40: 31 | EC40: 35 | EI40: 13 | EJ40: 14 | EK40: 14 | EL40: =EK40+1 -> 15 | EM40: =EL40+1 -> 16 | EN40: =EM40+1 -> 17 | EO40: 35 | EQ40: 2 | ER40: 6 | ES40: 10 | EV40: 16 | EW40: 16 | EX40: 17 | EY40: 18 | EZ40: 19 | FA40: 35
A41: 00:04:53.022 | B41: 00:04:48.011 | C41: 00:04:43 | D41: 00:04:27 | E41: 00:04:11 | F41: 00:03:57 | G41: 00:03:47 | H41: 00:03:41.989 | I41: 00:03:36.978 | J41: 00:03:31.966 | K41: 34 | M41: 00:05:23.022 | N41: 00:05:18.011 | O41: 00:05:13 | P41: 00:04:53 | Q41: 00:04:38 | R41: 00:04:23 | S41: 00:04:18 | T41: 00:04:12.989 | U41: 00:04:07.978 | V41: 00:04:02.966 | W41: 34 | Y41: - | Z41: - | AA41: - | AB41: - | AD41: - | AE41: - | AF41: - | AG41: - | AH41: - | AI41: 34 | AK41: 9.5 | AL41: 9.2 | AM41: 9 | AN41: 14.1 | AO41: - | AP41: 34 | AR41: - | AS41: - | AT41: - | AU41: - | AW41: - | AX41: - | AY41: - | AZ41: - | BA41: - | BB41: 34 | BD41: - | BE41: - | BF41: - | BG41: 16 | BH41: 16 | BI41: 34 | BK41: =BL41-2 -> 1 | BL41: =BM41-2 -> 3 | BM41: 5 | BU41: 36 | BZ41: 18 | CA41: 21 | CB41: 24 | CC41: 25 | CD41: 29 | CE41: 32 | CF41: 35 | CG41: 36 | CI41: 141 | CJ41: 156 | CK41: 171 | CL41: 186 | CM41: 201 | CN41: 211 | CO41: 221 | CP41: 236 | CQ41: 251 | CR41: 266 | CS41: 36 | CU41: 126 | CV41: 141 | CW41: 156 | CX41: 171 | CY41: 182 | CZ41: 196 | DA41: 196 | DB41: 201 | DC41: 206 | DD41: 211 | DE41: 36 | DK41: 27 | DL41: 31 | DM41: 33 | DN41: =DM41+1 -> 34 | DO41: =DN41+1 -> 35 | DP41: =DO41+1 -> 36 | DQ41: 36 | DV41: 21 | EC41: 36 | EO41: 36 | ET41: 13 | FA41: 36
A42: 00:04:56.022 | B42: 00:04:51.011 | C42: 00:04:46 | D42: 00:04:30 | E42: 00:04:13 | F42: 00:03:59 | G42: 00:03:49 | H42: 00:03:43.989 | I42: 00:03:38.978 | J42: 00:03:33.966 | K42: 33 | M42: 00:05:26.022 | N42: 00:05:21.011 | O42: 00:05:16 | P42: 00:04:56 | Q42: 00:04:41 | R42: 00:04:26 | S42: 00:04:21 | T42: 00:04:15.989 | U42: 00:04:10.978 | V42: 00:04:05.966 | W42: 33 | Y42: - | Z42: - | AA42: - | AB42: - | AC42: - | AD42: - | AE42: - | AF42: - | AG42: - | AH42: - | AI42: 33 | AK42: - | AL42: - | AM42: - | AN42: 14.2 | AO42: 13.7 | AP42: 33 | AR42: - | AS42: - | AT42: - | AU42: - | AV42: - | AW42: - | AX42: - | AY42: - | AZ42: - | BA42: - | BB42: 33 | BD42: 10.2 | BE42: 9.9 | BF42: 9.9 | BG42: 16.1 | BH42: 16.1 | BI42: 33 | BU42: 37 | CG42: 37 | CI42: 142 | CJ42: 157 | CK42: 172 | CL42: 187 | CM42: 202 | CN42: 212 | CO42: 222 | CP42: 237 | CQ42: 252 | CR42: 267 | CS42: 37 | CU42: 127 | CV42: 142 | CW42: 157 | CX42: 172 | CY42: 184 | CZ42: 197 | DA42: 197 | DB42: 202 | DC42: 207 | DD42: 212 | DE42: 37 | DJ42: 24 | DQ42: 37 | DW42: 24 | EC42: 37 | EO42: 37 | FA42: 37
A43: 00:04:59.022 | B43: 00:04:54.011 | C43: 00:04:49 | D43: 00:04:33 | E43: 00:04:15 | F43: 00:04:01 | G43: 00:03:51 | H43: 00:03:45.989 | I43: 00:03:40.978 | J43: 00:03:35.966 | K43: 32 | M43: 00:05:29.022 | N43: 00:05:24.011 | O43: 00:05:19 | P43: 00:04:59 | Q43: 00:04:44 | R43: 00:04:29 | S43: 00:04:24 | T43: 00:04:18.989 | U43: 00:04:13.978 | V43: 00:04:08.966 | W43: 32 | Y43: 6.5 | Z43: 6.3 | AA43: 6.1 | AB43: 5.7 | AC43: - | AD43: 5.3 | AE43: 5.2 | AF43: - | AG43: - | AH43: - | AI43: 32 | AK43: 9.6 | AL43: 9.3 | AM43: 9.1 | AN43: 14.3 | AO43: - | AP43: 32 | AR43: 6.8 | AS43: 6.6 | AT43: 6.4 | AU43: - | AV43: - | AW43: 5.6 | AX43: - | AY43: 5.3 | AZ43: 5.1 | BA43: 4.9 | BB43: 32 | BD43: - | BE43: - | BF43: - | BG43: 16.2 | BH43: 16.2 | BI43: 32 | BN43: 7 | BO43: 9 | BU43: 38 | BW43: 9 | BX43: 12 | BY43: 16 | BZ43: 19 | CA43: 22 | CB43: 25 | CC43: 26 | CD43: 30 | CE43: 33 | CF43: 36 | CG43: 38 | CI43: 143 | CJ43: 158 | CK43: 173 | CL43: 188 | CM43: 203 | CN43: 213 | CO43: 223 | CP43: 238 | CQ43: 253 | CR43: 268 | CS43: 38 | CU43: 128 | CV43: 143 | CW43: 158 | CX43: 173 | CY43: 186 | CZ43: 198 | DA43: 198 | DB43: 203 | DC43: 208 | DD43: 213 | DE43: 38 | DG43: =DH43-2 -> 18 | DH43: =DI43-3 -> 20 | DI43: 23 | DK43: 28 | DL43: 32 | DM43: 34 | DN43: =DM43+1 -> 35 | DO43: =DN43+1 -> 36 | DP43: =DO43+1 -> 37 | DQ43: 38 | DS43: 11 | DT43: 15 | DU43: 20 | DV43: 22 | DX43: 29 | DY43: 29 | DZ43: 30 | EA43: 31 | EB43: 32 | EC43: 38 | EE43: -1 | EF43: =EG43-4 -> 3 | EG43: 7 | EH43: 9 | EI43: 14 | EJ43: 15 | EK43: 15 | EL43: =EK43+1 -> 16 | EM43: =EL43+1 -> 17 | EN43: =EM43+1 -> 18 | EO43: 38 | EQ43: 3 | ER43: 7 | ES43: 11 | EU43: 16 | EV43: 17 | EW43: 17 | EX43: 18 | EY43: 19 | EZ43: 20 | FA43: 38
A44: 00:05:02.022 | B44: 00:04:57.011 | C44: 00:04:52 | D44: 00:04:36 | E44: 00:04:17 | F44: 00:04:03 | G44: 00:03:53 | H44: 00:03:47.989 | I44: 00:03:42.978 | J44: 00:03:37.966 | K44: 31 | M44: 00:05:32.022 | N44: 00:05:27.011 | O44: 00:05:22 | P44: 00:05:02 | Q44: 00:04:47 | R44: 00:04:32 | S44: 00:04:27 | T44: 00:04:21.989 | U44: 00:04:16.978 | V44: 00:04:11.966 | W44: 31 | Y44: - | Z44: - | AA44: - | AB44: - | AC44: - | AD44: - | AE44: - | AF44: - | AG44: - | AH44: - | AI44: 31 | AK44: - | AL44: - | AM44: - | AN44: 14.4 | AO44: 13.8 | AP44: 31 | AR44: - | AS44: - | AT44: - | AU44: 6 | AV44: - | AW44: - | AX44: 5.5 | AY44: - | AZ44: - | BA44: - | BB44: 31 | BD44: 10.3 | BE44: 10 | BF44: 10 | BG44: 16.3 | BH44: 16.3 | BI44: 31 | BU44: 39 | CG44: 39 | CI44: 144 | CJ44: 159 | CK44: 174 | CL44: 189 | CM44: 204 | CN44: 214 | CO44: 224 | CP44: 239 | CQ44: 254 | CR44: 269 | CS44: 39 | CU44: 129 | CV44: 144 | CW44: 159 | CX44: 174 | CY44: 188 | CZ44: 199 | DA44: 199 | DB44: 204 | DC44: 209 | DD44: 214 | DE44: 39 | DJ44: 25 | DQ44: 39 | DW44: 25 | EC44: 39 | EO44: 39 | ET44: 14 | FA44: 39
A45: 00:05:05.022 | B45: 00:05:00.011 | C45: 00:04:55 | D45: 00:04:39 | E45: 00:04:20 | F45: 00:04:05 | G45: 00:03:55 | H45: =G45-0.0058% -> 00:03:49.989 | I45: 00:03:44.978 | J45: 00:03:39.966 | K45: 30 | M45: 00:05:35.022 | N45: 00:05:30.011 | O45: 00:05:25 | P45: 00:05:05 | Q45: 00:04:50 | R45: 00:04:35 | S45: 00:04:30 | T45: 00:04:24.989 | U45: 00:04:19.978 | V45: 00:04:14.966 | W45: 30 | Y45: - | Z45: - | AA45: - | AB45: - | AC45: 5.5 | AD45: - | AE45: - | AF45: 5 | AG45: 4.8 | AH45: 4.6 | AI45: 30 | AK45: 9.7 | AL45: 9.4 | AM45: 9.2 | AN45: 14.5 | AO45: - | AP45: 30 | AR45: - | AS45: - | AT45: - | AU45: - | AV45: 5.8 | AW45: - | AX45: - | AY45: - | AZ45: - | BA45: - | BB45: 30 | BD45: - | BE45: - | BF45: - | BG45: 16.4 | BH45: 16.4 | BI45: 30 | BP45: 11 | BQ45: 12 | BR45: =BQ45+2 -> 14 | BS45: =BR45+2 -> 16 | BT45: =BS45+2 -> 18 | BU45: 40 | BZ45: 20 | CA45: 23 | CB45: 26 | CC45: 27 | CG45: 40 | CI45: 145 | CJ45: 160 | CK45: 175 | CL45: 190 | CM45: 205 | CN45: 215 | CO45: 225 | CP45: 240 | CQ45: 255 | CR45: 270 | CS45: 40 | CU45: 130 | CV45: 145 | CW45: 160 | CX45: 175 | CY45: 190 | CZ45: 200 | DA45: 200 | DB45: 205 | DC45: 210 | DD45: 215 | DE45: 40 | DK45: 29 | DL45: 33 | DM45: 35 | DN45: =DM45+1 -> 36 | DO45: =DN45+1 -> 37 | DP45: =DO45+1 -> 38 | DQ45: 40 | DV45: 23 | EC45: 40 | EO45: 40 | FA45: 40
A46: 00:05:08.022 | B46: 00:05:03.011 | C46: 00:04:58 | D46: 00:04:42 | E46: 00:04:23 | F46: 00:04:08 | G46: 00:03:57 | H46: 00:03:51.989 | I46: 00:03:46.978 | J46: 00:03:41.966 | K46: 29 | M46: 00:05:38.022 | N46: 00:05:33.011 | O46: 00:05:28 | P46: 00:05:08 | Q46: 00:04:53 | R46: 00:04:38 | S46: 00:04:33 | T46: 00:04:27.989 | U46: 00:04:22.978 | V46: 00:04:17.966 | W46: 29 | Y46: 6.6 | Z46: 6.4 | AA46: 6.2 | AB46: 5.8 | AC46: - | AD46: - | AE46: - | AF46: - | AG46: - | AH46: - | AI46: 29 | AK46: - | AL46: - | AM46: - | AN46: 14.6 | AO46: 13.9 | AP46: 29 | AR46: 6.9 | AS46: 6.7 | AT46: 6.5 | AU46: - | AV46: - | AW46: - | AX46: - | AY46: - | AZ46: - | BA46: - | BB46: 29 | BD46: 10.4 | BE46: 10.1 | BF46: 10.1 | BG46: 16.5 | BH46: 16.5 | BI46: 29 | BU46: 41 | BW46: 10 | BX46: 13 | BY46: 17 | CD46: 31 | CE46: 34 | CF46: 37 | CG46: 41 | CI46: =CJ46-15 -> 146 | CJ46: 161 | CK46: 176 | CL46: 191 | CM46: 206 | CN46: 216 | CO46: 226 | CP46: =CO46+15 -> 241 | CQ46: 256 | CR46: 271 | CS46: 41 | CU46: 131 | CV46: 146 | CW46: 161 | CX46: 176 | CY46: 191 | CZ46: 201 | DA46: 201 | DB46: 206 | DC46: 211 | DD46: 216 | DE46: 41 | DG46: =DH46-3 -> 17 | DH46: =DI46-4 -> 20 | DI46: 24 | DJ46: 26 | DQ46: 41 | DS46: 12 | DT46: 16 | DU46: 21 | DW46: 26 | DX46: 30 | DY46: 30 | DZ46: 31 | EA46: 32 | EB46: 33 | EC46: 41 | EJ46: 16 | EK46: 16 | EL46: =EK46+1 -> 17 | EM46: =EL46+1 -> 18 | EN46: =EM46+1 -> 19 | EO46: 41 | EV46: 18 | EW46: 18 | EX46: 19 | EY46: 20 | EZ46: 21 | FA46: 41
A47: 00:05:11.022 | B47: 00:05:06.011 | C47: 00:05:01 | D47: 00:04:45 | E47: 00:04:26 | F47: 00:04:11 | G47: 00:03:59 | H47: 00:03:53.989 | I47: 00:03:48.978 | J47: 00:03:43.966 | K47: 28 | M47: 00:05:41.022 | N47: 00:05:36.011 | O47: 00:05:31 | P47: 00:05:11 | Q47: 00:04:56 | R47: 00:04:41 | S47: 00:04:36 | T47: 00:04:30.989 | U47: 00:04:25.978 | V47: 00:04:20.966 | W47: 28 | Y47: - | Z47: - | AA47: - | AB47: - | AC47: - | AD47: 5.4 | AE47: 5.3 | AF47: - | AG47: - | AH47: - | AI47: 28 | AK47: 9.8 | AL47: 9.5 | AM47: 9.3 | AN47: 14.7 | AO47: - | AP47: 28 | AR47: - | AS47: - | AT47: - | AU47: - | AV47: - | AW47: 5.7 | AX47: - | AY47: 5.4 | AZ47: 5.2 | BA47: 5 | BB47: 28 | BD47: - | BE47: - | BF47: - | BG47: 16.6 | BH47: 16.6 | BI47: 28 | BU47: 42 | BZ47: 21 | CA47: 24 | CB47: 27 | CC47: 28 | CG47: 42 | CI47: 147 | CJ47: 162 | CK47: 177 | CL47: 192 | CM47: 207 | CN47: 217 | CO47: 227 | CP47: 242 | CQ47: 257 | CR47: 272 | CS47: 42 | CU47: 132 | CV47: 147 | CW47: 162 | CX47: 177 | CY47: 192 | CZ47: 202 | DA47: 202 | DB47: 207 | DC47: 212 | DD47: 217 | DE47: 42 | DK47: 30 | DL47: 34 | DM47: 36 | DN47: =DM47+1 -> 37 | DO47: =DN47+1 -> 38 | DP47: =DO47+1 -> 39 | DQ47: 42 | DV47: 24 | EC47: 42 | EE47: 0 | EF47: =EG47-4 -> 4 | EG47: 8 | EH47: 10 | EI47: 15 | EO47: 42 | EQ47: 4 | ER47: 8 | ES47: 12 | ET47: 15 | EU47: 17 | FA47: 42
A48: 00:05:14.022 | B48: 00:05:09.011 | C48: 00:05:04 | D48: 00:04:48 | E48: 00:04:29 | F48: 00:04:14 | G48: 00:04:01 | H48: 00:03:55.989 | I48: 00:03:50.978 | J48: 00:03:45.966 | K48: 27 | M48: 00:05:44.022 | N48: 00:05:39.011 | O48: 00:05:34 | P48: 00:05:14 | Q48: 00:04:59 | R48: 00:04:44 | S48: 00:04:39 | T48: 00:04:33.989 | U48: 00:04:28.978 | V48: 00:04:23.966 | W48: 27 | Y48: - | Z48: - | AA48: - | AB48: - | AC48: - | AD48: - | AE48: - | AF48: - | AG48: - | AH48: - | AI48: 27 | AK48: - | AL48: - | AM48: - | AN48: 14.8 | AO48: 14 | AP48: 27 | AR48: - | AS48: - | AT48: - | AU48: 6.1 | AV48: - | AW48: - | AX48: 5.6 | AY48: - | AZ48: - | BA48: - | BB48: 27 | BD48: 10.5 | BE48: 10.2 | BF48: 10.2 | BG48: 16.7 | BH48: 16.7 | BI48: 27 | BK48: 2 | BL48: 4 | BM48: 6 | BU48: 43 | CG48: 43 | CI48: 148 | CJ48: 163 | CK48: 178 | CL48: 193 | CM48: 208 | CN48: 218 | CO48: 228 | CP48: 243 | CQ48: 258 | CR48: 273 | CS48: 43 | CU48: 133 | CV48: 148 | CW48: 163 | CX48: 178 | CY48: 193 | CZ48: 203 | DA48: 203 | DB48: 208 | DC48: 213 | DD48: 218 | DE48: 43 | DJ48: 27 | DQ48: 43 | DW48: 27 | EC48: 43 | EO48: 43 | FA48: 43
A49: 00:05:17.022 | B49: 00:05:12.011 | C49: 00:05:07 | D49: 00:04:51 | E49: 00:04:32 | F49: 00:04:17 | G49: 00:04:03 | H49: 00:03:57.989 | I49: 00:03:52.978 | J49: 00:03:47.966 | K49: 26 | M49: 00:05:47.022 | N49: 00:05:42.011 | O49: 00:05:37 | P49: 00:05:17 | Q49: 00:05:02 | R49: 00:04:47 | S49: 00:04:42 | T49: 00:04:36.989 | U49: 00:04:31.978 | V49: 00:04:26.966 | W49: 26 | Y49: 6.7 | Z49: 6.5 | AA49: 6.3 | AB49: 5.9 | AC49: 5.6 | AD49: - | AF49: 5.1 | AG49: 4.9 | AH49: 4.7 | AI49: 26 | AK49: 9.9 | AL49: 9.6 | AM49: 9.4 | AN49: 14.9 | AO49: - | AP49: 26 | AR49: 7 | AS49: 6.8 | AT49: 6.6 | AU49: - | AV49: 5.9 | AW49: - | AX49: - | AY49: - | AZ49: - | BA49: - | BB49: 26 | BD49: - | BE49: - | BF49: - | BG49: 16.8 | BH49: 16.8 | BI49: 26 | BN49: 8 | BO49: 10 | BU49: 44 | BW49: 11 | BX49: 14 | BY49: 18 | BZ49: 22 | CA49: 25 | CB49: 28 | CC49: 29 | CD49: 32 | CE49: 35 | CF49: 38 | CG49: 44 | CI49: 149 | CJ49: 164 | CK49: 179 | CL49: 194 | CM49: 209 | CN49: 219 | CO49: 229 | CP49: 244 | CQ49: 259 | CR49: 274 | CS49: 44 | CU49: 134 | CV49: 149 | CW49: 164 | CX49: 179 | CY49: 194 | CZ49: 204 | DA49: 204 | DB49: 209 | DC49: 214 | DD49: 219 | DE49: 44 | DG49: =DH49-3 -> 18 | DH49: =DI49-4 -> 21 | DI49: 25 | DK49: 31 | DL49: 35 | DM49: 37 | DN49: =DM49+1 -> 38 | DO49: =DN49+1 -> 39 | DP49: =DO49+1 -> 40 | DQ49: 44 | DS49: 13 | DT49: 17 | DU49: 22 | DV49: 25 | DX49: 31 | DY49: 31 | DZ49: 32 | EA49: 33 | EB49: 34 | EC49: 44 | EJ49: 17 | EK49: 17 | EL49: =EK49+1 -> 18 | EM49: =EL49+1 -> 19 | EN49: =EM49+1 -> 20 | EO49: 44 | EV49: 19 | EW49: 19 | EX49: 20 | EY49: 21 | EZ49: 22 | FA49: 44
A50: 00:05:20.022 | B50: 00:05:15.011 | C50: 00:05:10 | D50: 00:04:55 | E50: 00:04:35 | F50: 00:04:20 | G50: 00:04:05 | H50: 00:03:59.989 | I50: 00:03:54.978 | J50: 00:03:49.966 | K50: 25 | M50: 00:05:50.022 | N50: 00:05:45.011 | O50: 00:05:40 | P50: 00:05:20 | Q50: 00:05:05 | R50: 00:04:50 | S50: 00:04:45 | T50: 00:04:39.989 | U50: 00:04:34.978 | V50: 00:04:29.966 | W50: 25 | Y50: - | Z50: - | AA50: - | AB50: - | AC50: - | AD50: - | AE50: - | AF50: - | AG50: - | AH50: - | AI50: 25 | AK50: - | AL50: - | AM50: - | AN50: 15 | AO50: 14.1 | AP50: 25 | AR50: - | AS50: - | AT50: - | AU50: - | AV50: - | AW50: - | AX50: - | AY50: - | AZ50: - | BA50: - | BB50: 25 | BD50: 10.6 | BE50: 10.3 | BF50: 10.3 | BG50: 16.9 | BH50: 16.9 | BI50: 25 | BP50: 12 | BQ50: 13 | BR50: =BQ50+2 -> 15 | BS50: =BR50+2 -> 17 | BT50: =BS50+2 -> 19 | BU50: 45 | CG50: 45 | CI50: 150 | CJ50: 165 | CK50: 180 | CL50: 195 | CM50: 210 | CN50: 220 | CO50: 230 | CP50: 245 | CQ50: 260 | CR50: 275 | CS50: 45 | CU50: 135 | CV50: 150 | CW50: 165 | CX50: 180 | CY50: 195 | CZ50: 205 | DA50: 205 | DB50: 210 | DC50: 215 | DD50: 220 | DE50: 45 | DJ50: 28 | DQ50: 45 | DW50: 28 | EC50: 45 | EO50: 45 | FA50: 45
A51: 00:05:24.022 | B51: 00:05:19.011 | C51: 00:05:14 | D51: 00:04:59 | E51: 00:04:38 | F51: 00:04:23 | G51: 00:04:08 | H51: 00:04:02.989 | I51: 00:03:57.978 | J51: 00:03:52.966 | K51: 24 | M51: 00:05:54.022 | N51: 00:05:49.011 | O51: 00:05:44 | P51: 00:05:24 | Q51: 00:05:08 | R51: 00:04:53 | S51: 00:04:48 | T51: 00:04:42.989 | U51: 00:04:37.978 | V51: 00:04:32.966 | W51: 24 | Y51: - | Z51: - | AA51: - | AB51: - | AC51: - | AD51: 5.5 | AE51: 5.4 | AF51: - | AG51: - | AH51: - | AI51: 24 | AK51: 10 | AL51: 9.7 | AM51: 9.5 | AN51: 15.1 | AO51: 14.2 | AP51: 24 | AR51: - | AS51: - | AT51: - | AU51: - | AV51: - | AW51: 5.8 | AX51: - | AY51: 5.5 | AZ51: 5.3 | BA51: 5.1 | BB51: 24 | BD51: - | BE51: - | BF51: - | BG51: 17 | BH51: 17 | BI51: 24 | BU51: 46 | CA51: 26 | CG51: 46 | CI51: 151 | CJ51: 166 | CK51: 181 | CL51: 196 | CM51: 211 | CN51: 221 | CO51: 231 | CP51: 246 | CQ51: 261 | CR51: 276 | CS51: 46 | CU51: 136 | CV51: 151 | CW51: 166 | CX51: 181 | CY51: 196 | CZ51: 206 | DA51: 206 | DB51: 211 | DC51: 216 | DD51: 221 | DE51: 46 | DK51: 32 | DQ51: 46 | EC51: 46 | EE51: =EF51-4 -> 1 | EF51: =EG51-4 -> 5 | EG51: 9 | EH51: 11 | EI51: 16 | EO51: 46 | EQ51: 5 | ER51: 9 | ES51: 13 | ET51: 16 | EU51: 18 | FA51: 46
A52: 00:05:28.022 | B52: 00:05:23.011 | C52: 00:05:18 | D52: 00:05:03 | E52: 00:04:41 | F52: 00:04:26 | G52: 00:04:11 | H52: 00:04:05.989 | I52: 00:04:00.978 | J52: 00:03:55.966 | K52: 23 | M52: 00:05:58.022 | N52: 00:05:53.011 | O52: 00:05:48 | P52: 00:05:28 | Q52: 00:05:11 | R52: 00:04:56 | S52: 00:04:51 | T52: 00:04:45.989 | U52: 00:04:40.978 | V52: 00:04:35.966 | W52: 23 | Y52: 6.8 | Z52: 6.6 | AA52: 6.4 | AB52: 6 | AC52: - | AD52: - | AE52: - | AF52: - | AG52: - | AH52: - | AI52: 23 | AK52: - | AL52: - | AM52: - | AN52: 15.2 | AO52: 14.3 | AP52: 23 | AR52: 7.1 | AS52: 6.9 | AT52: 6.7 | AU52: 6.2 | AV52: - | AW52: - | AX52: 5.7 | AY52: - | AZ52: - | BA52: - | BB52: 23 | BD52: 10.7 | BE52: 10.4 | BF52: 10.4 | BG52: 17.1 | BH52: 17.1 | BI52: 23 | BU52: 47 | BW52: 12 | BX52: 15 | BY52: 19 | BZ52: 23 | CD52: 33 | CE52: 36 | CF52: 39 | CG52: 47 | CI52: 152 | CJ52: 167 | CK52: 182 | CL52: 197 | CM52: 212 | CN52: 222 | CO52: 232 | CP52: 247 | CQ52: 262 | CR52: 277 | CS52: 47 | CU52: 137 | CV52: 152 | CW52: 167 | CX52: 182 | CY52: 197 | CZ52: 207 | DA52: 207 | DB52: 212 | DC52: 217 | DD52: 222 | DE52: 47 | DG52: =DH52-3 -> 19 | DH52: =DI52-4 -> 22 | DI52: 26 | DJ52: 29 | DL52: 36 | DM52: 38 | DN52: =DM52+1 -> 39 | DO52: =DN52+1 -> 40 | DP52: =DO52+1 -> 41 | DQ52: 47 | DS52: 14 | DT52: 18 | DU52: 23 | DV52: 26 | DW52: 29 | DX52: 32 | DY52: 32 | DZ52: 33 | EA52: 34 | EB52: 35 | EC52: 47 | EJ52: 18 | EK52: 18 | EL52: =EK52+1 -> 19 | EM52: =EL52+1 -> 20 | EN52: =EM52+1 -> 21 | EO52: 47 | EV52: 20 | EW52: 20 | EX52: 21 | EY52: 22 | EZ52: 23 | FA52: 47
A53: 00:05:32.022 | B53: 00:05:27.011 | C53: 00:05:22 | D53: 00:05:07 | E53: 00:04:44 | F53: 00:04:29 | G53: 00:04:14 | H53: 00:04:08.989 | I53: 00:04:03.978 | J53: 00:03:58.966 | K53: 22 | M53: 00:06:02.022 | N53: 00:05:57.011 | O53: 00:05:52 | P53: 00:05:32 | Q53: 00:05:14 | R53: 00:04:59 | S53: 00:04:54 | T53: 00:04:48.989 | U53: 00:04:43.978 | V53: 00:04:38.966 | W53: 22 | Y53: - | Z53: - | AA53: - | AB53: - | AC53: 5.7 | AD53: - | AE53: - | AF53: 5.2 | AG53: 5 | AH53: 4.8 | AI53: 22 | AK53: 10.1 | AL53: 9.8 | AM53: 9.6 | AN53: 15.3 | AO53: 14.4 | AP53: 22 | AR53: - | AS53: - | AT53: - | AU53: - | AV53: 6 | AW53: - | AX53: - | AY53: - | AZ53: - | BA53: - | BB53: 22 | BD53: - | BE53: - | BF53: - | BG53: 17.2 | BH53: 17.2 | BI53: 22 | BU53: 48 | CA53: 27 | CG53: 48 | CI53: 153 | CJ53: 168 | CK53: 183 | CL53: 198 | CM53: 213 | CN53: 223 | CO53: 233 | CP53: 248 | CQ53: 263 | CR53: 278 | CS53: 48 | CU53: 138 | CV53: 153 | CW53: 168 | CX53: 183 | CY53: 198 | CZ53: 208 | DA53: 208 | DB53: 213 | DC53: 218 | DD53: 223 | DE53: 48 | DK53: 33 | DQ53: 48 | EC53: 48 | EO53: 48 | FA53: 48
A54: 00:05:36.022 | B54: 00:05:31.011 | C54: 00:05:26 | D54: 00:05:11 | E54: 00:04:47 | F54: 00:04:32 | G54: 00:04:17 | H54: 00:04:11.989 | I54: 00:04:06.978 | J54: 00:04:01.966 | K54: 21 | M54: 00:06:06.022 | N54: 00:06:01.011 | O54: 00:05:56 | P54: 00:05:36 | Q54: 00:05:17 | R54: 00:05:02 | S54: 00:04:57 | T54: 00:04:51.989 | U54: 00:04:46.978 | V54: 00:04:41.966 | W54: 21 | Y54: - | Z54: - | AA54: - | AB54: - | AC54: - | AD54: 5.6 | AE54: - | AF54: - | AG54: - | AH54: - | AI54: 21 | AK54: - | AL54: - | AM54: - | AN54: 15.4 | AO54: 14.5 | AP54: 21 | AR54: - | AS54: - | AT54: - | AU54: - | AV54: - | AW54: 5.9 | AX54: - | AY54: - | AZ54: - | BA54: - | BB54: 21 | BD54: 10.8 | BE54: 10.5 | BF54: 10.5 | BG54: 17.3 | BH54: 17.3 | BI54: 21 | BK54: 2 | BU54: 49 | CG54: 49 | CI54: 154 | CJ54: 169 | CK54: 184 | CL54: 199 | CM54: 214 | CN54: 224 | CO54: 234 | CP54: 249 | CQ54: 264 | CR54: 279 | CS54: 49 | CU54: 139 | CV54: 154 | CW54: 169 | CX54: 184 | CY54: 199 | CZ54: 209 | DA54: 209 | DB54: 214 | DC54: 219 | DD54: 224 | DE54: 49 | DQ54: 49 | EC54: 49 | EO54: 49 | FA54: 49
A55: 00:05:40.022 | B55: 00:05:35.011 | C55: 00:05:30 | D55: 00:05:15 | E55: 00:04:50 | F55: 00:04:35 | G55: 00:04:20 | H55: 00:04:14.989 | I55: 00:04:09.978 | J55: 00:04:04.966 | K55: 20 | M55: 00:06:10.022 | N55: 00:06:05.011 | O55: 00:06:00 | P55: 00:05:40 | Q55: 00:05:20 | R55: 00:05:05 | S55: 00:05:00 | T55: 00:04:54.989 | U55: 00:04:49.978 | V55: 00:04:44.966 | W55: 20 | Y55: 6.9 | Z55: 6.7 | AA55: 6.5 | AB55: 6.1 | AC55: - | AD55: - | AE55: 5.5 | AF55: - | AG55: - | AH55: - | AI55: 20 | AK55: 10.2 | AL55: 9.9 | AM55: 9.7 | AN55: 15.5 | AO55: 14.6 | AP55: 20 | AR55: 7.2 | AS55: 7 | AT55: 6.8 | AU55: 6.3 | AV55: - | AW55: - | AX55: - | AY55: 5.6 | AZ55: 5.4 | BA55: 5.2 | BB55: 20 | BD55: - | BE55: 10.6 | BF55: 10.6 | BG55: 17.4 | BH55: 17.4 | BI55: 20 | BL55: 5 | BM55: 7 | BN55: 9 | BO55: 11 | BP55: 13 | BQ55: 14 | BR55: =BQ55+2 -> 16 | BS55: =BR55+2 -> 18 | BT55: =BS55+2 -> 20 | BU55: 50 | BW55: 13 | BX55: 16 | BY55: 20 | BZ55: 24 | CA55: 28 | CB55: 30 | CC55: 31 | CD55: 34 | CE55: 37 | CF55: 40 | CG55: 50 | CI55: 155 | CJ55: 170 | CK55: 185 | CL55: 200 | CM55: 215 | CN55: 225 | CO55: 235 | CP55: 250 | CQ55: 265 | CR55: 280 | CS55: 50 | CU55: 140 | CV55: 155 | CW55: 170 | CX55: 185 | CY55: 200 | CZ55: 210 | DA55: 210 | DB55: 215 | DC55: 220 | DD55: 225 | DE55: 50 | DG55: =DH55-3 -> 20 | DH55: =DI55-4 -> 23 | DI55: 27 | DJ55: 30 | DK55: 34 | DL55: 37 | DM55: 39 | DN55: =DM55+1 -> 40 | DO55: =DN55+1 -> 41 | DP55: =DO55+1 -> 42 | DQ55: 50 | DS55: 15 | DT55: 19 | DU55: 24 | DV55: 27 | DW55: 30 | DX55: 33 | DY55: 33 | DZ55: 34 | EA55: 35 | EB55: 36 | EC55: 50 | EE55: =EF55-4 -> 2 | EF55: =EG55-4 -> 6 | EG55: 10 | EH55: 12 | EI55: 17 | EJ55: 19 | EK55: 19 | EL55: =EK55+1 -> 20 | EM55: =EL55+1 -> 21 | EN55: =EM55+1 -> 22 | EO55: 50 | EQ55: 6 | ER55: 10 | ES55: 14 | ET55: 17 | EU55: 19 | EV55: 21 | EW55: 21 | EX55: 22 | EY55: 23 | EZ55: 24 | FA55: 50
A56: 00:05:44.022 | B56: 00:05:39.011 | C56: 00:05:34 | D56: 00:05:19 | E56: 00:04:54 | F56: 00:04:38 | G56: 00:04:24 | H56: 00:04:18.989 | I56: 00:04:13.978 | J56: 00:04:08.966 | K56: 19 | M56: 00:06:14.022 | N56: 00:06:09.011 | O56: 00:06:04 | P56: 00:05:44 | Q56: 00:05:24 | R56: 00:05:09 | S56: 00:05:03 | T56: 00:04:57.989 | U56: 00:04:52.978 | V56: 00:04:47.966 | W56: 19 | Y56: - | Z56: - | AA56: - | AB56: - | AC56: - | AD56: - | AE56: - | AF56: - | AG56: - | AH56: - | AI56: 19 | AK56: - | AL56: - | AM56: - | AN56: 15.6 | AO56: 14.7 | AP56: 19 | AR56: - | AS56: - | AT56: - | AU56: - | AV56: 6.1 | AW56: - | AX56: 5.8 | AY56: - | AZ56: - | BA56: - | BB56: 19 | BD56: 10.9 | BE56: 10.7 | BF56: 10.7 | BG56: 17.5 | BH56: 17.5 | BI56: 19 | BU56: 51 | CG56: 51 | CI56: 157 | CJ56: 172 | CK56: 187 | CL56: 202 | CM56: 217 | CN56: 227 | CO56: 236 | CP56: 251 | CQ56: 266 | CR56: 281 | CS56: 51 | CU56: 142 | CV56: 157 | CW56: 172 | CX56: 187 | CY56: 202 | CZ56: 212 | DA56: 212 | DB56: 217 | DC56: 222 | DD56: 227 | DE56: 51 | DQ56: 51 | EC56: 51 | EO56: 51 | FA56: 51
A57: 00:05:48.022 | B57: 00:05:43.011 | C57: 00:05:38 | D57: 00:05:23 | E57: 00:04:58 | F57: 00:04:41 | G57: 00:04:28 | H57: 00:04:22.989 | I57: 00:04:17.978 | J57: 00:04:12.966 | K57: 18 | M57: 00:06:18.022 | N57: 00:06:13.011 | O57: 00:06:08 | P57: 00:05:48 | Q57: 00:05:28 | R57: 00:05:13 | S57: 00:05:06 | T57: 00:05:00.989 | U57: 00:04:55.978 | V57: 00:04:50.966 | W57: 18 | Y57: - | Z57: - | AA57: - | AB57: - | AC57: 5.8 | AD57: 5.7 | AE57: - | AF57: 5.3 | AG57: 5.1 | AH57: 4.9 | AI57: 18 | AK57: 10.3 | AL57: 10 | AM57: 9.8 | AN57: 15.7 | AO57: 14.8 | AP57: 18 | AR57: - | AS57: - | AT57: - | AU57: - | AV57: - | AW57: 6 | AX57: - | AY57: - | AZ57: - | BA57: - | BB57: 18 | BD57: 11 | BE57: 10.8 | BF57: 10.8 | BG57: 17.7 | BH57: 17.7 | BI57: 18 | BU57: 52 | BW57: 14 | BX57: 17 | BY57: 21 | BZ57: 25 | CA57: 29 | CB57: 31 | CC57: 32 | CD57: 35 | CE57: 38 | CF57: 41 | CG57: 52 | CI57: 159 | CJ57: 174 | CK57: 189 | CL57: 204 | CM57: 219 | CN57: 229 | CO57: 237 | CP57: 252 | CQ57: 267 | CR57: 282 | CS57: 52 | CU57: 144 | CV57: 159 | CW57: 174 | CX57: 189 | CY57: 204 | CZ57: 214 | DA57: 214 | DB57: 219 | DC57: 224 | DD57: 229 | DE57: 52 | DJ57: 31 | DK57: 35 | DL57: 38 | DM57: 40 | DN57: =DM57+1 -> 41 | DO57: =DN57+1 -> 42 | DP57: =DO57+1 -> 43 | DQ57: 52 | DV57: 28 | DW57: 31 | DX57: 34 | DY57: 34 | DZ57: 35 | EA57: 36 | EB57: 37 | EC57: 52 | EJ57: 20 | EK57: 20 | EL57: =EK57+1 -> 21 | EM57: =EL57+1 -> 22 | EN57: =EM57+1 -> 23 | EO57: 52 | EU57: 20 | EV57: 22 | EW57: 22 | EX57: 23 | EY57: 24 | EZ57: 25 | FA57: 52
A58: 00:05:52.022 | B58: 00:05:47.011 | C58: 00:05:42 | D58: 00:05:27 | E58: 00:05:02 | F58: 00:04:44 | G58: 00:04:32 | H58: 00:04:26.989 | I58: 00:04:21.978 | J58: 00:04:16.966 | K58: 17 | M58: 00:06:22.022 | N58: 00:06:17.011 | O58: 00:06:12 | P58: 00:05:52 | Q58: 00:05:32 | R58: 00:05:17 | S58: 00:05:09 | T58: 00:05:03.989 | U58: 00:04:58.978 | V58: 00:04:53.966 | W58: 17 | Y58: 7 | Z58: 6.8 | AA58: 6.6 | AB58: 6.2 | AC58: - | AD58: - | AE58: - | AF58: - | AG58: - | AH58: - | AI58: 17 | AK58: - | AL58: - | AM58: - | AN58: 15.8 | AO58: 14.9 | AP58: 17 | AR58: 7.3 | AS58: 7.1 | AT58: 6.9 | AU58: 6.4 | AV58: - | AW58: - | AX58: - | AY58: 5.7 | AZ58: 5.5 | BA58: 5.3 | BB58: 17 | BD58: 11.1 | BE58: 10.9 | BF58: 10.9 | BG58: 17.9 | BH58: 17.9 | BI58: 17 | BU58: 53 | CG58: 53 | CI58: 161 | CJ58: 176 | CK58: 191 | CL58: 206 | CM58: 221 | CN58: 231 | CO58: 238 | CP58: 253 | CQ58: 268 | CR58: 283 | CS58: 53 | CU58: 146 | CV58: 161 | CW58: 176 | CX58: 191 | CY58: 206 | CZ58: 216 | DA58: 216 | DB58: 221 | DC58: 226 | DD58: 231 | DE58: 53 | DG58: =DH58-3 -> 21 | DH58: =DI58-4 -> 24 | DI58: 28 | DQ58: 53 | DS58: 16 | DT58: 20 | DU58: 25 | EC58: 53 | EE58: =EF58-4 -> 3 | EF58: =EG58-4 -> 7 | EG58: 11 | EH58: 13 | EI58: 18 | EO58: 53 | EQ58: 7 | ER58: 11 | ES58: 15 | ET58: 18 | FA58: 53
A59: 00:05:56.022 | B59: 00:05:51.011 | C59: 00:05:46 | D59: 00:05:31 | E59: 00:05:06 | F59: 00:04:47 | G59: 00:04:36 | H59: 00:04:30.989 | I59: 00:04:25.978 | J59: 00:04:20.966 | K59: 16 | M59: 00:06:26.022 | N59: 00:06:21.011 | O59: 00:06:16 | P59: 00:05:56 | Q59: 00:05:36 | R59: 00:05:21 | S59: 00:05:12 | T59: 00:05:06.989 | U59: 00:05:01.978 | V59: 00:04:56.966 | W59: 16 | Y59: - | Z59: - | AA59: - | AB59: - | AC59: - | AD59: - | AE59: 5.6 | AF59: - | AG59: - | AH59: - | AI59: 16 | AK59: 10.4 | AL59: 10.1 | AM59: 9.9 | AN59: 15.9 | AO59: 15 | AP59: 16 | AR59: - | AS59: - | AT59: - | AU59: - | AV59: 6.2 | AW59: - | AX59: 5.9 | AY59: - | AZ59: - | BA59: - | BB59: 16 | BD59: 11.2 | BE59: 11 | BF59: 11 | BG59: 18.1 | BH59: 18.1 | BI59: 16 | BN59: 10 | BO59: 12 | BP59: 14 | BQ59: 15 | BR59: =BQ59+2 -> 17 | BS59: =BR59+2 -> 19 | BT59: =BS59+2 -> 21 | BU59: 54 | BW59: 15 | BX59: 18 | BY59: 22 | BZ59: 26 | CA59: 30 | CB59: 32 | CC59: 33 | CD59: 36 | CE59: 39 | CF59: 42 | CG59: 54 | CI59: 163 | CJ59: 178 | CK59: 193 | CL59: 208 | CM59: 223 | CN59: 233 | CO59: 239 | CP59: 254 | CQ59: 269 | CR59: 284 | CS59: 54 | CU59: 148 | CV59: 163 | CW59: 178 | CX59: 193 | CY59: 208 | CZ59: 218 | DA59: 218 | DB59: 223 | DC59: 228 | DD59: 233 | DE59: 54 | DJ59: 32 | DK59: 36 | DL59: 39 | DM59: 41 | DN59: =DM59+1 -> 42 | DO59: =DN59+1 -> 43 | DP59: =DO59+1 -> 44 | DQ59: 54 | DV59: 29 | DW59: 32 | DX59: 35 | DY59: 35 | DZ59: 36 | EA59: 37 | EB59: 38 | EC59: 54 | EJ59: 21 | EK59: 21 | EL59: =EK59+1 -> 22 | EM59: =EL59+1 -> 23 | EN59: =EM59+1 -> 24 | EO59: 54 | EU59: 21 | EV59: 23 | EW59: 23 | EX59: 24 | EY59: 25 | EZ59: 26 | FA59: 54
A60: 00:06:00.022 | B60: 00:05:55.011 | C60: 00:05:50 | D60: 00:05:35 | E60: 00:05:10 | F60: 00:04:50 | G60: 00:04:40 | H60: 00:04:34.989 | I60: 00:04:29.978 | J60: 00:04:24.966 | K60: 15 | M60: 00:06:30.022 | N60: 00:06:25.011 | O60: 00:06:20 | P60: 00:06:00 | Q60: 00:05:40 | R60: 00:05:25 | S60: 00:05:15 | T60: 00:05:09.989 | U60: 00:05:04.978 | V60: 00:04:59.966 | W60: 15 | Y60: - | Z60: - | AA60: - | AB60: - | AC60: 5.9 | AD60: 5.8 | AE60: - | AF60: 5.4 | AG60: 5.2 | AH60: 5 | AI60: 15 | AK60: 10.5 | AL60: 10.2 | AM60: - | AN60: 16 | AO60: 15.1 | AP60: 15 | AR60: - | AS60: - | AT60: - | AU60: - | AV60: - | AW60: 6.1 | AX60: - | AY60: - | AZ60: - | BA60: - | BB60: 15 | BD60: 11.3 | BE60: 11.1 | BF60: 11.1 | BG60: 18.3 | BH60: 18.3 | BI60: 15 | BL60: 6 | BM60: 8 | BU60: 55 | CB60: 33 | CG60: 55 | CI60: 165 | CJ60: 180 | CK60: 195 | CL60: 210 | CM60: 225 | CN60: 235 | CO60: 240 | CP60: 255 | CQ60: 270 | CR60: 285 | CS60: 55 | CU60: 150 | CV60: 165 | CW60: 180 | CX60: 195 | CY60: 210 | CZ60: 220 | DA60: 220 | DB60: 225 | DC60: 230 | DD60: 235 | DE60: 55 | DG60: =DH60-3 -> 22 | DH60: =DI60-4 -> 25 | DI60: 29 | DQ60: 55 | EC60: 55 | EH60: 14 | EI60: 19 | EO60: 55 | ET60: 19 | FA60: 55
A61: 00:06:05.022 | B61: 00:06:00.011 | C61: 00:05:55 | D61: 00:05:39 | E61: 00:05:14 | F61: 00:04:54 | G61: 00:04:44 | H61: 00:04:38.989 | I61: 00:04:33.978 | J61: 00:04:28.966 | K61: 14 | M61: 00:06:35.022 | N61: 00:06:30.011 | O61: 00:06:25 | P61: 00:06:04 | Q61: 00:05:44 | R61: 00:05:29 | S61: 00:05:19 | T61: 00:05:13.989 | U61: 00:05:08.978 | V61: 00:05:03.966 | W61: 14 | Y61: 7.1 | Z61: 6.9 | AA61: 6.7 | AB61: 6.3 | AC61: - | AD61: - | AE61: - | AF61: - | AG61: - | AH61: - | AI61: 14 | AK61: 10.6 | AL61: 10.3 | AM61: 10 | AN61: 16.2 | AO61: 15.2 | AP61: 14 | AR61: 7.4 | AS61: 7.2 | AT61: 7 | AU61: 6.5 | AV61: - | AW61: - | AX61: - | AY61: 5.8 | AZ61: 5.6 | BA61: 5.4 | BB61: 14 | BD61: 11.4 | BE61: 11.2 | BF61: 11.2 | BG61: 18.5 | BH61: 18.5 | BI61: 14 | BU61: 56 | BW61: 16 | BX61: 19 | BY61: 23 | BZ61: 27 | CA61: 31 | CB61: .34 | CC61: 34 | CD61: 37 | CE61: 40 | CF61: 43 | CG61: 56 | CI61: 167 | CJ61: 182 | CK61: 197 | CL61: 212 | CM61: 227 | CN61: 237 | CO61: 242 | CP61: 257 | CQ61: 272 | CR61: 287 | CS61: 56 | CU61: 152 | CV61: 167 | CW61: 182 | CX61: 197 | CY61: 212 | CZ61: 222 | DA61: 222 | DB61: 227 | DC61: 232 | DD61: 237 | DE61: 56 | DJ61: 33 | DK61: 37 | DL61: 40 | DM61: 42 | DN61: =DM61+1 -> 43 | DO61: =DN61+1 -> 44 | DP61: =DO61+1 -> 45 | DQ61: 56 | DS61: 17 | DT61: 21 | DU61: 26 | DV61: 30 | DW61: 33 | DX61: 36 | DY61: 36 | DZ61: 37 | EA61: 38 | EB61: 39 | EC61: 56 | EE61: =EF61-4 -> 4 | EF61: =EG61-4 -> 8 | EG61: 12 | EJ61: 22 | EK61: 22 | EL61: =EK61+1 -> 23 | EM61: =EL61+1 -> 24 | EN61: =EM61+1 -> 25 | EO61: 56 | EQ61: 8 | ER61: 12 | ES61: 16 | EU61: 22 | EV61: 24 | EW61: 24 | EX61: 25 | EY61: 26 | EZ61: 27 | FA61: 56
A62: 00:06:10.022 | B62: 00:06:05.011 | C62: 00:06:00 | D62: 00:05:43 | E62: 00:05:18 | F62: 00:04:58 | G62: 00:04:48 | H62: 00:04:42.989 | I62: 00:04:37.978 | J62: 00:04:32.966 | K62: 13 | M62: 00:06:40.022 | N62: 00:06:35.011 | O62: 00:06:30 | P62: 00:06:08 | Q62: 00:05:48 | R62: 00:05:33 | S62: 00:05:23 | T62: 00:05:17.989 | U62: 00:05:12.978 | V62: 00:05:07.966 | W62: 13 | Y62: - | Z62: - | AA62: - | AB62: - | AC62: 6 | AD62: - | AE62: 5.7 | AF62: - | AG62: - | AH62: - | AI62: 13 | AK62: 10.7 | AL62: 10.4 | AM62: - | AN62: 16.4 | AO62: 15.3 | AP62: 13 | AR62: - | AS62: - | AT62: - | AU62: - | AV62: 6.3 | AW62: - | AX62: 6 | AY62: - | AZ62: - | BA62: - | BB62: 13 | BD62: 11.5 | BE62: 11.3 | BF62: 11.3 | BG62: 18.7 | BH62: 18.7 | BI62: 13 | BN62: 11 | BO62: 13 | BP62: 15 | BQ62: 16 | BR62: =BQ62+2 -> 18 | BS62: =BR62+2 -> 20 | BT62: =BS62+2 -> 22 | BU62: 57 | BW62: 17 | BX62: 20 | BY62: 24 | BZ62: 28 | CA62: 32 | CB62: 35 | CC62: 35 | CD62: 38 | CE62: 41 | CF62: 44 | CG62: 57 | CI62: 169 | CJ62: 184 | CK62: 199 | CL62: 214 | CM62: 229 | CN62: 239 | CO62: 244 | CP62: 259 | CQ62: 274 | CR62: 289 | CS62: 57 | CU62: 154 | CV62: 169 | CW62: 184 | CX62: 199 | CY62: 214 | CZ62: 224 | DA62: 224 | DB62: 229 | DC62: 234 | DD62: 239 | DE62: 57 | DG62: =DH62-3 -> 23 | DH62: =DI62-4 -> 26 | DI62: 30 | DQ62: 57 | EC62: 57 | EH62: 15 | EI62: 20 | EO62: 57 | ET62: 20 | FA62: 57
A63: 00:06:15.022 | B63: 00:06:10.011 | C63: 00:06:05 | D63: 00:05:47 | E63: 00:05:22 | F63: 00:05:02 | G63: 00:04:52 | H63: 00:04:46.989 | I63: 00:04:41.978 | J63: 00:04:36.966 | K63: 12 | M63: 00:06:45.022 | N63: 00:06:40.011 | O63: 00:06:35 | P63: 00:06:12 | Q63: 00:05:52 | R63: 00:05:37 | S63: 00:05:27 | T63: 00:05:21.989 | U63: 00:05:16.978 | V63: 00:05:11.966 | W63: 12 | Y63: - | Z63: - | AA63: - | AB63: - | AD63: 5.9 | AE63: - | AF63: 5.5 | AG63: 5.3 | AH63: 5.1 | AI63: 12 | AK63: 10.8 | AL63: 10.5 | AM63: 10.1 | AN63: 16.6 | AO63: 15.4 | AP63: 12 | AR63: - | AS63: - | AT63: - | AU63: - | AV63: - | AW63: 6.2 | AX63: - | AY63: - | AZ63: - | BA63: - | BB63: 12 | BD63: 11.6 | BE63: 11.4 | BF63: 11.4 | BG63: 18.9 | BH63: 18.9 | BI63: 12 | BU63: 58 | BW63: 18 | BX63: 21 | BY63: 25 | BZ63: 29 | CA63: 33 | CB63: 36 | CC63: 36 | CD63: 39 | CE63: 42 | CF63: 45 | CG63: 58 | CI63: 171 | CJ63: 186 | CK63: 201 | CL63: 216 | CM63: 231 | CN63: 241 | CO63: 246 | CP63: 261 | CQ63: 276 | CR63: 291 | CS63: 58 | CU63: 156 | CV63: 171 | CW63: 186 | CX63: 201 | CY63: 216 | CZ63: 226 | DA63: 226 | DB63: 231 | DC63: 236 | DD63: 241 | DE63: 58 | DJ63: 34 | DK63: 38 | DL63: 41 | DM63: 43 | DN63: =DM63+1 -> 44 | DO63: =DN63+1 -> 45 | DP63: =DO63+1 -> 46 | DQ63: 58 | DS63: 18 | DT63: 22 | DU63: 27 | DV63: 31 | DW63: 34 | DX63: 37 | DY63: 37 | DZ63: 38 | EA63: 39 | EB63: 40 | EC63: 58 | EE63: =EF63-4 -> 5 | EF63: =EG63-4 -> 9 | EG63: 13 | EJ63: 23 | EK63: 23 | EL63: =EK63+1 -> 24 | EM63: =EL63+1 -> 25 | EN63: =EM63+1 -> 26 | EO63: 58 | EQ63: 9 | ER63: 13 | ES63: 17 | EU63: 23 | EV63: 25 | EW63: 25 | EX63: 26 | EY63: 27 | EZ63: 28 | FA63: 58
A64: 00:06:20.022 | B64: 00:06:15.011 | C64: 00:06:10 | D64: 00:05:51 | E64: 00:05:26 | F64: 00:05:06 | G64: 00:04:56 | H64: 00:04:50.989 | I64: 00:04:45.978 | J64: 00:04:40.966 | K64: 11 | M64: 00:06:50.022 | N64: 00:06:45.011 | O64: 00:06:40 | P64: 00:06:16 | Q64: 00:05:56 | R64: 00:05:41 | S64: 00:05:31 | T64: 00:05:25.989 | U64: 00:05:20.978 | V64: 00:05:15.966 | W64: 11 | Y64: 7.2 | Z64: 7 | AA64: 6.8 | AB64: 6.4 | AC64: 6.1 | AD64: - | AE64: - | AF64: - | AG64: - | AH64: - | AI64: 11 | AK64: 10.9 | AL64: 10.6 | AM64: 10.2 | AN64: 16.8 | AO64: 15.6 | AP64: 11 | AR64: 7.5 | AS64: 7.3 | AT64: 7.1 | AU64: 6.6 | AV64: 6.4 | AW64: - | AX64: - | AY64: 5.9 | AZ64: 5.7 | BA64: 5.5 | BB64: 11 | BD64: 11.7 | BE64: 11.5 | BF64: 11.5 | BG64: 19.1 | BH64: 19.1 | BI64: 11 | BM64: 9 | BN64: 12 | BP64: 16 | BQ64: 17 | BR64: =BQ64+2 -> 19 | BS64: 21 | BT64: 23 | BU64: 59 | BW64: 19 | BX64: 22 | BY64: 26 | BZ64: 30 | CA64: 34 | CB64: 37 | CC64: 37 | CD64: 40 | CE64: 43 | CF64: 46 | CG64: 59 | CI64: 173 | CJ64: 188 | CK64: 203 | CL64: 218 | CM64: 233 | CN64: 243 | CO64: 248 | CP64: 263 | CQ64: 278 | CR64: 293 | CS64: 59 | CU64: 158 | CV64: 173 | CW64: 188 | CX64: 203 | CY64: 218 | CZ64: 228 | DA64: 228 | DB64: 233 | DC64: 238 | DD64: 243 | DE64: 59 | DG64: =DH64-6 -> 20 | DH64: =DI64-5 -> 26 | DI64: 31 | DQ64: 59 | EC64: 59 | EH64: 16 | EI64: 21 | EO64: 59 | ET64: 21 | FA64: 59
A65: 00:06:25.022 | B65: 00:06:20.011 | C65: 00:06:15 | D65: 00:05:55 | E65: 00:05:30 | F65: 00:05:10 | G65: 00:05:00 | H65: =G65-0.0058% -> 00:04:54.989 | I65: 00:04:49.978 | J65: 00:04:44.966 | K65: 10 | M65: 00:06:55.022 | N65: 00:06:50.011 | O65: 00:06:45 | P65: 00:06:20 | Q65: 00:06:00 | R65: 00:05:45 | S65: 00:05:35 | T65: 00:05:29.989 | U65: 00:05:24.978 | V65: 00:05:19.966 | W65: 10 | Y65: - | Z65: - | AA65: - | AB65: - | AC65: - | AD65: - | AE65: 5.8 | AF65: - | AG65: - | AH65: - | AI65: 10 | AK65: 11 | AL65: 10.7 | AM65: 10.3 | AN65: 17 | AO65: 15.8 | AP65: 10 | AR65: - | AS65: - | AT65: - | AU65: - | AV65: - | AW65: - | AX65: 6.1 | AY65: - | AZ65: - | BA65: - | BB65: 10 | BD65: 11.8 | BE65: 11.6 | BF65: 11.6 | BG65: 19.3 | BH65: 19.3 | BI65: 10 | BO65: 14 | BQ65: 18 | BR65: 20 | BS65: 22 | BT65: 24 | BU65: 60 | BW65: 20 | BX65: 23 | BY65: 27 | BZ65: 31 | CA65: 36 | CB65: 38 | CC65: 38 | CD65: 41 | CE65: 44 | CF65: 47 | CG65: 60 | CI65: 175 | CJ65: 190 | CK65: 205 | CL65: 220 | CM65: 235 | CN65: 245 | CO65: 250 | CP65: 265 | CQ65: 280 | CR65: 295 | CS65: 60 | CU65: 160 | CV65: 175 | CW65: 190 | CX65: 205 | CY65: 220 | CZ65: 230 | DA65: 230 | DB65: 235 | DC65: 240 | DD65: 245 | DE65: 60 | DJ65: 35 | DK65: 39 | DL65: 42 | DM65: 44 | DN65: =DM65+1 -> 45 | DO65: =DN65+1 -> 46 | DP65: =DO65+1 -> 47 | DQ65: 60 | DS65: 19 | DT65: 23 | DU65: 28 | DV65: 32 | DW65: 35 | DX65: 38 | DY65: 38 | DZ65: 39 | EA65: 40 | EB65: 41 | EC65: 60 | EE65: =EF65-4 -> 6 | EF65: =EG65-4 -> 10 | EG65: 14 | EJ65: 24 | EK65: 24 | EL65: =EK65+1 -> 25 | EM65: =EL65+1 -> 26 | EN65: =EM65+1 -> 27 | EO65: 60 | EQ65: 10 | ER65: 14 | ES65: 18 | EU65: 24 | EV65: 26 | EW65: 26 | EX65: 27 | EY65: 28 | EZ65: 29 | FA65: 60
A66: 00:06:30.022 | B66: 00:06:25.011 | C66: 00:06:20 | D66: 00:06:00 | E66: 00:05:35 | F66: 00:05:15 | G66: 00:05:05 | H66: 00:04:59.989 | I66: 00:04:54.978 | J66: 00:04:49.966 | K66: 9 | M66: 00:07:00.022 | N66: 00:06:55.011 | O66: 00:06:50 | P66: 00:06:25 | Q66: 00:06:05 | R66: 00:05:50 | S66: 00:05:39 | T66: 00:05:33.989 | U66: 00:05:28.978 | V66: 00:05:23.966 | W66: 9 | Y66: - | Z66: - | AA66: - | AB66: 6.5 | AC66: 6.2 | AD66: 6 | AE66: - | AF66: 5.6 | AG66: 5.4 | AH66: 5.2 | AI66: 9 | AK66: 11.1 | AL66: 10.8 | AM66: 10.4 | AN66: 17.2 | AO66: 16 | AP66: 9 | AR66: - | AS66: - | AT66: - | AU66: 6.7 | AV66: 6.5 | AW66: 6.3 | AX66: - | AY66: - | AZ66: - | BA66: - | BB66: 9 | BD66: 11.9 | BE66: 11.7 | BF66: 11.7 | BG66: 19.6 | BH66: 19.6 | BI66: 9 | BK66: 3 | BN66: 13 | BO66: 14 | BP66: 17 | BQ66: 19 | BR66: 21 | BS66: 23 | BT66: 25 | BU66: 61 | BW66: 21 | BX66: 24 | BY66: 28 | BZ66: 33 | CA66: 38 | CB66: 40 | CC66: 40 | CD66: 43 | CE66: 46 | CF66: 49 | CG66: 61 | CI66: =CJ66-15 -> 177 | CJ66: 192 | CK66: 207 | CL66: 222 | CM66: 237 | CN66: 247 | CO66: 252 | CP66: =CO66+15 -> 267 | CQ66: 282 | CR66: 297 | CS66: 61 | CU66: 162 | CV66: 177 | CW66: 192 | CX66: 207 | CY66: 222 | CZ66: 232 | DA66: 232 | DB66: 237 | DC66: 242 | DD66: 247 | DE66: 61 | DG66: =DH66-6 -> 21 | DH66: =DI66-5 -> 27 | DI66: 32 | DQ66: 61 | DS66: 20 | DT66: 24 | DU66: 29 | DW66: =DW65+1 -> 36 | EC66: 61 | EH66: 17 | EI66: 22 | EO66: 61 | ET66: 22 | FA66: 61
A67: 00:06:35.022 | B67: 00:06:30.011 | C67: 00:06:25 | D67: 00:06:05 | E67: 00:05:40 | F67: 00:05:20 | G67: 00:05:10 | H67: 00:05:04.989 | I67: 00:04:59.978 | J67: 00:04:54.966 | K67: 8 | M67: 00:07:05.022 | N67: 00:07:00.011 | O67: 00:06:55 | P67: 00:06:30 | Q67: 00:06:10 | R67: 00:05:55 | S67: 00:05:43 | T67: 00:05:37.989 | U67: 00:05:32.978 | V67: 00:05:27.966 | W67: 8 | Y67: 7.3 | Z67: 7.1 | AA67: 6.9 | AB67: - | AC67: - | AD67: - | AE67: - | AF67: - | AG67: - | AH67: - | AI67: 8 | AK67: 11.2 | AL67: 10.9 | AM67: 10.5 | AN67: 17.4 | AO67: 16.2 | AP67: 8 | AR67: 7.6 | AS67: 7.4 | AT67: 7.2 | AU67: - | AV67: - | AW67: - | AX67: - | AY67: 6 | AZ67: 5.8 | BA67: 5.6 | BB67: 8 | BD67: 12 | BE67: 11.8 | BF67: 11.8 | BG67: 19.9 | BH67: 19.9 | BI67: 8 | BL67: 7 | BM67: 10 | BO67: 15 | BP67: 18 | BQ67: 20 | BR67: 22 | BS67: 24 | BT67: 26 | BU67: 62 | BW67: 23 | BX67: 26 | BY67: 30 | BZ67: 35 | CA67: 40 | CB67: 42 | CC67: 42 | CD67: 45 | CE67: 48 | CF67: 51 | CG67: 62 | CI67: 179 | CJ67: 194 | CK67: 209 | CL67: 224 | CM67: 239 | CN67: 249 | CO67: 254 | CP67: 269 | CQ67: 284 | CR67: 299 | CS67: 62 | CU67: 164 | CV67: 179 | CW67: 194 | CX67: 209 | CY67: 224 | CZ67: 234 | DA67: 234 | DB67: 239 | DC67: 244 | DD67: 249 | DE67: 62 | DG67: 22 | DH67: 28 | DI67: 33 | DJ67: 36 | DK67: 40 | DL67: 43 | DM67: 45 | DN67: =DM67+1 -> 46 | DO67: =DN67+1 -> 47 | DP67: =DO67+1 -> 48 | DQ67: 62 | DS67: 21 | DT67: 25 | DU67: 30 | DV67: 33 | DW67: =DW66+1 -> 37 | DX67: 39 | DY67: 39 | DZ67: 40 | EA67: 41 | EB67: 42 | EC67: 62 | EE67: =EF67-4 -> 7 | EF67: 11 | EG67: 15 | EH67: 18 | EJ67: 25 | EK67: 25 | EL67: =EK67+1 -> 26 | EM67: =EL67+1 -> 27 | EN67: =EM67+1 -> 28 | EO67: 62 | EQ67: 11 | ER67: 15 | ES67: 19 | EU67: 25 | EV67: 27 | EW67: 27 | EX67: 28 | EY67: 29 | EZ67: 30 | FA67: 62
A68: 00:06:40.022 | B68: 00:06:35.011 | C68: 00:06:30 | D68: 00:06:10 | E68: 00:05:45 | F68: 00:05:25 | G68: 00:05:15 | H68: 00:05:09.989 | I68: 00:05:04.978 | J68: 00:04:59.966 | K68: 7 | M68: 00:07:10.022 | N68: 00:07:05.011 | O68: 00:07:00 | P68: 00:06:35 | Q68: 00:06:15 | R68: 00:06:00 | S68: 00:05:47 | T68: 00:05:41.989 | U68: 00:05:36.978 | V68: 00:05:31.966 | W68: 7 | Y68: - | Z68: - | AA68: - | AB68: 6.6 | AC68: 6.3 | AD68: 6.1 | AE68: 5.9 | AF68: 5.7 | AG68: 5.5 | AH68: 5.3 | AI68: 7 | AK68: 11.3 | AL68: 11 | AM68: 10.6 | AN68: 17.6 | AO68: 16.4 | AP68: 7 | AR68: - | AS68: - | AT68: - | AU68: 6.8 | AV68: 6.6 | AW68: 6.4 | AX68: 6.2 | AY68: - | AZ68: - | BA68: - | BB68: 7 | BD68: 12.1 | BE68: 11.9 | BF68: 11.9 | BG68: 20.2 | BH68: 20.2 | BI68: 7 | BN68: 14 | BO68: 16 | BP68: 19 | BQ68: 21 | BR68: 23 | BS68: 25 | BT68: 27 | BU68: 63 | BW68: 25 | BX68: 28 | BY68: 32 | BZ68: 37 | CA68: 42 | CB68: 44 | CC68: 44 | CD68: 47 | CE68: 50 | CF68: 53 | CG68: 63 | CI68: 181 | CJ68: 196 | CK68: 211 | CL68: 226 | CM68: 241 | CN68: 251 | CO68: 256 | CP68: 271 | CQ68: 286 | CR68: 301 | CS68: 63 | CU68: 166 | CV68: 181 | CW68: 196 | CX68: 211 | CY68: 226 | CZ68: 236 | DA68: 236 | DB68: 241 | DC68: 246 | DD68: 251 | DE68: 63 | DG68: 23 | DH68: 29 | DI68: 34 | DK68: 41 | DQ68: 63 | DS68: 22 | DT68: 26 | DU68: 31 | DW68: 38 | DX68: =DX67+1 -> 40 | DY68: =DY67+1 -> 40 | DZ68: =DZ67+1 -> 41 | EA68: =EA67+1 -> 42 | EB68: 43 | EC68: 63 | EE68: 8 | EF68: 12 | EG68: 16 | EH68: 19 | EI68: 23 | EO68: 63 | ET68: 23 | EU68: 26 | EV68: 28 | EW68: 28 | EX68: 29 | EY68: 30 | EZ68: 31 | FA68: 63
A69: 00:06:45.022 | B69: 00:06:40.011 | C69: 00:06:35 | D69: 00:06:15 | E69: 00:05:50 | F69: 00:05:30 | G69: 00:05:20 | H69: 00:05:14.989 | I69: 00:05:09.978 | J69: 00:05:04.966 | K69: 6 | M69: 00:07:15.022 | N69: 00:07:10.011 | O69: 00:07:05 | P69: 00:06:40 | Q69: 00:06:20 | R69: 00:06:05 | S69: 00:05:51 | T69: 00:05:45.989 | U69: 00:05:40.978 | V69: 00:05:35.966 | W69: 6 | Y69: - | Z69: - | AA69: - | AB69: - | AC69: - | AD69: - | AE69: - | AF69: - | AG69: - | AH69: - | AI69: 6 | AK69: 11.4 | AL69: 11.1 | AM69: 10.7 | AN69: 17.8 | AO69: 16.6 | AP69: 6 | AR69: - | AS69: - | AT69: - | AU69: - | AV69: - | AW69: - | AX69: - | AY69: - | AZ69: - | BA69: - | BB69: 6 | BD69: 12.3 | BE69: 12 | BF69: 12 | BG69: 20.5 | BH69: 20.5 | BI69: 6 | BO69: 17 | BP69: 20 | BQ69: 22 | BR69: 24 | BS69: 26 | BT69: 28 | BU69: 64 | BW69: 27 | BX69: 30 | BY69: 34 | BZ69: 39 | CA69: 44 | CB69: 46 | CC69: 46 | CD69: 49 | CE69: 52 | CF69: 55 | CG69: 64 | CI69: 183 | CJ69: 198 | CK69: 213 | CL69: 228 | CM69: 243 | CN69: 253 | CO69: 258 | CP69: 273 | CQ69: 288 | CR69: 303 | CS69: 64 | CU69: 168 | CV69: 183 | CW69: 198 | CX69: 213 | CY69: 228 | CZ69: 238 | DA69: 238 | DB69: 243 | DC69: 248 | DD69: 253 | DE69: 64 | DG69: 24 | DH69: 30 | DI69: 35 | DJ69: 37 | DK69: 42 | DL69: 44 | DM69: 46 | DN69: =DM69+1 -> 47 | DO69: =DN69+1 -> 48 | DP69: =DO69+1 -> 49 | DQ69: 64 | DS69: 23 | DT69: 27 | DU69: 32 | DV69: 34 | DW69: 39 | DX69: =DX68+1 -> 41 | DY69: =DY68+1 -> 41 | DZ69: =DZ68+1 -> 42 | EA69: 43 | EB69: 44 | EC69: 64 | EE69: 9 | EF69: 13 | EG69: 17 | EH69: 20 | EI69: 24 | EJ69: 26 | EK69: 26 | EL69: =EK69+1 -> 27 | EM69: =EL69+1 -> 28 | EN69: =EM69+1 -> 29 | EO69: 64 | EQ69: 12 | ER69: 16 | ES69: 20 | ET69: 24 | EU69: 27 | EV69: 29 | EW69: 29 | EX69: 30 | EY69: 31 | EZ69: 32 | FA69: 64
A70: =B70+0.0058% -> 00:06:50.022 | B70: 00:06:45.011 | C70: 00:06:40 | D70: 00:06:20 | E70: 00:05:55 | F70: 00:05:35 | G70: 00:05:25 | H70: 00:05:19.989 | I70: 00:05:14.978 | J70: 00:05:09.966 | K70: 5 | M70: 00:07:20.022 | N70: 00:07:15.011 | O70: 00:07:10 | P70: 00:06:45 | Q70: 00:06:25 | R70: 00:06:10 | S70: 00:05:55 | T70: 00:05:49.989 | U70: 00:05:44.978 | V70: 00:05:39.966 | W70: 5 | Y70: 7.4 | Z70: 7.2 | AA70: 7 | AB70: 6.7 | AC70: 6.4 | AD70: 6.2 | AE70: 6 | AF70: 5.8 | AG70: 5.6 | AH70: 5.4 | AI70: 5 | AK70: 11.5 | AL70: 11.2 | AM70: 10.8 | AN70: 18 | AO70: 16.9 | AP70: 5 | AR70: 7.7 | AS70: 7.5 | AT70: 7.3 | AU70: 6.9 | AV70: 6.7 | AW70: 6.5 | AX70: 6.3 | AY70: 6.1 | AZ70: 5.9 | BA70: 5.7 | BB70: 5 | BD70: 12.5 | BE70: 12.1 | BF70: 12.1 | BG70: 20.8 | BH70: 20.8 | BI70: 5 | BM70: 11 | BN70: 15 | BO70: 18 | BP70: 21 | BQ70: 23 | BR70: 25 | BS70: 27 | BT70: 29 | BU70: 65 | BW70: 29 | BX70: 32 | BY70: 36 | BZ70: 41 | CA70: 46 | CB70: 48 | CC70: 48 | CD70: 51 | CE70: 54 | CF70: 57 | CG70: 65 | CI70: 185 | CJ70: 200 | CK70: 215 | CL70: 230 | CM70: 245 | CN70: 255 | CO70: 260 | CP70: 275 | CQ70: 290 | CR70: 305 | CS70: 65 | CU70: 170 | CV70: 185 | CW70: 200 | CX70: 215 | CY70: 230 | CZ70: 240 | DA70: 240 | DB70: 245 | DC70: 250 | DD70: 255 | DE70: 65 | DG70: 25 | DH70: 31 | DI70: 36 | DK70: 43 | DL70: 45 | DQ70: 65 | DS70: 24 | DT70: 28 | DU70: 33 | DW70: 40 | DX70: 42 | DY70: 42 | DZ70: 43 | EA70: 44 | EB70: 45 | EC70: 65 | EE70: 10 | EF70: 14 | EG70: 18 | EH70: 21 | EI70: 25 | EJ70: 27 | EK70: 27 | EL70: =EK70+1 -> 28 | EM70: 29 | EN70: 30 | EO70: 65 | EQ70: 13 | ER70: 17 | ES70: 21 | ET70: 25 | EU70: 28 | EV70: 30 | EW70: 30 | EX70: 31 | EY70: 32 | EZ70: 33 | FA70: 65
A71: 00:06:55.022 | B71: 00:06:50.011 | C71: 00:06:45 | D71: 00:06:25 | E71: 00:06:00 | F71: 00:05:40 | G71: 00:05:30 | H71: 00:05:24.989 | I71: 00:05:19.978 | J71: 00:05:14.966 | K71: 4 | M71: 00:07:25.022 | N71: 00:07:20.011 | O71: 00:07:15 | P71: 00:06:50 | Q71: 00:06:30 | R71: 00:06:15 | S71: 00:06:00 | T71: 00:05:54.989 | U71: 00:05:49.978 | V71: 00:05:44.966 | W71: 4 | Y71: - | Z71: - | AA71: - | AB71: - | AC71: - | AD71: - | AE71: - | AF71: - | AG71: - | AH71: - | AI71: 4 | AK71: 11.6 | AL71: 11.3 | AM71: 11 | AN71: 18.2 | AO71: 17.2 | AP71: 4 | AR71: - | AS71: - | AT71: - | AU71: - | AV71: - | AW71: - | AX71: - | AY71: - | AZ71: - | BA71: - | BB71: 4 | BD71: 12.7 | BE71: 12.3 | BF71: 12.3 | BG71: 21.1 | BH71: 21.1 | BI71: 4 | BO71: 19 | BP71: 22 | BQ71: 24 | BR71: 26 | BS71: 28 | BT71: 30 | BU71: 66 | BW71: 31 | BX71: 34 | BY71: 38 | BZ71: 43 | CA71: 48 | CB71: 50 | CC71: 51 | CD71: 54 | CE71: 57 | CF71: 60 | CG71: 66 | CI71: 188 | CJ71: 203 | CK71: 218 | CL71: 233 | CM71: 248 | CN71: 257 | CO71: 262 | CP71: 277 | CQ71: 292 | CR71: 307 | CS71: 66 | CU71: 173 | CV71: 188 | CW71: 203 | CX71: 218 | CY71: 233 | CZ71: 242 | DA71: 243 | DB71: 248 | DC71: 253 | DD71: 258 | DE71: 66 | DG71: 26 | DH71: 32 | DI71: 37 | DJ71: 38 | DK71: 44 | DL71: 46 | DM71: 47 | DN71: =DM71+1 -> 48 | DO71: =DN71+1 -> 49 | DP71: =DO71+1 -> 50 | DQ71: 66 | DS71: 25 | DT71: 29 | DU71: 34 | DV71: 35 | DW71: 41 | DX71: 43 | DY71: 43 | DZ71: 44 | EA71: 45 | EB71: 46 | EC71: 66 | EE71: 11 | EF71: 15 | EG71: 19 | EH71: 22 | EI71: 26 | EJ71: 28 | EK71: 28 | EL71: 29 | EM71: 30 | EN71: 31 | EO71: 66 | EQ71: 14 | ER71: 18 | ES71: 22 | ET71: 26 | EU71: 29 | EV71: 31 | EW71: 31 | EX71: 32 | EY71: 33 | EZ71: 34 | FA71: 66
A72: 00:07:00.022 | B72: 00:06:55.011 | C72: 00:06:50 | D72: 00:06:30 | E72: 00:06:05 | F72: 00:05:45 | G72: 00:05:35 | H72: 00:05:29.989 | I72: 00:05:24.978 | J72: 00:05:19.966 | K72: 3 | M72: 00:07:30.022 | N72: 00:07:25.011 | O72: 00:07:20 | P72: 00:06:55 | Q72: 00:06:35 | R72: 00:06:20 | S72: 00:06:05 | T72: 00:05:59.989 | U72: 00:05:54.978 | V72: 00:05:49.966 | W72: 3 | Y72: 7.5 | Z72: 7.3 | AA72: 7.1 | AB72: 6.8 | AC72: 6.5 | AD72: 6.3 | AE72: 6.1 | AF72: 5.9 | AG72: 5.7 | AH72: 5.5 | AI72: 3 | AK72: 11.8 | AL72: 11.4 | AM72: 11.2 | AN72: 18.4 | AO72: 17.5 | AP72: 3 | AR72: 7.8 | AS72: 7.6 | AT72: 7.4 | AU72: 7 | AV72: 6.8 | AW72: 6.6 | AX72: 6.4 | AY72: 6.2 | AZ72: 6 | BA72: 5.8 | BB72: 3 | BD72: 12.9 | BE72: 12.5 | BF72: 12.5 | BG72: 21.4 | BH72: 21.4 | BI72: 3 | BK72: 4 | BL72: 8 | BM72: 12 | BN72: 16 | BO72: 20 | BP72: 23 | BQ72: 25 | BR72: 27 | BS72: 29 | BT72: 31 | BU72: 67 | BW72: 34 | BX72: 37 | BY72: 41 | BZ72: 46 | CA72: 50 | CB72: 52 | CC72: 54 | CD72: 57 | CE72: 60 | CF72: 63 | CG72: 67 | CI72: 191 | CJ72: 206 | CK72: 221 | CL72: 236 | CM72: 251 | CN72: 259 | CO72: 264 | CP72: 279 | CQ72: 294 | CR72: 309 | CS72: 67 | CU72: 176 | CV72: 191 | CW72: 206 | CX72: 221 | CY72: 236 | CZ72: 244 | DA72: 246 | DB72: 251 | DC72: 256 | DD72: 261 | DE72: 67 | DG72: 27 | DH72: 33 | DI72: 38 | DK72: 45 | DL72: 47 | DQ72: 67 | DS72: 26 | DT72: 30 | DU72: 35 | DW72: 42 | DX72: 44 | DY72: 44 | DZ72: 45 | EA72: 46 | EB72: 47 | EC72: 67 | EE72: 12 | EF72: 16 | EG72: 20 | EH72: 23 | EI72: 27 | EJ72: 29 | EK72: 29 | EL72: 30 | EM72: 31 | EN72: 32 | EO72: 67 | EQ72: 15 | ER72: 19 | ES72: 23 | ET72: 27 | EU72: 30 | EV72: 32 | EW72: 32 | EX72: 33 | EY72: 34 | EZ72: 35 | FA72: 67
A73: 00:07:05.022 | B73: 00:07:00.011 | C73: 00:06:55 | D73: 00:06:35 | E73: 00:06:10 | F73: 00:05:50 | G73: 00:05:40 | H73: 00:05:34.989 | I73: 00:05:29.978 | J73: 00:05:24.966 | K73: 2 | M73: 00:07:35.022 | N73: 00:07:30.011 | O73: 00:07:25 | P73: 00:07:00 | Q73: 00:06:40 | R73: 00:06:25 | S73: 00:06:10 | T73: 00:06:04.989 | U73: 00:05:59.978 | V73: 00:05:54.966 | W73: 2 | Y73: - | Z73: - | AA73: - | AB73: - | AC73: - | AD73: - | AE73: - | AF73: - | AG73: - | AH73: - | AI73: 2 | AK73: 12 | AL73: 11.6 | AM73: 11.4 | AN73: 18.7 | AO73: 17.7 | AP73: 2 | AR73: - | AS73: - | AT73: - | AU73: - | AV73: - | AW73: - | AX73: - | AY73: - | AZ73: - | BA73: - | BB73: 2 | BD73: 13.1 | BE73: 12.7 | BF73: 12.7 | BG73: 21.7 | BH73: 21.7 | BI73: 2 | BK73: 5 | BL73: 9 | BM73: 13 | BN73: 17 | BO73: 21 | BP73: 24 | BQ73: 26 | BR73: 28 | BS73: 30 | BT73: 32 | BU73: 68 | BW73: 37 | BX73: 40 | BY73: 44 | BZ73: 49 | CA73: 52 | CB73: 54 | CC73: 57 | CD73: 60 | CE73: 63 | CF73: 66 | CG73: 68 | CI73: 194 | CJ73: 209 | CK73: 224 | CL73: 239 | CM73: 254 | CN73: 261 | CO73: 266 | CP73: 281 | CQ73: 296 | CR73: 311 | CS73: 68 | CU73: 179 | CV73: 194 | CW73: 209 | CX73: 224 | CY73: 239 | CZ73: 246 | DA73: 249 | DB73: 254 | DC73: 259 | DD73: 264 | DE73: 68 | DG73: 28 | DH73: 34 | DI73: 39 | DJ73: 39 | DK73: 46 | DL73: 48 | DM73: 48 | DN73: =DM73+1 -> 49 | DO73: 50 | DP73: 51 | DQ73: 68 | DS73: 27 | DT73: 31 | DU73: 36 | DV73: 36 | DW73: 43 | DX73: 45 | DY73: 45 | DZ73: 46 | EA73: 47 | EB73: 48 | EC73: 68 | EE73: 13 | EF73: 17 | EG73: 21 | EH73: 24 | EI73: 28 | EJ73: 30 | EK73: 30 | EL73: 31 | EM73: 32 | EN73: 33 | EO73: 68 | EQ73: 16 | ER73: 20 | ES73: 24 | ET73: 28 | EU73: 31 | EV73: 33 | EW73: 33 | EX73: 34 | EY73: 35 | EZ73: 36 | FA73: 68
A74: 00:07:10.022 | B74: 00:07:05.011 | C74: 00:07:00 | D74: 00:06:40 | E74: 00:06:15 | F74: 00:05:55 | G74: 00:05:45 | H74: 00:05:39.989 | I74: 00:05:34.978 | J74: 00:05:29.966 | K74: 1 | M74: 00:07:40.022 | N74: 00:07:35.011 | O74: 00:07:30 | P74: 00:07:05 | Q74: 00:06:45 | R74: 00:06:30 | S74: 00:06:15 | T74: 00:06:09.989 | U74: 00:06:04.978 | V74: 00:05:59.966 | W74: 1 | Y74: 7.6 | Z74: 7.4 | AA74: 7.2 | AB74: 6.9 | AC74: 6.6 | AD74: 6.4 | AE74: 6.2 | AF74: 6 | AG74: 5.8 | AH74: 5.6 | AI74: 1 | AK74: 12.2 | AL74: 11.8 | AM74: 11.6 | AN74: 19 | AO74: 18 | AP74: 1 | AR74: 7.9 | AS74: 7.7 | AT74: 7.5 | AU74: 7.1 | AV74: 6.9 | AW74: 6.7 | AX74: 6.5 | AY74: 6.3 | AZ74: 6.1 | BA74: 5.9 | BB74: 1 | BD74: 13.3 | BE74: 12.9 | BF74: 12.9 | BG74: 22 | BH74: 22 | BI74: 1 | BK74: 6 | BL74: 10 | BM74: 14 | BN74: 18 | BO74: 22 | BP74: 25 | BQ74: 27 | BR74: 29 | BS74: 31 | BT74: 33 | BU74: 69 | BW74: 40 | BX74: 43 | BY74: 47 | BZ74: 52 | CA74: 55 | CB74: 57 | CC74: 60 | CD74: 63 | CE74: 66 | CF74: 69 | CG74: 69 | CI74: 197 | CJ74: 212 | CK74: 227 | CL74: 242 | CM74: 257 | CN74: 263 | CO74: 268 | CP74: 283 | CQ74: 298 | CR74: 313 | CS74: 69 | CU74: 182 | CV74: 197 | CW74: 212 | CX74: 227 | CY74: 242 | CZ74: 248 | DA74: 252 | DB74: 257 | DC74: 262 | DD74: 267 | DE74: 69 | DG74: 29 | DH74: 35 | DI74: 40 | DJ74: 40 | DK74: 47 | DL74: 49 | DM74: 49 | DN74: 50 | DO74: 51 | DP74: 52 | DQ74: 69 | DS74: 28 | DT74: 32 | DU74: 37 | DV74: =DV73+1 -> 37 | DW74: 44 | DX74: 46 | DY74: 46 | DZ74: 47 | EA74: 48 | EB74: 49 | EC74: 69 | EE74: 14 | EF74: 18 | EG74: 22 | EH74: 25 | EI74: 29 | EJ74: 31 | EK74: 31 | EL74: 32 | EM74: 33 | EN74: 34 | EO74: 69 | EQ74: 17 | ER74: 21 | ES74: 25 | ET74: 29 | EU74: 32 | EV74: 34 | EW74: 34 | EX74: 35 | EY74: 36 | EZ74: 37 | FA74: 69
A75: 0 | B75: 0 | C75: 0 | D75: 0 | E75: 0 | F75: 0 | G75: 0 | H75: 0 | I75: 0 | J75: 0 | K75: 0 | M75: 0 | N75: 0 | O75: 0 | P75: 0 | Q75: 0 | R75: 0 | S75: 0 | T75: 0 | U75: 0 | V75: 0 | W75: 0 | Y75: 0 | Z75: 0 | AA75: 0 | AB75: 0 | AC75: 0 | AD75: 0 | AE75: 0 | AF75: 0 | AG75: 0 | AH75: 0 | AI75: 0 | AK75: 0 | AL75: 0 | AM75: 0 | AN75: 0 | AO75: 0 | AP75: 0 | AR75: 0 | AS75: 0 | AT75: 0 | AU75: 0 | AV75: 0 | AW75: 0 | AX75: 0 | AY75: 0 | AZ75: 0 | BA75: 0 | BB75: 0 | BD75: 0 | BE75: 0 | BF75: 0 | BG75: 0 | BH75: 0 | BI75: 0 | BK75: 7 | BL75: 11 | BM75: 15 | BN75: 19 | BO75: 23 | BP75: 26 | BQ75: 28 | BR75: 30 | BS75: 32 | BT75: 34 | BU75: 70 | BW75: 43 | BX75: 46 | BY75: 50 | BZ75: 55 | CA75: 58 | CB75: 60 | CC75: 63 | CD75: 66 | CE75: 69 | CF75: 72 | CG75: 70 | CI75: 200 | CJ75: 215 | CK75: 230 | CL75: 245 | CM75: 260 | CN75: 265 | CO75: 270 | CP75: 285 | CQ75: 300 | CR75: 315 | CS75: 70 | CU75: 185 | CV75: 200 | CW75: 215 | CX75: 230 | CY75: 245 | CZ75: 250 | DA75: 255 | DB75: 260 | DC75: 265 | DD75: 270 | DE75: 70 | DG75: 30 | DH75: 36 | DI75: 41 | DJ75: 41 | DK75: 48 | DL75: 50 | DM75: 50 | DN75: 51 | DO75: 52 | DP75: 53 | DQ75: 70 | DS75: 29 | DT75: 33 | DU75: 38 | DV75: =DV74+1 -> 38 | DW75: 45 | DX75: 47 | DY75: 47 | DZ75: 48 | EA75: 49 | EB75: 50 | EC75: 70 | EE75: 15 | EF75: 19 | EG75: 23 | EH75: 27 | EI75: 30 | EJ75: 32 | EK75: 32 | EL75: 33 | EM75: 34 | EN75: 35 | EO75: 70 | EQ75: 18 | ER75: 22 | ES75: 26 | ET75: 30 | EU75: 33 | EV75: 35 | EW75: 35 | EX75: 36 | EY75: 37 | EZ75: 38 | FA75: 70
BL86: =BM86-1 -> 1 | BM86: 2 | BN86: 4 | BO86: - | BP86: - | BQ86: - | BU86: 23 | DI86: 1 | DJ86: 3 | DK86: 4 | DL86: 5 | DM86: 6 | DN86: =DM86+1 -> 7 | DO86: =DN86+1 -> 8 | DP86: =DO86+1 -> 9 | DQ86: 1 | ED86: 52 | EG86: - | EH86: - | EI86: - | EJ86: 20 | EK86: 20 | EL86: =EK86+1 -> 21 | EM86: =EL86+1 -> 22 | EN86: =EM86+1 -> 23 | EO86: 28 | EP86: 30
BL87: =BM87-1 -> 1 | BM87: 2 | BN87: - | BO87: - | BP87: 7 | BQ87: 8 | BR87: =BQ87+2 -> 10 | BS87: 12 | BT87: 14 | BU87: 22 | DI87: - | DJ87: - | DK87: - | DL87: - | DM87: - | DQ87: 51 | EJ87: 67 | EK87: =EL87-4 -> 12 | EL87: 16 | EM87: 20 | EN87: 24 | EO87: 27 | EP87: 29 | EQ87: 30 | ER87: =EQ87+1 -> 31 | ES87: =ER87+1 -> 32 | ET87: 33
BL88: =BM88-2 -> 2 | BM88: 4 | BN88: - | BO88: - | BP88: 9 | BQ88: 10 | BR88: 12 | BS88: 14 | BT88: 16 | BU88: 30 | DG88: =DH88-3 -> 20 | DH88: =DI88-4 -> 23 | DI88: 27 | DJ88: 31 | DK88: 34 | DL88: 37 | DM88: 39 | DN88: =DM88+1 -> 40 | DO88: =DN88+1 -> 41 | DP88: =DO88+1 -> 42 | DQ88: 50 | EJ88: 66 | EK88: 11 | EL88: 15 | EM88: 19 | EN88: 23 | EO88: 26 | EP88: 28 | EQ88: 29 | ER88: =EQ88+1 -> 30 | ES88: 31 | ET88: 32
EJ89: 65 | EK89: 10 | EL89: 14 | EM89: 18 | EN89: 22 | EO89: 25 | EP89: 27 | EQ89: 28 | ER89: =EQ89+1 -> 29 | ES89: 30 | ET89: 31
EJ90: 64 | EK90: 9 | EL90: 13 | EM90: 17 | EN90: 21 | EO90: 24 | EP90: 26 | EQ90: 27 | ER90: =EQ90+1 -> 28 | ES90: 29 | ET90: 30
EJ91: 63 | EK91: 8 | EL91: 12 | EM91: 16 | EN91: 20 | EO91: 23 | EP91: - | EQ91: 26 | ER91: =EQ91+1 -> 27 | ES91: 28 | ET91: 29
EQ92: -

Sheet 117-6б (hidden)
B1: МБОУ №117
A2: № п/п | B2: мальчики | C2: № уч-ка | D2: возраст (полных лет) | E2: 1 | G2: 2 | I2: 3 | K2: 4 | M2: 5 | O2: 6 | Q2: 7 | S2: 8 | U2: 9 | V2: 10
B3: Фамилия Имя | E3: бег 1000м | F3: очки | G3: бег 30м | H3: очки | I3: подтягивание | J3: очки | K3: пресс за 30" | L3: очки | M3: прыжок с места | N3: очки | O3: гибкость | P3: очки | Q3: бег 60м | R3: очки | S3: бег 100м | T3: очки | U3: сумма очков | V3: Место
A4: 1 | B4: Ржевский Егор | C4: 1 | D4: 13 | E4: 00:04:52 | F4: =IF(D4<7,"",IF(E4="","",IF(D4=17,VLOOKUP(E4,TabLiza!$J$5:$K$75,2),IF(D4=16,VLOOKUP(E4,TabLiza!$I$5:$K$75,3),IF(D4=15,VLOOKUP(E4,TabLiza!$H$5:$K$75,4),IF(D4=14,VLOOKUP(E4,TabLiza!$G$5:$K$75,5),IF(D4=13,VLOOKUP(E4,TabLiza!$F$5:$K$75,6),IF(D4=12,VLOOKUP(E4,TabLiza!$E$5:$K$75,7),IF(D4=11,VLOOKUP(E4,TabLiza!$D$5:K$75,8),IF(D4=10,VLOOKUP(E4,TabLiza!$C$5:$K$75,9),IF(D4=9,VLOOKUP(E4,TabLiza!$B$5:$K$75,10),IF(D4=8,VLOOKUP(E4,TabLiza!$A$5:$K$75,11),IF(D4=7,VLOOKUP(E4,TabLiza!$A$5:$K$75,11),IF(D4>17,"")))))))))))))) -> 15 | G4: 5.65 | H4: =IF(D4<7,"",IF(G4="","",IF(D4=17,VLOOKUP(G4,TabLiza!$AH$5:$AI$75,2),IF(D4=16,VLOOKUP(G4,TabLiza!$AG$5:$AI$75,3),IF(D4=15,VLOOKUP(G4,TabLiza!$AF$5:$AI$75,4),IF(D4=14,VLOOKUP(G4,TabLiza!$AE$5:$AI$75,5),IF(D4=13,VLOOKUP(G4,TabLiza!$AD$5:$AI$75,6),IF(D4=12,VLOOKUP(G4,TabLiza!$AC$5:$AI$75,7),IF(D4=11,VLOOKUP(G4,TabLiza!$AB$5:$AI$75,8),IF(D4=10,VLOOKUP(G4,TabLiza!$AA$5:$AI$75,9),IF(D4=9,VLOOKUP(G4,TabLiza!$Z$5:$AI$75,10),IF(D4=8,VLOOKUP(G4,TabLiza!$Y$5:$AI$75,11),IF(D4=7,VLOOKUP(G4,TabLiza!$Y$5:$AI$75,11),IF(D4>12,"")))))))))))))) -> 21 | I4: 1 | J4: =IF(D4<7,"",IF(I4="","",IF(D4=17,VLOOKUP(I4,TabLiza!$BT$5:$BU$75,2),IF(D4=16,VLOOKUP(I4,TabLiza!$BS$5:$BU$75,3),IF(D4=15,VLOOKUP(I4,TabLiza!$BR$5:$BU$75,4),IF(D4=14,VLOOKUP(I4,TabLiza!$BQ$5:$BU$75,5),IF(D4=13,VLOOKUP(I4,TabLiza!$BP$5:$BU$75,6),IF(D4=12,VLOOKUP(I4,TabLiza!$BO$5:$BU$75,7),IF(D4=11,VLOOKUP(I4,TabLiza!$BN$5:$BU$75,8),IF(D4=10,VLOOKUP(I4,TabLiza!$BM$5:$BU$75,9),IF(D4=9,VLOOKUP(I4,TabLiza!$BL$5:$BU$75,10),IF(D4=8,VLOOKUP(I4,TabLiza!$BK$5:$BU$75,11),IF(D4=7,VLOOKUP(I4,TabLiza!$BK$5:$BU$75,11),IF(D4>17,"")))))))))))))) -> 4 | K4: 27 | L4: =IF(D4<7,"",IF(K4="","",IF(D4=17,VLOOKUP(K4,TabLiza!$DP$5:$DQ$75,2),IF(D4=16,VLOOKUP(K4,TabLiza!$DO$5:$DQ$75,3),IF(D4=15,VLOOKUP(K4,TabLiza!$DN$5:$DQ$75,4),IF(D4=14,VLOOKUP(K4,TabLiza!$DM$5:$DQ$75,5),IF(D4=13,VLOOKUP(K4,TabLiza!$DL$5:$DQ$75,6),IF(D4=12,VLOOKUP(K4,TabLiza!$DK$5:$DQ$75,7),IF(D4=11,VLOOKUP(K4,TabLiza!$DJ$5:$DQ$75,8),IF(D4=10,VLOOKUP(K4,TabLiza!$DI$5:$DQ$75,9),IF(D4=9,VLOOKUP(K4,TabLiza!$DH$5:$DQ$75,10),IF(D4=8,VLOOKUP(K4,TabLiza!$DG$5:$DQ$75,11),IF(D4=7,VLOOKUP(K4,TabLiza!$DG$5:$DQ$75,11),IF(D4>17,"")))))))))))))) -> 28 | M4: 180 | N4: =IF(D4<7,"",IF(M4="","",IF(D4=17,VLOOKUP(M4,TabLiza!$CR$5:$CS$75,2),IF(D4=16,VLOOKUP(M4,TabLiza!$CQ$5:$CS$75,3),IF(D4=15,VLOOKUP(M4,TabLiza!$CP$5:$CS$75,4),IF(D4=14,VLOOKUP(M4,TabLiza!$CO$5:$CS$75,5),IF(D4=13,VLOOKUP(M4,TabLiza!$CN$5:$CS$75,6),IF(D4=12,VLOOKUP(M4,TabLiza!$CM$5:$CS$75,7),IF(D4=11,VLOOKUP(M4,TabLiza!$CL$5:$CS$75,8),IF(D4=10,VLOOKUP(M4,TabLiza!$CK$5:$CS$75,9),IF(D4=9,VLOOKUP(M4,TabLiza!$CJ$5:$CS$75,10),IF(D4=8,VLOOKUP(M4,TabLiza!$CI$5:$CS$75,11),IF(D4=7,VLOOKUP(M4,TabLiza!$CI$5:$CS$75,11),IF(D4>17,"")))))))))))))) -> 18 | O4: 0 | P4: =IF(D4<7,"",IF(O4="","",IF(D4=17,VLOOKUP(O4,TabLiza!$EN$5:$EO$75,2),IF(D4=16,VLOOKUP(O4,TabLiza!$EM$5:$EO$75,3),IF(D4=15,VLOOKUP(O4,TabLiza!$EL$5:$EO$75,4),IF(D4=14,VLOOKUP(O4,TabLiza!$EK$5:$EO$75,5),IF(D4=13,VLOOKUP(O4,TabLiza!$EJ$5:$EO$75,6),IF(D4=12,VLOOKUP(O4,TabLiza!$EI$5:$EO$75,7),IF(D4=11,VLOOKUP(O4,TabLiza!$EH$5:$EO$75,8),IF(D4=10,VLOOKUP(O4,TabLiza!$EG$5:$EO$75,9),IF(D4=9,VLOOKUP(O4,TabLiza!$EF$5:$EO$75,10),IF(D4=8,VLOOKUP(O4,TabLiza!$EE$5:$EO$75,11),IF(D4=7,VLOOKUP(O4,TabLiza!$EE$5:$EO$75,11),IF(D4>17,"")))))))))))))) -> 6 | R4: =IF(D4>15,"",IF(Q4="","",IF(D4=15,VLOOKUP(Q4,TabLiza!$AM$5:$AP$75,4),IF(D4=14,VLOOKUP(Q4,TabLiza!$AL$5:$AP$75,5),IF(D4=13,VLOOKUP(Q4,TabLiza!$AK$5:$AP$75,6),IF(D4<13,"")))))) ->  | T4: =IF(D4<16,"",IF(S4="","",IF(D4=17,VLOOKUP(S4,TabLiza!$AO$5:$AP$75,2),IF(D4=16,VLOOKUP(S4,TabLiza!$AN$5:$AP$75,3),IF(D4>17,""))))) ->  | U4: =SUM(F4,H4,J4,L4,N4,P4,R4,T4) -> 92 | V4: =IF(U4=0,"",(RANK(U4,$U$4:$U$11,0))) -> 7
A5: =A4+1 -> 2 | B5: Бурый Сергей | C5: =C4+1 -> 2 | D5: 13 | E5: 00:03:58 | F5: =IF(D5<7,"",IF(E5="","",IF(D5=17,VLOOKUP(E5,TabLiza!$J$5:$K$75,2),IF(D5=16,VLOOKUP(E5,TabLiza!$I$5:$K$75,3),IF(D5=15,VLOOKUP(E5,TabLiza!$H$5:$K$75,4),IF(D5=14,VLOOKUP(E5,TabLiza!$G$5:$K$75,5),IF(D5=13,VLOOKUP(E5,TabLiza!$F$5:$K$75,6),IF(D5=12,VLOOKUP(E5,TabLiza!$E$5:$K$75,7),IF(D5=11,VLOOKUP(E5,TabLiza!$D$5:K$75,8),IF(D5=10,VLOOKUP(E5,TabLiza!$C$5:$K$75,9),IF(D5=9,VLOOKUP(E5,TabLiza!$B$5:$K$75,10),IF(D5=8,VLOOKUP(E5,TabLiza!$A$5:$K$75,11),IF(D5=7,VLOOKUP(E5,TabLiza!$A$5:$K$75,11),IF(D5>17,"")))))))))))))) -> 34 | G5: 5.59 | H5: =IF(D5<7,"",IF(G5="","",IF(D5=17,VLOOKUP(G5,TabLiza!$AH$5:$AI$75,2),IF(D5=16,VLOOKUP(G5,TabLiza!$AG$5:$AI$75,3),IF(D5=15,VLOOKUP(G5,TabLiza!$AF$5:$AI$75,4),IF(D5=14,VLOOKUP(G5,TabLiza!$AE$5:$AI$75,5),IF(D5=13,VLOOKUP(G5,TabLiza!$AD$5:$AI$75,6),IF(D5=12,VLOOKUP(G5,TabLiza!$AC$5:$AI$75,7),IF(D5=11,VLOOKUP(G5,TabLiza!$AB$5:$AI$75,8),IF(D5=10,VLOOKUP(G5,TabLiza!$AA$5:$AI$75,9),IF(D5=9,VLOOKUP(G5,TabLiza!$Z$5:$AI$75,10),IF(D5=8,VLOOKUP(G5,TabLiza!$Y$5:$AI$75,11),IF(D5=7,VLOOKUP(G5,TabLiza!$Y$5:$AI$75,11),IF(D5>12,"")))))))))))))) -> 24 | I5: 11 | J5: =IF(D5<7,"",IF(I5="","",IF(D5=17,VLOOKUP(I5,TabLiza!$BT$5:$BU$75,2),IF(D5=16,VLOOKUP(I5,TabLiza!$BS$5:$BU$75,3),IF(D5=15,VLOOKUP(I5,TabLiza!$BR$5:$BU$75,4),IF(D5=14,VLOOKUP(I5,TabLiza!$BQ$5:$BU$75,5),IF(D5=13,VLOOKUP(I5,TabLiza!$BP$5:$BU$75,6),IF(D5=12,VLOOKUP(I5,TabLiza!$BO$5:$BU$75,7),IF(D5=11,VLOOKUP(I5,TabLiza!$BN$5:$BU$75,8),IF(D5=10,VLOOKUP(I5,TabLiza!$BM$5:$BU$75,9),IF(D5=9,VLOOKUP(I5,TabLiza!$BL$5:$BU$75,10),IF(D5=8,VLOOKUP(I5,TabLiza!$BK$5:$BU$75,11),IF(D5=7,VLOOKUP(I5,TabLiza!$BK$5:$BU$75,11),IF(D5>17,"")))))))))))))) -> 40 | K5: 29 | L5: =IF(D5<7,"",IF(K5="","",IF(D5=17,VLOOKUP(K5,TabLiza!$DP$5:$DQ$75,2),IF(D5=16,VLOOKUP(K5,TabLiza!$DO$5:$DQ$75,3),IF(D5=15,VLOOKUP(K5,TabLiza!$DN$5:$DQ$75,4),IF(D5=14,VLOOKUP(K5,TabLiza!$DM$5:$DQ$75,5),IF(D5=13,VLOOKUP(K5,TabLiza!$DL$5:$DQ$75,6),IF(D5=12,VLOOKUP(K5,TabLiza!$DK$5:$DQ$75,7),IF(D5=11,VLOOKUP(K5,TabLiza!$DJ$5:$DQ$75,8),IF(D5=10,VLOOKUP(K5,TabLiza!$DI$5:$DQ$75,9),IF(D5=9,VLOOKUP(K5,TabLiza!$DH$5:$DQ$75,10),IF(D5=8,VLOOKUP(K5,TabLiza!$DG$5:$DQ$75,11),IF(D5=7,VLOOKUP(K5,TabLiza!$DG$5:$DQ$75,11),IF(D5>17,"")))))))))))))) -> 32 | M5: 180 | N5: =IF(D5<7,"",IF(M5="","",IF(D5=17,VLOOKUP(M5,TabLiza!$CR$5:$CS$75,2),IF(D5=16,VLOOKUP(M5,TabLiza!$CQ$5:$CS$75,3),IF(D5=15,VLOOKUP(M5,TabLiza!$CP$5:$CS$75,4),IF(D5=14,VLOOKUP(M5,TabLiza!$CO$5:$CS$75,5),IF(D5=13,VLOOKUP(M5,TabLiza!$CN$5:$CS$75,6),IF(D5=12,VLOOKUP(M5,TabLiza!$CM$5:$CS$75,7),IF(D5=11,VLOOKUP(M5,TabLiza!$CL$5:$CS$75,8),IF(D5=10,VLOOKUP(M5,TabLiza!$CK$5:$CS$75,9),IF(D5=9,VLOOKUP(M5,TabLiza!$CJ$5:$CS$75,10),IF(D5=8,VLOOKUP(M5,TabLiza!$CI$5:$CS$75,11),IF(D5=7,VLOOKUP(M5,TabLiza!$CI$5:$CS$75,11),IF(D5>17,"")))))))))))))) -> 18 | O5: 2 | P5: =IF(D5<7,"",IF(O5="","",IF(D5=17,VLOOKUP(O5,TabLiza!$EN$5:$EO$75,2),IF(D5=16,VLOOKUP(O5,TabLiza!$EM$5:$EO$75,3),IF(D5=15,VLOOKUP(O5,TabLiza!$EL$5:$EO$75,4),IF(D5=14,VLOOKUP(O5,TabLiza!$EK$5:$EO$75,5),IF(D5=13,VLOOKUP(O5,TabLiza!$EJ$5:$EO$75,6),IF(D5=12,VLOOKUP(O5,TabLiza!$EI$5:$EO$75,7),IF(D5=11,VLOOKUP(O5,TabLiza!$EH$5:$EO$75,8),IF(D5=10,VLOOKUP(O5,TabLiza!$EG$5:$EO$75,9),IF(D5=9,VLOOKUP(O5,TabLiza!$EF$5:$EO$75,10),IF(D5=8,VLOOKUP(O5,TabLiza!$EE$5:$EO$75,11),IF(D5=7,VLOOKUP(O5,TabLiza!$EE$5:$EO$75,11),IF(D5>17,"")))))))))))))) -> 8 | R5: =IF(D5>15,"",IF(Q5="","",IF(D5=15,VLOOKUP(Q5,TabLiza!$AM$5:$AP$75,4),IF(D5=14,VLOOKUP(Q5,TabLiza!$AL$5:$AP$75,5),IF(D5=13,VLOOKUP(Q5,TabLiza!$AK$5:$AP$75,6),IF(D5<13,"")))))) ->  | T5: =IF(D5<16,"",IF(S5="","",IF(D5=17,VLOOKUP(S5,TabLiza!$AO$5:$AP$75,2),IF(D5=16,VLOOKUP(S5,TabLiza!$AN$5:$AP$75,3),IF(D5>17,""))))) ->  | U5: =SUM(F5,H5,J5,L5,N5,P5,R5,T5) -> 156 | V5: 2
A6: =A5+1 -> 3 | B6: Козлов Владимир | C6: =C5+1 -> 3 | D6: 12 | E6: 00:04:03 | F6: =IF(D6<7,"",IF(E6="","",IF(D6=17,VLOOKUP(E6,TabLiza!$J$5:$K$75,2),IF(D6=16,VLOOKUP(E6,TabLiza!$I$5:$K$75,3),IF(D6=15,VLOOKUP(E6,TabLiza!$H$5:$K$75,4),IF(D6=14,VLOOKUP(E6,TabLiza!$G$5:$K$75,5),IF(D6=13,VLOOKUP(E6,TabLiza!$F$5:$K$75,6),IF(D6=12,VLOOKUP(E6,TabLiza!$E$5:$K$75,7),IF(D6=11,VLOOKUP(E6,TabLiza!$D$5:K$75,8),IF(D6=10,VLOOKUP(E6,TabLiza!$C$5:$K$75,9),IF(D6=9,VLOOKUP(E6,TabLiza!$B$5:$K$75,10),IF(D6=8,VLOOKUP(E6,TabLiza!$A$5:$K$75,11),IF(D6=7,VLOOKUP(E6,TabLiza!$A$5:$K$75,11),IF(D6>17,"")))))))))))))) -> 39 | G6: 6.1 | H6: =IF(D6<7,"",IF(G6="","",IF(D6=17,VLOOKUP(G6,TabLiza!$AH$5:$AI$75,2),IF(D6=16,VLOOKUP(G6,TabLiza!$AG$5:$AI$75,3),IF(D6=15,VLOOKUP(G6,TabLiza!$AF$5:$AI$75,4),IF(D6=14,VLOOKUP(G6,TabLiza!$AE$5:$AI$75,5),IF(D6=13,VLOOKUP(G6,TabLiza!$AD$5:$AI$75,6),IF(D6=12,VLOOKUP(G6,TabLiza!$AC$5:$AI$75,7),IF(D6=11,VLOOKUP(G6,TabLiza!$AB$5:$AI$75,8),IF(D6=10,VLOOKUP(G6,TabLiza!$AA$5:$AI$75,9),IF(D6=9,VLOOKUP(G6,TabLiza!$Z$5:$AI$75,10),IF(D6=8,VLOOKUP(G6,TabLiza!$Y$5:$AI$75,11),IF(D6=7,VLOOKUP(G6,TabLiza!$Y$5:$AI$75,11),IF(D6>12,"")))))))))))))) -> 11 | I6: 3 | J6: =IF(D6<7,"",IF(I6="","",IF(D6=17,VLOOKUP(I6,TabLiza!$BT$5:$BU$75,2),IF(D6=16,VLOOKUP(I6,TabLiza!$BS$5:$BU$75,3),IF(D6=15,VLOOKUP(I6,TabLiza!$BR$5:$BU$75,4),IF(D6=14,VLOOKUP(I6,TabLiza!$BQ$5:$BU$75,5),IF(D6=13,VLOOKUP(I6,TabLiza!$BP$5:$BU$75,6),IF(D6=12,VLOOKUP(I6,TabLiza!$BO$5:$BU$75,7),IF(D6=11,VLOOKUP(I6,TabLiza!$BN$5:$BU$75,8),IF(D6=10,VLOOKUP(I6,TabLiza!$BM$5:$BU$75,9),IF(D6=9,VLOOKUP(I6,TabLiza!$BL$5:$BU$75,10),IF(D6=8,VLOOKUP(I6,TabLiza!$BK$5:$BU$75,11),IF(D6=7,VLOOKUP(I6,TabLiza!$BK$5:$BU$75,11),IF(D6>17,"")))))))))))))) -> 13 | K6: 31 | L6: =IF(D6<7,"",IF(K6="","",IF(D6=17,VLOOKUP(K6,TabLiza!$DP$5:$DQ$75,2),IF(D6=16,VLOOKUP(K6,TabLiza!$DO$5:$DQ$75,3),IF(D6=15,VLOOKUP(K6,TabLiza!$DN$5:$DQ$75,4),IF(D6=14,VLOOKUP(K6,TabLiza!$DM$5:$DQ$75,5),IF(D6=13,VLOOKUP(K6,TabLiza!$DL$5:$DQ$75,6),IF(D6=12,VLOOKUP(K6,TabLiza!$DK$5:$DQ$75,7),IF(D6=11,VLOOKUP(K6,TabLiza!$DJ$5:$DQ$75,8),IF(D6=10,VLOOKUP(K6,TabLiza!$DI$5:$DQ$75,9),IF(D6=9,VLOOKUP(K6,TabLiza!$DH$5:$DQ$75,10),IF(D6=8,VLOOKUP(K6,TabLiza!$DG$5:$DQ$75,11),IF(D6=7,VLOOKUP(K6,TabLiza!$DG$5:$DQ$75,11),IF(D6>17,"")))))))))))))) -> 44 | M6: 174 | N6: =IF(D6<7,"",IF(M6="","",IF(D6=17,VLOOKUP(M6,TabLiza!$CR$5:$CS$75,2),IF(D6=16,VLOOKUP(M6,TabLiza!$CQ$5:$CS$75,3),IF(D6=15,VLOOKUP(M6,TabLiza!$CP$5:$CS$75,4),IF(D6=14,VLOOKUP(M6,TabLiza!$CO$5:$CS$75,5),IF(D6=13,VLOOKUP(M6,TabLiza!$CN$5:$CS$75,6),IF(D6=12,VLOOKUP(M6,TabLiza!$CM$5:$CS$75,7),IF(D6=11,VLOOKUP(M6,TabLiza!$CL$5:$CS$75,8),IF(D6=10,VLOOKUP(M6,TabLiza!$CK$5:$CS$75,9),IF(D6=9,VLOOKUP(M6,TabLiza!$CJ$5:$CS$75,10),IF(D6=8,VLOOKUP(M6,TabLiza!$CI$5:$CS$75,11),IF(D6=7,VLOOKUP(M6,TabLiza!$CI$5:$CS$75,11),IF(D6>17,"")))))))))))))) -> 22 | O6: 2 | P6: =IF(D6<7,"",IF(O6="","",IF(D6=17,VLOOKUP(O6,TabLiza!$EN$5:$EO$75,2),IF(D6=16,VLOOKUP(O6,TabLiza!$EM$5:$EO$75,3),IF(D6=15,VLOOKUP(O6,TabLiza!$EL$5:$EO$75,4),IF(D6=14,VLOOKUP(O6,TabLiza!$EK$5:$EO$75,5),IF(D6=13,VLOOKUP(O6,TabLiza!$EJ$5:$EO$75,6),IF(D6=12,VLOOKUP(O6,TabLiza!$EI$5:$EO$75,7),IF(D6=11,VLOOKUP(O6,TabLiza!$EH$5:$EO$75,8),IF(D6=10,VLOOKUP(O6,TabLiza!$EG$5:$EO$75,9),IF(D6=9,VLOOKUP(O6,TabLiza!$EF$5:$EO$75,10),IF(D6=8,VLOOKUP(O6,TabLiza!$EE$5:$EO$75,11),IF(D6=7,VLOOKUP(O6,TabLiza!$EE$5:$EO$75,11),IF(D6>17,"")))))))))))))) -> 10 | R6: =IF(D6>15,"",IF(Q6="","",IF(D6=15,VLOOKUP(Q6,TabLiza!$AM$5:$AP$75,4),IF(D6=14,VLOOKUP(Q6,TabLiza!$AL$5:$AP$75,5),IF(D6=13,VLOOKUP(Q6,TabLiza!$AK$5:$AP$75,6),IF(D6<13,"")))))) ->  | T6: =IF(D6<16,"",IF(S6="","",IF(D6=17,VLOOKUP(S6,TabLiza!$AO$5:$AP$75,2),IF(D6=16,VLOOKUP(S6,TabLiza!$AN$5:$AP$75,3),IF(D6>17,""))))) ->  | U6: 139 | V6: 3
A7: 4 | B7: Куликов Алексей | C7: 4 | D7: 13 | E7: 00:04:18 | F7: =IF(D7<7,"",IF(E7="","",IF(D7=17,VLOOKUP(E7,TabLiza!$J$5:$K$75,2),IF(D7=16,VLOOKUP(E7,TabLiza!$I$5:$K$75,3),IF(D7=15,VLOOKUP(E7,TabLiza!$H$5:$K$75,4),IF(D7=14,VLOOKUP(E7,TabLiza!$G$5:$K$75,5),IF(D7=13,VLOOKUP(E7,TabLiza!$F$5:$K$75,6),IF(D7=12,VLOOKUP(E7,TabLiza!$E$5:$K$75,7),IF(D7=11,VLOOKUP(E7,TabLiza!$D$5:K$75,8),IF(D7=10,VLOOKUP(E7,TabLiza!$C$5:$K$75,9),IF(D7=9,VLOOKUP(E7,TabLiza!$B$5:$K$75,10),IF(D7=8,VLOOKUP(E7,TabLiza!$A$5:$K$75,11),IF(D7=7,VLOOKUP(E7,TabLiza!$A$5:$K$75,11),IF(D7>17,"")))))))))))))) -> 26 | G7: 6.04 | H7: =IF(D7<7,"",IF(G7="","",IF(D7=17,VLOOKUP(G7,TabLiza!$AH$5:$AI$75,2),IF(D7=16,VLOOKUP(G7,TabLiza!$AG$5:$AI$75,3),IF(D7=15,VLOOKUP(G7,TabLiza!$AF$5:$AI$75,4),IF(D7=14,VLOOKUP(G7,TabLiza!$AE$5:$AI$75,5),IF(D7=13,VLOOKUP(G7,TabLiza!$AD$5:$AI$75,6),IF(D7=12,VLOOKUP(G7,TabLiza!$AC$5:$AI$75,7),IF(D7=11,VLOOKUP(G7,TabLiza!$AB$5:$AI$75,8),IF(D7=10,VLOOKUP(G7,TabLiza!$AA$5:$AI$75,9),IF(D7=9,VLOOKUP(G7,TabLiza!$Z$5:$AI$75,10),IF(D7=8,VLOOKUP(G7,TabLiza!$Y$5:$AI$75,11),IF(D7=7,VLOOKUP(G7,TabLiza!$Y$5:$AI$75,11),IF(D7>12,"")))))))))))))) -> 9 | I7: 11 | J7: =IF(D7<7,"",IF(I7="","",IF(D7=17,VLOOKUP(I7,TabLiza!$BT$5:$BU$75,2),IF(D7=16,VLOOKUP(I7,TabLiza!$BS$5:$BU$75,3),IF(D7=15,VLOOKUP(I7,TabLiza!$BR$5:$BU$75,4),IF(D7=14,VLOOKUP(I7,TabLiza!$BQ$5:$BU$75,5),IF(D7=13,VLOOKUP(I7,TabLiza!$BP$5:$BU$75,6),IF(D7=12,VLOOKUP(I7,TabLiza!$BO$5:$BU$75,7),IF(D7=11,VLOOKUP(I7,TabLiza!$BN$5:$BU$75,8),IF(D7=10,VLOOKUP(I7,TabLiza!$BM$5:$BU$75,9),IF(D7=9,VLOOKUP(I7,TabLiza!$BL$5:$BU$75,10),IF(D7=8,VLOOKUP(I7,TabLiza!$BK$5:$BU$75,11),IF(D7=7,VLOOKUP(I7,TabLiza!$BK$5:$BU$75,11),IF(D7>17,"")))))))))))))) -> 40 | K7: 32 | L7: =IF(D7<7,"",IF(K7="","",IF(D7=17,VLOOKUP(K7,TabLiza!$DP$5:$DQ$75,2),IF(D7=16,VLOOKUP(K7,TabLiza!$DO$5:$DQ$75,3),IF(D7=15,VLOOKUP(K7,TabLiza!$DN$5:$DQ$75,4),IF(D7=14,VLOOKUP(K7,TabLiza!$DM$5:$DQ$75,5),IF(D7=13,VLOOKUP(K7,TabLiza!$DL$5:$DQ$75,6),IF(D7=12,VLOOKUP(K7,TabLiza!$DK$5:$DQ$75,7),IF(D7=11,VLOOKUP(K7,TabLiza!$DJ$5:$DQ$75,8),IF(D7=10,VLOOKUP(K7,TabLiza!$DI$5:$DQ$75,9),IF(D7=9,VLOOKUP(K7,TabLiza!$DH$5:$DQ$75,10),IF(D7=8,VLOOKUP(K7,TabLiza!$DG$5:$DQ$75,11),IF(D7=7,VLOOKUP(K7,TabLiza!$DG$5:$DQ$75,11),IF(D7>17,"")))))))))))))) -> 38 | M7: 166 | N7: =IF(D7<7,"",IF(M7="","",IF(D7=17,VLOOKUP(M7,TabLiza!$CR$5:$CS$75,2),IF(D7=16,VLOOKUP(M7,TabLiza!$CQ$5:$CS$75,3),IF(D7=15,VLOOKUP(M7,TabLiza!$CP$5:$CS$75,4),IF(D7=14,VLOOKUP(M7,TabLiza!$CO$5:$CS$75,5),IF(D7=13,VLOOKUP(M7,TabLiza!$CN$5:$CS$75,6),IF(D7=12,VLOOKUP(M7,TabLiza!$CM$5:$CS$75,7),IF(D7=11,VLOOKUP(M7,TabLiza!$CL$5:$CS$75,8),IF(D7=10,VLOOKUP(M7,TabLiza!$CK$5:$CS$75,9),IF(D7=9,VLOOKUP(M7,TabLiza!$CJ$5:$CS$75,10),IF(D7=8,VLOOKUP(M7,TabLiza!$CI$5:$CS$75,11),IF(D7=7,VLOOKUP(M7,TabLiza!$CI$5:$CS$75,11),IF(D7>17,"")))))))))))))) -> 12 | O7: 0 | P7: =IF(D7<7,"",IF(O7="","",IF(D7=17,VLOOKUP(O7,TabLiza!$EN$5:$EO$75,2),IF(D7=16,VLOOKUP(O7,TabLiza!$EM$5:$EO$75,3),IF(D7=15,VLOOKUP(O7,TabLiza!$EL$5:$EO$75,4),IF(D7=14,VLOOKUP(O7,TabLiza!$EK$5:$EO$75,5),IF(D7=13,VLOOKUP(O7,TabLiza!$EJ$5:$EO$75,6),IF(D7=12,VLOOKUP(O7,TabLiza!$EI$5:$EO$75,7),IF(D7=11,VLOOKUP(O7,TabLiza!$EH$5:$EO$75,8),IF(D7=10,VLOOKUP(O7,TabLiza!$EG$5:$EO$75,9),IF(D7=9,VLOOKUP(O7,TabLiza!$EF$5:$EO$75,10),IF(D7=8,VLOOKUP(O7,TabLiza!$EE$5:$EO$75,11),IF(D7=7,VLOOKUP(O7,TabLiza!$EE$5:$EO$75,11),IF(D7>17,"")))))))))))))) -> 6 | R7: =IF(D7>15,"",IF(Q7="","",IF(D7=15,VLOOKUP(Q7,TabLiza!$AM$5:$AP$75,4),IF(D7=14,VLOOKUP(Q7,TabLiza!$AL$5:$AP$75,5),IF(D7=13,VLOOKUP(Q7,TabLiza!$AK$5:$AP$75,6),IF(D7<13,"")))))) ->  | T7: =IF(D7<16,"",IF(S7="","",IF(D7=17,VLOOKUP(S7,TabLiza!$AO$5:$AP$75,2),IF(D7=16,VLOOKUP(S7,TabLiza!$AN$5:$AP$75,3),IF(D7>17,""))))) ->  | U7: 131 | V7: 4
A8: 5 | B8: Петров Евгений | C8: 5 | D8: 12 | F8: =IF(D8<7,"",IF(E8="","",IF(D8=17,VLOOKUP(E8,TabLiza!$J$5:$K$75,2),IF(D8=16,VLOOKUP(E8,TabLiza!$I$5:$K$75,3),IF(D8=15,VLOOKUP(E8,TabLiza!$H$5:$K$75,4),IF(D8=14,VLOOKUP(E8,TabLiza!$G$5:$K$75,5),IF(D8=13,VLOOKUP(E8,TabLiza!$F$5:$K$75,6),IF(D8=12,VLOOKUP(E8,TabLiza!$E$5:$K$75,7),IF(D8=11,VLOOKUP(E8,TabLiza!$D$5:K$75,8),IF(D8=10,VLOOKUP(E8,TabLiza!$C$5:$K$75,9),IF(D8=9,VLOOKUP(E8,TabLiza!$B$5:$K$75,10),IF(D8=8,VLOOKUP(E8,TabLiza!$A$5:$K$75,11),IF(D8=7,VLOOKUP(E8,TabLiza!$A$5:$K$75,11),IF(D8>17,"")))))))))))))) ->  | H8: =IF(D8<7,"",IF(G8="","",IF(D8=17,VLOOKUP(G8,TabLiza!$AH$5:$AI$75,2),IF(D8=16,VLOOKUP(G8,TabLiza!$AG$5:$AI$75,3),IF(D8=15,VLOOKUP(G8,TabLiza!$AF$5:$AI$75,4),IF(D8=14,VLOOKUP(G8,TabLiza!$AE$5:$AI$75,5),IF(D8=13,VLOOKUP(G8,TabLiza!$AD$5:$AI$75,6),IF(D8=12,VLOOKUP(G8,TabLiza!$AC$5:$AI$75,7),IF(D8=11,VLOOKUP(G8,TabLiza!$AB$5:$AI$75,8),IF(D8=10,VLOOKUP(G8,TabLiza!$AA$5:$AI$75,9),IF(D8=9,VLOOKUP(G8,TabLiza!$Z$5:$AI$75,10),IF(D8=8,VLOOKUP(G8,TabLiza!$Y$5:$AI$75,11),IF(D8=7,VLOOKUP(G8,TabLiza!$Y$5:$AI$75,11),IF(D8>12,"")))))))))))))) ->  | J8: =IF(D8<7,"",IF(I8="","",IF(D8=17,VLOOKUP(I8,TabLiza!$BT$5:$BU$75,2),IF(D8=16,VLOOKUP(I8,TabLiza!$BS$5:$BU$75,3),IF(D8=15,VLOOKUP(I8,TabLiza!$BR$5:$BU$75,4),IF(D8=14,VLOOKUP(I8,TabLiza!$BQ$5:$BU$75,5),IF(D8=13,VLOOKUP(I8,TabLiza!$BP$5:$BU$75,6),IF(D8=12,VLOOKUP(I8,TabLiza!$BO$5:$BU$75,7),IF(D8=11,VLOOKUP(I8,TabLiza!$BN$5:$BU$75,8),IF(D8=10,VLOOKUP(I8,TabLiza!$BM$5:$BU$75,9),IF(D8=9,VLOOKUP(I8,TabLiza!$BL$5:$BU$75,10),IF(D8=8,VLOOKUP(I8,TabLiza!$BK$5:$BU$75,11),IF(D8=7,VLOOKUP(I8,TabLiza!$BK$5:$BU$75,11),IF(D8>17,"")))))))))))))) ->  | L8: =IF(D8<7,"",IF(K8="","",IF(D8=17,VLOOKUP(K8,TabLiza!$DP$5:$DQ$75,2),IF(D8=16,VLOOKUP(K8,TabLiza!$DO$5:$DQ$75,3),IF(D8=15,VLOOKUP(K8,TabLiza!$DN$5:$DQ$75,4),IF(D8=14,VLOOKUP(K8,TabLiza!$DM$5:$DQ$75,5),IF(D8=13,VLOOKUP(K8,TabLiza!$DL$5:$DQ$75,6),IF(D8=12,VLOOKUP(K8,TabLiza!$DK$5:$DQ$75,7),IF(D8=11,VLOOKUP(K8,TabLiza!$DJ$5:$DQ$75,8),IF(D8=10,VLOOKUP(K8,TabLiza!$DI$5:$DQ$75,9),IF(D8=9,VLOOKUP(K8,TabLiza!$DH$5:$DQ$75,10),IF(D8=8,VLOOKUP(K8,TabLiza!$DG$5:$DQ$75,11),IF(D8=7,VLOOKUP(K8,TabLiza!$DG$5:$DQ$75,11),IF(D8>17,"")))))))))))))) ->  | N8: =IF(D8<7,"",IF(M8="","",IF(D8=17,VLOOKUP(M8,TabLiza!$CR$5:$CS$75,2),IF(D8=16,VLOOKUP(M8,TabLiza!$CQ$5:$CS$75,3),IF(D8=15,VLOOKUP(M8,TabLiza!$CP$5:$CS$75,4),IF(D8=14,VLOOKUP(M8,TabLiza!$CO$5:$CS$75,5),IF(D8=13,VLOOKUP(M8,TabLiza!$CN$5:$CS$75,6),IF(D8=12,VLOOKUP(M8,TabLiza!$CM$5:$CS$75,7),IF(D8=11,VLOOKUP(M8,TabLiza!$CL$5:$CS$75,8),IF(D8=10,VLOOKUP(M8,TabLiza!$CK$5:$CS$75,9),IF(D8=9,VLOOKUP(M8,TabLiza!$CJ$5:$CS$75,10),IF(D8=8,VLOOKUP(M8,TabLiza!$CI$5:$CS$75,11),IF(D8=7,VLOOKUP(M8,TabLiza!$CI$5:$CS$75,11),IF(D8>17,"")))))))))))))) ->  | P8: =IF(D8<7,"",IF(O8="","",IF(D8=17,VLOOKUP(O8,TabLiza!$EN$5:$EO$75,2),IF(D8=16,VLOOKUP(O8,TabLiza!$EM$5:$EO$75,3),IF(D8=15,VLOOKUP(O8,TabLiza!$EL$5:$EO$75,4),IF(D8=14,VLOOKUP(O8,TabLiza!$EK$5:$EO$75,5),IF(D8=13,VLOOKUP(O8,TabLiza!$EJ$5:$EO$75,6),IF(D8=12,VLOOKUP(O8,TabLiza!$EI$5:$EO$75,7),IF(D8=11,VLOOKUP(O8,TabLiza!$EH$5:$EO$75,8),IF(D8=10,VLOOKUP(O8,TabLiza!$EG$5:$EO$75,9),IF(D8=9,VLOOKUP(O8,TabLiza!$EF$5:$EO$75,10),IF(D8=8,VLOOKUP(O8,TabLiza!$EE$5:$EO$75,11),IF(D8=7,VLOOKUP(O8,TabLiza!$EE$5:$EO$75,11),IF(D8>17,"")))))))))))))) ->  | R8: =IF(D8>15,"",IF(Q8="","",IF(D8=15,VLOOKUP(Q8,TabLiza!$AM$5:$AP$75,4),IF(D8=14,VLOOKUP(Q8,TabLiza!$AL$5:$AP$75,5),IF(D8=13,VLOOKUP(Q8,TabLiza!$AK$5:$AP$75,6),IF(D8<13,"")))))) ->  | T8: =IF(D8<16,"",IF(S8="","",IF(D8=17,VLOOKUP(S8,TabLiza!$AO$5:$AP$75,2),IF(D8=16,VLOOKUP(S8,TabLiza!$AN$5:$AP$75,3),IF(D8>17,""))))) ->  | U8: 0
A9: 6 | B9: Балакин Степан | C9: 6 | D9: 11 | E9: 00:04:34 | F9: =IF(D9<7,"",IF(E9="","",IF(D9=17,VLOOKUP(E9,TabLiza!$J$5:$K$75,2),IF(D9=16,VLOOKUP(E9,TabLiza!$I$5:$K$75,3),IF(D9=15,VLOOKUP(E9,TabLiza!$H$5:$K$75,4),IF(D9=14,VLOOKUP(E9,TabLiza!$G$5:$K$75,5),IF(D9=13,VLOOKUP(E9,TabLiza!$F$5:$K$75,6),IF(D9=12,VLOOKUP(E9,TabLiza!$E$5:$K$75,7),IF(D9=11,VLOOKUP(E9,TabLiza!$D$5:K$75,8),IF(D9=10,VLOOKUP(E9,TabLiza!$C$5:$K$75,9),IF(D9=9,VLOOKUP(E9,TabLiza!$B$5:$K$75,10),IF(D9=8,VLOOKUP(E9,TabLiza!$A$5:$K$75,11),IF(D9=7,VLOOKUP(E9,TabLiza!$A$5:$K$75,11),IF(D9>17,"")))))))))))))) -> 32 | G9: 5.43 | H9: =IF(D9<7,"",IF(G9="","",IF(D9=17,VLOOKUP(G9,TabLiza!$AH$5:$AI$75,2),IF(D9=16,VLOOKUP(G9,TabLiza!$AG$5:$AI$75,3),IF(D9=15,VLOOKUP(G9,TabLiza!$AF$5:$AI$75,4),IF(D9=14,VLOOKUP(G9,TabLiza!$AE$5:$AI$75,5),IF(D9=13,VLOOKUP(G9,TabLiza!$AD$5:$AI$75,6),IF(D9=12,VLOOKUP(G9,TabLiza!$AC$5:$AI$75,7),IF(D9=11,VLOOKUP(G9,TabLiza!$AB$5:$AI$75,8),IF(D9=10,VLOOKUP(G9,TabLiza!$AA$5:$AI$75,9),IF(D9=9,VLOOKUP(G9,TabLiza!$Z$5:$AI$75,10),IF(D9=8,VLOOKUP(G9,TabLiza!$Y$5:$AI$75,11),IF(D9=7,VLOOKUP(G9,TabLiza!$Y$5:$AI$75,11),IF(D9>12,"")))))))))))))) -> 45 | I9: 4 | J9: =IF(D9<7,"",IF(I9="","",IF(D9=17,VLOOKUP(I9,TabLiza!$BT$5:$BU$75,2),IF(D9=16,VLOOKUP(I9,TabLiza!$BS$5:$BU$75,3),IF(D9=15,VLOOKUP(I9,TabLiza!$BR$5:$BU$75,4),IF(D9=14,VLOOKUP(I9,TabLiza!$BQ$5:$BU$75,5),IF(D9=13,VLOOKUP(I9,TabLiza!$BP$5:$BU$75,6),IF(D9=12,VLOOKUP(I9,TabLiza!$BO$5:$BU$75,7),IF(D9=11,VLOOKUP(I9,TabLiza!$BN$5:$BU$75,8),IF(D9=10,VLOOKUP(I9,TabLiza!$BM$5:$BU$75,9),IF(D9=9,VLOOKUP(I9,TabLiza!$BL$5:$BU$75,10),IF(D9=8,VLOOKUP(I9,TabLiza!$BK$5:$BU$75,11),IF(D9=7,VLOOKUP(I9,TabLiza!$BK$5:$BU$75,11),IF(D9>17,"")))))))))))))) -> 25 | K9: 25 | L9: =IF(D9<7,"",IF(K9="","",IF(D9=17,VLOOKUP(K9,TabLiza!$DP$5:$DQ$75,2),IF(D9=16,VLOOKUP(K9,TabLiza!$DO$5:$DQ$75,3),IF(D9=15,VLOOKUP(K9,TabLiza!$DN$5:$DQ$75,4),IF(D9=14,VLOOKUP(K9,TabLiza!$DM$5:$DQ$75,5),IF(D9=13,VLOOKUP(K9,TabLiza!$DL$5:$DQ$75,6),IF(D9=12,VLOOKUP(K9,TabLiza!$DK$5:$DQ$75,7),IF(D9=11,VLOOKUP(K9,TabLiza!$DJ$5:$DQ$75,8),IF(D9=10,VLOOKUP(K9,TabLiza!$DI$5:$DQ$75,9),IF(D9=9,VLOOKUP(K9,TabLiza!$DH$5:$DQ$75,10),IF(D9=8,VLOOKUP(K9,TabLiza!$DG$5:$DQ$75,11),IF(D9=7,VLOOKUP(K9,TabLiza!$DG$5:$DQ$75,11),IF(D9>17,"")))))))))))))) -> 39 | M9: 195 | N9: =IF(D9<7,"",IF(M9="","",IF(D9=17,VLOOKUP(M9,TabLiza!$CR$5:$CS$75,2),IF(D9=16,VLOOKUP(M9,TabLiza!$CQ$5:$CS$75,3),IF(D9=15,VLOOKUP(M9,TabLiza!$CP$5:$CS$75,4),IF(D9=14,VLOOKUP(M9,TabLiza!$CO$5:$CS$75,5),IF(D9=13,VLOOKUP(M9,TabLiza!$CN$5:$CS$75,6),IF(D9=12,VLOOKUP(M9,TabLiza!$CM$5:$CS$75,7),IF(D9=11,VLOOKUP(M9,TabLiza!$CL$5:$CS$75,8),IF(D9=10,VLOOKUP(M9,TabLiza!$CK$5:$CS$75,9),IF(D9=9,VLOOKUP(M9,TabLiza!$CJ$5:$CS$75,10),IF(D9=8,VLOOKUP(M9,TabLiza!$CI$5:$CS$75,11),IF(D9=7,VLOOKUP(M9,TabLiza!$CI$5:$CS$75,11),IF(D9>17,"")))))))))))))) -> 45 | O9: 3 | P9: =IF(D9<7,"",IF(O9="","",IF(D9=17,VLOOKUP(O9,TabLiza!$EN$5:$EO$75,2),IF(D9=16,VLOOKUP(O9,TabLiza!$EM$5:$EO$75,3),IF(D9=15,VLOOKUP(O9,TabLiza!$EL$5:$EO$75,4),IF(D9=14,VLOOKUP(O9,TabLiza!$EK$5:$EO$75,5),IF(D9=13,VLOOKUP(O9,TabLiza!$EJ$5:$EO$75,6),IF(D9=12,VLOOKUP(O9,TabLiza!$EI$5:$EO$75,7),IF(D9=11,VLOOKUP(O9,TabLiza!$EH$5:$EO$75,8),IF(D9=10,VLOOKUP(O9,TabLiza!$EG$5:$EO$75,9),IF(D9=9,VLOOKUP(O9,TabLiza!$EF$5:$EO$75,10),IF(D9=8,VLOOKUP(O9,TabLiza!$EE$5:$EO$75,11),IF(D9=7,VLOOKUP(O9,TabLiza!$EE$5:$EO$75,11),IF(D9>17,"")))))))))))))) -> 18 | R9: =IF(D9>15,"",IF(Q9="","",IF(D9=15,VLOOKUP(Q9,TabLiza!$AM$5:$AP$75,4),IF(D9=14,VLOOKUP(Q9,TabLiza!$AL$5:$AP$75,5),IF(D9=13,VLOOKUP(Q9,TabLiza!$AK$5:$AP$75,6),IF(D9<13,"")))))) ->  | T9: =IF(D9<16,"",IF(S9="","",IF(D9=17,VLOOKUP(S9,TabLiza!$AO$5:$AP$75,2),IF(D9=16,VLOOKUP(S9,TabLiza!$AN$5:$AP$75,3),IF(D9>17,""))))) ->  | U9: 204 | V9: 1
A10: 7 | B10: Бондаренко Ярослав | C10: 7 | D10: 12 | E10: 00:04:58 | F10: =IF(D10<7,"",IF(E10="","",IF(D10=17,VLOOKUP(E10,TabLiza!$J$5:$K$75,2),IF(D10=16,VLOOKUP(E10,TabLiza!$I$5:$K$75,3),IF(D10=15,VLOOKUP(E10,TabLiza!$H$5:$K$75,4),IF(D10=14,VLOOKUP(E10,TabLiza!$G$5:$K$75,5),IF(D10=13,VLOOKUP(E10,TabLiza!$F$5:$K$75,6),IF(D10=12,VLOOKUP(E10,TabLiza!$E$5:$K$75,7),IF(D10=11,VLOOKUP(E10,TabLiza!$D$5:K$75,8),IF(D10=10,VLOOKUP(E10,TabLiza!$C$5:$K$75,9),IF(D10=9,VLOOKUP(E10,TabLiza!$B$5:$K$75,10),IF(D10=8,VLOOKUP(E10,TabLiza!$A$5:$K$75,11),IF(D10=7,VLOOKUP(E10,TabLiza!$A$5:$K$75,11),IF(D10>17,"")))))))))))))) -> 18 | G10: 5.76 | H10: =IF(D10<7,"",IF(G10="","",IF(D10=17,VLOOKUP(G10,TabLiza!$AH$5:$AI$75,2),IF(D10=16,VLOOKUP(G10,TabLiza!$AG$5:$AI$75,3),IF(D10=15,VLOOKUP(G10,TabLiza!$AF$5:$AI$75,4),IF(D10=14,VLOOKUP(G10,TabLiza!$AE$5:$AI$75,5),IF(D10=13,VLOOKUP(G10,TabLiza!$AD$5:$AI$75,6),IF(D10=12,VLOOKUP(G10,TabLiza!$AC$5:$AI$75,7),IF(D10=11,VLOOKUP(G10,TabLiza!$AB$5:$AI$75,8),IF(D10=10,VLOOKUP(G10,TabLiza!$AA$5:$AI$75,9),IF(D10=9,VLOOKUP(G10,TabLiza!$Z$5:$AI$75,10),IF(D10=8,VLOOKUP(G10,TabLiza!$Y$5:$AI$75,11),IF(D10=7,VLOOKUP(G10,TabLiza!$Y$5:$AI$75,11),IF(D10>12,"")))))))))))))) -> 22 | I10: 0 | J10: =IF(D10<7,"",IF(I10="","",IF(D10=17,VLOOKUP(I10,TabLiza!$BT$5:$BU$75,2),IF(D10=16,VLOOKUP(I10,TabLiza!$BS$5:$BU$75,3),IF(D10=15,VLOOKUP(I10,TabLiza!$BR$5:$BU$75,4),IF(D10=14,VLOOKUP(I10,TabLiza!$BQ$5:$BU$75,5),IF(D10=13,VLOOKUP(I10,TabLiza!$BP$5:$BU$75,6),IF(D10=12,VLOOKUP(I10,TabLiza!$BO$5:$BU$75,7),IF(D10=11,VLOOKUP(I10,TabLiza!$BN$5:$BU$75,8),IF(D10=10,VLOOKUP(I10,TabLiza!$BM$5:$BU$75,9),IF(D10=9,VLOOKUP(I10,TabLiza!$BL$5:$BU$75,10),IF(D10=8,VLOOKUP(I10,TabLiza!$BK$5:$BU$75,11),IF(D10=7,VLOOKUP(I10,TabLiza!$BK$5:$BU$75,11),IF(D10>17,"")))))))))))))) -> 0 | K10: 28 | L10: =IF(D10<7,"",IF(K10="","",IF(D10=17,VLOOKUP(K10,TabLiza!$DP$5:$DQ$75,2),IF(D10=16,VLOOKUP(K10,TabLiza!$DO$5:$DQ$75,3),IF(D10=15,VLOOKUP(K10,TabLiza!$DN$5:$DQ$75,4),IF(D10=14,VLOOKUP(K10,TabLiza!$DM$5:$DQ$75,5),IF(D10=13,VLOOKUP(K10,TabLiza!$DL$5:$DQ$75,6),IF(D10=12,VLOOKUP(K10,TabLiza!$DK$5:$DQ$75,7),IF(D10=11,VLOOKUP(K10,TabLiza!$DJ$5:$DQ$75,8),IF(D10=10,VLOOKUP(K10,TabLiza!$DI$5:$DQ$75,9),IF(D10=9,VLOOKUP(K10,TabLiza!$DH$5:$DQ$75,10),IF(D10=8,VLOOKUP(K10,TabLiza!$DG$5:$DQ$75,11),IF(D10=7,VLOOKUP(K10,TabLiza!$DG$5:$DQ$75,11),IF(D10>17,"")))))))))))))) -> 38 | M10: 195 | N10: =IF(D10<7,"",IF(M10="","",IF(D10=17,VLOOKUP(M10,TabLiza!$CR$5:$CS$75,2),IF(D10=16,VLOOKUP(M10,TabLiza!$CQ$5:$CS$75,3),IF(D10=15,VLOOKUP(M10,TabLiza!$CP$5:$CS$75,4),IF(D10=14,VLOOKUP(M10,TabLiza!$CO$5:$CS$75,5),IF(D10=13,VLOOKUP(M10,TabLiza!$CN$5:$CS$75,6),IF(D10=12,VLOOKUP(M10,TabLiza!$CM$5:$CS$75,7),IF(D10=11,VLOOKUP(M10,TabLiza!$CL$5:$CS$75,8),IF(D10=10,VLOOKUP(M10,TabLiza!$CK$5:$CS$75,9),IF(D10=9,VLOOKUP(M10,TabLiza!$CJ$5:$CS$75,10),IF(D10=8,VLOOKUP(M10,TabLiza!$CI$5:$CS$75,11),IF(D10=7,VLOOKUP(M10,TabLiza!$CI$5:$CS$75,11),IF(D10>17,"")))))))))))))) -> 32 | O10: 6 | P10: =IF(D10<7,"",IF(O10="","",IF(D10=17,VLOOKUP(O10,TabLiza!$EN$5:$EO$75,2),IF(D10=16,VLOOKUP(O10,TabLiza!$EM$5:$EO$75,3),IF(D10=15,VLOOKUP(O10,TabLiza!$EL$5:$EO$75,4),IF(D10=14,VLOOKUP(O10,TabLiza!$EK$5:$EO$75,5),IF(D10=13,VLOOKUP(O10,TabLiza!$EJ$5:$EO$75,6),IF(D10=12,VLOOKUP(O10,TabLiza!$EI$5:$EO$75,7),IF(D10=11,VLOOKUP(O10,TabLiza!$EH$5:$EO$75,8),IF(D10=10,VLOOKUP(O10,TabLiza!$EG$5:$EO$75,9),IF(D10=9,VLOOKUP(O10,TabLiza!$EF$5:$EO$75,10),IF(D10=8,VLOOKUP(O10,TabLiza!$EE$5:$EO$75,11),IF(D10=7,VLOOKUP(O10,TabLiza!$EE$5:$EO$75,11),IF(D10>17,"")))))))))))))) -> 18 | R10: =IF(D10>15,"",IF(Q10="","",IF(D10=15,VLOOKUP(Q10,TabLiza!$AM$5:$AP$75,4),IF(D10=14,VLOOKUP(Q10,TabLiza!$AL$5:$AP$75,5),IF(D10=13,VLOOKUP(Q10,TabLiza!$AK$5:$AP$75,6),IF(D10<13,"")))))) ->  | T10: =IF(D10<16,"",IF(S10="","",IF(D10=17,VLOOKUP(S10,TabLiza!$AO$5:$AP$75,2),IF(D10=16,VLOOKUP(S10,TabLiza!$AN$5:$AP$75,3),IF(D10>17,""))))) ->  | U10: 128 | V10: 5
A11: 8 | B11: Соколов Илья | C11: 8 | D11: 13 | E11: 00:03:52 | F11: =IF(D11<7,"",IF(E11="","",IF(D11=17,VLOOKUP(E11,TabLiza!$J$5:$K$75,2),IF(D11=16,VLOOKUP(E11,TabLiza!$I$5:$K$75,3),IF(D11=15,VLOOKUP(E11,TabLiza!$H$5:$K$75,4),IF(D11=14,VLOOKUP(E11,TabLiza!$G$5:$K$75,5),IF(D11=13,VLOOKUP(E11,TabLiza!$F$5:$K$75,6),IF(D11=12,VLOOKUP(E11,TabLiza!$E$5:$K$75,7),IF(D11=11,VLOOKUP(E11,TabLiza!$D$5:K$75,8),IF(D11=10,VLOOKUP(E11,TabLiza!$C$5:$K$75,9),IF(D11=9,VLOOKUP(E11,TabLiza!$B$5:$K$75,10),IF(D11=8,VLOOKUP(E11,TabLiza!$A$5:$K$75,11),IF(D11=7,VLOOKUP(E11,TabLiza!$A$5:$K$75,11),IF(D11>17,"")))))))))))))) -> 37 | G11: 5.46 | H11: =IF(D11<7,"",IF(G11="","",IF(D11=17,VLOOKUP(G11,TabLiza!$AH$5:$AI$75,2),IF(D11=16,VLOOKUP(G11,TabLiza!$AG$5:$AI$75,3),IF(D11=15,VLOOKUP(G11,TabLiza!$AF$5:$AI$75,4),IF(D11=14,VLOOKUP(G11,TabLiza!$AE$5:$AI$75,5),IF(D11=13,VLOOKUP(G11,TabLiza!$AD$5:$AI$75,6),IF(D11=12,VLOOKUP(G11,TabLiza!$AC$5:$AI$75,7),IF(D11=11,VLOOKUP(G11,TabLiza!$AB$5:$AI$75,8),IF(D11=10,VLOOKUP(G11,TabLiza!$AA$5:$AI$75,9),IF(D11=9,VLOOKUP(G11,TabLiza!$Z$5:$AI$75,10),IF(D11=8,VLOOKUP(G11,TabLiza!$Y$5:$AI$75,11),IF(D11=7,VLOOKUP(G11,TabLiza!$Y$5:$AI$75,11),IF(D11>12,"")))))))))))))) -> 28 | I11: 2 | J11: =IF(D11<7,"",IF(I11="","",IF(D11=17,VLOOKUP(I11,TabLiza!$BT$5:$BU$75,2),IF(D11=16,VLOOKUP(I11,TabLiza!$BS$5:$BU$75,3),IF(D11=15,VLOOKUP(I11,TabLiza!$BR$5:$BU$75,4),IF(D11=14,VLOOKUP(I11,TabLiza!$BQ$5:$BU$75,5),IF(D11=13,VLOOKUP(I11,TabLiza!$BP$5:$BU$75,6),IF(D11=12,VLOOKUP(I11,TabLiza!$BO$5:$BU$75,7),IF(D11=11,VLOOKUP(I11,TabLiza!$BN$5:$BU$75,8),IF(D11=10,VLOOKUP(I11,TabLiza!$BM$5:$BU$75,9),IF(D11=9,VLOOKUP(I11,TabLiza!$BL$5:$BU$75,10),IF(D11=8,VLOOKUP(I11,TabLiza!$BK$5:$BU$75,11),IF(D11=7,VLOOKUP(I11,TabLiza!$BK$5:$BU$75,11),IF(D11>17,"")))))))))))))) -> 7 | K11: 21 | L11: =IF(D11<7,"",IF(K11="","",IF(D11=17,VLOOKUP(K11,TabLiza!$DP$5:$DQ$75,2),IF(D11=16,VLOOKUP(K11,TabLiza!$DO$5:$DQ$75,3),IF(D11=15,VLOOKUP(K11,TabLiza!$DN$5:$DQ$75,4),IF(D11=14,VLOOKUP(K11,TabLiza!$DM$5:$DQ$75,5),IF(D11=13,VLOOKUP(K11,TabLiza!$DL$5:$DQ$75,6),IF(D11=12,VLOOKUP(K11,TabLiza!$DK$5:$DQ$75,7),IF(D11=11,VLOOKUP(K11,TabLiza!$DJ$5:$DQ$75,8),IF(D11=10,VLOOKUP(K11,TabLiza!$DI$5:$DQ$75,9),IF(D11=9,VLOOKUP(K11,TabLiza!$DH$5:$DQ$75,10),IF(D11=8,VLOOKUP(K11,TabLiza!$DG$5:$DQ$75,11),IF(D11=7,VLOOKUP(K11,TabLiza!$DG$5:$DQ$75,11),IF(D11>17,"")))))))))))))) -> 17 | M11: 185 | N11: =IF(D11<7,"",IF(M11="","",IF(D11=17,VLOOKUP(M11,TabLiza!$CR$5:$CS$75,2),IF(D11=16,VLOOKUP(M11,TabLiza!$CQ$5:$CS$75,3),IF(D11=15,VLOOKUP(M11,TabLiza!$CP$5:$CS$75,4),IF(D11=14,VLOOKUP(M11,TabLiza!$CO$5:$CS$75,5),IF(D11=13,VLOOKUP(M11,TabLiza!$CN$5:$CS$75,6),IF(D11=12,VLOOKUP(M11,TabLiza!$CM$5:$CS$75,7),IF(D11=11,VLOOKUP(M11,TabLiza!$CL$5:$CS$75,8),IF(D11=10,VLOOKUP(M11,TabLiza!$CK$5:$CS$75,9),IF(D11=9,VLOOKUP(M11,TabLiza!$CJ$5:$CS$75,10),IF(D11=8,VLOOKUP(M11,TabLiza!$CI$5:$CS$75,11),IF(D11=7,VLOOKUP(M11,TabLiza!$CI$5:$CS$75,11),IF(D11>17,"")))))))))))))) -> 20 | O11: -14 | P11: =IF(D11<7,"",IF(O11="","",IF(D11=17,VLOOKUP(O11,TabLiza!$EN$5:$EO$75,2),IF(D11=16,VLOOKUP(O11,TabLiza!$EM$5:$EO$75,3),IF(D11=15,VLOOKUP(O11,TabLiza!$EL$5:$EO$75,4),IF(D11=14,VLOOKUP(O11,TabLiza!$EK$5:$EO$75,5),IF(D11=13,VLOOKUP(O11,TabLiza!$EJ$5:$EO$75,6),IF(D11=12,VLOOKUP(O11,TabLiza!$EI$5:$EO$75,7),IF(D11=11,VLOOKUP(O11,TabLiza!$EH$5:$EO$75,8),IF(D11=10,VLOOKUP(O11,TabLiza!$EG$5:$EO$75,9),IF(D11=9,VLOOKUP(O11,TabLiza!$EF$5:$EO$75,10),IF(D11=8,VLOOKUP(O11,TabLiza!$EE$5:$EO$75,11),IF(D11=7,VLOOKUP(O11,TabLiza!$EE$5:$EO$75,11),IF(D11>17,"")))))))))))))) -> 0 | R11: =IF(D11>15,"",IF(Q11="","",IF(D11=15,VLOOKUP(Q11,TabLiza!$AM$5:$AP$75,4),IF(D11=14,VLOOKUP(Q11,TabLiza!$AL$5:$AP$75,5),IF(D11=13,VLOOKUP(Q11,TabLiza!$AK$5:$AP$75,6),IF(D11<13,"")))))) ->  | T11: =IF(D11<16,"",IF(S11="","",IF(D11=17,VLOOKUP(S11,TabLiza!$AO$5:$AP$75,2),IF(D11=16,VLOOKUP(S11,TabLiza!$AN$5:$AP$75,3),IF(D11>17,""))))) ->  | U11: 109 | V11: 6
B13: класс-команда | D13: 6Б | R13: всего очков | зачёт | U13: =SUM(U4:U11) -> 959 | V13: =U13-MIN(U4:U11) -> 959
A15: № п/п | B15: девочки | C15: № уч-ка | D15: возраст (полных лет) | E15: 1 | G15: 2 | I15: 3 | K15: 4 | M15: 5 | O15: 6 | Q15: 7 | S15: 8 | U15: 9 | V15: 10
B16: Фамилия Имя | E16: бег 1000м | F16: очки | G16: бег 30м | H16: очки | I16: отжимание | J16: очки | K16: пресс за 30" | L16: очки | M16: прыжок с места | N16: очки | O16: гибкость | P16: очки | Q16: бег 60м | R16: очки | S16: бег 100м | T16: очки | U16: сумма очков | V16: Место
A17: 1 | B17: Гопаца Анастасия | C17: 9 | D17: 12 | E17: 00:06:05 | F17: =IF(D17<7,"",IF(E17="","",IF(D17=17,VLOOKUP(E17,TabLiza!$V$5:$W$75,2),IF(D17=16,VLOOKUP(E17,TabLiza!$U$5:$W$75,3),IF(D17=15,VLOOKUP(E17,TabLiza!$T$5:$W$75,4),IF(D17=14,VLOOKUP(E17,TabLiza!$S$5:$W$75,5),IF(D17=13,VLOOKUP(E17,TabLiza!$R$5:$W$75,6),IF(D17=12,VLOOKUP(E17,TabLiza!$Q$5:$W$75,7),IF(D17=11,VLOOKUP(E17,TabLiza!$P$5:$W$75,8),IF(D17=10,VLOOKUP(E17,TabLiza!$O$5:$W$75,9),IF(D17=9,VLOOKUP(E17,TabLiza!$N$5:$W$75,10),IF(D17=8,VLOOKUP(E17,TabLiza!$M$5:$W$75,11),IF(D17=7,VLOOKUP(E17,TabLiza!$M$5:$W$75,11),IF(D17>17,"")))))))))))))) -> 9 | G17: 6.34 | H17: =IF(D17<7,"",IF(G17="","",IF(D17=17,VLOOKUP(G17,TabLiza!$BA$5:$BB$75,2),IF(D17=16,VLOOKUP(G17,TabLiza!$AZ$5:$BB$75,3),IF(D17=15,VLOOKUP(G17,TabLiza!$AY$5:$BB$75,4),IF(D17=14,VLOOKUP(G17,TabLiza!$AX$5:$BB$75,5),IF(D17=13,VLOOKUP(G17,TabLiza!$AW$5:$BB$75,6),IF(D17=12,VLOOKUP(G17,TabLiza!$AV$5:$BB$75,7),IF(D17=11,VLOOKUP(G17,TabLiza!$AU$5:$BB$75,8),IF(D17=10,VLOOKUP(G17,TabLiza!$AT$5:$BB$75,9),IF(D17=9,VLOOKUP(G17,TabLiza!$AS$5:$BB$75,10),IF(D17=8,VLOOKUP(G17,TabLiza!$AR$5:$BB$75,11),IF(D17=7,VLOOKUP(G17,TabLiza!$AR$5:$BB$75,11),IF(D17>12,"")))))))))))))) -> 13 | I17: 0 | J17: =IF(D17<7,"",IF(I17="","",IF(D17=17,VLOOKUP(I17,TabLiza!$CF$5:$CG$75,2),IF(D17=16,VLOOKUP(I17,TabLiza!$CE$5:$CG$75,3),IF(D17=15,VLOOKUP(I17,TabLiza!$CD$5:$CG$75,4),IF(D17=14,VLOOKUP(I17,TabLiza!$CC$5:$CG$75,5),IF(D17=13,VLOOKUP(I17,TabLiza!$CB$5:$CG$75,6),IF(D17=12,VLOOKUP(I17,TabLiza!$CA$5:$CG$75,7),IF(D17=11,VLOOKUP(I17,TabLiza!$BZ$5:$CG$75,8),IF(D17=10,VLOOKUP(I17,TabLiza!$BY$5:$CG$75,9),IF(D17=9,VLOOKUP(I17,TabLiza!$BX$5:$CG$75,10),IF(D17=8,VLOOKUP(I17,TabLiza!$BW$5:$CG$75,11),IF(D17=7,VLOOKUP(I17,TabLiza!$BW$5:$CG$75,11),IF(D17>17,"")))))))))))))) -> 0 | K17: 20 | L17: =IF(D17<7,"",IF(K17="","",IF(D17=17,VLOOKUP(K17,TabLiza!$EB$5:$EC$75,2),IF(D17=16,VLOOKUP(K17,TabLiza!$EA$5:$EC$75,3),IF(D17=15,VLOOKUP(K17,TabLiza!$DZ$5:$EC$75,4),IF(D17=14,VLOOKUP(K17,TabLiza!$DY$5:$EC$75,5),IF(D17=13,VLOOKUP(K17,TabLiza!$DX$5:$EC$75,6),IF(D17=12,VLOOKUP(K17,TabLiza!$DW$5:$EC$75,7),IF(D17=11,VLOOKUP(K17,TabLiza!$DV$5:$EC$75,8),IF(D17=10,VLOOKUP(K17,TabLiza!$DU$5:$EC$75,9),IF(D17=9,VLOOKUP(K17,TabLiza!$DT$5:$EC$75,10),IF(D17=8,VLOOKUP(K17,TabLiza!$DS$5:$EC$75,11),IF(D17=7,VLOOKUP(K17,TabLiza!$DS$5:$EC$75,11),IF(D17>17,"")))))))))))))) -> 29 | M17: 169 | N17: =IF(D17<7,"",IF(M17="","",IF(D17=17,VLOOKUP(M17,TabLiza!$DD$5:$DE$75,2),IF(D17=16,VLOOKUP(M17,TabLiza!$DC$5:$DE$75,3),IF(D17=15,VLOOKUP(M17,TabLiza!$DB$5:$DE$75,4),IF(D17=14,VLOOKUP(M17,TabLiza!$DA$5:$DE$75,5),IF(D17=13,VLOOKUP(M17,TabLiza!$CZ$5:$DE$75,6),IF(D17=12,VLOOKUP(M17,TabLiza!$CY$5:$DE$75,7),IF(D17=11,VLOOKUP(M17,TabLiza!$CX$5:$DE$75,8),IF(D17=10,VLOOKUP(M17,TabLiza!$CW$5:$DE$75,9),IF(D17=9,VLOOKUP(M17,TabLiza!$CV$5:$DE$75,10),IF(D17=8,VLOOKUP(M17,TabLiza!$CU$5:$DE$75,11),IF(D17=7,VLOOKUP(M17,TabLiza!$CU$5:$DE$75,11),IF(D17>17,"")))))))))))))) -> 29 | O17: 0 | P17: =IF(D17<7,"",IF(O17="","",IF(D17=17,VLOOKUP(O17,TabLiza!$EZ$5:$FA$75,2),IF(D17=16,VLOOKUP(O17,TabLiza!$EY$5:$FA$75,3),IF(D17=15,VLOOKUP(O17,TabLiza!$EX$5:$FA$75,4),IF(D17=14,VLOOKUP(O17,TabLiza!$EW$5:$FA$75,5),IF(D17=13,VLOOKUP(O17,TabLiza!$EV$5:$FA$75,6),IF(D17=12,VLOOKUP(O17,TabLiza!$EU$5:$FA$75,7),IF(D17=11,VLOOKUP(O17,TabLiza!$ET$5:$FA$75,8),IF(D17=10,VLOOKUP(O17,TabLiza!$ES$5:$FA$75,9),IF(D17=9,VLOOKUP(O17,TabLiza!$ER$5:$FA$75,10),IF(D17=8,VLOOKUP(O17,TabLiza!$EQ$5:$FA$75,11),IF(D17=7,VLOOKUP(O17,TabLiza!$EQ$5:$FA$75,11),IF(D17>17,"")))))))))))))) -> 4 | R17: =IF(D17>15,"",IF(Q17="","",IF(D17=15,VLOOKUP(Q17,TabLiza!$BF$5:$BI$75,4),IF(D17=14,VLOOKUP(Q17,TabLiza!$BE$5:$BI$75,5),IF(D17=13,VLOOKUP(Q17,TabLiza!$BD$5:$BI$75,6),IF(D17<13,"")))))) ->  | T17: =IF(D17<16,"",IF(S17="","",IF(D17=17,VLOOKUP(S17,TabLiza!$BH$5:$BI$75,2),IF(D17=16,VLOOKUP(S17,TabLiza!$BG$5:$BI$75,3),IF(D17>17,""))))) ->  | U17: =SUM(F17,H17,J17,L17,N17,P17,R17,T17) -> 84 | V17: =IF(U17=0,"",(RANK(U17,$U$17:$U$24,0))) -> 6
A18: =A17+1 -> 2 | B18: Исаева Мария | C18: =C17+1 -> 10 | D18: 13 | E18: 00:04:38 | F18: =IF(D18<7,"",IF(E18="","",IF(D18=17,VLOOKUP(E18,TabLiza!$V$5:$W$75,2),IF(D18=16,VLOOKUP(E18,TabLiza!$U$5:$W$75,3),IF(D18=15,VLOOKUP(E18,TabLiza!$T$5:$W$75,4),IF(D18=14,VLOOKUP(E18,TabLiza!$S$5:$W$75,5),IF(D18=13,VLOOKUP(E18,TabLiza!$R$5:$W$75,6),IF(D18=12,VLOOKUP(E18,TabLiza!$Q$5:$W$75,7),IF(D18=11,VLOOKUP(E18,TabLiza!$P$5:$W$75,8),IF(D18=10,VLOOKUP(E18,TabLiza!$O$5:$W$75,9),IF(D18=9,VLOOKUP(E18,TabLiza!$N$5:$W$75,10),IF(D18=8,VLOOKUP(E18,TabLiza!$M$5:$W$75,11),IF(D18=7,VLOOKUP(E18,TabLiza!$M$5:$W$75,11),IF(D18>17,"")))))))))))))) -> 29 | G18: 5.94 | H18: =IF(D18<7,"",IF(G18="","",IF(D18=17,VLOOKUP(G18,TabLiza!$BA$5:$BB$75,2),IF(D18=16,VLOOKUP(G18,TabLiza!$AZ$5:$BB$75,3),IF(D18=15,VLOOKUP(G18,TabLiza!$AY$5:$BB$75,4),IF(D18=14,VLOOKUP(G18,TabLiza!$AX$5:$BB$75,5),IF(D18=13,VLOOKUP(G18,TabLiza!$AW$5:$BB$75,6),IF(D18=12,VLOOKUP(G18,TabLiza!$AV$5:$BB$75,7),IF(D18=11,VLOOKUP(G18,TabLiza!$AU$5:$BB$75,8),IF(D18=10,VLOOKUP(G18,TabLiza!$AT$5:$BB$75,9),IF(D18=9,VLOOKUP(G18,TabLiza!$AS$5:$BB$75,10),IF(D18=8,VLOOKUP(G18,TabLiza!$AR$5:$BB$75,11),IF(D18=7,VLOOKUP(G18,TabLiza!$AR$5:$BB$75,11),IF(D18>12,"")))))))))))))) -> 21 | I18: 4 | J18: =IF(D18<7,"",IF(I18="","",IF(D18=17,VLOOKUP(I18,TabLiza!$CF$5:$CG$75,2),IF(D18=16,VLOOKUP(I18,TabLiza!$CE$5:$CG$75,3),IF(D18=15,VLOOKUP(I18,TabLiza!$CD$5:$CG$75,4),IF(D18=14,VLOOKUP(I18,TabLiza!$CC$5:$CG$75,5),IF(D18=13,VLOOKUP(I18,TabLiza!$CB$5:$CG$75,6),IF(D18=12,VLOOKUP(I18,TabLiza!$CA$5:$CG$75,7),IF(D18=11,VLOOKUP(I18,TabLiza!$BZ$5:$CG$75,8),IF(D18=10,VLOOKUP(I18,TabLiza!$BY$5:$CG$75,9),IF(D18=9,VLOOKUP(I18,TabLiza!$BX$5:$CG$75,10),IF(D18=8,VLOOKUP(I18,TabLiza!$BW$5:$CG$75,11),IF(D18=7,VLOOKUP(I18,TabLiza!$BW$5:$CG$75,11),IF(D18>17,"")))))))))))))) -> 3 | K18: 26 | L18: =IF(D18<7,"",IF(K18="","",IF(D18=17,VLOOKUP(K18,TabLiza!$EB$5:$EC$75,2),IF(D18=16,VLOOKUP(K18,TabLiza!$EA$5:$EC$75,3),IF(D18=15,VLOOKUP(K18,TabLiza!$DZ$5:$EC$75,4),IF(D18=14,VLOOKUP(K18,TabLiza!$DY$5:$EC$75,5),IF(D18=13,VLOOKUP(K18,TabLiza!$DX$5:$EC$75,6),IF(D18=12,VLOOKUP(K18,TabLiza!$DW$5:$EC$75,7),IF(D18=11,VLOOKUP(K18,TabLiza!$DV$5:$EC$75,8),IF(D18=10,VLOOKUP(K18,TabLiza!$DU$5:$EC$75,9),IF(D18=9,VLOOKUP(K18,TabLiza!$DT$5:$EC$75,10),IF(D18=8,VLOOKUP(K18,TabLiza!$DS$5:$EC$75,11),IF(D18=7,VLOOKUP(K18,TabLiza!$DS$5:$EC$75,11),IF(D18>17,"")))))))))))))) -> 31 | M18: 177 | N18: =IF(D18<7,"",IF(M18="","",IF(D18=17,VLOOKUP(M18,TabLiza!$DD$5:$DE$75,2),IF(D18=16,VLOOKUP(M18,TabLiza!$DC$5:$DE$75,3),IF(D18=15,VLOOKUP(M18,TabLiza!$DB$5:$DE$75,4),IF(D18=14,VLOOKUP(M18,TabLiza!$DA$5:$DE$75,5),IF(D18=13,VLOOKUP(M18,TabLiza!$CZ$5:$DE$75,6),IF(D18=12,VLOOKUP(M18,TabLiza!$CY$5:$DE$75,7),IF(D18=11,VLOOKUP(M18,TabLiza!$CX$5:$DE$75,8),IF(D18=10,VLOOKUP(M18,TabLiza!$CW$5:$DE$75,9),IF(D18=9,VLOOKUP(M18,TabLiza!$CV$5:$DE$75,10),IF(D18=8,VLOOKUP(M18,TabLiza!$CU$5:$DE$75,11),IF(D18=7,VLOOKUP(M18,TabLiza!$CU$5:$DE$75,11),IF(D18>17,"")))))))))))))) -> 26 | O18: 1 | P18: =IF(D18<7,"",IF(O18="","",IF(D18=17,VLOOKUP(O18,TabLiza!$EZ$5:$FA$75,2),IF(D18=16,VLOOKUP(O18,TabLiza!$EY$5:$FA$75,3),IF(D18=15,VLOOKUP(O18,TabLiza!$EX$5:$FA$75,4),IF(D18=14,VLOOKUP(O18,TabLiza!$EW$5:$FA$75,5),IF(D18=13,VLOOKUP(O18,TabLiza!$EV$5:$FA$75,6),IF(D18=12,VLOOKUP(O18,TabLiza!$EU$5:$FA$75,7),IF(D18=11,VLOOKUP(O18,TabLiza!$ET$5:$FA$75,8),IF(D18=10,VLOOKUP(O18,TabLiza!$ES$5:$FA$75,9),IF(D18=9,VLOOKUP(O18,TabLiza!$ER$5:$FA$75,10),IF(D18=8,VLOOKUP(O18,TabLiza!$EQ$5:$FA$75,11),IF(D18=7,VLOOKUP(O18,TabLiza!$EQ$5:$FA$75,11),IF(D18>17,"")))))))))))))) -> 5 | R18: =IF(D18>15,"",IF(Q18="","",IF(D18=15,VLOOKUP(Q18,TabLiza!$BF$5:$BI$75,4),IF(D18=14,VLOOKUP(Q18,TabLiza!$BE$5:$BI$75,5),IF(D18=13,VLOOKUP(Q18,TabLiza!$BD$5:$BI$75,6),IF(D18<13,"")))))) ->  | T18: =IF(D18<16,"",IF(S18="","",IF(D18=17,VLOOKUP(S18,TabLiza!$BH$5:$BI$75,2),IF(D18=16,VLOOKUP(S18,TabLiza!$BG$5:$BI$75,3),IF(D18>17,""))))) ->  | U18: =SUM(F18,H18,J18,L18,N18,P18,R18,T18) -> 115 | V18: =IF(U18=0,"",(RANK(U18,$U$17:$U$24,0))) -> 4
A19: =A18+1 -> 3 | B19: Горохова Анастасия | C19: =C18+1 -> 11 | D19: 12 | E19: 00:05:26 | F19: =IF(D19<7,"",IF(E19="","",IF(D19=17,VLOOKUP(E19,TabLiza!$V$5:$W$75,2),IF(D19=16,VLOOKUP(E19,TabLiza!$U$5:$W$75,3),IF(D19=15,VLOOKUP(E19,TabLiza!$T$5:$W$75,4),IF(D19=14,VLOOKUP(E19,TabLiza!$S$5:$W$75,5),IF(D19=13,VLOOKUP(E19,TabLiza!$R$5:$W$75,6),IF(D19=12,VLOOKUP(E19,TabLiza!$Q$5:$W$75,7),IF(D19=11,VLOOKUP(E19,TabLiza!$P$5:$W$75,8),IF(D19=10,VLOOKUP(E19,TabLiza!$O$5:$W$75,9),IF(D19=9,VLOOKUP(E19,TabLiza!$N$5:$W$75,10),IF(D19=8,VLOOKUP(E19,TabLiza!$M$5:$W$75,11),IF(D19=7,VLOOKUP(E19,TabLiza!$M$5:$W$75,11),IF(D19>17,"")))))))))))))) -> 19 | G19: 6.05 | H19: =IF(D19<7,"",IF(G19="","",IF(D19=17,VLOOKUP(G19,TabLiza!$BA$5:$BB$75,2),IF(D19=16,VLOOKUP(G19,TabLiza!$AZ$5:$BB$75,3),IF(D19=15,VLOOKUP(G19,TabLiza!$AY$5:$BB$75,4),IF(D19=14,VLOOKUP(G19,TabLiza!$AX$5:$BB$75,5),IF(D19=13,VLOOKUP(G19,TabLiza!$AW$5:$BB$75,6),IF(D19=12,VLOOKUP(G19,TabLiza!$AV$5:$BB$75,7),IF(D19=11,VLOOKUP(G19,TabLiza!$AU$5:$BB$75,8),IF(D19=10,VLOOKUP(G19,TabLiza!$AT$5:$BB$75,9),IF(D19=9,VLOOKUP(G19,TabLiza!$AS$5:$BB$75,10),IF(D19=8,VLOOKUP(G19,TabLiza!$AR$5:$BB$75,11),IF(D19=7,VLOOKUP(G19,TabLiza!$AR$5:$BB$75,11),IF(D19>12,"")))))))))))))) -> 22 | I19: 0 | J19: =IF(D19<7,"",IF(I19="","",IF(D19=17,VLOOKUP(I19,TabLiza!$CF$5:$CG$75,2),IF(D19=16,VLOOKUP(I19,TabLiza!$CE$5:$CG$75,3),IF(D19=15,VLOOKUP(I19,TabLiza!$CD$5:$CG$75,4),IF(D19=14,VLOOKUP(I19,TabLiza!$CC$5:$CG$75,5),IF(D19=13,VLOOKUP(I19,TabLiza!$CB$5:$CG$75,6),IF(D19=12,VLOOKUP(I19,TabLiza!$CA$5:$CG$75,7),IF(D19=11,VLOOKUP(I19,TabLiza!$BZ$5:$CG$75,8),IF(D19=10,VLOOKUP(I19,TabLiza!$BY$5:$CG$75,9),IF(D19=9,VLOOKUP(I19,TabLiza!$BX$5:$CG$75,10),IF(D19=8,VLOOKUP(I19,TabLiza!$BW$5:$CG$75,11),IF(D19=7,VLOOKUP(I19,TabLiza!$BW$5:$CG$75,11),IF(D19>17,"")))))))))))))) -> 0 | K19: 26 | L19: =IF(D19<7,"",IF(K19="","",IF(D19=17,VLOOKUP(K19,TabLiza!$EB$5:$EC$75,2),IF(D19=16,VLOOKUP(K19,TabLiza!$EA$5:$EC$75,3),IF(D19=15,VLOOKUP(K19,TabLiza!$DZ$5:$EC$75,4),IF(D19=14,VLOOKUP(K19,TabLiza!$DY$5:$EC$75,5),IF(D19=13,VLOOKUP(K19,TabLiza!$DX$5:$EC$75,6),IF(D19=12,VLOOKUP(K19,TabLiza!$DW$5:$EC$75,7),IF(D19=11,VLOOKUP(K19,TabLiza!$DV$5:$EC$75,8),IF(D19=10,VLOOKUP(K19,TabLiza!$DU$5:$EC$75,9),IF(D19=9,VLOOKUP(K19,TabLiza!$DT$5:$EC$75,10),IF(D19=8,VLOOKUP(K19,TabLiza!$DS$5:$EC$75,11),IF(D19=7,VLOOKUP(K19,TabLiza!$DS$5:$EC$75,11),IF(D19>17,"")))))))))))))) -> 41 | M19: 110 | N19: =IF(D19<7,"",IF(M19="","",IF(D19=17,VLOOKUP(M19,TabLiza!$DD$5:$DE$75,2),IF(D19=16,VLOOKUP(M19,TabLiza!$DC$5:$DE$75,3),IF(D19=15,VLOOKUP(M19,TabLiza!$DB$5:$DE$75,4),IF(D19=14,VLOOKUP(M19,TabLiza!$DA$5:$DE$75,5),IF(D19=13,VLOOKUP(M19,TabLiza!$CZ$5:$DE$75,6),IF(D19=12,VLOOKUP(M19,TabLiza!$CY$5:$DE$75,7),IF(D19=11,VLOOKUP(M19,TabLiza!$CX$5:$DE$75,8),IF(D19=10,VLOOKUP(M19,TabLiza!$CW$5:$DE$75,9),IF(D19=9,VLOOKUP(M19,TabLiza!$CV$5:$DE$75,10),IF(D19=8,VLOOKUP(M19,TabLiza!$CU$5:$DE$75,11),IF(D19=7,VLOOKUP(M19,TabLiza!$CU$5:$DE$75,11),IF(D19>17,"")))))))))))))) -> 2 | O19: 3 | P19: =IF(D19<7,"",IF(O19="","",IF(D19=17,VLOOKUP(O19,TabLiza!$EZ$5:$FA$75,2),IF(D19=16,VLOOKUP(O19,TabLiza!$EY$5:$FA$75,3),IF(D19=15,VLOOKUP(O19,TabLiza!$EX$5:$FA$75,4),IF(D19=14,VLOOKUP(O19,TabLiza!$EW$5:$FA$75,5),IF(D19=13,VLOOKUP(O19,TabLiza!$EV$5:$FA$75,6),IF(D19=12,VLOOKUP(O19,TabLiza!$EU$5:$FA$75,7),IF(D19=11,VLOOKUP(O19,TabLiza!$ET$5:$FA$75,8),IF(D19=10,VLOOKUP(O19,TabLiza!$ES$5:$FA$75,9),IF(D19=9,VLOOKUP(O19,TabLiza!$ER$5:$FA$75,10),IF(D19=8,VLOOKUP(O19,TabLiza!$EQ$5:$FA$75,11),IF(D19=7,VLOOKUP(O19,TabLiza!$EQ$5:$FA$75,11),IF(D19>17,"")))))))))))))) -> 9 | R19: =IF(D19>15,"",IF(Q19="","",IF(D19=15,VLOOKUP(Q19,TabLiza!$BF$5:$BI$75,4),IF(D19=14,VLOOKUP(Q19,TabLiza!$BE$5:$BI$75,5),IF(D19=13,VLOOKUP(Q19,TabLiza!$BD$5:$BI$75,6),IF(D19<13,"")))))) ->  | T19: =IF(D19<16,"",IF(S19="","",IF(D19=17,VLOOKUP(S19,TabLiza!$BH$5:$BI$75,2),IF(D19=16,VLOOKUP(S19,TabLiza!$BG$5:$BI$75,3),IF(D19>17,""))))) ->  | U19: 93 | V19: 5
A20: 4 | B20: Черепанова Анастасия | C20: 12 | D20: 12 | E20: 00:04:58 | F20: =IF(D20<7,"",IF(E20="","",IF(D20=17,VLOOKUP(E20,TabLiza!$V$5:$W$75,2),IF(D20=16,VLOOKUP(E20,TabLiza!$U$5:$W$75,3),IF(D20=15,VLOOKUP(E20,TabLiza!$T$5:$W$75,4),IF(D20=14,VLOOKUP(E20,TabLiza!$S$5:$W$75,5),IF(D20=13,VLOOKUP(E20,TabLiza!$R$5:$W$75,6),IF(D20=12,VLOOKUP(E20,TabLiza!$Q$5:$W$75,7),IF(D20=11,VLOOKUP(E20,TabLiza!$P$5:$W$75,8),IF(D20=10,VLOOKUP(E20,TabLiza!$O$5:$W$75,9),IF(D20=9,VLOOKUP(E20,TabLiza!$N$5:$W$75,10),IF(D20=8,VLOOKUP(E20,TabLiza!$M$5:$W$75,11),IF(D20=7,VLOOKUP(E20,TabLiza!$M$5:$W$75,11),IF(D20>17,"")))))))))))))) -> 28 | G20: 5.83 | H20: =IF(D20<7,"",IF(G20="","",IF(D20=17,VLOOKUP(G20,TabLiza!$BA$5:$BB$75,2),IF(D20=16,VLOOKUP(G20,TabLiza!$AZ$5:$BB$75,3),IF(D20=15,VLOOKUP(G20,TabLiza!$AY$5:$BB$75,4),IF(D20=14,VLOOKUP(G20,TabLiza!$AX$5:$BB$75,5),IF(D20=13,VLOOKUP(G20,TabLiza!$AW$5:$BB$75,6),IF(D20=12,VLOOKUP(G20,TabLiza!$AV$5:$BB$75,7),IF(D20=11,VLOOKUP(G20,TabLiza!$AU$5:$BB$75,8),IF(D20=10,VLOOKUP(G20,TabLiza!$AT$5:$BB$75,9),IF(D20=9,VLOOKUP(G20,TabLiza!$AS$5:$BB$75,10),IF(D20=8,VLOOKUP(G20,TabLiza!$AR$5:$BB$75,11),IF(D20=7,VLOOKUP(G20,TabLiza!$AR$5:$BB$75,11),IF(D20>12,"")))))))))))))) -> 30 | I20: 2 | J20: =IF(D20<7,"",IF(I20="","",IF(D20=17,VLOOKUP(I20,TabLiza!$CF$5:$CG$75,2),IF(D20=16,VLOOKUP(I20,TabLiza!$CE$5:$CG$75,3),IF(D20=15,VLOOKUP(I20,TabLiza!$CD$5:$CG$75,4),IF(D20=14,VLOOKUP(I20,TabLiza!$CC$5:$CG$75,5),IF(D20=13,VLOOKUP(I20,TabLiza!$CB$5:$CG$75,6),IF(D20=12,VLOOKUP(I20,TabLiza!$CA$5:$CG$75,7),IF(D20=11,VLOOKUP(I20,TabLiza!$BZ$5:$CG$75,8),IF(D20=10,VLOOKUP(I20,TabLiza!$BY$5:$CG$75,9),IF(D20=9,VLOOKUP(I20,TabLiza!$BX$5:$CG$75,10),IF(D20=8,VLOOKUP(I20,TabLiza!$BW$5:$CG$75,11),IF(D20=7,VLOOKUP(I20,TabLiza!$BW$5:$CG$75,11),IF(D20>17,"")))))))))))))) -> 2 | K20: 24 | L20: =IF(D20<7,"",IF(K20="","",IF(D20=17,VLOOKUP(K20,TabLiza!$EB$5:$EC$75,2),IF(D20=16,VLOOKUP(K20,TabLiza!$EA$5:$EC$75,3),IF(D20=15,VLOOKUP(K20,TabLiza!$DZ$5:$EC$75,4),IF(D20=14,VLOOKUP(K20,TabLiza!$DY$5:$EC$75,5),IF(D20=13,VLOOKUP(K20,TabLiza!$DX$5:$EC$75,6),IF(D20=12,VLOOKUP(K20,TabLiza!$DW$5:$EC$75,7),IF(D20=11,VLOOKUP(K20,TabLiza!$DV$5:$EC$75,8),IF(D20=10,VLOOKUP(K20,TabLiza!$DU$5:$EC$75,9),IF(D20=9,VLOOKUP(K20,TabLiza!$DT$5:$EC$75,10),IF(D20=8,VLOOKUP(K20,TabLiza!$DS$5:$EC$75,11),IF(D20=7,VLOOKUP(K20,TabLiza!$DS$5:$EC$75,11),IF(D20>17,"")))))))))))))) -> 37 | M20: 159 | N20: =IF(D20<7,"",IF(M20="","",IF(D20=17,VLOOKUP(M20,TabLiza!$DD$5:$DE$75,2),IF(D20=16,VLOOKUP(M20,TabLiza!$DC$5:$DE$75,3),IF(D20=15,VLOOKUP(M20,TabLiza!$DB$5:$DE$75,4),IF(D20=14,VLOOKUP(M20,TabLiza!$DA$5:$DE$75,5),IF(D20=13,VLOOKUP(M20,TabLiza!$CZ$5:$DE$75,6),IF(D20=12,VLOOKUP(M20,TabLiza!$CY$5:$DE$75,7),IF(D20=11,VLOOKUP(M20,TabLiza!$CX$5:$DE$75,8),IF(D20=10,VLOOKUP(M20,TabLiza!$CW$5:$DE$75,9),IF(D20=9,VLOOKUP(M20,TabLiza!$CV$5:$DE$75,10),IF(D20=8,VLOOKUP(M20,TabLiza!$CU$5:$DE$75,11),IF(D20=7,VLOOKUP(M20,TabLiza!$CU$5:$DE$75,11),IF(D20>17,"")))))))))))))) -> 24 | O20: 10 | P20: =IF(D20<7,"",IF(O20="","",IF(D20=17,VLOOKUP(O20,TabLiza!$EZ$5:$FA$75,2),IF(D20=16,VLOOKUP(O20,TabLiza!$EY$5:$FA$75,3),IF(D20=15,VLOOKUP(O20,TabLiza!$EX$5:$FA$75,4),IF(D20=14,VLOOKUP(O20,TabLiza!$EW$5:$FA$75,5),IF(D20=13,VLOOKUP(O20,TabLiza!$EV$5:$FA$75,6),IF(D20=12,VLOOKUP(O20,TabLiza!$EU$5:$FA$75,7),IF(D20=11,VLOOKUP(O20,TabLiza!$ET$5:$FA$75,8),IF(D20=10,VLOOKUP(O20,TabLiza!$ES$5:$FA$75,9),IF(D20=9,VLOOKUP(O20,TabLiza!$ER$5:$FA$75,10),IF(D20=8,VLOOKUP(O20,TabLiza!$EQ$5:$FA$75,11),IF(D20=7,VLOOKUP(O20,TabLiza!$EQ$5:$FA$75,11),IF(D20>17,"")))))))))))))) -> 21 | R20: =IF(D20>15,"",IF(Q20="","",IF(D20=15,VLOOKUP(Q20,TabLiza!$BF$5:$BI$75,4),IF(D20=14,VLOOKUP(Q20,TabLiza!$BE$5:$BI$75,5),IF(D20=13,VLOOKUP(Q20,TabLiza!$BD$5:$BI$75,6),IF(D20<13,"")))))) ->  | T20: =IF(D20<16,"",IF(S20="","",IF(D20=17,VLOOKUP(S20,TabLiza!$BH$5:$BI$75,2),IF(D20=16,VLOOKUP(S20,TabLiza!$BG$5:$BI$75,3),IF(D20>17,""))))) ->  | U20: 142 | V20: 1
A21: 5 | B21: Загирова Ксения | C21: 13 | D21: 13 | E21: 00:05:37 | F21: =IF(D21<7,"",IF(E21="","",IF(D21=17,VLOOKUP(E21,TabLiza!$V$5:$W$75,2),IF(D21=16,VLOOKUP(E21,TabLiza!$U$5:$W$75,3),IF(D21=15,VLOOKUP(E21,TabLiza!$T$5:$W$75,4),IF(D21=14,VLOOKUP(E21,TabLiza!$S$5:$W$75,5),IF(D21=13,VLOOKUP(E21,TabLiza!$R$5:$W$75,6),IF(D21=12,VLOOKUP(E21,TabLiza!$Q$5:$W$75,7),IF(D21=11,VLOOKUP(E21,TabLiza!$P$5:$W$75,8),IF(D21=10,VLOOKUP(E21,TabLiza!$O$5:$W$75,9),IF(D21=9,VLOOKUP(E21,TabLiza!$N$5:$W$75,10),IF(D21=8,VLOOKUP(E21,TabLiza!$M$5:$W$75,11),IF(D21=7,VLOOKUP(E21,TabLiza!$M$5:$W$75,11),IF(D21>17,"")))))))))))))) -> 12 | G21: 6.28 | H21: =IF(D21<7,"",IF(G21="","",IF(D21=17,VLOOKUP(G21,TabLiza!$BA$5:$BB$75,2),IF(D21=16,VLOOKUP(G21,TabLiza!$AZ$5:$BB$75,3),IF(D21=15,VLOOKUP(G21,TabLiza!$AY$5:$BB$75,4),IF(D21=14,VLOOKUP(G21,TabLiza!$AX$5:$BB$75,5),IF(D21=13,VLOOKUP(G21,TabLiza!$AW$5:$BB$75,6),IF(D21=12,VLOOKUP(G21,TabLiza!$AV$5:$BB$75,7),IF(D21=11,VLOOKUP(G21,TabLiza!$AU$5:$BB$75,8),IF(D21=10,VLOOKUP(G21,TabLiza!$AT$5:$BB$75,9),IF(D21=9,VLOOKUP(G21,TabLiza!$AS$5:$BB$75,10),IF(D21=8,VLOOKUP(G21,TabLiza!$AR$5:$BB$75,11),IF(D21=7,VLOOKUP(G21,TabLiza!$AR$5:$BB$75,11),IF(D21>12,"")))))))))))))) -> 12 | I21: 0 | J21: =IF(D21<7,"",IF(I21="","",IF(D21=17,VLOOKUP(I21,TabLiza!$CF$5:$CG$75,2),IF(D21=16,VLOOKUP(I21,TabLiza!$CE$5:$CG$75,3),IF(D21=15,VLOOKUP(I21,TabLiza!$CD$5:$CG$75,4),IF(D21=14,VLOOKUP(I21,TabLiza!$CC$5:$CG$75,5),IF(D21=13,VLOOKUP(I21,TabLiza!$CB$5:$CG$75,6),IF(D21=12,VLOOKUP(I21,TabLiza!$CA$5:$CG$75,7),IF(D21=11,VLOOKUP(I21,TabLiza!$BZ$5:$CG$75,8),IF(D21=10,VLOOKUP(I21,TabLiza!$BY$5:$CG$75,9),IF(D21=9,VLOOKUP(I21,TabLiza!$BX$5:$CG$75,10),IF(D21=8,VLOOKUP(I21,TabLiza!$BW$5:$CG$75,11),IF(D21=7,VLOOKUP(I21,TabLiza!$BW$5:$CG$75,11),IF(D21>17,"")))))))))))))) -> 0 | K21: 25 | L21: =IF(D21<7,"",IF(K21="","",IF(D21=17,VLOOKUP(K21,TabLiza!$EB$5:$EC$75,2),IF(D21=16,VLOOKUP(K21,TabLiza!$EA$5:$EC$75,3),IF(D21=15,VLOOKUP(K21,TabLiza!$DZ$5:$EC$75,4),IF(D21=14,VLOOKUP(K21,TabLiza!$DY$5:$EC$75,5),IF(D21=13,VLOOKUP(K21,TabLiza!$DX$5:$EC$75,6),IF(D21=12,VLOOKUP(K21,TabLiza!$DW$5:$EC$75,7),IF(D21=11,VLOOKUP(K21,TabLiza!$DV$5:$EC$75,8),IF(D21=10,VLOOKUP(K21,TabLiza!$DU$5:$EC$75,9),IF(D21=9,VLOOKUP(K21,TabLiza!$DT$5:$EC$75,10),IF(D21=8,VLOOKUP(K21,TabLiza!$DS$5:$EC$75,11),IF(D21=7,VLOOKUP(K21,TabLiza!$DS$5:$EC$75,11),IF(D21>17,"")))))))))))))) -> 29 | M21: 145 | N21: =IF(D21<7,"",IF(M21="","",IF(D21=17,VLOOKUP(M21,TabLiza!$DD$5:$DE$75,2),IF(D21=16,VLOOKUP(M21,TabLiza!$DC$5:$DE$75,3),IF(D21=15,VLOOKUP(M21,TabLiza!$DB$5:$DE$75,4),IF(D21=14,VLOOKUP(M21,TabLiza!$DA$5:$DE$75,5),IF(D21=13,VLOOKUP(M21,TabLiza!$CZ$5:$DE$75,6),IF(D21=12,VLOOKUP(M21,TabLiza!$CY$5:$DE$75,7),IF(D21=11,VLOOKUP(M21,TabLiza!$CX$5:$DE$75,8),IF(D21=10,VLOOKUP(M21,TabLiza!$CW$5:$DE$75,9),IF(D21=9,VLOOKUP(M21,TabLiza!$CV$5:$DE$75,10),IF(D21=8,VLOOKUP(M21,TabLiza!$CU$5:$DE$75,11),IF(D21=7,VLOOKUP(M21,TabLiza!$CU$5:$DE$75,11),IF(D21>17,"")))))))))))))) -> 10 | O21: 2 | P21: =IF(D21<7,"",IF(O21="","",IF(D21=17,VLOOKUP(O21,TabLiza!$EZ$5:$FA$75,2),IF(D21=16,VLOOKUP(O21,TabLiza!$EY$5:$FA$75,3),IF(D21=15,VLOOKUP(O21,TabLiza!$EX$5:$FA$75,4),IF(D21=14,VLOOKUP(O21,TabLiza!$EW$5:$FA$75,5),IF(D21=13,VLOOKUP(O21,TabLiza!$EV$5:$FA$75,6),IF(D21=12,VLOOKUP(O21,TabLiza!$EU$5:$FA$75,7),IF(D21=11,VLOOKUP(O21,TabLiza!$ET$5:$FA$75,8),IF(D21=10,VLOOKUP(O21,TabLiza!$ES$5:$FA$75,9),IF(D21=9,VLOOKUP(O21,TabLiza!$ER$5:$FA$75,10),IF(D21=8,VLOOKUP(O21,TabLiza!$EQ$5:$FA$75,11),IF(D21=7,VLOOKUP(O21,TabLiza!$EQ$5:$FA$75,11),IF(D21>17,"")))))))))))))) -> 6 | R21: =IF(D21>15,"",IF(Q21="","",IF(D21=15,VLOOKUP(Q21,TabLiza!$BF$5:$BI$75,4),IF(D21=14,VLOOKUP(Q21,TabLiza!$BE$5:$BI$75,5),IF(D21=13,VLOOKUP(Q21,TabLiza!$BD$5:$BI$75,6),IF(D21<13,"")))))) ->  | T21: =IF(D21<16,"",IF(S21="","",IF(D21=17,VLOOKUP(S21,TabLiza!$BH$5:$BI$75,2),IF(D21=16,VLOOKUP(S21,TabLiza!$BG$5:$BI$75,3),IF(D21>17,""))))) ->  | U21: 69 | V21: 8
A22: 6 | B22: Заколяпина Наталья | C22: 14 | D22: 12 | E22: 00:05:01 | F22: =IF(D22<7,"",IF(E22="","",IF(D22=17,VLOOKUP(E22,TabLiza!$V$5:$W$75,2),IF(D22=16,VLOOKUP(E22,TabLiza!$U$5:$W$75,3),IF(D22=15,VLOOKUP(E22,TabLiza!$T$5:$W$75,4),IF(D22=14,VLOOKUP(E22,TabLiza!$S$5:$W$75,5),IF(D22=13,VLOOKUP(E22,TabLiza!$R$5:$W$75,6),IF(D22=12,VLOOKUP(E22,TabLiza!$Q$5:$W$75,7),IF(D22=11,VLOOKUP(E22,TabLiza!$P$5:$W$75,8),IF(D22=10,VLOOKUP(E22,TabLiza!$O$5:$W$75,9),IF(D22=9,VLOOKUP(E22,TabLiza!$N$5:$W$75,10),IF(D22=8,VLOOKUP(E22,TabLiza!$M$5:$W$75,11),IF(D22=7,VLOOKUP(E22,TabLiza!$M$5:$W$75,11),IF(D22>17,"")))))))))))))) -> 27 | G22: 6.22 | H22: =IF(D22<7,"",IF(G22="","",IF(D22=17,VLOOKUP(G22,TabLiza!$BA$5:$BB$75,2),IF(D22=16,VLOOKUP(G22,TabLiza!$AZ$5:$BB$75,3),IF(D22=15,VLOOKUP(G22,TabLiza!$AY$5:$BB$75,4),IF(D22=14,VLOOKUP(G22,TabLiza!$AX$5:$BB$75,5),IF(D22=13,VLOOKUP(G22,TabLiza!$AW$5:$BB$75,6),IF(D22=12,VLOOKUP(G22,TabLiza!$AV$5:$BB$75,7),IF(D22=11,VLOOKUP(G22,TabLiza!$AU$5:$BB$75,8),IF(D22=10,VLOOKUP(G22,TabLiza!$AT$5:$BB$75,9),IF(D22=9,VLOOKUP(G22,TabLiza!$AS$5:$BB$75,10),IF(D22=8,VLOOKUP(G22,TabLiza!$AR$5:$BB$75,11),IF(D22=7,VLOOKUP(G22,TabLiza!$AR$5:$BB$75,11),IF(D22>12,"")))))))))))))) -> 16 | I22: 4 | J22: =IF(D22<7,"",IF(I22="","",IF(D22=17,VLOOKUP(I22,TabLiza!$CF$5:$CG$75,2),IF(D22=16,VLOOKUP(I22,TabLiza!$CE$5:$CG$75,3),IF(D22=15,VLOOKUP(I22,TabLiza!$CD$5:$CG$75,4),IF(D22=14,VLOOKUP(I22,TabLiza!$CC$5:$CG$75,5),IF(D22=13,VLOOKUP(I22,TabLiza!$CB$5:$CG$75,6),IF(D22=12,VLOOKUP(I22,TabLiza!$CA$5:$CG$75,7),IF(D22=11,VLOOKUP(I22,TabLiza!$BZ$5:$CG$75,8),IF(D22=10,VLOOKUP(I22,TabLiza!$BY$5:$CG$75,9),IF(D22=9,VLOOKUP(I22,TabLiza!$BX$5:$CG$75,10),IF(D22=8,VLOOKUP(I22,TabLiza!$BW$5:$CG$75,11),IF(D22=7,VLOOKUP(I22,TabLiza!$BW$5:$CG$75,11),IF(D22>17,"")))))))))))))) -> 4 | K22: 27 | L22: =IF(D22<7,"",IF(K22="","",IF(D22=17,VLOOKUP(K22,TabLiza!$EB$5:$EC$75,2),IF(D22=16,VLOOKUP(K22,TabLiza!$EA$5:$EC$75,3),IF(D22=15,VLOOKUP(K22,TabLiza!$DZ$5:$EC$75,4),IF(D22=14,VLOOKUP(K22,TabLiza!$DY$5:$EC$75,5),IF(D22=13,VLOOKUP(K22,TabLiza!$DX$5:$EC$75,6),IF(D22=12,VLOOKUP(K22,TabLiza!$DW$5:$EC$75,7),IF(D22=11,VLOOKUP(K22,TabLiza!$DV$5:$EC$75,8),IF(D22=10,VLOOKUP(K22,TabLiza!$DU$5:$EC$75,9),IF(D22=9,VLOOKUP(K22,TabLiza!$DT$5:$EC$75,10),IF(D22=8,VLOOKUP(K22,TabLiza!$DS$5:$EC$75,11),IF(D22=7,VLOOKUP(K22,TabLiza!$DS$5:$EC$75,11),IF(D22>17,"")))))))))))))) -> 43 | M22: 159 | N22: =IF(D22<7,"",IF(M22="","",IF(D22=17,VLOOKUP(M22,TabLiza!$DD$5:$DE$75,2),IF(D22=16,VLOOKUP(M22,TabLiza!$DC$5:$DE$75,3),IF(D22=15,VLOOKUP(M22,TabLiza!$DB$5:$DE$75,4),IF(D22=14,VLOOKUP(M22,TabLiza!$DA$5:$DE$75,5),IF(D22=13,VLOOKUP(M22,TabLiza!$CZ$5:$DE$75,6),IF(D22=12,VLOOKUP(M22,TabLiza!$CY$5:$DE$75,7),IF(D22=11,VLOOKUP(M22,TabLiza!$CX$5:$DE$75,8),IF(D22=10,VLOOKUP(M22,TabLiza!$CW$5:$DE$75,9),IF(D22=9,VLOOKUP(M22,TabLiza!$CV$5:$DE$75,10),IF(D22=8,VLOOKUP(M22,TabLiza!$CU$5:$DE$75,11),IF(D22=7,VLOOKUP(M22,TabLiza!$CU$5:$DE$75,11),IF(D22>17,"")))))))))))))) -> 24 | O22: 4 | P22: =IF(D22<7,"",IF(O22="","",IF(D22=17,VLOOKUP(O22,TabLiza!$EZ$5:$FA$75,2),IF(D22=16,VLOOKUP(O22,TabLiza!$EY$5:$FA$75,3),IF(D22=15,VLOOKUP(O22,TabLiza!$EX$5:$FA$75,4),IF(D22=14,VLOOKUP(O22,TabLiza!$EW$5:$FA$75,5),IF(D22=13,VLOOKUP(O22,TabLiza!$EV$5:$FA$75,6),IF(D22=12,VLOOKUP(O22,TabLiza!$EU$5:$FA$75,7),IF(D22=11,VLOOKUP(O22,TabLiza!$ET$5:$FA$75,8),IF(D22=10,VLOOKUP(O22,TabLiza!$ES$5:$FA$75,9),IF(D22=9,VLOOKUP(O22,TabLiza!$ER$5:$FA$75,10),IF(D22=8,VLOOKUP(O22,TabLiza!$EQ$5:$FA$75,11),IF(D22=7,VLOOKUP(O22,TabLiza!$EQ$5:$FA$75,11),IF(D22>17,"")))))))))))))) -> 9 | R22: =IF(D22>15,"",IF(Q22="","",IF(D22=15,VLOOKUP(Q22,TabLiza!$BF$5:$BI$75,4),IF(D22=14,VLOOKUP(Q22,TabLiza!$BE$5:$BI$75,5),IF(D22=13,VLOOKUP(Q22,TabLiza!$BD$5:$BI$75,6),IF(D22<13,"")))))) ->  | T22: =IF(D22<16,"",IF(S22="","",IF(D22=17,VLOOKUP(S22,TabLiza!$BH$5:$BI$75,2),IF(D22=16,VLOOKUP(S22,TabLiza!$BG$5:$BI$75,3),IF(D22>17,""))))) ->  | U22: 123 | V22: 3
A23: 7 | B23: Слипенькая Дарья | C23: 15 | D23: 12 | E23: 00:05:23 | F23: =IF(D23<7,"",IF(E23="","",IF(D23=17,VLOOKUP(E23,TabLiza!$V$5:$W$75,2),IF(D23=16,VLOOKUP(E23,TabLiza!$U$5:$W$75,3),IF(D23=15,VLOOKUP(E23,TabLiza!$T$5:$W$75,4),IF(D23=14,VLOOKUP(E23,TabLiza!$S$5:$W$75,5),IF(D23=13,VLOOKUP(E23,TabLiza!$R$5:$W$75,6),IF(D23=12,VLOOKUP(E23,TabLiza!$Q$5:$W$75,7),IF(D23=11,VLOOKUP(E23,TabLiza!$P$5:$W$75,8),IF(D23=10,VLOOKUP(E23,TabLiza!$O$5:$W$75,9),IF(D23=9,VLOOKUP(E23,TabLiza!$N$5:$W$75,10),IF(D23=8,VLOOKUP(E23,TabLiza!$M$5:$W$75,11),IF(D23=7,VLOOKUP(E23,TabLiza!$M$5:$W$75,11),IF(D23>17,"")))))))))))))) -> 20 | G23: 5.87 | H23: =IF(D23<7,"",IF(G23="","",IF(D23=17,VLOOKUP(G23,TabLiza!$BA$5:$BB$75,2),IF(D23=16,VLOOKUP(G23,TabLiza!$AZ$5:$BB$75,3),IF(D23=15,VLOOKUP(G23,TabLiza!$AY$5:$BB$75,4),IF(D23=14,VLOOKUP(G23,TabLiza!$AX$5:$BB$75,5),IF(D23=13,VLOOKUP(G23,TabLiza!$AW$5:$BB$75,6),IF(D23=12,VLOOKUP(G23,TabLiza!$AV$5:$BB$75,7),IF(D23=11,VLOOKUP(G23,TabLiza!$AU$5:$BB$75,8),IF(D23=10,VLOOKUP(G23,TabLiza!$AT$5:$BB$75,9),IF(D23=9,VLOOKUP(G23,TabLiza!$AS$5:$BB$75,10),IF(D23=8,VLOOKUP(G23,TabLiza!$AR$5:$BB$75,11),IF(D23=7,VLOOKUP(G23,TabLiza!$AR$5:$BB$75,11),IF(D23>12,"")))))))))))))) -> 30 | I23: 0 | J23: =IF(D23<7,"",IF(I23="","",IF(D23=17,VLOOKUP(I23,TabLiza!$CF$5:$CG$75,2),IF(D23=16,VLOOKUP(I23,TabLiza!$CE$5:$CG$75,3),IF(D23=15,VLOOKUP(I23,TabLiza!$CD$5:$CG$75,4),IF(D23=14,VLOOKUP(I23,TabLiza!$CC$5:$CG$75,5),IF(D23=13,VLOOKUP(I23,TabLiza!$CB$5:$CG$75,6),IF(D23=12,VLOOKUP(I23,TabLiza!$CA$5:$CG$75,7),IF(D23=11,VLOOKUP(I23,TabLiza!$BZ$5:$CG$75,8),IF(D23=10,VLOOKUP(I23,TabLiza!$BY$5:$CG$75,9),IF(D23=9,VLOOKUP(I23,TabLiza!$BX$5:$CG$75,10),IF(D23=8,VLOOKUP(I23,TabLiza!$BW$5:$CG$75,11),IF(D23=7,VLOOKUP(I23,TabLiza!$BW$5:$CG$75,11),IF(D23>17,"")))))))))))))) -> 0 | K23: 27 | L23: =IF(D23<7,"",IF(K23="","",IF(D23=17,VLOOKUP(K23,TabLiza!$EB$5:$EC$75,2),IF(D23=16,VLOOKUP(K23,TabLiza!$EA$5:$EC$75,3),IF(D23=15,VLOOKUP(K23,TabLiza!$DZ$5:$EC$75,4),IF(D23=14,VLOOKUP(K23,TabLiza!$DY$5:$EC$75,5),IF(D23=13,VLOOKUP(K23,TabLiza!$DX$5:$EC$75,6),IF(D23=12,VLOOKUP(K23,TabLiza!$DW$5:$EC$75,7),IF(D23=11,VLOOKUP(K23,TabLiza!$DV$5:$EC$75,8),IF(D23=10,VLOOKUP(K23,TabLiza!$DU$5:$EC$75,9),IF(D23=9,VLOOKUP(K23,TabLiza!$DT$5:$EC$75,10),IF(D23=8,VLOOKUP(K23,TabLiza!$DS$5:$EC$75,11),IF(D23=7,VLOOKUP(K23,TabLiza!$DS$5:$EC$75,11),IF(D23>17,"")))))))))))))) -> 43 | M23: 159 | N23: =IF(D23<7,"",IF(M23="","",IF(D23=17,VLOOKUP(M23,TabLiza!$DD$5:$DE$75,2),IF(D23=16,VLOOKUP(M23,TabLiza!$DC$5:$DE$75,3),IF(D23=15,VLOOKUP(M23,TabLiza!$DB$5:$DE$75,4),IF(D23=14,VLOOKUP(M23,TabLiza!$DA$5:$DE$75,5),IF(D23=13,VLOOKUP(M23,TabLiza!$CZ$5:$DE$75,6),IF(D23=12,VLOOKUP(M23,TabLiza!$CY$5:$DE$75,7),IF(D23=11,VLOOKUP(M23,TabLiza!$CX$5:$DE$75,8),IF(D23=10,VLOOKUP(M23,TabLiza!$CW$5:$DE$75,9),IF(D23=9,VLOOKUP(M23,TabLiza!$CV$5:$DE$75,10),IF(D23=8,VLOOKUP(M23,TabLiza!$CU$5:$DE$75,11),IF(D23=7,VLOOKUP(M23,TabLiza!$CU$5:$DE$75,11),IF(D23>17,"")))))))))))))) -> 24 | O23: 12 | P23: =IF(D23<7,"",IF(O23="","",IF(D23=17,VLOOKUP(O23,TabLiza!$EZ$5:$FA$75,2),IF(D23=16,VLOOKUP(O23,TabLiza!$EY$5:$FA$75,3),IF(D23=15,VLOOKUP(O23,TabLiza!$EX$5:$FA$75,4),IF(D23=14,VLOOKUP(O23,TabLiza!$EW$5:$FA$75,5),IF(D23=13,VLOOKUP(O23,TabLiza!$EV$5:$FA$75,6),IF(D23=12,VLOOKUP(O23,TabLiza!$EU$5:$FA$75,7),IF(D23=11,VLOOKUP(O23,TabLiza!$ET$5:$FA$75,8),IF(D23=10,VLOOKUP(O23,TabLiza!$ES$5:$FA$75,9),IF(D23=9,VLOOKUP(O23,TabLiza!$ER$5:$FA$75,10),IF(D23=8,VLOOKUP(O23,TabLiza!$EQ$5:$FA$75,11),IF(D23=7,VLOOKUP(O23,TabLiza!$EQ$5:$FA$75,11),IF(D23>17,"")))))))))))))) -> 25 | R23: =IF(D23>15,"",IF(Q23="","",IF(D23=15,VLOOKUP(Q23,TabLiza!$BF$5:$BI$75,4),IF(D23=14,VLOOKUP(Q23,TabLiza!$BE$5:$BI$75,5),IF(D23=13,VLOOKUP(Q23,TabLiza!$BD$5:$BI$75,6),IF(D23<13,"")))))) ->  | T23: =IF(D23<16,"",IF(S23="","",IF(D23=17,VLOOKUP(S23,TabLiza!$BH$5:$BI$75,2),IF(D23=16,VLOOKUP(S23,TabLiza!$BG$5:$BI$75,3),IF(D23>17,""))))) ->  | U23: 142 | V23: 1
A24: 8 | B24: Шелегова Ульяна | C24: 16 | D24: 12 | E24: 00:05:35 | F24: =IF(D24<7,"",IF(E24="","",IF(D24=17,VLOOKUP(E24,TabLiza!$V$5:$W$75,2),IF(D24=16,VLOOKUP(E24,TabLiza!$U$5:$W$75,3),IF(D24=15,VLOOKUP(E24,TabLiza!$T$5:$W$75,4),IF(D24=14,VLOOKUP(E24,TabLiza!$S$5:$W$75,5),IF(D24=13,VLOOKUP(E24,TabLiza!$R$5:$W$75,6),IF(D24=12,VLOOKUP(E24,TabLiza!$Q$5:$W$75,7),IF(D24=11,VLOOKUP(E24,TabLiza!$P$5:$W$75,8),IF(D24=10,VLOOKUP(E24,TabLiza!$O$5:$W$75,9),IF(D24=9,VLOOKUP(E24,TabLiza!$N$5:$W$75,10),IF(D24=8,VLOOKUP(E24,TabLiza!$M$5:$W$75,11),IF(D24=7,VLOOKUP(E24,TabLiza!$M$5:$W$75,11),IF(D24>17,"")))))))))))))) -> 17 | G24: 6.5 | H24: =IF(D24<7,"",IF(G24="","",IF(D24=17,VLOOKUP(G24,TabLiza!$BA$5:$BB$75,2),IF(D24=16,VLOOKUP(G24,TabLiza!$AZ$5:$BB$75,3),IF(D24=15,VLOOKUP(G24,TabLiza!$AY$5:$BB$75,4),IF(D24=14,VLOOKUP(G24,TabLiza!$AX$5:$BB$75,5),IF(D24=13,VLOOKUP(G24,TabLiza!$AW$5:$BB$75,6),IF(D24=12,VLOOKUP(G24,TabLiza!$AV$5:$BB$75,7),IF(D24=11,VLOOKUP(G24,TabLiza!$AU$5:$BB$75,8),IF(D24=10,VLOOKUP(G24,TabLiza!$AT$5:$BB$75,9),IF(D24=9,VLOOKUP(G24,TabLiza!$AS$5:$BB$75,10),IF(D24=8,VLOOKUP(G24,TabLiza!$AR$5:$BB$75,11),IF(D24=7,VLOOKUP(G24,TabLiza!$AR$5:$BB$75,11),IF(D24>12,"")))))))))))))) -> 9 | I24: 0 | J24: =IF(D24<7,"",IF(I24="","",IF(D24=17,VLOOKUP(I24,TabLiza!$CF$5:$CG$75,2),IF(D24=16,VLOOKUP(I24,TabLiza!$CE$5:$CG$75,3),IF(D24=15,VLOOKUP(I24,TabLiza!$CD$5:$CG$75,4),IF(D24=14,VLOOKUP(I24,TabLiza!$CC$5:$CG$75,5),IF(D24=13,VLOOKUP(I24,TabLiza!$CB$5:$CG$75,6),IF(D24=12,VLOOKUP(I24,TabLiza!$CA$5:$CG$75,7),IF(D24=11,VLOOKUP(I24,TabLiza!$BZ$5:$CG$75,8),IF(D24=10,VLOOKUP(I24,TabLiza!$BY$5:$CG$75,9),IF(D24=9,VLOOKUP(I24,TabLiza!$BX$5:$CG$75,10),IF(D24=8,VLOOKUP(I24,TabLiza!$BW$5:$CG$75,11),IF(D24=7,VLOOKUP(I24,TabLiza!$BW$5:$CG$75,11),IF(D24>17,"")))))))))))))) -> 0 | K24: 23 | L24: =IF(D24<7,"",IF(K24="","",IF(D24=17,VLOOKUP(K24,TabLiza!$EB$5:$EC$75,2),IF(D24=16,VLOOKUP(K24,TabLiza!$EA$5:$EC$75,3),IF(D24=15,VLOOKUP(K24,TabLiza!$DZ$5:$EC$75,4),IF(D24=14,VLOOKUP(K24,TabLiza!$DY$5:$EC$75,5),IF(D24=13,VLOOKUP(K24,TabLiza!$DX$5:$EC$75,6),IF(D24=12,VLOOKUP(K24,TabLiza!$DW$5:$EC$75,7),IF(D24=11,VLOOKUP(K24,TabLiza!$DV$5:$EC$75,8),IF(D24=10,VLOOKUP(K24,TabLiza!$DU$5:$EC$75,9),IF(D24=9,VLOOKUP(K24,TabLiza!$DT$5:$EC$75,10),IF(D24=8,VLOOKUP(K24,TabLiza!$DS$5:$EC$75,11),IF(D24=7,VLOOKUP(K24,TabLiza!$DS$5:$EC$75,11),IF(D24>17,"")))))))))))))) -> 35 | M24: 133 | N24: =IF(D24<7,"",IF(M24="","",IF(D24=17,VLOOKUP(M24,TabLiza!$DD$5:$DE$75,2),IF(D24=16,VLOOKUP(M24,TabLiza!$DC$5:$DE$75,3),IF(D24=15,VLOOKUP(M24,TabLiza!$DB$5:$DE$75,4),IF(D24=14,VLOOKUP(M24,TabLiza!$DA$5:$DE$75,5),IF(D24=13,VLOOKUP(M24,TabLiza!$CZ$5:$DE$75,6),IF(D24=12,VLOOKUP(M24,TabLiza!$CY$5:$DE$75,7),IF(D24=11,VLOOKUP(M24,TabLiza!$CX$5:$DE$75,8),IF(D24=10,VLOOKUP(M24,TabLiza!$CW$5:$DE$75,9),IF(D24=9,VLOOKUP(M24,TabLiza!$CV$5:$DE$75,10),IF(D24=8,VLOOKUP(M24,TabLiza!$CU$5:$DE$75,11),IF(D24=7,VLOOKUP(M24,TabLiza!$CU$5:$DE$75,11),IF(D24>17,"")))))))))))))) -> 11 | O24: 5 | P24: =IF(D24<7,"",IF(O24="","",IF(D24=17,VLOOKUP(O24,TabLiza!$EZ$5:$FA$75,2),IF(D24=16,VLOOKUP(O24,TabLiza!$EY$5:$FA$75,3),IF(D24=15,VLOOKUP(O24,TabLiza!$EX$5:$FA$75,4),IF(D24=14,VLOOKUP(O24,TabLiza!$EW$5:$FA$75,5),IF(D24=13,VLOOKUP(O24,TabLiza!$EV$5:$FA$75,6),IF(D24=12,VLOOKUP(O24,TabLiza!$EU$5:$FA$75,7),IF(D24=11,VLOOKUP(O24,TabLiza!$ET$5:$FA$75,8),IF(D24=10,VLOOKUP(O24,TabLiza!$ES$5:$FA$75,9),IF(D24=9,VLOOKUP(O24,TabLiza!$ER$5:$FA$75,10),IF(D24=8,VLOOKUP(O24,TabLiza!$EQ$5:$FA$75,11),IF(D24=7,VLOOKUP(O24,TabLiza!$EQ$5:$FA$75,11),IF(D24>17,"")))))))))))))) -> 11 | R24: =IF(D24>15,"",IF(Q24="","",IF(D24=15,VLOOKUP(Q24,TabLiza!$BF$5:$BI$75,4),IF(D24=14,VLOOKUP(Q24,TabLiza!$BE$5:$BI$75,5),IF(D24=13,VLOOKUP(Q24,TabLiza!$BD$5:$BI$75,6),IF(D24<13,"")))))) ->  | T24: =IF(D24<16,"",IF(S24="","",IF(D24=17,VLOOKUP(S24,TabLiza!$BH$5:$BI$75,2),IF(D24=16,VLOOKUP(S24,TabLiza!$BG$5:$BI$75,3),IF(D24>17,""))))) ->  | U24: 83 | V24: 7
B26: Главный судья | R26: всего очков | зачёт | U26: =SUM(U17:U24) -> 851 | V26: =U26-MIN(U17:U24) -> 782
B27: Главный секретарь | R27: командных очков в зачёт: | V27: =SUM(V13,V26) -> 1741

Sheet 121-6б (hidden)
B1: МБОУ №121
A2: № п/п | B2: мальчики | C2: № уч-ка | D2: возраст (полных лет) | E2: 1 | G2: 2 | I2: 3 | K2: 4 | M2: 5 | O2: 6 | Q2: 7 | S2: 8 | U2: 9 | V2: 10
B3: Фамилия Имя | E3: бег 1000м | F3: очки | G3: бег 30м | H3: очки | I3: подтягивание | J3: очки | K3: пресс за 30" | L3: очки | M3: прыжок с места | N3: очки | O3: гибкость | P3: очки | Q3: бег 60м | R3: очки | S3: бег 100м | T3: очки | U3: сумма очков | V3: Место
A4: 1 | B4: Борзых Арсений | C4: 1 | D4: 12 | E4: 00:04:09 | F4: =IF(D4<7,"",IF(E4="","",IF(D4=17,VLOOKUP(E4,TabLiza!$J$5:$K$75,2),IF(D4=16,VLOOKUP(E4,TabLiza!$I$5:$K$75,3),IF(D4=15,VLOOKUP(E4,TabLiza!$H$5:$K$75,4),IF(D4=14,VLOOKUP(E4,TabLiza!$G$5:$K$75,5),IF(D4=13,VLOOKUP(E4,TabLiza!$F$5:$K$75,6),IF(D4=12,VLOOKUP(E4,TabLiza!$E$5:$K$75,7),IF(D4=11,VLOOKUP(E4,TabLiza!$D$5:K$75,8),IF(D4=10,VLOOKUP(E4,TabLiza!$C$5:$K$75,9),IF(D4=9,VLOOKUP(E4,TabLiza!$B$5:$K$75,10),IF(D4=8,VLOOKUP(E4,TabLiza!$A$5:$K$75,11),IF(D4=7,VLOOKUP(E4,TabLiza!$A$5:$K$75,11),IF(D4>17,"")))))))))))))) -> 35 | G4: 5.38 | H4: =IF(D4<7,"",IF(G4="","",IF(D4=17,VLOOKUP(G4,TabLiza!$AH$5:$AI$75,2),IF(D4=16,VLOOKUP(G4,TabLiza!$AG$5:$AI$75,3),IF(D4=15,VLOOKUP(G4,TabLiza!$AF$5:$AI$75,4),IF(D4=14,VLOOKUP(G4,TabLiza!$AE$5:$AI$75,5),IF(D4=13,VLOOKUP(G4,TabLiza!$AD$5:$AI$75,6),IF(D4=12,VLOOKUP(G4,TabLiza!$AC$5:$AI$75,7),IF(D4=11,VLOOKUP(G4,TabLiza!$AB$5:$AI$75,8),IF(D4=10,VLOOKUP(G4,TabLiza!$AA$5:$AI$75,9),IF(D4=9,VLOOKUP(G4,TabLiza!$Z$5:$AI$75,10),IF(D4=8,VLOOKUP(G4,TabLiza!$Y$5:$AI$75,11),IF(D4=7,VLOOKUP(G4,TabLiza!$Y$5:$AI$75,11),IF(D4>12,"")))))))))))))) -> 40 | I4: 4 | J4: =IF(D4<7,"",IF(I4="","",IF(D4=17,VLOOKUP(I4,TabLiza!$BT$5:$BU$75,2),IF(D4=16,VLOOKUP(I4,TabLiza!$BS$5:$BU$75,3),IF(D4=15,VLOOKUP(I4,TabLiza!$BR$5:$BU$75,4),IF(D4=14,VLOOKUP(I4,TabLiza!$BQ$5:$BU$75,5),IF(D4=13,VLOOKUP(I4,TabLiza!$BP$5:$BU$75,6),IF(D4=12,VLOOKUP(I4,TabLiza!$BO$5:$BU$75,7),IF(D4=11,VLOOKUP(I4,TabLiza!$BN$5:$BU$75,8),IF(D4=10,VLOOKUP(I4,TabLiza!$BM$5:$BU$75,9),IF(D4=9,VLOOKUP(I4,TabLiza!$BL$5:$BU$75,10),IF(D4=8,VLOOKUP(I4,TabLiza!$BK$5:$BU$75,11),IF(D4=7,VLOOKUP(I4,TabLiza!$BK$5:$BU$75,11),IF(D4>17,"")))))))))))))) -> 16 | K4: 33 | L4: =IF(D4<7,"",IF(K4="","",IF(D4=17,VLOOKUP(K4,TabLiza!$DP$5:$DQ$75,2),IF(D4=16,VLOOKUP(K4,TabLiza!$DO$5:$DQ$75,3),IF(D4=15,VLOOKUP(K4,TabLiza!$DN$5:$DQ$75,4),IF(D4=14,VLOOKUP(K4,TabLiza!$DM$5:$DQ$75,5),IF(D4=13,VLOOKUP(K4,TabLiza!$DL$5:$DQ$75,6),IF(D4=12,VLOOKUP(K4,TabLiza!$DK$5:$DQ$75,7),IF(D4=11,VLOOKUP(K4,TabLiza!$DJ$5:$DQ$75,8),IF(D4=10,VLOOKUP(K4,TabLiza!$DI$5:$DQ$75,9),IF(D4=9,VLOOKUP(K4,TabLiza!$DH$5:$DQ$75,10),IF(D4=8,VLOOKUP(K4,TabLiza!$DG$5:$DQ$75,11),IF(D4=7,VLOOKUP(K4,TabLiza!$DG$5:$DQ$75,11),IF(D4>17,"")))))))))))))) -> 48 | M4: 200 | N4: =IF(D4<7,"",IF(M4="","",IF(D4=17,VLOOKUP(M4,TabLiza!$CR$5:$CS$75,2),IF(D4=16,VLOOKUP(M4,TabLiza!$CQ$5:$CS$75,3),IF(D4=15,VLOOKUP(M4,TabLiza!$CP$5:$CS$75,4),IF(D4=14,VLOOKUP(M4,TabLiza!$CO$5:$CS$75,5),IF(D4=13,VLOOKUP(M4,TabLiza!$CN$5:$CS$75,6),IF(D4=12,VLOOKUP(M4,TabLiza!$CM$5:$CS$75,7),IF(D4=11,VLOOKUP(M4,TabLiza!$CL$5:$CS$75,8),IF(D4=10,VLOOKUP(M4,TabLiza!$CK$5:$CS$75,9),IF(D4=9,VLOOKUP(M4,TabLiza!$CJ$5:$CS$75,10),IF(D4=8,VLOOKUP(M4,TabLiza!$CI$5:$CS$75,11),IF(D4=7,VLOOKUP(M4,TabLiza!$CI$5:$CS$75,11),IF(D4>17,"")))))))))))))) -> 35 | O4: 4 | P4: =IF(D4<7,"",IF(O4="","",IF(D4=17,VLOOKUP(O4,TabLiza!$EN$5:$EO$75,2),IF(D4=16,VLOOKUP(O4,TabLiza!$EM$5:$EO$75,3),IF(D4=15,VLOOKUP(O4,TabLiza!$EL$5:$EO$75,4),IF(D4=14,VLOOKUP(O4,TabLiza!$EK$5:$EO$75,5),IF(D4=13,VLOOKUP(O4,TabLiza!$EJ$5:$EO$75,6),IF(D4=12,VLOOKUP(O4,TabLiza!$EI$5:$EO$75,7),IF(D4=11,VLOOKUP(O4,TabLiza!$EH$5:$EO$75,8),IF(D4=10,VLOOKUP(O4,TabLiza!$EG$5:$EO$75,9),IF(D4=9,VLOOKUP(O4,TabLiza!$EF$5:$EO$75,10),IF(D4=8,VLOOKUP(O4,TabLiza!$EE$5:$EO$75,11),IF(D4=7,VLOOKUP(O4,TabLiza!$EE$5:$EO$75,11),IF(D4>17,"")))))))))))))) -> 14 | R4: =IF(D4>15,"",IF(Q4="","",IF(D4=15,VLOOKUP(Q4,TabLiza!$AM$5:$AP$75,4),IF(D4=14,VLOOKUP(Q4,TabLiza!$AL$5:$AP$75,5),IF(D4=13,VLOOKUP(Q4,TabLiza!$AK$5:$AP$75,6),IF(D4<13,"")))))) ->  | T4: =IF(D4<16,"",IF(S4="","",IF(D4=17,VLOOKUP(S4,TabLiza!$AO$5:$AP$75,2),IF(D4=16,VLOOKUP(S4,TabLiza!$AN$5:$AP$75,3),IF(D4>17,""))))) ->  | U4: =SUM(F4,H4,J4,L4,N4,P4,R4,T4) -> 188 | V4: =IF(U4=0,"",(RANK(U4,$U$4:$U$11,0))) -> 1
A5: =A4+1 -> 2 | B5: Водолага Данила | C5: =C4+1 -> 2 | D5: 13 | E5: 00:03:44 | F5: =IF(D5<7,"",IF(E5="","",IF(D5=17,VLOOKUP(E5,TabLiza!$J$5:$K$75,2),IF(D5=16,VLOOKUP(E5,TabLiza!$I$5:$K$75,3),IF(D5=15,VLOOKUP(E5,TabLiza!$H$5:$K$75,4),IF(D5=14,VLOOKUP(E5,TabLiza!$G$5:$K$75,5),IF(D5=13,VLOOKUP(E5,TabLiza!$F$5:$K$75,6),IF(D5=12,VLOOKUP(E5,TabLiza!$E$5:$K$75,7),IF(D5=11,VLOOKUP(E5,TabLiza!$D$5:K$75,8),IF(D5=10,VLOOKUP(E5,TabLiza!$C$5:$K$75,9),IF(D5=9,VLOOKUP(E5,TabLiza!$B$5:$K$75,10),IF(D5=8,VLOOKUP(E5,TabLiza!$A$5:$K$75,11),IF(D5=7,VLOOKUP(E5,TabLiza!$A$5:$K$75,11),IF(D5>17,"")))))))))))))) -> 41 | G5: 5.18 | H5: =IF(D5<7,"",IF(G5="","",IF(D5=17,VLOOKUP(G5,TabLiza!$AH$5:$AI$75,2),IF(D5=16,VLOOKUP(G5,TabLiza!$AG$5:$AI$75,3),IF(D5=15,VLOOKUP(G5,TabLiza!$AF$5:$AI$75,4),IF(D5=14,VLOOKUP(G5,TabLiza!$AE$5:$AI$75,5),IF(D5=13,VLOOKUP(G5,TabLiza!$AD$5:$AI$75,6),IF(D5=12,VLOOKUP(G5,TabLiza!$AC$5:$AI$75,7),IF(D5=11,VLOOKUP(G5,TabLiza!$AB$5:$AI$75,8),IF(D5=10,VLOOKUP(G5,TabLiza!$AA$5:$AI$75,9),IF(D5=9,VLOOKUP(G5,TabLiza!$Z$5:$AI$75,10),IF(D5=8,VLOOKUP(G5,TabLiza!$Y$5:$AI$75,11),IF(D5=7,VLOOKUP(G5,TabLiza!$Y$5:$AI$75,11),IF(D5>12,"")))))))))))))) -> 40 | I5: 8 | J5: =IF(D5<7,"",IF(I5="","",IF(D5=17,VLOOKUP(I5,TabLiza!$BT$5:$BU$75,2),IF(D5=16,VLOOKUP(I5,TabLiza!$BS$5:$BU$75,3),IF(D5=15,VLOOKUP(I5,TabLiza!$BR$5:$BU$75,4),IF(D5=14,VLOOKUP(I5,TabLiza!$BQ$5:$BU$75,5),IF(D5=13,VLOOKUP(I5,TabLiza!$BP$5:$BU$75,6),IF(D5=12,VLOOKUP(I5,TabLiza!$BO$5:$BU$75,7),IF(D5=11,VLOOKUP(I5,TabLiza!$BN$5:$BU$75,8),IF(D5=10,VLOOKUP(I5,TabLiza!$BM$5:$BU$75,9),IF(D5=9,VLOOKUP(I5,TabLiza!$BL$5:$BU$75,10),IF(D5=8,VLOOKUP(I5,TabLiza!$BK$5:$BU$75,11),IF(D5=7,VLOOKUP(I5,TabLiza!$BK$5:$BU$75,11),IF(D5>17,"")))))))))))))) -> 26 | K5: 29 | L5: =IF(D5<7,"",IF(K5="","",IF(D5=17,VLOOKUP(K5,TabLiza!$DP$5:$DQ$75,2),IF(D5=16,VLOOKUP(K5,TabLiza!$DO$5:$DQ$75,3),IF(D5=15,VLOOKUP(K5,TabLiza!$DN$5:$DQ$75,4),IF(D5=14,VLOOKUP(K5,TabLiza!$DM$5:$DQ$75,5),IF(D5=13,VLOOKUP(K5,TabLiza!$DL$5:$DQ$75,6),IF(D5=12,VLOOKUP(K5,TabLiza!$DK$5:$DQ$75,7),IF(D5=11,VLOOKUP(K5,TabLiza!$DJ$5:$DQ$75,8),IF(D5=10,VLOOKUP(K5,TabLiza!$DI$5:$DQ$75,9),IF(D5=9,VLOOKUP(K5,TabLiza!$DH$5:$DQ$75,10),IF(D5=8,VLOOKUP(K5,TabLiza!$DG$5:$DQ$75,11),IF(D5=7,VLOOKUP(K5,TabLiza!$DG$5:$DQ$75,11),IF(D5>17,"")))))))))))))) -> 32 | M5: 205 | N5: =IF(D5<7,"",IF(M5="","",IF(D5=17,VLOOKUP(M5,TabLiza!$CR$5:$CS$75,2),IF(D5=16,VLOOKUP(M5,TabLiza!$CQ$5:$CS$75,3),IF(D5=15,VLOOKUP(M5,TabLiza!$CP$5:$CS$75,4),IF(D5=14,VLOOKUP(M5,TabLiza!$CO$5:$CS$75,5),IF(D5=13,VLOOKUP(M5,TabLiza!$CN$5:$CS$75,6),IF(D5=12,VLOOKUP(M5,TabLiza!$CM$5:$CS$75,7),IF(D5=11,VLOOKUP(M5,TabLiza!$CL$5:$CS$75,8),IF(D5=10,VLOOKUP(M5,TabLiza!$CK$5:$CS$75,9),IF(D5=9,VLOOKUP(M5,TabLiza!$CJ$5:$CS$75,10),IF(D5=8,VLOOKUP(M5,TabLiza!$CI$5:$CS$75,11),IF(D5=7,VLOOKUP(M5,TabLiza!$CI$5:$CS$75,11),IF(D5>17,"")))))))))))))) -> 30 | O5: 7 | P5: =IF(D5<7,"",IF(O5="","",IF(D5=17,VLOOKUP(O5,TabLiza!$EN$5:$EO$75,2),IF(D5=16,VLOOKUP(O5,TabLiza!$EM$5:$EO$75,3),IF(D5=15,VLOOKUP(O5,TabLiza!$EL$5:$EO$75,4),IF(D5=14,VLOOKUP(O5,TabLiza!$EK$5:$EO$75,5),IF(D5=13,VLOOKUP(O5,TabLiza!$EJ$5:$EO$75,6),IF(D5=12,VLOOKUP(O5,TabLiza!$EI$5:$EO$75,7),IF(D5=11,VLOOKUP(O5,TabLiza!$EH$5:$EO$75,8),IF(D5=10,VLOOKUP(O5,TabLiza!$EG$5:$EO$75,9),IF(D5=9,VLOOKUP(O5,TabLiza!$EF$5:$EO$75,10),IF(D5=8,VLOOKUP(O5,TabLiza!$EE$5:$EO$75,11),IF(D5=7,VLOOKUP(O5,TabLiza!$EE$5:$EO$75,11),IF(D5>17,"")))))))))))))) -> 18 | R5: =IF(D5>15,"",IF(Q5="","",IF(D5=15,VLOOKUP(Q5,TabLiza!$AM$5:$AP$75,4),IF(D5=14,VLOOKUP(Q5,TabLiza!$AL$5:$AP$75,5),IF(D5=13,VLOOKUP(Q5,TabLiza!$AK$5:$AP$75,6),IF(D5<13,"")))))) ->  | T5: =IF(D5<16,"",IF(S5="","",IF(D5=17,VLOOKUP(S5,TabLiza!$AO$5:$AP$75,2),IF(D5=16,VLOOKUP(S5,TabLiza!$AN$5:$AP$75,3),IF(D5>17,""))))) ->  | U5: =SUM(F5,H5,J5,L5,N5,P5,R5,T5) -> 187 | V5: 2
A6: =A5+1 -> 3 | B6: Беспалов Иван | C6: =C5+1 -> 3 | D6: 13 | E6: 00:03:54 | F6: =IF(D6<7,"",IF(E6="","",IF(D6=17,VLOOKUP(E6,TabLiza!$J$5:$K$75,2),IF(D6=16,VLOOKUP(E6,TabLiza!$I$5:$K$75,3),IF(D6=15,VLOOKUP(E6,TabLiza!$H$5:$K$75,4),IF(D6=14,VLOOKUP(E6,TabLiza!$G$5:$K$75,5),IF(D6=13,VLOOKUP(E6,TabLiza!$F$5:$K$75,6),IF(D6=12,VLOOKUP(E6,TabLiza!$E$5:$K$75,7),IF(D6=11,VLOOKUP(E6,TabLiza!$D$5:K$75,8),IF(D6=10,VLOOKUP(E6,TabLiza!$C$5:$K$75,9),IF(D6=9,VLOOKUP(E6,TabLiza!$B$5:$K$75,10),IF(D6=8,VLOOKUP(E6,TabLiza!$A$5:$K$75,11),IF(D6=7,VLOOKUP(E6,TabLiza!$A$5:$K$75,11),IF(D6>17,"")))))))))))))) -> 36 | G6: 5.4 | H6: =IF(D6<7,"",IF(G6="","",IF(D6=17,VLOOKUP(G6,TabLiza!$AH$5:$AI$75,2),IF(D6=16,VLOOKUP(G6,TabLiza!$AG$5:$AI$75,3),IF(D6=15,VLOOKUP(G6,TabLiza!$AF$5:$AI$75,4),IF(D6=14,VLOOKUP(G6,TabLiza!$AE$5:$AI$75,5),IF(D6=13,VLOOKUP(G6,TabLiza!$AD$5:$AI$75,6),IF(D6=12,VLOOKUP(G6,TabLiza!$AC$5:$AI$75,7),IF(D6=11,VLOOKUP(G6,TabLiza!$AB$5:$AI$75,8),IF(D6=10,VLOOKUP(G6,TabLiza!$AA$5:$AI$75,9),IF(D6=9,VLOOKUP(G6,TabLiza!$Z$5:$AI$75,10),IF(D6=8,VLOOKUP(G6,TabLiza!$Y$5:$AI$75,11),IF(D6=7,VLOOKUP(G6,TabLiza!$Y$5:$AI$75,11),IF(D6>12,"")))))))))))))) -> 28 | I6: 9 | J6: =IF(D6<7,"",IF(I6="","",IF(D6=17,VLOOKUP(I6,TabLiza!$BT$5:$BU$75,2),IF(D6=16,VLOOKUP(I6,TabLiza!$BS$5:$BU$75,3),IF(D6=15,VLOOKUP(I6,TabLiza!$BR$5:$BU$75,4),IF(D6=14,VLOOKUP(I6,TabLiza!$BQ$5:$BU$75,5),IF(D6=13,VLOOKUP(I6,TabLiza!$BP$5:$BU$75,6),IF(D6=12,VLOOKUP(I6,TabLiza!$BO$5:$BU$75,7),IF(D6=11,VLOOKUP(I6,TabLiza!$BN$5:$BU$75,8),IF(D6=10,VLOOKUP(I6,TabLiza!$BM$5:$BU$75,9),IF(D6=9,VLOOKUP(I6,TabLiza!$BL$5:$BU$75,10),IF(D6=8,VLOOKUP(I6,TabLiza!$BK$5:$BU$75,11),IF(D6=7,VLOOKUP(I6,TabLiza!$BK$5:$BU$75,11),IF(D6>17,"")))))))))))))) -> 30 | K6: 34 | L6: =IF(D6<7,"",IF(K6="","",IF(D6=17,VLOOKUP(K6,TabLiza!$DP$5:$DQ$75,2),IF(D6=16,VLOOKUP(K6,TabLiza!$DO$5:$DQ$75,3),IF(D6=15,VLOOKUP(K6,TabLiza!$DN$5:$DQ$75,4),IF(D6=14,VLOOKUP(K6,TabLiza!$DM$5:$DQ$75,5),IF(D6=13,VLOOKUP(K6,TabLiza!$DL$5:$DQ$75,6),IF(D6=12,VLOOKUP(K6,TabLiza!$DK$5:$DQ$75,7),IF(D6=11,VLOOKUP(K6,TabLiza!$DJ$5:$DQ$75,8),IF(D6=10,VLOOKUP(K6,TabLiza!$DI$5:$DQ$75,9),IF(D6=9,VLOOKUP(K6,TabLiza!$DH$5:$DQ$75,10),IF(D6=8,VLOOKUP(K6,TabLiza!$DG$5:$DQ$75,11),IF(D6=7,VLOOKUP(K6,TabLiza!$DG$5:$DQ$75,11),IF(D6>17,"")))))))))))))) -> 42 | M6: 205 | N6: =IF(D6<7,"",IF(M6="","",IF(D6=17,VLOOKUP(M6,TabLiza!$CR$5:$CS$75,2),IF(D6=16,VLOOKUP(M6,TabLiza!$CQ$5:$CS$75,3),IF(D6=15,VLOOKUP(M6,TabLiza!$CP$5:$CS$75,4),IF(D6=14,VLOOKUP(M6,TabLiza!$CO$5:$CS$75,5),IF(D6=13,VLOOKUP(M6,TabLiza!$CN$5:$CS$75,6),IF(D6=12,VLOOKUP(M6,TabLiza!$CM$5:$CS$75,7),IF(D6=11,VLOOKUP(M6,TabLiza!$CL$5:$CS$75,8),IF(D6=10,VLOOKUP(M6,TabLiza!$CK$5:$CS$75,9),IF(D6=9,VLOOKUP(M6,TabLiza!$CJ$5:$CS$75,10),IF(D6=8,VLOOKUP(M6,TabLiza!$CI$5:$CS$75,11),IF(D6=7,VLOOKUP(M6,TabLiza!$CI$5:$CS$75,11),IF(D6>17,"")))))))))))))) -> 30 | O6: 1 | P6: =IF(D6<7,"",IF(O6="","",IF(D6=17,VLOOKUP(O6,TabLiza!$EN$5:$EO$75,2),IF(D6=16,VLOOKUP(O6,TabLiza!$EM$5:$EO$75,3),IF(D6=15,VLOOKUP(O6,TabLiza!$EL$5:$EO$75,4),IF(D6=14,VLOOKUP(O6,TabLiza!$EK$5:$EO$75,5),IF(D6=13,VLOOKUP(O6,TabLiza!$EJ$5:$EO$75,6),IF(D6=12,VLOOKUP(O6,TabLiza!$EI$5:$EO$75,7),IF(D6=11,VLOOKUP(O6,TabLiza!$EH$5:$EO$75,8),IF(D6=10,VLOOKUP(O6,TabLiza!$EG$5:$EO$75,9),IF(D6=9,VLOOKUP(O6,TabLiza!$EF$5:$EO$75,10),IF(D6=8,VLOOKUP(O6,TabLiza!$EE$5:$EO$75,11),IF(D6=7,VLOOKUP(O6,TabLiza!$EE$5:$EO$75,11),IF(D6>17,"")))))))))))))) -> 6 | R6: =IF(D6>15,"",IF(Q6="","",IF(D6=15,VLOOKUP(Q6,TabLiza!$AM$5:$AP$75,4),IF(D6=14,VLOOKUP(Q6,TabLiza!$AL$5:$AP$75,5),IF(D6=13,VLOOKUP(Q6,TabLiza!$AK$5:$AP$75,6),IF(D6<13,"")))))) ->  | T6: =IF(D6<16,"",IF(S6="","",IF(D6=17,VLOOKUP(S6,TabLiza!$AO$5:$AP$75,2),IF(D6=16,VLOOKUP(S6,TabLiza!$AN$5:$AP$75,3),IF(D6>17,""))))) ->  | U6: 172 | V6: 4
A7: 4 | B7: Франишин Дмитрий | C7: 4 | D7: 12 | E7: 00:04:12 | F7: =IF(D7<7,"",IF(E7="","",IF(D7=17,VLOOKUP(E7,TabLiza!$J$5:$K$75,2),IF(D7=16,VLOOKUP(E7,TabLiza!$I$5:$K$75,3),IF(D7=15,VLOOKUP(E7,TabLiza!$H$5:$K$75,4),IF(D7=14,VLOOKUP(E7,TabLiza!$G$5:$K$75,5),IF(D7=13,VLOOKUP(E7,TabLiza!$F$5:$K$75,6),IF(D7=12,VLOOKUP(E7,TabLiza!$E$5:$K$75,7),IF(D7=11,VLOOKUP(E7,TabLiza!$D$5:K$75,8),IF(D7=10,VLOOKUP(E7,TabLiza!$C$5:$K$75,9),IF(D7=9,VLOOKUP(E7,TabLiza!$B$5:$K$75,10),IF(D7=8,VLOOKUP(E7,TabLiza!$A$5:$K$75,11),IF(D7=7,VLOOKUP(E7,TabLiza!$A$5:$K$75,11),IF(D7>17,"")))))))))))))) -> 34 | G7: 5.76 | H7: =IF(D7<7,"",IF(G7="","",IF(D7=17,VLOOKUP(G7,TabLiza!$AH$5:$AI$75,2),IF(D7=16,VLOOKUP(G7,TabLiza!$AG$5:$AI$75,3),IF(D7=15,VLOOKUP(G7,TabLiza!$AF$5:$AI$75,4),IF(D7=14,VLOOKUP(G7,TabLiza!$AE$5:$AI$75,5),IF(D7=13,VLOOKUP(G7,TabLiza!$AD$5:$AI$75,6),IF(D7=12,VLOOKUP(G7,TabLiza!$AC$5:$AI$75,7),IF(D7=11,VLOOKUP(G7,TabLiza!$AB$5:$AI$75,8),IF(D7=10,VLOOKUP(G7,TabLiza!$AA$5:$AI$75,9),IF(D7=9,VLOOKUP(G7,TabLiza!$Z$5:$AI$75,10),IF(D7=8,VLOOKUP(G7,TabLiza!$Y$5:$AI$75,11),IF(D7=7,VLOOKUP(G7,TabLiza!$Y$5:$AI$75,11),IF(D7>12,"")))))))))))))) -> 22 | I7: 5 | J7: =IF(D7<7,"",IF(I7="","",IF(D7=17,VLOOKUP(I7,TabLiza!$BT$5:$BU$75,2),IF(D7=16,VLOOKUP(I7,TabLiza!$BS$5:$BU$75,3),IF(D7=15,VLOOKUP(I7,TabLiza!$BR$5:$BU$75,4),IF(D7=14,VLOOKUP(I7,TabLiza!$BQ$5:$BU$75,5),IF(D7=13,VLOOKUP(I7,TabLiza!$BP$5:$BU$75,6),IF(D7=12,VLOOKUP(I7,TabLiza!$BO$5:$BU$75,7),IF(D7=11,VLOOKUP(I7,TabLiza!$BN$5:$BU$75,8),IF(D7=10,VLOOKUP(I7,TabLiza!$BM$5:$BU$75,9),IF(D7=9,VLOOKUP(I7,TabLiza!$BL$5:$BU$75,10),IF(D7=8,VLOOKUP(I7,TabLiza!$BK$5:$BU$75,11),IF(D7=7,VLOOKUP(I7,TabLiza!$BK$5:$BU$75,11),IF(D7>17,"")))))))))))))) -> 20 | K7: 22 | L7: =IF(D7<7,"",IF(K7="","",IF(D7=17,VLOOKUP(K7,TabLiza!$DP$5:$DQ$75,2),IF(D7=16,VLOOKUP(K7,TabLiza!$DO$5:$DQ$75,3),IF(D7=15,VLOOKUP(K7,TabLiza!$DN$5:$DQ$75,4),IF(D7=14,VLOOKUP(K7,TabLiza!$DM$5:$DQ$75,5),IF(D7=13,VLOOKUP(K7,TabLiza!$DL$5:$DQ$75,6),IF(D7=12,VLOOKUP(K7,TabLiza!$DK$5:$DQ$75,7),IF(D7=11,VLOOKUP(K7,TabLiza!$DJ$5:$DQ$75,8),IF(D7=10,VLOOKUP(K7,TabLiza!$DI$5:$DQ$75,9),IF(D7=9,VLOOKUP(K7,TabLiza!$DH$5:$DQ$75,10),IF(D7=8,VLOOKUP(K7,TabLiza!$DG$5:$DQ$75,11),IF(D7=7,VLOOKUP(K7,TabLiza!$DG$5:$DQ$75,11),IF(D7>17,"")))))))))))))) -> 26 | M7: 195 | N7: =IF(D7<7,"",IF(M7="","",IF(D7=17,VLOOKUP(M7,TabLiza!$CR$5:$CS$75,2),IF(D7=16,VLOOKUP(M7,TabLiza!$CQ$5:$CS$75,3),IF(D7=15,VLOOKUP(M7,TabLiza!$CP$5:$CS$75,4),IF(D7=14,VLOOKUP(M7,TabLiza!$CO$5:$CS$75,5),IF(D7=13,VLOOKUP(M7,TabLiza!$CN$5:$CS$75,6),IF(D7=12,VLOOKUP(M7,TabLiza!$CM$5:$CS$75,7),IF(D7=11,VLOOKUP(M7,TabLiza!$CL$5:$CS$75,8),IF(D7=10,VLOOKUP(M7,TabLiza!$CK$5:$CS$75,9),IF(D7=9,VLOOKUP(M7,TabLiza!$CJ$5:$CS$75,10),IF(D7=8,VLOOKUP(M7,TabLiza!$CI$5:$CS$75,11),IF(D7=7,VLOOKUP(M7,TabLiza!$CI$5:$CS$75,11),IF(D7>17,"")))))))))))))) -> 32 | O7: 11 | P7: =IF(D7<7,"",IF(O7="","",IF(D7=17,VLOOKUP(O7,TabLiza!$EN$5:$EO$75,2),IF(D7=16,VLOOKUP(O7,TabLiza!$EM$5:$EO$75,3),IF(D7=15,VLOOKUP(O7,TabLiza!$EL$5:$EO$75,4),IF(D7=14,VLOOKUP(O7,TabLiza!$EK$5:$EO$75,5),IF(D7=13,VLOOKUP(O7,TabLiza!$EJ$5:$EO$75,6),IF(D7=12,VLOOKUP(O7,TabLiza!$EI$5:$EO$75,7),IF(D7=11,VLOOKUP(O7,TabLiza!$EH$5:$EO$75,8),IF(D7=10,VLOOKUP(O7,TabLiza!$EG$5:$EO$75,9),IF(D7=9,VLOOKUP(O7,TabLiza!$EF$5:$EO$75,10),IF(D7=8,VLOOKUP(O7,TabLiza!$EE$5:$EO$75,11),IF(D7=7,VLOOKUP(O7,TabLiza!$EE$5:$EO$75,11),IF(D7>17,"")))))))))))))) -> 29 | R7: =IF(D7>15,"",IF(Q7="","",IF(D7=15,VLOOKUP(Q7,TabLiza!$AM$5:$AP$75,4),IF(D7=14,VLOOKUP(Q7,TabLiza!$AL$5:$AP$75,5),IF(D7=13,VLOOKUP(Q7,TabLiza!$AK$5:$AP$75,6),IF(D7<13,"")))))) ->  | T7: =IF(D7<16,"",IF(S7="","",IF(D7=17,VLOOKUP(S7,TabLiza!$AO$5:$AP$75,2),IF(D7=16,VLOOKUP(S7,TabLiza!$AN$5:$AP$75,3),IF(D7>17,""))))) ->  | U7: 163 | V7: 5
A8: 5 | B8: Юсупов Кирилл | C8: 5 | D8: 12 | E8: 00:04:27 | F8: =IF(D8<7,"",IF(E8="","",IF(D8=17,VLOOKUP(E8,TabLiza!$J$5:$K$75,2),IF(D8=16,VLOOKUP(E8,TabLiza!$I$5:$K$75,3),IF(D8=15,VLOOKUP(E8,TabLiza!$H$5:$K$75,4),IF(D8=14,VLOOKUP(E8,TabLiza!$G$5:$K$75,5),IF(D8=13,VLOOKUP(E8,TabLiza!$F$5:$K$75,6),IF(D8=12,VLOOKUP(E8,TabLiza!$E$5:$K$75,7),IF(D8=11,VLOOKUP(E8,TabLiza!$D$5:K$75,8),IF(D8=10,VLOOKUP(E8,TabLiza!$C$5:$K$75,9),IF(D8=9,VLOOKUP(E8,TabLiza!$B$5:$K$75,10),IF(D8=8,VLOOKUP(E8,TabLiza!$A$5:$K$75,11),IF(D8=7,VLOOKUP(E8,TabLiza!$A$5:$K$75,11),IF(D8>17,"")))))))))))))) -> 28 | G8: 5.86 | H8: =IF(D8<7,"",IF(G8="","",IF(D8=17,VLOOKUP(G8,TabLiza!$AH$5:$AI$75,2),IF(D8=16,VLOOKUP(G8,TabLiza!$AG$5:$AI$75,3),IF(D8=15,VLOOKUP(G8,TabLiza!$AF$5:$AI$75,4),IF(D8=14,VLOOKUP(G8,TabLiza!$AE$5:$AI$75,5),IF(D8=13,VLOOKUP(G8,TabLiza!$AD$5:$AI$75,6),IF(D8=12,VLOOKUP(G8,TabLiza!$AC$5:$AI$75,7),IF(D8=11,VLOOKUP(G8,TabLiza!$AB$5:$AI$75,8),IF(D8=10,VLOOKUP(G8,TabLiza!$AA$5:$AI$75,9),IF(D8=9,VLOOKUP(G8,TabLiza!$Z$5:$AI$75,10),IF(D8=8,VLOOKUP(G8,TabLiza!$Y$5:$AI$75,11),IF(D8=7,VLOOKUP(G8,TabLiza!$Y$5:$AI$75,11),IF(D8>12,"")))))))))))))) -> 18 | I8: 2 | J8: =IF(D8<7,"",IF(I8="","",IF(D8=17,VLOOKUP(I8,TabLiza!$BT$5:$BU$75,2),IF(D8=16,VLOOKUP(I8,TabLiza!$BS$5:$BU$75,3),IF(D8=15,VLOOKUP(I8,TabLiza!$BR$5:$BU$75,4),IF(D8=14,VLOOKUP(I8,TabLiza!$BQ$5:$BU$75,5),IF(D8=13,VLOOKUP(I8,TabLiza!$BP$5:$BU$75,6),IF(D8=12,VLOOKUP(I8,TabLiza!$BO$5:$BU$75,7),IF(D8=11,VLOOKUP(I8,TabLiza!$BN$5:$BU$75,8),IF(D8=10,VLOOKUP(I8,TabLiza!$BM$5:$BU$75,9),IF(D8=9,VLOOKUP(I8,TabLiza!$BL$5:$BU$75,10),IF(D8=8,VLOOKUP(I8,TabLiza!$BK$5:$BU$75,11),IF(D8=7,VLOOKUP(I8,TabLiza!$BK$5:$BU$75,11),IF(D8>17,"")))))))))))))) -> 10 | K8: 30 | L8: =IF(D8<7,"",IF(K8="","",IF(D8=17,VLOOKUP(K8,TabLiza!$DP$5:$DQ$75,2),IF(D8=16,VLOOKUP(K8,TabLiza!$DO$5:$DQ$75,3),IF(D8=15,VLOOKUP(K8,TabLiza!$DN$5:$DQ$75,4),IF(D8=14,VLOOKUP(K8,TabLiza!$DM$5:$DQ$75,5),IF(D8=13,VLOOKUP(K8,TabLiza!$DL$5:$DQ$75,6),IF(D8=12,VLOOKUP(K8,TabLiza!$DK$5:$DQ$75,7),IF(D8=11,VLOOKUP(K8,TabLiza!$DJ$5:$DQ$75,8),IF(D8=10,VLOOKUP(K8,TabLiza!$DI$5:$DQ$75,9),IF(D8=9,VLOOKUP(K8,TabLiza!$DH$5:$DQ$75,10),IF(D8=8,VLOOKUP(K8,TabLiza!$DG$5:$DQ$75,11),IF(D8=7,VLOOKUP(K8,TabLiza!$DG$5:$DQ$75,11),IF(D8>17,"")))))))))))))) -> 42 | M8: 178 | N8: =IF(D8<7,"",IF(M8="","",IF(D8=17,VLOOKUP(M8,TabLiza!$CR$5:$CS$75,2),IF(D8=16,VLOOKUP(M8,TabLiza!$CQ$5:$CS$75,3),IF(D8=15,VLOOKUP(M8,TabLiza!$CP$5:$CS$75,4),IF(D8=14,VLOOKUP(M8,TabLiza!$CO$5:$CS$75,5),IF(D8=13,VLOOKUP(M8,TabLiza!$CN$5:$CS$75,6),IF(D8=12,VLOOKUP(M8,TabLiza!$CM$5:$CS$75,7),IF(D8=11,VLOOKUP(M8,TabLiza!$CL$5:$CS$75,8),IF(D8=10,VLOOKUP(M8,TabLiza!$CK$5:$CS$75,9),IF(D8=9,VLOOKUP(M8,TabLiza!$CJ$5:$CS$75,10),IF(D8=8,VLOOKUP(M8,TabLiza!$CI$5:$CS$75,11),IF(D8=7,VLOOKUP(M8,TabLiza!$CI$5:$CS$75,11),IF(D8>17,"")))))))))))))) -> 24 | O8: 3 | P8: =IF(D8<7,"",IF(O8="","",IF(D8=17,VLOOKUP(O8,TabLiza!$EN$5:$EO$75,2),IF(D8=16,VLOOKUP(O8,TabLiza!$EM$5:$EO$75,3),IF(D8=15,VLOOKUP(O8,TabLiza!$EL$5:$EO$75,4),IF(D8=14,VLOOKUP(O8,TabLiza!$EK$5:$EO$75,5),IF(D8=13,VLOOKUP(O8,TabLiza!$EJ$5:$EO$75,6),IF(D8=12,VLOOKUP(O8,TabLiza!$EI$5:$EO$75,7),IF(D8=11,VLOOKUP(O8,TabLiza!$EH$5:$EO$75,8),IF(D8=10,VLOOKUP(O8,TabLiza!$EG$5:$EO$75,9),IF(D8=9,VLOOKUP(O8,TabLiza!$EF$5:$EO$75,10),IF(D8=8,VLOOKUP(O8,TabLiza!$EE$5:$EO$75,11),IF(D8=7,VLOOKUP(O8,TabLiza!$EE$5:$EO$75,11),IF(D8>17,"")))))))))))))) -> 12 | R8: =IF(D8>15,"",IF(Q8="","",IF(D8=15,VLOOKUP(Q8,TabLiza!$AM$5:$AP$75,4),IF(D8=14,VLOOKUP(Q8,TabLiza!$AL$5:$AP$75,5),IF(D8=13,VLOOKUP(Q8,TabLiza!$AK$5:$AP$75,6),IF(D8<13,"")))))) ->  | T8: =IF(D8<16,"",IF(S8="","",IF(D8=17,VLOOKUP(S8,TabLiza!$AO$5:$AP$75,2),IF(D8=16,VLOOKUP(S8,TabLiza!$AN$5:$AP$75,3),IF(D8>17,""))))) ->  | U8: 134 | V8: 7
A9: 6 | B9: Сурин Леонид | C9: 6 | D9: 13 | E9: 00:04:03 | F9: =IF(D9<7,"",IF(E9="","",IF(D9=17,VLOOKUP(E9,TabLiza!$J$5:$K$75,2),IF(D9=16,VLOOKUP(E9,TabLiza!$I$5:$K$75,3),IF(D9=15,VLOOKUP(E9,TabLiza!$H$5:$K$75,4),IF(D9=14,VLOOKUP(E9,TabLiza!$G$5:$K$75,5),IF(D9=13,VLOOKUP(E9,TabLiza!$F$5:$K$75,6),IF(D9=12,VLOOKUP(E9,TabLiza!$E$5:$K$75,7),IF(D9=11,VLOOKUP(E9,TabLiza!$D$5:K$75,8),IF(D9=10,VLOOKUP(E9,TabLiza!$C$5:$K$75,9),IF(D9=9,VLOOKUP(E9,TabLiza!$B$5:$K$75,10),IF(D9=8,VLOOKUP(E9,TabLiza!$A$5:$K$75,11),IF(D9=7,VLOOKUP(E9,TabLiza!$A$5:$K$75,11),IF(D9>17,"")))))))))))))) -> 32 | G9: 5.44 | H9: =IF(D9<7,"",IF(G9="","",IF(D9=17,VLOOKUP(G9,TabLiza!$AH$5:$AI$75,2),IF(D9=16,VLOOKUP(G9,TabLiza!$AG$5:$AI$75,3),IF(D9=15,VLOOKUP(G9,TabLiza!$AF$5:$AI$75,4),IF(D9=14,VLOOKUP(G9,TabLiza!$AE$5:$AI$75,5),IF(D9=13,VLOOKUP(G9,TabLiza!$AD$5:$AI$75,6),IF(D9=12,VLOOKUP(G9,TabLiza!$AC$5:$AI$75,7),IF(D9=11,VLOOKUP(G9,TabLiza!$AB$5:$AI$75,8),IF(D9=10,VLOOKUP(G9,TabLiza!$AA$5:$AI$75,9),IF(D9=9,VLOOKUP(G9,TabLiza!$Z$5:$AI$75,10),IF(D9=8,VLOOKUP(G9,TabLiza!$Y$5:$AI$75,11),IF(D9=7,VLOOKUP(G9,TabLiza!$Y$5:$AI$75,11),IF(D9>12,"")))))))))))))) -> 28 | I9: 4 | J9: =IF(D9<7,"",IF(I9="","",IF(D9=17,VLOOKUP(I9,TabLiza!$BT$5:$BU$75,2),IF(D9=16,VLOOKUP(I9,TabLiza!$BS$5:$BU$75,3),IF(D9=15,VLOOKUP(I9,TabLiza!$BR$5:$BU$75,4),IF(D9=14,VLOOKUP(I9,TabLiza!$BQ$5:$BU$75,5),IF(D9=13,VLOOKUP(I9,TabLiza!$BP$5:$BU$75,6),IF(D9=12,VLOOKUP(I9,TabLiza!$BO$5:$BU$75,7),IF(D9=11,VLOOKUP(I9,TabLiza!$BN$5:$BU$75,8),IF(D9=10,VLOOKUP(I9,TabLiza!$BM$5:$BU$75,9),IF(D9=9,VLOOKUP(I9,TabLiza!$BL$5:$BU$75,10),IF(D9=8,VLOOKUP(I9,TabLiza!$BK$5:$BU$75,11),IF(D9=7,VLOOKUP(I9,TabLiza!$BK$5:$BU$75,11),IF(D9>17,"")))))))))))))) -> 13 | K9: 28 | L9: =IF(D9<7,"",IF(K9="","",IF(D9=17,VLOOKUP(K9,TabLiza!$DP$5:$DQ$75,2),IF(D9=16,VLOOKUP(K9,TabLiza!$DO$5:$DQ$75,3),IF(D9=15,VLOOKUP(K9,TabLiza!$DN$5:$DQ$75,4),IF(D9=14,VLOOKUP(K9,TabLiza!$DM$5:$DQ$75,5),IF(D9=13,VLOOKUP(K9,TabLiza!$DL$5:$DQ$75,6),IF(D9=12,VLOOKUP(K9,TabLiza!$DK$5:$DQ$75,7),IF(D9=11,VLOOKUP(K9,TabLiza!$DJ$5:$DQ$75,8),IF(D9=10,VLOOKUP(K9,TabLiza!$DI$5:$DQ$75,9),IF(D9=9,VLOOKUP(K9,TabLiza!$DH$5:$DQ$75,10),IF(D9=8,VLOOKUP(K9,TabLiza!$DG$5:$DQ$75,11),IF(D9=7,VLOOKUP(K9,TabLiza!$DG$5:$DQ$75,11),IF(D9>17,"")))))))))))))) -> 30 | M9: 185 | N9: =IF(D9<7,"",IF(M9="","",IF(D9=17,VLOOKUP(M9,TabLiza!$CR$5:$CS$75,2),IF(D9=16,VLOOKUP(M9,TabLiza!$CQ$5:$CS$75,3),IF(D9=15,VLOOKUP(M9,TabLiza!$CP$5:$CS$75,4),IF(D9=14,VLOOKUP(M9,TabLiza!$CO$5:$CS$75,5),IF(D9=13,VLOOKUP(M9,TabLiza!$CN$5:$CS$75,6),IF(D9=12,VLOOKUP(M9,TabLiza!$CM$5:$CS$75,7),IF(D9=11,VLOOKUP(M9,TabLiza!$CL$5:$CS$75,8),IF(D9=10,VLOOKUP(M9,TabLiza!$CK$5:$CS$75,9),IF(D9=9,VLOOKUP(M9,TabLiza!$CJ$5:$CS$75,10),IF(D9=8,VLOOKUP(M9,TabLiza!$CI$5:$CS$75,11),IF(D9=7,VLOOKUP(M9,TabLiza!$CI$5:$CS$75,11),IF(D9>17,"")))))))))))))) -> 20 | O9: 13 | P9: =IF(D9<7,"",IF(O9="","",IF(D9=17,VLOOKUP(O9,TabLiza!$EN$5:$EO$75,2),IF(D9=16,VLOOKUP(O9,TabLiza!$EM$5:$EO$75,3),IF(D9=15,VLOOKUP(O9,TabLiza!$EL$5:$EO$75,4),IF(D9=14,VLOOKUP(O9,TabLiza!$EK$5:$EO$75,5),IF(D9=13,VLOOKUP(O9,TabLiza!$EJ$5:$EO$75,6),IF(D9=12,VLOOKUP(O9,TabLiza!$EI$5:$EO$75,7),IF(D9=11,VLOOKUP(O9,TabLiza!$EH$5:$EO$75,8),IF(D9=10,VLOOKUP(O9,TabLiza!$EG$5:$EO$75,9),IF(D9=9,VLOOKUP(O9,TabLiza!$EF$5:$EO$75,10),IF(D9=8,VLOOKUP(O9,TabLiza!$EE$5:$EO$75,11),IF(D9=7,VLOOKUP(O9,TabLiza!$EE$5:$EO$75,11),IF(D9>17,"")))))))))))))) -> 32 | R9: =IF(D9>15,"",IF(Q9="","",IF(D9=15,VLOOKUP(Q9,TabLiza!$AM$5:$AP$75,4),IF(D9=14,VLOOKUP(Q9,TabLiza!$AL$5:$AP$75,5),IF(D9=13,VLOOKUP(Q9,TabLiza!$AK$5:$AP$75,6),IF(D9<13,"")))))) ->  | T9: =IF(D9<16,"",IF(S9="","",IF(D9=17,VLOOKUP(S9,TabLiza!$AO$5:$AP$75,2),IF(D9=16,VLOOKUP(S9,TabLiza!$AN$5:$AP$75,3),IF(D9>17,""))))) ->  | U9: 155 | V9: 6
A10: 7 | B10: Журавлёв Владислав | C10: 7 | D10: 12 | E10: 00:04:10 | F10: =IF(D10<7,"",IF(E10="","",IF(D10=17,VLOOKUP(E10,TabLiza!$J$5:$K$75,2),IF(D10=16,VLOOKUP(E10,TabLiza!$I$5:$K$75,3),IF(D10=15,VLOOKUP(E10,TabLiza!$H$5:$K$75,4),IF(D10=14,VLOOKUP(E10,TabLiza!$G$5:$K$75,5),IF(D10=13,VLOOKUP(E10,TabLiza!$F$5:$K$75,6),IF(D10=12,VLOOKUP(E10,TabLiza!$E$5:$K$75,7),IF(D10=11,VLOOKUP(E10,TabLiza!$D$5:K$75,8),IF(D10=10,VLOOKUP(E10,TabLiza!$C$5:$K$75,9),IF(D10=9,VLOOKUP(E10,TabLiza!$B$5:$K$75,10),IF(D10=8,VLOOKUP(E10,TabLiza!$A$5:$K$75,11),IF(D10=7,VLOOKUP(E10,TabLiza!$A$5:$K$75,11),IF(D10>17,"")))))))))))))) -> 35 | G10: 5.59 | H10: =IF(D10<7,"",IF(G10="","",IF(D10=17,VLOOKUP(G10,TabLiza!$AH$5:$AI$75,2),IF(D10=16,VLOOKUP(G10,TabLiza!$AG$5:$AI$75,3),IF(D10=15,VLOOKUP(G10,TabLiza!$AF$5:$AI$75,4),IF(D10=14,VLOOKUP(G10,TabLiza!$AE$5:$AI$75,5),IF(D10=13,VLOOKUP(G10,TabLiza!$AD$5:$AI$75,6),IF(D10=12,VLOOKUP(G10,TabLiza!$AC$5:$AI$75,7),IF(D10=11,VLOOKUP(G10,TabLiza!$AB$5:$AI$75,8),IF(D10=10,VLOOKUP(G10,TabLiza!$AA$5:$AI$75,9),IF(D10=9,VLOOKUP(G10,TabLiza!$Z$5:$AI$75,10),IF(D10=8,VLOOKUP(G10,TabLiza!$Y$5:$AI$75,11),IF(D10=7,VLOOKUP(G10,TabLiza!$Y$5:$AI$75,11),IF(D10>12,"")))))))))))))) -> 30 | I10: 1 | J10: =IF(D10<7,"",IF(I10="","",IF(D10=17,VLOOKUP(I10,TabLiza!$BT$5:$BU$75,2),IF(D10=16,VLOOKUP(I10,TabLiza!$BS$5:$BU$75,3),IF(D10=15,VLOOKUP(I10,TabLiza!$BR$5:$BU$75,4),IF(D10=14,VLOOKUP(I10,TabLiza!$BQ$5:$BU$75,5),IF(D10=13,VLOOKUP(I10,TabLiza!$BP$5:$BU$75,6),IF(D10=12,VLOOKUP(I10,TabLiza!$BO$5:$BU$75,7),IF(D10=11,VLOOKUP(I10,TabLiza!$BN$5:$BU$75,8),IF(D10=10,VLOOKUP(I10,TabLiza!$BM$5:$BU$75,9),IF(D10=9,VLOOKUP(I10,TabLiza!$BL$5:$BU$75,10),IF(D10=8,VLOOKUP(I10,TabLiza!$BK$5:$BU$75,11),IF(D10=7,VLOOKUP(I10,TabLiza!$BK$5:$BU$75,11),IF(D10>17,"")))))))))))))) -> 6 | K10: 32 | L10: =IF(D10<7,"",IF(K10="","",IF(D10=17,VLOOKUP(K10,TabLiza!$DP$5:$DQ$75,2),IF(D10=16,VLOOKUP(K10,TabLiza!$DO$5:$DQ$75,3),IF(D10=15,VLOOKUP(K10,TabLiza!$DN$5:$DQ$75,4),IF(D10=14,VLOOKUP(K10,TabLiza!$DM$5:$DQ$75,5),IF(D10=13,VLOOKUP(K10,TabLiza!$DL$5:$DQ$75,6),IF(D10=12,VLOOKUP(K10,TabLiza!$DK$5:$DQ$75,7),IF(D10=11,VLOOKUP(K10,TabLiza!$DJ$5:$DQ$75,8),IF(D10=10,VLOOKUP(K10,TabLiza!$DI$5:$DQ$75,9),IF(D10=9,VLOOKUP(K10,TabLiza!$DH$5:$DQ$75,10),IF(D10=8,VLOOKUP(K10,TabLiza!$DG$5:$DQ$75,11),IF(D10=7,VLOOKUP(K10,TabLiza!$DG$5:$DQ$75,11),IF(D10>17,"")))))))))))))) -> 46 | M10: 200 | N10: =IF(D10<7,"",IF(M10="","",IF(D10=17,VLOOKUP(M10,TabLiza!$CR$5:$CS$75,2),IF(D10=16,VLOOKUP(M10,TabLiza!$CQ$5:$CS$75,3),IF(D10=15,VLOOKUP(M10,TabLiza!$CP$5:$CS$75,4),IF(D10=14,VLOOKUP(M10,TabLiza!$CO$5:$CS$75,5),IF(D10=13,VLOOKUP(M10,TabLiza!$CN$5:$CS$75,6),IF(D10=12,VLOOKUP(M10,TabLiza!$CM$5:$CS$75,7),IF(D10=11,VLOOKUP(M10,TabLiza!$CL$5:$CS$75,8),IF(D10=10,VLOOKUP(M10,TabLiza!$CK$5:$CS$75,9),IF(D10=9,VLOOKUP(M10,TabLiza!$CJ$5:$CS$75,10),IF(D10=8,VLOOKUP(M10,TabLiza!$CI$5:$CS$75,11),IF(D10=7,VLOOKUP(M10,TabLiza!$CI$5:$CS$75,11),IF(D10>17,"")))))))))))))) -> 35 | O10: 8 | P10: =IF(D10<7,"",IF(O10="","",IF(D10=17,VLOOKUP(O10,TabLiza!$EN$5:$EO$75,2),IF(D10=16,VLOOKUP(O10,TabLiza!$EM$5:$EO$75,3),IF(D10=15,VLOOKUP(O10,TabLiza!$EL$5:$EO$75,4),IF(D10=14,VLOOKUP(O10,TabLiza!$EK$5:$EO$75,5),IF(D10=13,VLOOKUP(O10,TabLiza!$EJ$5:$EO$75,6),IF(D10=12,VLOOKUP(O10,TabLiza!$EI$5:$EO$75,7),IF(D10=11,VLOOKUP(O10,TabLiza!$EH$5:$EO$75,8),IF(D10=10,VLOOKUP(O10,TabLiza!$EG$5:$EO$75,9),IF(D10=9,VLOOKUP(O10,TabLiza!$EF$5:$EO$75,10),IF(D10=8,VLOOKUP(O10,TabLiza!$EE$5:$EO$75,11),IF(D10=7,VLOOKUP(O10,TabLiza!$EE$5:$EO$75,11),IF(D10>17,"")))))))))))))) -> 22 | R10: =IF(D10>15,"",IF(Q10="","",IF(D10=15,VLOOKUP(Q10,TabLiza!$AM$5:$AP$75,4),IF(D10=14,VLOOKUP(Q10,TabLiza!$AL$5:$AP$75,5),IF(D10=13,VLOOKUP(Q10,TabLiza!$AK$5:$AP$75,6),IF(D10<13,"")))))) ->  | T10: =IF(D10<16,"",IF(S10="","",IF(D10=17,VLOOKUP(S10,TabLiza!$AO$5:$AP$75,2),IF(D10=16,VLOOKUP(S10,TabLiza!$AN$5:$AP$75,3),IF(D10>17,""))))) ->  | U10: 174 | V10: 3
A11: 8 | B11: Вишняков Максим | C11: 8 | D11: 13 | E11: 00:04:24 | F11: =IF(D11<7,"",IF(E11="","",IF(D11=17,VLOOKUP(E11,TabLiza!$J$5:$K$75,2),IF(D11=16,VLOOKUP(E11,TabLiza!$I$5:$K$75,3),IF(D11=15,VLOOKUP(E11,TabLiza!$H$5:$K$75,4),IF(D11=14,VLOOKUP(E11,TabLiza!$G$5:$K$75,5),IF(D11=13,VLOOKUP(E11,TabLiza!$F$5:$K$75,6),IF(D11=12,VLOOKUP(E11,TabLiza!$E$5:$K$75,7),IF(D11=11,VLOOKUP(E11,TabLiza!$D$5:K$75,8),IF(D11=10,VLOOKUP(E11,TabLiza!$C$5:$K$75,9),IF(D11=9,VLOOKUP(E11,TabLiza!$B$5:$K$75,10),IF(D11=8,VLOOKUP(E11,TabLiza!$A$5:$K$75,11),IF(D11=7,VLOOKUP(E11,TabLiza!$A$5:$K$75,11),IF(D11>17,"")))))))))))))) -> 24 | G11: 5.82 | H11: =IF(D11<7,"",IF(G11="","",IF(D11=17,VLOOKUP(G11,TabLiza!$AH$5:$AI$75,2),IF(D11=16,VLOOKUP(G11,TabLiza!$AG$5:$AI$75,3),IF(D11=15,VLOOKUP(G11,TabLiza!$AF$5:$AI$75,4),IF(D11=14,VLOOKUP(G11,TabLiza!$AE$5:$AI$75,5),IF(D11=13,VLOOKUP(G11,TabLiza!$AD$5:$AI$75,6),IF(D11=12,VLOOKUP(G11,TabLiza!$AC$5:$AI$75,7),IF(D11=11,VLOOKUP(G11,TabLiza!$AB$5:$AI$75,8),IF(D11=10,VLOOKUP(G11,TabLiza!$AA$5:$AI$75,9),IF(D11=9,VLOOKUP(G11,TabLiza!$Z$5:$AI$75,10),IF(D11=8,VLOOKUP(G11,TabLiza!$Y$5:$AI$75,11),IF(D11=7,VLOOKUP(G11,TabLiza!$Y$5:$AI$75,11),IF(D11>12,"")))))))))))))) -> 15 | I11: 3 | J11: =IF(D11<7,"",IF(I11="","",IF(D11=17,VLOOKUP(I11,TabLiza!$BT$5:$BU$75,2),IF(D11=16,VLOOKUP(I11,TabLiza!$BS$5:$BU$75,3),IF(D11=15,VLOOKUP(I11,TabLiza!$BR$5:$BU$75,4),IF(D11=14,VLOOKUP(I11,TabLiza!$BQ$5:$BU$75,5),IF(D11=13,VLOOKUP(I11,TabLiza!$BP$5:$BU$75,6),IF(D11=12,VLOOKUP(I11,TabLiza!$BO$5:$BU$75,7),IF(D11=11,VLOOKUP(I11,TabLiza!$BN$5:$BU$75,8),IF(D11=10,VLOOKUP(I11,TabLiza!$BM$5:$BU$75,9),IF(D11=9,VLOOKUP(I11,TabLiza!$BL$5:$BU$75,10),IF(D11=8,VLOOKUP(I11,TabLiza!$BK$5:$BU$75,11),IF(D11=7,VLOOKUP(I11,TabLiza!$BK$5:$BU$75,11),IF(D11>17,"")))))))))))))) -> 10 | K11: 26 | L11: =IF(D11<7,"",IF(K11="","",IF(D11=17,VLOOKUP(K11,TabLiza!$DP$5:$DQ$75,2),IF(D11=16,VLOOKUP(K11,TabLiza!$DO$5:$DQ$75,3),IF(D11=15,VLOOKUP(K11,TabLiza!$DN$5:$DQ$75,4),IF(D11=14,VLOOKUP(K11,TabLiza!$DM$5:$DQ$75,5),IF(D11=13,VLOOKUP(K11,TabLiza!$DL$5:$DQ$75,6),IF(D11=12,VLOOKUP(K11,TabLiza!$DK$5:$DQ$75,7),IF(D11=11,VLOOKUP(K11,TabLiza!$DJ$5:$DQ$75,8),IF(D11=10,VLOOKUP(K11,TabLiza!$DI$5:$DQ$75,9),IF(D11=9,VLOOKUP(K11,TabLiza!$DH$5:$DQ$75,10),IF(D11=8,VLOOKUP(K11,TabLiza!$DG$5:$DQ$75,11),IF(D11=7,VLOOKUP(K11,TabLiza!$DG$5:$DQ$75,11),IF(D11>17,"")))))))))))))) -> 26 | M11: 181 | N11: =IF(D11<7,"",IF(M11="","",IF(D11=17,VLOOKUP(M11,TabLiza!$CR$5:$CS$75,2),IF(D11=16,VLOOKUP(M11,TabLiza!$CQ$5:$CS$75,3),IF(D11=15,VLOOKUP(M11,TabLiza!$CP$5:$CS$75,4),IF(D11=14,VLOOKUP(M11,TabLiza!$CO$5:$CS$75,5),IF(D11=13,VLOOKUP(M11,TabLiza!$CN$5:$CS$75,6),IF(D11=12,VLOOKUP(M11,TabLiza!$CM$5:$CS$75,7),IF(D11=11,VLOOKUP(M11,TabLiza!$CL$5:$CS$75,8),IF(D11=10,VLOOKUP(M11,TabLiza!$CK$5:$CS$75,9),IF(D11=9,VLOOKUP(M11,TabLiza!$CJ$5:$CS$75,10),IF(D11=8,VLOOKUP(M11,TabLiza!$CI$5:$CS$75,11),IF(D11=7,VLOOKUP(M11,TabLiza!$CI$5:$CS$75,11),IF(D11>17,"")))))))))))))) -> 18 | O11: 2 | P11: =IF(D11<7,"",IF(O11="","",IF(D11=17,VLOOKUP(O11,TabLiza!$EN$5:$EO$75,2),IF(D11=16,VLOOKUP(O11,TabLiza!$EM$5:$EO$75,3),IF(D11=15,VLOOKUP(O11,TabLiza!$EL$5:$EO$75,4),IF(D11=14,VLOOKUP(O11,TabLiza!$EK$5:$EO$75,5),IF(D11=13,VLOOKUP(O11,TabLiza!$EJ$5:$EO$75,6),IF(D11=12,VLOOKUP(O11,TabLiza!$EI$5:$EO$75,7),IF(D11=11,VLOOKUP(O11,TabLiza!$EH$5:$EO$75,8),IF(D11=10,VLOOKUP(O11,TabLiza!$EG$5:$EO$75,9),IF(D11=9,VLOOKUP(O11,TabLiza!$EF$5:$EO$75,10),IF(D11=8,VLOOKUP(O11,TabLiza!$EE$5:$EO$75,11),IF(D11=7,VLOOKUP(O11,TabLiza!$EE$5:$EO$75,11),IF(D11>17,"")))))))))))))) -> 8 | R11: =IF(D11>15,"",IF(Q11="","",IF(D11=15,VLOOKUP(Q11,TabLiza!$AM$5:$AP$75,4),IF(D11=14,VLOOKUP(Q11,TabLiza!$AL$5:$AP$75,5),IF(D11=13,VLOOKUP(Q11,TabLiza!$AK$5:$AP$75,6),IF(D11<13,"")))))) ->  | T11: =IF(D11<16,"",IF(S11="","",IF(D11=17,VLOOKUP(S11,TabLiza!$AO$5:$AP$75,2),IF(D11=16,VLOOKUP(S11,TabLiza!$AN$5:$AP$75,3),IF(D11>17,""))))) ->  | U11: 101 | V11: 8
B13: класс-команда | D13: 6Б | R13: всего очков | зачёт | U13: =SUM(U4:U11) -> 1274 | V13: =U13-MIN(U4:U11) -> 1173
A15: № п/п | B15: девочки | C15: № уч-ка | D15: возраст (полных лет) | E15: 1 | G15: 2 | I15: 3 | K15: 4 | M15: 5 | O15: 6 | Q15: 7 | S15: 8 | U15: 9 | V15: 10
B16: Фамилия Имя | E16: бег 1000м | F16: очки | G16: бег 30м | H16: очки | I16: отжимание | J16: очки | K16: пресс за 30" | L16: очки | M16: прыжок с места | N16: очки | O16: гибкость | P16: очки | Q16: бег 60м | R16: очки | S16: бег 100м | T16: очки | U16: сумма очков | V16: Место
A17: 1 | B17: Добровольская Александра | C17: 9 | D17: 12 | E17: 00:03:44 | F17: =IF(D17<7,"",IF(E17="","",IF(D17=17,VLOOKUP(E17,TabLiza!$V$5:$W$75,2),IF(D17=16,VLOOKUP(E17,TabLiza!$U$5:$W$75,3),IF(D17=15,VLOOKUP(E17,TabLiza!$T$5:$W$75,4),IF(D17=14,VLOOKUP(E17,TabLiza!$S$5:$W$75,5),IF(D17=13,VLOOKUP(E17,TabLiza!$R$5:$W$75,6),IF(D17=12,VLOOKUP(E17,TabLiza!$Q$5:$W$75,7),IF(D17=11,VLOOKUP(E17,TabLiza!$P$5:$W$75,8),IF(D17=10,VLOOKUP(E17,TabLiza!$O$5:$W$75,9),IF(D17=9,VLOOKUP(E17,TabLiza!$N$5:$W$75,10),IF(D17=8,VLOOKUP(E17,TabLiza!$M$5:$W$75,11),IF(D17=7,VLOOKUP(E17,TabLiza!$M$5:$W$75,11),IF(D17>17,"")))))))))))))) -> 61 | G17: 5.28 | H17: =IF(D17<7,"",IF(G17="","",IF(D17=17,VLOOKUP(G17,TabLiza!$BA$5:$BB$75,2),IF(D17=16,VLOOKUP(G17,TabLiza!$AZ$5:$BB$75,3),IF(D17=15,VLOOKUP(G17,TabLiza!$AY$5:$BB$75,4),IF(D17=14,VLOOKUP(G17,TabLiza!$AX$5:$BB$75,5),IF(D17=13,VLOOKUP(G17,TabLiza!$AW$5:$BB$75,6),IF(D17=12,VLOOKUP(G17,TabLiza!$AV$5:$BB$75,7),IF(D17=11,VLOOKUP(G17,TabLiza!$AU$5:$BB$75,8),IF(D17=10,VLOOKUP(G17,TabLiza!$AT$5:$BB$75,9),IF(D17=9,VLOOKUP(G17,TabLiza!$AS$5:$BB$75,10),IF(D17=8,VLOOKUP(G17,TabLiza!$AR$5:$BB$75,11),IF(D17=7,VLOOKUP(G17,TabLiza!$AR$5:$BB$75,11),IF(D17>12,"")))))))))))))) -> 56 | I17: 31 | J17: =IF(D17<7,"",IF(I17="","",IF(D17=17,VLOOKUP(I17,TabLiza!$CF$5:$CG$75,2),IF(D17=16,VLOOKUP(I17,TabLiza!$CE$5:$CG$75,3),IF(D17=15,VLOOKUP(I17,TabLiza!$CD$5:$CG$75,4),IF(D17=14,VLOOKUP(I17,TabLiza!$CC$5:$CG$75,5),IF(D17=13,VLOOKUP(I17,TabLiza!$CB$5:$CG$75,6),IF(D17=12,VLOOKUP(I17,TabLiza!$CA$5:$CG$75,7),IF(D17=11,VLOOKUP(I17,TabLiza!$BZ$5:$CG$75,8),IF(D17=10,VLOOKUP(I17,TabLiza!$BY$5:$CG$75,9),IF(D17=9,VLOOKUP(I17,TabLiza!$BX$5:$CG$75,10),IF(D17=8,VLOOKUP(I17,TabLiza!$BW$5:$CG$75,11),IF(D17=7,VLOOKUP(I17,TabLiza!$BW$5:$CG$75,11),IF(D17>17,"")))))))))))))) -> 56 | K17: 37 | L17: =IF(D17<7,"",IF(K17="","",IF(D17=17,VLOOKUP(K17,TabLiza!$EB$5:$EC$75,2),IF(D17=16,VLOOKUP(K17,TabLiza!$EA$5:$EC$75,3),IF(D17=15,VLOOKUP(K17,TabLiza!$DZ$5:$EC$75,4),IF(D17=14,VLOOKUP(K17,TabLiza!$DY$5:$EC$75,5),IF(D17=13,VLOOKUP(K17,TabLiza!$DX$5:$EC$75,6),IF(D17=12,VLOOKUP(K17,TabLiza!$DW$5:$EC$75,7),IF(D17=11,VLOOKUP(K17,TabLiza!$DV$5:$EC$75,8),IF(D17=10,VLOOKUP(K17,TabLiza!$DU$5:$EC$75,9),IF(D17=9,VLOOKUP(K17,TabLiza!$DT$5:$EC$75,10),IF(D17=8,VLOOKUP(K17,TabLiza!$DS$5:$EC$75,11),IF(D17=7,VLOOKUP(K17,TabLiza!$DS$5:$EC$75,11),IF(D17>17,"")))))))))))))) -> 62 | M17: 220 | N17: =IF(D17<7,"",IF(M17="","",IF(D17=17,VLOOKUP(M17,TabLiza!$DD$5:$DE$75,2),IF(D17=16,VLOOKUP(M17,TabLiza!$DC$5:$DE$75,3),IF(D17=15,VLOOKUP(M17,TabLiza!$DB$5:$DE$75,4),IF(D17=14,VLOOKUP(M17,TabLiza!$DA$5:$DE$75,5),IF(D17=13,VLOOKUP(M17,TabLiza!$CZ$5:$DE$75,6),IF(D17=12,VLOOKUP(M17,TabLiza!$CY$5:$DE$75,7),IF(D17=11,VLOOKUP(M17,TabLiza!$CX$5:$DE$75,8),IF(D17=10,VLOOKUP(M17,TabLiza!$CW$5:$DE$75,9),IF(D17=9,VLOOKUP(M17,TabLiza!$CV$5:$DE$75,10),IF(D17=8,VLOOKUP(M17,TabLiza!$CU$5:$DE$75,11),IF(D17=7,VLOOKUP(M17,TabLiza!$CU$5:$DE$75,11),IF(D17>17,"")))))))))))))) -> 60 | O17: 6 | P17: =IF(D17<7,"",IF(O17="","",IF(D17=17,VLOOKUP(O17,TabLiza!$EZ$5:$FA$75,2),IF(D17=16,VLOOKUP(O17,TabLiza!$EY$5:$FA$75,3),IF(D17=15,VLOOKUP(O17,TabLiza!$EX$5:$FA$75,4),IF(D17=14,VLOOKUP(O17,TabLiza!$EW$5:$FA$75,5),IF(D17=13,VLOOKUP(O17,TabLiza!$EV$5:$FA$75,6),IF(D17=12,VLOOKUP(O17,TabLiza!$EU$5:$FA$75,7),IF(D17=11,VLOOKUP(O17,TabLiza!$ET$5:$FA$75,8),IF(D17=10,VLOOKUP(O17,TabLiza!$ES$5:$FA$75,9),IF(D17=9,VLOOKUP(O17,TabLiza!$ER$5:$FA$75,10),IF(D17=8,VLOOKUP(O17,TabLiza!$EQ$5:$FA$75,11),IF(D17=7,VLOOKUP(O17,TabLiza!$EQ$5:$FA$75,11),IF(D17>17,"")))))))))))))) -> 13 | R17: =IF(D17>15,"",IF(Q17="","",IF(D17=15,VLOOKUP(Q17,TabLiza!$BF$5:$BI$75,4),IF(D17=14,VLOOKUP(Q17,TabLiza!$BE$5:$BI$75,5),IF(D17=13,VLOOKUP(Q17,TabLiza!$BD$5:$BI$75,6),IF(D17<13,"")))))) ->  | T17: =IF(D17<16,"",IF(S17="","",IF(D17=17,VLOOKUP(S17,TabLiza!$BH$5:$BI$75,2),IF(D17=16,VLOOKUP(S17,TabLiza!$BG$5:$BI$75,3),IF(D17>17,""))))) ->  | U17: =SUM(F17,H17,J17,L17,N17,P17,R17,T17) -> 308 | V17: =IF(U17=0,"",(RANK(U17,$U$17:$U$24,0))) -> 1
A18: =A17+1 -> 2 | B18: Петрова Елена | C18: =C17+1 -> 10 | D18: 12 | E18: 00:04:35 | F18: =IF(D18<7,"",IF(E18="","",IF(D18=17,VLOOKUP(E18,TabLiza!$V$5:$W$75,2),IF(D18=16,VLOOKUP(E18,TabLiza!$U$5:$W$75,3),IF(D18=15,VLOOKUP(E18,TabLiza!$T$5:$W$75,4),IF(D18=14,VLOOKUP(E18,TabLiza!$S$5:$W$75,5),IF(D18=13,VLOOKUP(E18,TabLiza!$R$5:$W$75,6),IF(D18=12,VLOOKUP(E18,TabLiza!$Q$5:$W$75,7),IF(D18=11,VLOOKUP(E18,TabLiza!$P$5:$W$75,8),IF(D18=10,VLOOKUP(E18,TabLiza!$O$5:$W$75,9),IF(D18=9,VLOOKUP(E18,TabLiza!$N$5:$W$75,10),IF(D18=8,VLOOKUP(E18,TabLiza!$M$5:$W$75,11),IF(D18=7,VLOOKUP(E18,TabLiza!$M$5:$W$75,11),IF(D18>17,"")))))))))))))) -> 35 | G18: 5.65 | H18: =IF(D18<7,"",IF(G18="","",IF(D18=17,VLOOKUP(G18,TabLiza!$BA$5:$BB$75,2),IF(D18=16,VLOOKUP(G18,TabLiza!$AZ$5:$BB$75,3),IF(D18=15,VLOOKUP(G18,TabLiza!$AY$5:$BB$75,4),IF(D18=14,VLOOKUP(G18,TabLiza!$AX$5:$BB$75,5),IF(D18=13,VLOOKUP(G18,TabLiza!$AW$5:$BB$75,6),IF(D18=12,VLOOKUP(G18,TabLiza!$AV$5:$BB$75,7),IF(D18=11,VLOOKUP(G18,TabLiza!$AU$5:$BB$75,8),IF(D18=10,VLOOKUP(G18,TabLiza!$AT$5:$BB$75,9),IF(D18=9,VLOOKUP(G18,TabLiza!$AS$5:$BB$75,10),IF(D18=8,VLOOKUP(G18,TabLiza!$AR$5:$BB$75,11),IF(D18=7,VLOOKUP(G18,TabLiza!$AR$5:$BB$75,11),IF(D18>12,"")))))))))))))) -> 40 | I18: 11 | J18: =IF(D18<7,"",IF(I18="","",IF(D18=17,VLOOKUP(I18,TabLiza!$CF$5:$CG$75,2),IF(D18=16,VLOOKUP(I18,TabLiza!$CE$5:$CG$75,3),IF(D18=15,VLOOKUP(I18,TabLiza!$CD$5:$CG$75,4),IF(D18=14,VLOOKUP(I18,TabLiza!$CC$5:$CG$75,5),IF(D18=13,VLOOKUP(I18,TabLiza!$CB$5:$CG$75,6),IF(D18=12,VLOOKUP(I18,TabLiza!$CA$5:$CG$75,7),IF(D18=11,VLOOKUP(I18,TabLiza!$BZ$5:$CG$75,8),IF(D18=10,VLOOKUP(I18,TabLiza!$BY$5:$CG$75,9),IF(D18=9,VLOOKUP(I18,TabLiza!$BX$5:$CG$75,10),IF(D18=8,VLOOKUP(I18,TabLiza!$BW$5:$CG$75,11),IF(D18=7,VLOOKUP(I18,TabLiza!$BW$5:$CG$75,11),IF(D18>17,"")))))))))))))) -> 16 | K18: 22 | L18: =IF(D18<7,"",IF(K18="","",IF(D18=17,VLOOKUP(K18,TabLiza!$EB$5:$EC$75,2),IF(D18=16,VLOOKUP(K18,TabLiza!$EA$5:$EC$75,3),IF(D18=15,VLOOKUP(K18,TabLiza!$DZ$5:$EC$75,4),IF(D18=14,VLOOKUP(K18,TabLiza!$DY$5:$EC$75,5),IF(D18=13,VLOOKUP(K18,TabLiza!$DX$5:$EC$75,6),IF(D18=12,VLOOKUP(K18,TabLiza!$DW$5:$EC$75,7),IF(D18=11,VLOOKUP(K18,TabLiza!$DV$5:$EC$75,8),IF(D18=10,VLOOKUP(K18,TabLiza!$DU$5:$EC$75,9),IF(D18=9,VLOOKUP(K18,TabLiza!$DT$5:$EC$75,10),IF(D18=8,VLOOKUP(K18,TabLiza!$DS$5:$EC$75,11),IF(D18=7,VLOOKUP(K18,TabLiza!$DS$5:$EC$75,11),IF(D18>17,"")))))))))))))) -> 33 | M18: 182 | N18: =IF(D18<7,"",IF(M18="","",IF(D18=17,VLOOKUP(M18,TabLiza!$DD$5:$DE$75,2),IF(D18=16,VLOOKUP(M18,TabLiza!$DC$5:$DE$75,3),IF(D18=15,VLOOKUP(M18,TabLiza!$DB$5:$DE$75,4),IF(D18=14,VLOOKUP(M18,TabLiza!$DA$5:$DE$75,5),IF(D18=13,VLOOKUP(M18,TabLiza!$CZ$5:$DE$75,6),IF(D18=12,VLOOKUP(M18,TabLiza!$CY$5:$DE$75,7),IF(D18=11,VLOOKUP(M18,TabLiza!$CX$5:$DE$75,8),IF(D18=10,VLOOKUP(M18,TabLiza!$CW$5:$DE$75,9),IF(D18=9,VLOOKUP(M18,TabLiza!$CV$5:$DE$75,10),IF(D18=8,VLOOKUP(M18,TabLiza!$CU$5:$DE$75,11),IF(D18=7,VLOOKUP(M18,TabLiza!$CU$5:$DE$75,11),IF(D18>17,"")))))))))))))) -> 36 | O18: 4 | P18: =IF(D18<7,"",IF(O18="","",IF(D18=17,VLOOKUP(O18,TabLiza!$EZ$5:$FA$75,2),IF(D18=16,VLOOKUP(O18,TabLiza!$EY$5:$FA$75,3),IF(D18=15,VLOOKUP(O18,TabLiza!$EX$5:$FA$75,4),IF(D18=14,VLOOKUP(O18,TabLiza!$EW$5:$FA$75,5),IF(D18=13,VLOOKUP(O18,TabLiza!$EV$5:$FA$75,6),IF(D18=12,VLOOKUP(O18,TabLiza!$EU$5:$FA$75,7),IF(D18=11,VLOOKUP(O18,TabLiza!$ET$5:$FA$75,8),IF(D18=10,VLOOKUP(O18,TabLiza!$ES$5:$FA$75,9),IF(D18=9,VLOOKUP(O18,TabLiza!$ER$5:$FA$75,10),IF(D18=8,VLOOKUP(O18,TabLiza!$EQ$5:$FA$75,11),IF(D18=7,VLOOKUP(O18,TabLiza!$EQ$5:$FA$75,11),IF(D18>17,"")))))))))))))) -> 9 | R18: =IF(D18>15,"",IF(Q18="","",IF(D18=15,VLOOKUP(Q18,TabLiza!$BF$5:$BI$75,4),IF(D18=14,VLOOKUP(Q18,TabLiza!$BE$5:$BI$75,5),IF(D18=13,VLOOKUP(Q18,TabLiza!$BD$5:$BI$75,6),IF(D18<13,"")))))) ->  | T18: =IF(D18<16,"",IF(S18="","",IF(D18=17,VLOOKUP(S18,TabLiza!$BH$5:$BI$75,2),IF(D18=16,VLOOKUP(S18,TabLiza!$BG$5:$BI$75,3),IF(D18>17,""))))) ->  | U18: =SUM(F18,H18,J18,L18,N18,P18,R18,T18) -> 169 | V18: =IF(U18=0,"",(RANK(U18,$U$17:$U$24,0))) -> 6
A19: =A18+1 -> 3 | B19: Чиркина Алиса | C19: =C18+1 -> 11 | D19: 12 | E19: 00:04:19 | F19: =IF(D19<7,"",IF(E19="","",IF(D19=17,VLOOKUP(E19,TabLiza!$V$5:$W$75,2),IF(D19=16,VLOOKUP(E19,TabLiza!$U$5:$W$75,3),IF(D19=15,VLOOKUP(E19,TabLiza!$T$5:$W$75,4),IF(D19=14,VLOOKUP(E19,TabLiza!$S$5:$W$75,5),IF(D19=13,VLOOKUP(E19,TabLiza!$R$5:$W$75,6),IF(D19=12,VLOOKUP(E19,TabLiza!$Q$5:$W$75,7),IF(D19=11,VLOOKUP(E19,TabLiza!$P$5:$W$75,8),IF(D19=10,VLOOKUP(E19,TabLiza!$O$5:$W$75,9),IF(D19=9,VLOOKUP(E19,TabLiza!$N$5:$W$75,10),IF(D19=8,VLOOKUP(E19,TabLiza!$M$5:$W$75,11),IF(D19=7,VLOOKUP(E19,TabLiza!$M$5:$W$75,11),IF(D19>17,"")))))))))))))) -> 42 | G19: 5.74 | H19: =IF(D19<7,"",IF(G19="","",IF(D19=17,VLOOKUP(G19,TabLiza!$BA$5:$BB$75,2),IF(D19=16,VLOOKUP(G19,TabLiza!$AZ$5:$BB$75,3),IF(D19=15,VLOOKUP(G19,TabLiza!$AY$5:$BB$75,4),IF(D19=14,VLOOKUP(G19,TabLiza!$AX$5:$BB$75,5),IF(D19=13,VLOOKUP(G19,TabLiza!$AW$5:$BB$75,6),IF(D19=12,VLOOKUP(G19,TabLiza!$AV$5:$BB$75,7),IF(D19=11,VLOOKUP(G19,TabLiza!$AU$5:$BB$75,8),IF(D19=10,VLOOKUP(G19,TabLiza!$AT$5:$BB$75,9),IF(D19=9,VLOOKUP(G19,TabLiza!$AS$5:$BB$75,10),IF(D19=8,VLOOKUP(G19,TabLiza!$AR$5:$BB$75,11),IF(D19=7,VLOOKUP(G19,TabLiza!$AR$5:$BB$75,11),IF(D19>12,"")))))))))))))) -> 35 | I19: 15 | J19: =IF(D19<7,"",IF(I19="","",IF(D19=17,VLOOKUP(I19,TabLiza!$CF$5:$CG$75,2),IF(D19=16,VLOOKUP(I19,TabLiza!$CE$5:$CG$75,3),IF(D19=15,VLOOKUP(I19,TabLiza!$CD$5:$CG$75,4),IF(D19=14,VLOOKUP(I19,TabLiza!$CC$5:$CG$75,5),IF(D19=13,VLOOKUP(I19,TabLiza!$CB$5:$CG$75,6),IF(D19=12,VLOOKUP(I19,TabLiza!$CA$5:$CG$75,7),IF(D19=11,VLOOKUP(I19,TabLiza!$BZ$5:$CG$75,8),IF(D19=10,VLOOKUP(I19,TabLiza!$BY$5:$CG$75,9),IF(D19=9,VLOOKUP(I19,TabLiza!$BX$5:$CG$75,10),IF(D19=8,VLOOKUP(I19,TabLiza!$BW$5:$CG$75,11),IF(D19=7,VLOOKUP(I19,TabLiza!$BW$5:$CG$75,11),IF(D19>17,"")))))))))))))) -> 24 | K19: 30 | L19: =IF(D19<7,"",IF(K19="","",IF(D19=17,VLOOKUP(K19,TabLiza!$EB$5:$EC$75,2),IF(D19=16,VLOOKUP(K19,TabLiza!$EA$5:$EC$75,3),IF(D19=15,VLOOKUP(K19,TabLiza!$DZ$5:$EC$75,4),IF(D19=14,VLOOKUP(K19,TabLiza!$DY$5:$EC$75,5),IF(D19=13,VLOOKUP(K19,TabLiza!$DX$5:$EC$75,6),IF(D19=12,VLOOKUP(K19,TabLiza!$DW$5:$EC$75,7),IF(D19=11,VLOOKUP(K19,TabLiza!$DV$5:$EC$75,8),IF(D19=10,VLOOKUP(K19,TabLiza!$DU$5:$EC$75,9),IF(D19=9,VLOOKUP(K19,TabLiza!$DT$5:$EC$75,10),IF(D19=8,VLOOKUP(K19,TabLiza!$DS$5:$EC$75,11),IF(D19=7,VLOOKUP(K19,TabLiza!$DS$5:$EC$75,11),IF(D19>17,"")))))))))))))) -> 50 | M19: 192 | N19: =IF(D19<7,"",IF(M19="","",IF(D19=17,VLOOKUP(M19,TabLiza!$DD$5:$DE$75,2),IF(D19=16,VLOOKUP(M19,TabLiza!$DC$5:$DE$75,3),IF(D19=15,VLOOKUP(M19,TabLiza!$DB$5:$DE$75,4),IF(D19=14,VLOOKUP(M19,TabLiza!$DA$5:$DE$75,5),IF(D19=13,VLOOKUP(M19,TabLiza!$CZ$5:$DE$75,6),IF(D19=12,VLOOKUP(M19,TabLiza!$CY$5:$DE$75,7),IF(D19=11,VLOOKUP(M19,TabLiza!$CX$5:$DE$75,8),IF(D19=10,VLOOKUP(M19,TabLiza!$CW$5:$DE$75,9),IF(D19=9,VLOOKUP(M19,TabLiza!$CV$5:$DE$75,10),IF(D19=8,VLOOKUP(M19,TabLiza!$CU$5:$DE$75,11),IF(D19=7,VLOOKUP(M19,TabLiza!$CU$5:$DE$75,11),IF(D19>17,"")))))))))))))) -> 42 | O19: 9 | P19: =IF(D19<7,"",IF(O19="","",IF(D19=17,VLOOKUP(O19,TabLiza!$EZ$5:$FA$75,2),IF(D19=16,VLOOKUP(O19,TabLiza!$EY$5:$FA$75,3),IF(D19=15,VLOOKUP(O19,TabLiza!$EX$5:$FA$75,4),IF(D19=14,VLOOKUP(O19,TabLiza!$EW$5:$FA$75,5),IF(D19=13,VLOOKUP(O19,TabLiza!$EV$5:$FA$75,6),IF(D19=12,VLOOKUP(O19,TabLiza!$EU$5:$FA$75,7),IF(D19=11,VLOOKUP(O19,TabLiza!$ET$5:$FA$75,8),IF(D19=10,VLOOKUP(O19,TabLiza!$ES$5:$FA$75,9),IF(D19=9,VLOOKUP(O19,TabLiza!$ER$5:$FA$75,10),IF(D19=8,VLOOKUP(O19,TabLiza!$EQ$5:$FA$75,11),IF(D19=7,VLOOKUP(O19,TabLiza!$EQ$5:$FA$75,11),IF(D19>17,"")))))))))))))) -> 19 | R19: =IF(D19>15,"",IF(Q19="","",IF(D19=15,VLOOKUP(Q19,TabLiza!$BF$5:$BI$75,4),IF(D19=14,VLOOKUP(Q19,TabLiza!$BE$5:$BI$75,5),IF(D19=13,VLOOKUP(Q19,TabLiza!$BD$5:$BI$75,6),IF(D19<13,"")))))) ->  | T19: =IF(D19<16,"",IF(S19="","",IF(D19=17,VLOOKUP(S19,TabLiza!$BH$5:$BI$75,2),IF(D19=16,VLOOKUP(S19,TabLiza!$BG$5:$BI$75,3),IF(D19>17,""))))) ->  | U19: 212 | V19: 4
A20: 4 | B20: Шоврина Ксения | C20: 12 | D20: 12 | E20: 00:03:58 | F20: =IF(D20<7,"",IF(E20="","",IF(D20=17,VLOOKUP(E20,TabLiza!$V$5:$W$75,2),IF(D20=16,VLOOKUP(E20,TabLiza!$U$5:$W$75,3),IF(D20=15,VLOOKUP(E20,TabLiza!$T$5:$W$75,4),IF(D20=14,VLOOKUP(E20,TabLiza!$S$5:$W$75,5),IF(D20=13,VLOOKUP(E20,TabLiza!$R$5:$W$75,6),IF(D20=12,VLOOKUP(E20,TabLiza!$Q$5:$W$75,7),IF(D20=11,VLOOKUP(E20,TabLiza!$P$5:$W$75,8),IF(D20=10,VLOOKUP(E20,TabLiza!$O$5:$W$75,9),IF(D20=9,VLOOKUP(E20,TabLiza!$N$5:$W$75,10),IF(D20=8,VLOOKUP(E20,TabLiza!$M$5:$W$75,11),IF(D20=7,VLOOKUP(E20,TabLiza!$M$5:$W$75,11),IF(D20>17,"")))))))))))))) -> 56 | G20: 5.39 | H20: =IF(D20<7,"",IF(G20="","",IF(D20=17,VLOOKUP(G20,TabLiza!$BA$5:$BB$75,2),IF(D20=16,VLOOKUP(G20,TabLiza!$AZ$5:$BB$75,3),IF(D20=15,VLOOKUP(G20,TabLiza!$AY$5:$BB$75,4),IF(D20=14,VLOOKUP(G20,TabLiza!$AX$5:$BB$75,5),IF(D20=13,VLOOKUP(G20,TabLiza!$AW$5:$BB$75,6),IF(D20=12,VLOOKUP(G20,TabLiza!$AV$5:$BB$75,7),IF(D20=11,VLOOKUP(G20,TabLiza!$AU$5:$BB$75,8),IF(D20=10,VLOOKUP(G20,TabLiza!$AT$5:$BB$75,9),IF(D20=9,VLOOKUP(G20,TabLiza!$AS$5:$BB$75,10),IF(D20=8,VLOOKUP(G20,TabLiza!$AR$5:$BB$75,11),IF(D20=7,VLOOKUP(G20,TabLiza!$AR$5:$BB$75,11),IF(D20>12,"")))))))))))))) -> 53 | I20: 19 | J20: =IF(D20<7,"",IF(I20="","",IF(D20=17,VLOOKUP(I20,TabLiza!$CF$5:$CG$75,2),IF(D20=16,VLOOKUP(I20,TabLiza!$CE$5:$CG$75,3),IF(D20=15,VLOOKUP(I20,TabLiza!$CD$5:$CG$75,4),IF(D20=14,VLOOKUP(I20,TabLiza!$CC$5:$CG$75,5),IF(D20=13,VLOOKUP(I20,TabLiza!$CB$5:$CG$75,6),IF(D20=12,VLOOKUP(I20,TabLiza!$CA$5:$CG$75,7),IF(D20=11,VLOOKUP(I20,TabLiza!$BZ$5:$CG$75,8),IF(D20=10,VLOOKUP(I20,TabLiza!$BY$5:$CG$75,9),IF(D20=9,VLOOKUP(I20,TabLiza!$BX$5:$CG$75,10),IF(D20=8,VLOOKUP(I20,TabLiza!$BW$5:$CG$75,11),IF(D20=7,VLOOKUP(I20,TabLiza!$BW$5:$CG$75,11),IF(D20>17,"")))))))))))))) -> 32 | K20: 34 | L20: =IF(D20<7,"",IF(K20="","",IF(D20=17,VLOOKUP(K20,TabLiza!$EB$5:$EC$75,2),IF(D20=16,VLOOKUP(K20,TabLiza!$EA$5:$EC$75,3),IF(D20=15,VLOOKUP(K20,TabLiza!$DZ$5:$EC$75,4),IF(D20=14,VLOOKUP(K20,TabLiza!$DY$5:$EC$75,5),IF(D20=13,VLOOKUP(K20,TabLiza!$DX$5:$EC$75,6),IF(D20=12,VLOOKUP(K20,TabLiza!$DW$5:$EC$75,7),IF(D20=11,VLOOKUP(K20,TabLiza!$DV$5:$EC$75,8),IF(D20=10,VLOOKUP(K20,TabLiza!$DU$5:$EC$75,9),IF(D20=9,VLOOKUP(K20,TabLiza!$DT$5:$EC$75,10),IF(D20=8,VLOOKUP(K20,TabLiza!$DS$5:$EC$75,11),IF(D20=7,VLOOKUP(K20,TabLiza!$DS$5:$EC$75,11),IF(D20>17,"")))))))))))))) -> 58 | M20: 210 | N20: =IF(D20<7,"",IF(M20="","",IF(D20=17,VLOOKUP(M20,TabLiza!$DD$5:$DE$75,2),IF(D20=16,VLOOKUP(M20,TabLiza!$DC$5:$DE$75,3),IF(D20=15,VLOOKUP(M20,TabLiza!$DB$5:$DE$75,4),IF(D20=14,VLOOKUP(M20,TabLiza!$DA$5:$DE$75,5),IF(D20=13,VLOOKUP(M20,TabLiza!$CZ$5:$DE$75,6),IF(D20=12,VLOOKUP(M20,TabLiza!$CY$5:$DE$75,7),IF(D20=11,VLOOKUP(M20,TabLiza!$CX$5:$DE$75,8),IF(D20=10,VLOOKUP(M20,TabLiza!$CW$5:$DE$75,9),IF(D20=9,VLOOKUP(M20,TabLiza!$CV$5:$DE$75,10),IF(D20=8,VLOOKUP(M20,TabLiza!$CU$5:$DE$75,11),IF(D20=7,VLOOKUP(M20,TabLiza!$CU$5:$DE$75,11),IF(D20>17,"")))))))))))))) -> 55 | O20: 11 | P20: =IF(D20<7,"",IF(O20="","",IF(D20=17,VLOOKUP(O20,TabLiza!$EZ$5:$FA$75,2),IF(D20=16,VLOOKUP(O20,TabLiza!$EY$5:$FA$75,3),IF(D20=15,VLOOKUP(O20,TabLiza!$EX$5:$FA$75,4),IF(D20=14,VLOOKUP(O20,TabLiza!$EW$5:$FA$75,5),IF(D20=13,VLOOKUP(O20,TabLiza!$EV$5:$FA$75,6),IF(D20=12,VLOOKUP(O20,TabLiza!$EU$5:$FA$75,7),IF(D20=11,VLOOKUP(O20,TabLiza!$ET$5:$FA$75,8),IF(D20=10,VLOOKUP(O20,TabLiza!$ES$5:$FA$75,9),IF(D20=9,VLOOKUP(O20,TabLiza!$ER$5:$FA$75,10),IF(D20=8,VLOOKUP(O20,TabLiza!$EQ$5:$FA$75,11),IF(D20=7,VLOOKUP(O20,TabLiza!$EQ$5:$FA$75,11),IF(D20>17,"")))))))))))))) -> 23 | R20: =IF(D20>15,"",IF(Q20="","",IF(D20=15,VLOOKUP(Q20,TabLiza!$BF$5:$BI$75,4),IF(D20=14,VLOOKUP(Q20,TabLiza!$BE$5:$BI$75,5),IF(D20=13,VLOOKUP(Q20,TabLiza!$BD$5:$BI$75,6),IF(D20<13,"")))))) ->  | T20: =IF(D20<16,"",IF(S20="","",IF(D20=17,VLOOKUP(S20,TabLiza!$BH$5:$BI$75,2),IF(D20=16,VLOOKUP(S20,TabLiza!$BG$5:$BI$75,3),IF(D20>17,""))))) ->  | U20: 277 | V20: 2
A21: 5 | B21: Бабанова Евгения | C21: 13 | D21: 13 | E21: 00:04:56 | F21: =IF(D21<7,"",IF(E21="","",IF(D21=17,VLOOKUP(E21,TabLiza!$V$5:$W$75,2),IF(D21=16,VLOOKUP(E21,TabLiza!$U$5:$W$75,3),IF(D21=15,VLOOKUP(E21,TabLiza!$T$5:$W$75,4),IF(D21=14,VLOOKUP(E21,TabLiza!$S$5:$W$75,5),IF(D21=13,VLOOKUP(E21,TabLiza!$R$5:$W$75,6),IF(D21=12,VLOOKUP(E21,TabLiza!$Q$5:$W$75,7),IF(D21=11,VLOOKUP(E21,TabLiza!$P$5:$W$75,8),IF(D21=10,VLOOKUP(E21,TabLiza!$O$5:$W$75,9),IF(D21=9,VLOOKUP(E21,TabLiza!$N$5:$W$75,10),IF(D21=8,VLOOKUP(E21,TabLiza!$M$5:$W$75,11),IF(D21=7,VLOOKUP(E21,TabLiza!$M$5:$W$75,11),IF(D21>17,"")))))))))))))) -> 23 | G21: 6.32 | H21: =IF(D21<7,"",IF(G21="","",IF(D21=17,VLOOKUP(G21,TabLiza!$BA$5:$BB$75,2),IF(D21=16,VLOOKUP(G21,TabLiza!$AZ$5:$BB$75,3),IF(D21=15,VLOOKUP(G21,TabLiza!$AY$5:$BB$75,4),IF(D21=14,VLOOKUP(G21,TabLiza!$AX$5:$BB$75,5),IF(D21=13,VLOOKUP(G21,TabLiza!$AW$5:$BB$75,6),IF(D21=12,VLOOKUP(G21,TabLiza!$AV$5:$BB$75,7),IF(D21=11,VLOOKUP(G21,TabLiza!$AU$5:$BB$75,8),IF(D21=10,VLOOKUP(G21,TabLiza!$AT$5:$BB$75,9),IF(D21=9,VLOOKUP(G21,TabLiza!$AS$5:$BB$75,10),IF(D21=8,VLOOKUP(G21,TabLiza!$AR$5:$BB$75,11),IF(D21=7,VLOOKUP(G21,TabLiza!$AR$5:$BB$75,11),IF(D21>12,"")))))))))))))) -> 9 | I21: 11 | J21: =IF(D21<7,"",IF(I21="","",IF(D21=17,VLOOKUP(I21,TabLiza!$CF$5:$CG$75,2),IF(D21=16,VLOOKUP(I21,TabLiza!$CE$5:$CG$75,3),IF(D21=15,VLOOKUP(I21,TabLiza!$CD$5:$CG$75,4),IF(D21=14,VLOOKUP(I21,TabLiza!$CC$5:$CG$75,5),IF(D21=13,VLOOKUP(I21,TabLiza!$CB$5:$CG$75,6),IF(D21=12,VLOOKUP(I21,TabLiza!$CA$5:$CG$75,7),IF(D21=11,VLOOKUP(I21,TabLiza!$BZ$5:$CG$75,8),IF(D21=10,VLOOKUP(I21,TabLiza!$BY$5:$CG$75,9),IF(D21=9,VLOOKUP(I21,TabLiza!$BX$5:$CG$75,10),IF(D21=8,VLOOKUP(I21,TabLiza!$BW$5:$CG$75,11),IF(D21=7,VLOOKUP(I21,TabLiza!$BW$5:$CG$75,11),IF(D21>17,"")))))))))))))) -> 10 | K21: 26 | L21: =IF(D21<7,"",IF(K21="","",IF(D21=17,VLOOKUP(K21,TabLiza!$EB$5:$EC$75,2),IF(D21=16,VLOOKUP(K21,TabLiza!$EA$5:$EC$75,3),IF(D21=15,VLOOKUP(K21,TabLiza!$DZ$5:$EC$75,4),IF(D21=14,VLOOKUP(K21,TabLiza!$DY$5:$EC$75,5),IF(D21=13,VLOOKUP(K21,TabLiza!$DX$5:$EC$75,6),IF(D21=12,VLOOKUP(K21,TabLiza!$DW$5:$EC$75,7),IF(D21=11,VLOOKUP(K21,TabLiza!$DV$5:$EC$75,8),IF(D21=10,VLOOKUP(K21,TabLiza!$DU$5:$EC$75,9),IF(D21=9,VLOOKUP(K21,TabLiza!$DT$5:$EC$75,10),IF(D21=8,VLOOKUP(K21,TabLiza!$DS$5:$EC$75,11),IF(D21=7,VLOOKUP(K21,TabLiza!$DS$5:$EC$75,11),IF(D21>17,"")))))))))))))) -> 31 | M21: 163 | N21: =IF(D21<7,"",IF(M21="","",IF(D21=17,VLOOKUP(M21,TabLiza!$DD$5:$DE$75,2),IF(D21=16,VLOOKUP(M21,TabLiza!$DC$5:$DE$75,3),IF(D21=15,VLOOKUP(M21,TabLiza!$DB$5:$DE$75,4),IF(D21=14,VLOOKUP(M21,TabLiza!$DA$5:$DE$75,5),IF(D21=13,VLOOKUP(M21,TabLiza!$CZ$5:$DE$75,6),IF(D21=12,VLOOKUP(M21,TabLiza!$CY$5:$DE$75,7),IF(D21=11,VLOOKUP(M21,TabLiza!$CX$5:$DE$75,8),IF(D21=10,VLOOKUP(M21,TabLiza!$CW$5:$DE$75,9),IF(D21=9,VLOOKUP(M21,TabLiza!$CV$5:$DE$75,10),IF(D21=8,VLOOKUP(M21,TabLiza!$CU$5:$DE$75,11),IF(D21=7,VLOOKUP(M21,TabLiza!$CU$5:$DE$75,11),IF(D21>17,"")))))))))))))) -> 19 | O21: 3 | P21: =IF(D21<7,"",IF(O21="","",IF(D21=17,VLOOKUP(O21,TabLiza!$EZ$5:$FA$75,2),IF(D21=16,VLOOKUP(O21,TabLiza!$EY$5:$FA$75,3),IF(D21=15,VLOOKUP(O21,TabLiza!$EX$5:$FA$75,4),IF(D21=14,VLOOKUP(O21,TabLiza!$EW$5:$FA$75,5),IF(D21=13,VLOOKUP(O21,TabLiza!$EV$5:$FA$75,6),IF(D21=12,VLOOKUP(O21,TabLiza!$EU$5:$FA$75,7),IF(D21=11,VLOOKUP(O21,TabLiza!$ET$5:$FA$75,8),IF(D21=10,VLOOKUP(O21,TabLiza!$ES$5:$FA$75,9),IF(D21=9,VLOOKUP(O21,TabLiza!$ER$5:$FA$75,10),IF(D21=8,VLOOKUP(O21,TabLiza!$EQ$5:$FA$75,11),IF(D21=7,VLOOKUP(O21,TabLiza!$EQ$5:$FA$75,11),IF(D21>17,"")))))))))))))) -> 7 | R21: =IF(D21>15,"",IF(Q21="","",IF(D21=15,VLOOKUP(Q21,TabLiza!$BF$5:$BI$75,4),IF(D21=14,VLOOKUP(Q21,TabLiza!$BE$5:$BI$75,5),IF(D21=13,VLOOKUP(Q21,TabLiza!$BD$5:$BI$75,6),IF(D21<13,"")))))) ->  | T21: =IF(D21<16,"",IF(S21="","",IF(D21=17,VLOOKUP(S21,TabLiza!$BH$5:$BI$75,2),IF(D21=16,VLOOKUP(S21,TabLiza!$BG$5:$BI$75,3),IF(D21>17,""))))) ->  | U21: 99 | V21: 8
A22: 6 | B22: Лукьянова Полина | C22: 14 | D22: 13 | E22: 00:04:23 | F22: =IF(D22<7,"",IF(E22="","",IF(D22=17,VLOOKUP(E22,TabLiza!$V$5:$W$75,2),IF(D22=16,VLOOKUP(E22,TabLiza!$U$5:$W$75,3),IF(D22=15,VLOOKUP(E22,TabLiza!$T$5:$W$75,4),IF(D22=14,VLOOKUP(E22,TabLiza!$S$5:$W$75,5),IF(D22=13,VLOOKUP(E22,TabLiza!$R$5:$W$75,6),IF(D22=12,VLOOKUP(E22,TabLiza!$Q$5:$W$75,7),IF(D22=11,VLOOKUP(E22,TabLiza!$P$5:$W$75,8),IF(D22=10,VLOOKUP(E22,TabLiza!$O$5:$W$75,9),IF(D22=9,VLOOKUP(E22,TabLiza!$N$5:$W$75,10),IF(D22=8,VLOOKUP(E22,TabLiza!$M$5:$W$75,11),IF(D22=7,VLOOKUP(E22,TabLiza!$M$5:$W$75,11),IF(D22>17,"")))))))))))))) -> 34 | G22: 5.88 | H22: =IF(D22<7,"",IF(G22="","",IF(D22=17,VLOOKUP(G22,TabLiza!$BA$5:$BB$75,2),IF(D22=16,VLOOKUP(G22,TabLiza!$AZ$5:$BB$75,3),IF(D22=15,VLOOKUP(G22,TabLiza!$AY$5:$BB$75,4),IF(D22=14,VLOOKUP(G22,TabLiza!$AX$5:$BB$75,5),IF(D22=13,VLOOKUP(G22,TabLiza!$AW$5:$BB$75,6),IF(D22=12,VLOOKUP(G22,TabLiza!$AV$5:$BB$75,7),IF(D22=11,VLOOKUP(G22,TabLiza!$AU$5:$BB$75,8),IF(D22=10,VLOOKUP(G22,TabLiza!$AT$5:$BB$75,9),IF(D22=9,VLOOKUP(G22,TabLiza!$AS$5:$BB$75,10),IF(D22=8,VLOOKUP(G22,TabLiza!$AR$5:$BB$75,11),IF(D22=7,VLOOKUP(G22,TabLiza!$AR$5:$BB$75,11),IF(D22>12,"")))))))))))))) -> 24 | I22: 22 | J22: =IF(D22<7,"",IF(I22="","",IF(D22=17,VLOOKUP(I22,TabLiza!$CF$5:$CG$75,2),IF(D22=16,VLOOKUP(I22,TabLiza!$CE$5:$CG$75,3),IF(D22=15,VLOOKUP(I22,TabLiza!$CD$5:$CG$75,4),IF(D22=14,VLOOKUP(I22,TabLiza!$CC$5:$CG$75,5),IF(D22=13,VLOOKUP(I22,TabLiza!$CB$5:$CG$75,6),IF(D22=12,VLOOKUP(I22,TabLiza!$CA$5:$CG$75,7),IF(D22=11,VLOOKUP(I22,TabLiza!$BZ$5:$CG$75,8),IF(D22=10,VLOOKUP(I22,TabLiza!$BY$5:$CG$75,9),IF(D22=9,VLOOKUP(I22,TabLiza!$BX$5:$CG$75,10),IF(D22=8,VLOOKUP(I22,TabLiza!$BW$5:$CG$75,11),IF(D22=7,VLOOKUP(I22,TabLiza!$BW$5:$CG$75,11),IF(D22>17,"")))))))))))))) -> 32 | K22: 30 | L22: =IF(D22<7,"",IF(K22="","",IF(D22=17,VLOOKUP(K22,TabLiza!$EB$5:$EC$75,2),IF(D22=16,VLOOKUP(K22,TabLiza!$EA$5:$EC$75,3),IF(D22=15,VLOOKUP(K22,TabLiza!$DZ$5:$EC$75,4),IF(D22=14,VLOOKUP(K22,TabLiza!$DY$5:$EC$75,5),IF(D22=13,VLOOKUP(K22,TabLiza!$DX$5:$EC$75,6),IF(D22=12,VLOOKUP(K22,TabLiza!$DW$5:$EC$75,7),IF(D22=11,VLOOKUP(K22,TabLiza!$DV$5:$EC$75,8),IF(D22=10,VLOOKUP(K22,TabLiza!$DU$5:$EC$75,9),IF(D22=9,VLOOKUP(K22,TabLiza!$DT$5:$EC$75,10),IF(D22=8,VLOOKUP(K22,TabLiza!$DS$5:$EC$75,11),IF(D22=7,VLOOKUP(K22,TabLiza!$DS$5:$EC$75,11),IF(D22>17,"")))))))))))))) -> 41 | M22: 185 | N22: =IF(D22<7,"",IF(M22="","",IF(D22=17,VLOOKUP(M22,TabLiza!$DD$5:$DE$75,2),IF(D22=16,VLOOKUP(M22,TabLiza!$DC$5:$DE$75,3),IF(D22=15,VLOOKUP(M22,TabLiza!$DB$5:$DE$75,4),IF(D22=14,VLOOKUP(M22,TabLiza!$DA$5:$DE$75,5),IF(D22=13,VLOOKUP(M22,TabLiza!$CZ$5:$DE$75,6),IF(D22=12,VLOOKUP(M22,TabLiza!$CY$5:$DE$75,7),IF(D22=11,VLOOKUP(M22,TabLiza!$CX$5:$DE$75,8),IF(D22=10,VLOOKUP(M22,TabLiza!$CW$5:$DE$75,9),IF(D22=9,VLOOKUP(M22,TabLiza!$CV$5:$DE$75,10),IF(D22=8,VLOOKUP(M22,TabLiza!$CU$5:$DE$75,11),IF(D22=7,VLOOKUP(M22,TabLiza!$CU$5:$DE$75,11),IF(D22>17,"")))))))))))))) -> 30 | O22: 26 | P22: =IF(D22<7,"",IF(O22="","",IF(D22=17,VLOOKUP(O22,TabLiza!$EZ$5:$FA$75,2),IF(D22=16,VLOOKUP(O22,TabLiza!$EY$5:$FA$75,3),IF(D22=15,VLOOKUP(O22,TabLiza!$EX$5:$FA$75,4),IF(D22=14,VLOOKUP(O22,TabLiza!$EW$5:$FA$75,5),IF(D22=13,VLOOKUP(O22,TabLiza!$EV$5:$FA$75,6),IF(D22=12,VLOOKUP(O22,TabLiza!$EU$5:$FA$75,7),IF(D22=11,VLOOKUP(O22,TabLiza!$ET$5:$FA$75,8),IF(D22=10,VLOOKUP(O22,TabLiza!$ES$5:$FA$75,9),IF(D22=9,VLOOKUP(O22,TabLiza!$ER$5:$FA$75,10),IF(D22=8,VLOOKUP(O22,TabLiza!$EQ$5:$FA$75,11),IF(D22=7,VLOOKUP(O22,TabLiza!$EQ$5:$FA$75,11),IF(D22>17,"")))))))))))))) -> 60 | R22: =IF(D22>15,"",IF(Q22="","",IF(D22=15,VLOOKUP(Q22,TabLiza!$BF$5:$BI$75,4),IF(D22=14,VLOOKUP(Q22,TabLiza!$BE$5:$BI$75,5),IF(D22=13,VLOOKUP(Q22,TabLiza!$BD$5:$BI$75,6),IF(D22<13,"")))))) ->  | T22: =IF(D22<16,"",IF(S22="","",IF(D22=17,VLOOKUP(S22,TabLiza!$BH$5:$BI$75,2),IF(D22=16,VLOOKUP(S22,TabLiza!$BG$5:$BI$75,3),IF(D22>17,""))))) ->  | U22: 221 | V22: 3
A23: 7 | B23: Липатникова Любовь | C23: 15 | D23: 12 | E23: 00:04:57 | F23: =IF(D23<7,"",IF(E23="","",IF(D23=17,VLOOKUP(E23,TabLiza!$V$5:$W$75,2),IF(D23=16,VLOOKUP(E23,TabLiza!$U$5:$W$75,3),IF(D23=15,VLOOKUP(E23,TabLiza!$T$5:$W$75,4),IF(D23=14,VLOOKUP(E23,TabLiza!$S$5:$W$75,5),IF(D23=13,VLOOKUP(E23,TabLiza!$R$5:$W$75,6),IF(D23=12,VLOOKUP(E23,TabLiza!$Q$5:$W$75,7),IF(D23=11,VLOOKUP(E23,TabLiza!$P$5:$W$75,8),IF(D23=10,VLOOKUP(E23,TabLiza!$O$5:$W$75,9),IF(D23=9,VLOOKUP(E23,TabLiza!$N$5:$W$75,10),IF(D23=8,VLOOKUP(E23,TabLiza!$M$5:$W$75,11),IF(D23=7,VLOOKUP(E23,TabLiza!$M$5:$W$75,11),IF(D23>17,"")))))))))))))) -> 28 | G23: 6.29 | H23: =IF(D23<7,"",IF(G23="","",IF(D23=17,VLOOKUP(G23,TabLiza!$BA$5:$BB$75,2),IF(D23=16,VLOOKUP(G23,TabLiza!$AZ$5:$BB$75,3),IF(D23=15,VLOOKUP(G23,TabLiza!$AY$5:$BB$75,4),IF(D23=14,VLOOKUP(G23,TabLiza!$AX$5:$BB$75,5),IF(D23=13,VLOOKUP(G23,TabLiza!$AW$5:$BB$75,6),IF(D23=12,VLOOKUP(G23,TabLiza!$AV$5:$BB$75,7),IF(D23=11,VLOOKUP(G23,TabLiza!$AU$5:$BB$75,8),IF(D23=10,VLOOKUP(G23,TabLiza!$AT$5:$BB$75,9),IF(D23=9,VLOOKUP(G23,TabLiza!$AS$5:$BB$75,10),IF(D23=8,VLOOKUP(G23,TabLiza!$AR$5:$BB$75,11),IF(D23=7,VLOOKUP(G23,TabLiza!$AR$5:$BB$75,11),IF(D23>12,"")))))))))))))) -> 16 | I23: 6 | J23: =IF(D23<7,"",IF(I23="","",IF(D23=17,VLOOKUP(I23,TabLiza!$CF$5:$CG$75,2),IF(D23=16,VLOOKUP(I23,TabLiza!$CE$5:$CG$75,3),IF(D23=15,VLOOKUP(I23,TabLiza!$CD$5:$CG$75,4),IF(D23=14,VLOOKUP(I23,TabLiza!$CC$5:$CG$75,5),IF(D23=13,VLOOKUP(I23,TabLiza!$CB$5:$CG$75,6),IF(D23=12,VLOOKUP(I23,TabLiza!$CA$5:$CG$75,7),IF(D23=11,VLOOKUP(I23,TabLiza!$BZ$5:$CG$75,8),IF(D23=10,VLOOKUP(I23,TabLiza!$BY$5:$CG$75,9),IF(D23=9,VLOOKUP(I23,TabLiza!$BX$5:$CG$75,10),IF(D23=8,VLOOKUP(I23,TabLiza!$BW$5:$CG$75,11),IF(D23=7,VLOOKUP(I23,TabLiza!$BW$5:$CG$75,11),IF(D23>17,"")))))))))))))) -> 6 | K23: 24 | L23: =IF(D23<7,"",IF(K23="","",IF(D23=17,VLOOKUP(K23,TabLiza!$EB$5:$EC$75,2),IF(D23=16,VLOOKUP(K23,TabLiza!$EA$5:$EC$75,3),IF(D23=15,VLOOKUP(K23,TabLiza!$DZ$5:$EC$75,4),IF(D23=14,VLOOKUP(K23,TabLiza!$DY$5:$EC$75,5),IF(D23=13,VLOOKUP(K23,TabLiza!$DX$5:$EC$75,6),IF(D23=12,VLOOKUP(K23,TabLiza!$DW$5:$EC$75,7),IF(D23=11,VLOOKUP(K23,TabLiza!$DV$5:$EC$75,8),IF(D23=10,VLOOKUP(K23,TabLiza!$DU$5:$EC$75,9),IF(D23=9,VLOOKUP(K23,TabLiza!$DT$5:$EC$75,10),IF(D23=8,VLOOKUP(K23,TabLiza!$DS$5:$EC$75,11),IF(D23=7,VLOOKUP(K23,TabLiza!$DS$5:$EC$75,11),IF(D23>17,"")))))))))))))) -> 37 | M23: 165 | N23: =IF(D23<7,"",IF(M23="","",IF(D23=17,VLOOKUP(M23,TabLiza!$DD$5:$DE$75,2),IF(D23=16,VLOOKUP(M23,TabLiza!$DC$5:$DE$75,3),IF(D23=15,VLOOKUP(M23,TabLiza!$DB$5:$DE$75,4),IF(D23=14,VLOOKUP(M23,TabLiza!$DA$5:$DE$75,5),IF(D23=13,VLOOKUP(M23,TabLiza!$CZ$5:$DE$75,6),IF(D23=12,VLOOKUP(M23,TabLiza!$CY$5:$DE$75,7),IF(D23=11,VLOOKUP(M23,TabLiza!$CX$5:$DE$75,8),IF(D23=10,VLOOKUP(M23,TabLiza!$CW$5:$DE$75,9),IF(D23=9,VLOOKUP(M23,TabLiza!$CV$5:$DE$75,10),IF(D23=8,VLOOKUP(M23,TabLiza!$CU$5:$DE$75,11),IF(D23=7,VLOOKUP(M23,TabLiza!$CU$5:$DE$75,11),IF(D23>17,"")))))))))))))) -> 27 | O23: 24 | P23: =IF(D23<7,"",IF(O23="","",IF(D23=17,VLOOKUP(O23,TabLiza!$EZ$5:$FA$75,2),IF(D23=16,VLOOKUP(O23,TabLiza!$EY$5:$FA$75,3),IF(D23=15,VLOOKUP(O23,TabLiza!$EX$5:$FA$75,4),IF(D23=14,VLOOKUP(O23,TabLiza!$EW$5:$FA$75,5),IF(D23=13,VLOOKUP(O23,TabLiza!$EV$5:$FA$75,6),IF(D23=12,VLOOKUP(O23,TabLiza!$EU$5:$FA$75,7),IF(D23=11,VLOOKUP(O23,TabLiza!$ET$5:$FA$75,8),IF(D23=10,VLOOKUP(O23,TabLiza!$ES$5:$FA$75,9),IF(D23=9,VLOOKUP(O23,TabLiza!$ER$5:$FA$75,10),IF(D23=8,VLOOKUP(O23,TabLiza!$EQ$5:$FA$75,11),IF(D23=7,VLOOKUP(O23,TabLiza!$EQ$5:$FA$75,11),IF(D23>17,"")))))))))))))) -> 60 | R23: =IF(D23>15,"",IF(Q23="","",IF(D23=15,VLOOKUP(Q23,TabLiza!$BF$5:$BI$75,4),IF(D23=14,VLOOKUP(Q23,TabLiza!$BE$5:$BI$75,5),IF(D23=13,VLOOKUP(Q23,TabLiza!$BD$5:$BI$75,6),IF(D23<13,"")))))) ->  | T23: =IF(D23<16,"",IF(S23="","",IF(D23=17,VLOOKUP(S23,TabLiza!$BH$5:$BI$75,2),IF(D23=16,VLOOKUP(S23,TabLiza!$BG$5:$BI$75,3),IF(D23>17,""))))) ->  | U23: 174 | V23: 5
A24: 8 | B24: Алексеева Ульяна | C24: 16 | D24: 13 | E24: 00:04:44 | F24: =IF(D24<7,"",IF(E24="","",IF(D24=17,VLOOKUP(E24,TabLiza!$V$5:$W$75,2),IF(D24=16,VLOOKUP(E24,TabLiza!$U$5:$W$75,3),IF(D24=15,VLOOKUP(E24,TabLiza!$T$5:$W$75,4),IF(D24=14,VLOOKUP(E24,TabLiza!$S$5:$W$75,5),IF(D24=13,VLOOKUP(E24,TabLiza!$R$5:$W$75,6),IF(D24=12,VLOOKUP(E24,TabLiza!$Q$5:$W$75,7),IF(D24=11,VLOOKUP(E24,TabLiza!$P$5:$W$75,8),IF(D24=10,VLOOKUP(E24,TabLiza!$O$5:$W$75,9),IF(D24=9,VLOOKUP(E24,TabLiza!$N$5:$W$75,10),IF(D24=8,VLOOKUP(E24,TabLiza!$M$5:$W$75,11),IF(D24=7,VLOOKUP(E24,TabLiza!$M$5:$W$75,11),IF(D24>17,"")))))))))))))) -> 27 | G24: 5.7 | H24: =IF(D24<7,"",IF(G24="","",IF(D24=17,VLOOKUP(G24,TabLiza!$BA$5:$BB$75,2),IF(D24=16,VLOOKUP(G24,TabLiza!$AZ$5:$BB$75,3),IF(D24=15,VLOOKUP(G24,TabLiza!$AY$5:$BB$75,4),IF(D24=14,VLOOKUP(G24,TabLiza!$AX$5:$BB$75,5),IF(D24=13,VLOOKUP(G24,TabLiza!$AW$5:$BB$75,6),IF(D24=12,VLOOKUP(G24,TabLiza!$AV$5:$BB$75,7),IF(D24=11,VLOOKUP(G24,TabLiza!$AU$5:$BB$75,8),IF(D24=10,VLOOKUP(G24,TabLiza!$AT$5:$BB$75,9),IF(D24=9,VLOOKUP(G24,TabLiza!$AS$5:$BB$75,10),IF(D24=8,VLOOKUP(G24,TabLiza!$AR$5:$BB$75,11),IF(D24=7,VLOOKUP(G24,TabLiza!$AR$5:$BB$75,11),IF(D24>12,"")))))))))))))) -> 28 | I24: 9 | J24: =IF(D24<7,"",IF(I24="","",IF(D24=17,VLOOKUP(I24,TabLiza!$CF$5:$CG$75,2),IF(D24=16,VLOOKUP(I24,TabLiza!$CE$5:$CG$75,3),IF(D24=15,VLOOKUP(I24,TabLiza!$CD$5:$CG$75,4),IF(D24=14,VLOOKUP(I24,TabLiza!$CC$5:$CG$75,5),IF(D24=13,VLOOKUP(I24,TabLiza!$CB$5:$CG$75,6),IF(D24=12,VLOOKUP(I24,TabLiza!$CA$5:$CG$75,7),IF(D24=11,VLOOKUP(I24,TabLiza!$BZ$5:$CG$75,8),IF(D24=10,VLOOKUP(I24,TabLiza!$BY$5:$CG$75,9),IF(D24=9,VLOOKUP(I24,TabLiza!$BX$5:$CG$75,10),IF(D24=8,VLOOKUP(I24,TabLiza!$BW$5:$CG$75,11),IF(D24=7,VLOOKUP(I24,TabLiza!$BW$5:$CG$75,11),IF(D24>17,"")))))))))))))) -> 8 | K24: 28 | L24: =IF(D24<7,"",IF(K24="","",IF(D24=17,VLOOKUP(K24,TabLiza!$EB$5:$EC$75,2),IF(D24=16,VLOOKUP(K24,TabLiza!$EA$5:$EC$75,3),IF(D24=15,VLOOKUP(K24,TabLiza!$DZ$5:$EC$75,4),IF(D24=14,VLOOKUP(K24,TabLiza!$DY$5:$EC$75,5),IF(D24=13,VLOOKUP(K24,TabLiza!$DX$5:$EC$75,6),IF(D24=12,VLOOKUP(K24,TabLiza!$DW$5:$EC$75,7),IF(D24=11,VLOOKUP(K24,TabLiza!$DV$5:$EC$75,8),IF(D24=10,VLOOKUP(K24,TabLiza!$DU$5:$EC$75,9),IF(D24=9,VLOOKUP(K24,TabLiza!$DT$5:$EC$75,10),IF(D24=8,VLOOKUP(K24,TabLiza!$DS$5:$EC$75,11),IF(D24=7,VLOOKUP(K24,TabLiza!$DS$5:$EC$75,11),IF(D24>17,"")))))))))))))) -> 35 | M24: 139 | N24: =IF(D24<7,"",IF(M24="","",IF(D24=17,VLOOKUP(M24,TabLiza!$DD$5:$DE$75,2),IF(D24=16,VLOOKUP(M24,TabLiza!$DC$5:$DE$75,3),IF(D24=15,VLOOKUP(M24,TabLiza!$DB$5:$DE$75,4),IF(D24=14,VLOOKUP(M24,TabLiza!$DA$5:$DE$75,5),IF(D24=13,VLOOKUP(M24,TabLiza!$CZ$5:$DE$75,6),IF(D24=12,VLOOKUP(M24,TabLiza!$CY$5:$DE$75,7),IF(D24=11,VLOOKUP(M24,TabLiza!$CX$5:$DE$75,8),IF(D24=10,VLOOKUP(M24,TabLiza!$CW$5:$DE$75,9),IF(D24=9,VLOOKUP(M24,TabLiza!$CV$5:$DE$75,10),IF(D24=8,VLOOKUP(M24,TabLiza!$CU$5:$DE$75,11),IF(D24=7,VLOOKUP(M24,TabLiza!$CU$5:$DE$75,11),IF(D24>17,"")))))))))))))) -> 8 | O24: 4 | P24: =IF(D24<7,"",IF(O24="","",IF(D24=17,VLOOKUP(O24,TabLiza!$EZ$5:$FA$75,2),IF(D24=16,VLOOKUP(O24,TabLiza!$EY$5:$FA$75,3),IF(D24=15,VLOOKUP(O24,TabLiza!$EX$5:$FA$75,4),IF(D24=14,VLOOKUP(O24,TabLiza!$EW$5:$FA$75,5),IF(D24=13,VLOOKUP(O24,TabLiza!$EV$5:$FA$75,6),IF(D24=12,VLOOKUP(O24,TabLiza!$EU$5:$FA$75,7),IF(D24=11,VLOOKUP(O24,TabLiza!$ET$5:$FA$75,8),IF(D24=10,VLOOKUP(O24,TabLiza!$ES$5:$FA$75,9),IF(D24=9,VLOOKUP(O24,TabLiza!$ER$5:$FA$75,10),IF(D24=8,VLOOKUP(O24,TabLiza!$EQ$5:$FA$75,11),IF(D24=7,VLOOKUP(O24,TabLiza!$EQ$5:$FA$75,11),IF(D24>17,"")))))))))))))) -> 8 | R24: =IF(D24>15,"",IF(Q24="","",IF(D24=15,VLOOKUP(Q24,TabLiza!$BF$5:$BI$75,4),IF(D24=14,VLOOKUP(Q24,TabLiza!$BE$5:$BI$75,5),IF(D24=13,VLOOKUP(Q24,TabLiza!$BD$5:$BI$75,6),IF(D24<13,"")))))) ->  | T24: =IF(D24<16,"",IF(S24="","",IF(D24=17,VLOOKUP(S24,TabLiza!$BH$5:$BI$75,2),IF(D24=16,VLOOKUP(S24,TabLiza!$BG$5:$BI$75,3),IF(D24>17,""))))) ->  | U24: 114 | V24: 7
B26: Главный судья | R26: всего очков | зачёт | U26: =SUM(U17:U24) -> 1574 | V26: =U26-MIN(U17:U24) -> 1475
B27: Главный секретарь | R27: командных очков в зачёт: | V27: =SUM(V13,V26) -> 2648

Sheet 125-6а (hidden)
B1: МБОУ №125
A2: № п/п | B2: мальчики | C2: № уч-ка | D2: возраст (полных лет) | E2: 1 | G2: 2 | I2: 3 | K2: 4 | M2: 5 | O2: 6 | Q2: 7 | S2: 8 | U2: 9 | V2: 10
B3: Фамилия Имя | E3: бег 1000м | F3: очки | G3: бег 30м | H3: очки | I3: подтягивание | J3: очки | K3: пресс за 30" | L3: очки | M3: прыжок с места | N3: очки | O3: гибкость | P3: очки | Q3: бег 60м | R3: очки | S3: бег 100м | T3: очки | U3: сумма очков | V3: Место
A4: 1 | B4: Никифоров Артём | C4: 1 | D4: 12 | E4: 00:04:24 | F4: =IF(D4<7,"",IF(E4="","",IF(D4=17,VLOOKUP(E4,TabLiza!$J$5:$K$75,2),IF(D4=16,VLOOKUP(E4,TabLiza!$I$5:$K$75,3),IF(D4=15,VLOOKUP(E4,TabLiza!$H$5:$K$75,4),IF(D4=14,VLOOKUP(E4,TabLiza!$G$5:$K$75,5),IF(D4=13,VLOOKUP(E4,TabLiza!$F$5:$K$75,6),IF(D4=12,VLOOKUP(E4,TabLiza!$E$5:$K$75,7),IF(D4=11,VLOOKUP(E4,TabLiza!$D$5:K$75,8),IF(D4=10,VLOOKUP(E4,TabLiza!$C$5:$K$75,9),IF(D4=9,VLOOKUP(E4,TabLiza!$B$5:$K$75,10),IF(D4=8,VLOOKUP(E4,TabLiza!$A$5:$K$75,11),IF(D4=7,VLOOKUP(E4,TabLiza!$A$5:$K$75,11),IF(D4>17,"")))))))))))))) -> 29 | G4: 5.24 | H4: =IF(D4<7,"",IF(G4="","",IF(D4=17,VLOOKUP(G4,TabLiza!$AH$5:$AI$75,2),IF(D4=16,VLOOKUP(G4,TabLiza!$AG$5:$AI$75,3),IF(D4=15,VLOOKUP(G4,TabLiza!$AF$5:$AI$75,4),IF(D4=14,VLOOKUP(G4,TabLiza!$AE$5:$AI$75,5),IF(D4=13,VLOOKUP(G4,TabLiza!$AD$5:$AI$75,6),IF(D4=12,VLOOKUP(G4,TabLiza!$AC$5:$AI$75,7),IF(D4=11,VLOOKUP(G4,TabLiza!$AB$5:$AI$75,8),IF(D4=10,VLOOKUP(G4,TabLiza!$AA$5:$AI$75,9),IF(D4=9,VLOOKUP(G4,TabLiza!$Z$5:$AI$75,10),IF(D4=8,VLOOKUP(G4,TabLiza!$Y$5:$AI$75,11),IF(D4=7,VLOOKUP(G4,TabLiza!$Y$5:$AI$75,11),IF(D4>12,"")))))))))))))) -> 45 | I4: 6 | J4: =IF(D4<7,"",IF(I4="","",IF(D4=17,VLOOKUP(I4,TabLiza!$BT$5:$BU$75,2),IF(D4=16,VLOOKUP(I4,TabLiza!$BS$5:$BU$75,3),IF(D4=15,VLOOKUP(I4,TabLiza!$BR$5:$BU$75,4),IF(D4=14,VLOOKUP(I4,TabLiza!$BQ$5:$BU$75,5),IF(D4=13,VLOOKUP(I4,TabLiza!$BP$5:$BU$75,6),IF(D4=12,VLOOKUP(I4,TabLiza!$BO$5:$BU$75,7),IF(D4=11,VLOOKUP(I4,TabLiza!$BN$5:$BU$75,8),IF(D4=10,VLOOKUP(I4,TabLiza!$BM$5:$BU$75,9),IF(D4=9,VLOOKUP(I4,TabLiza!$BL$5:$BU$75,10),IF(D4=8,VLOOKUP(I4,TabLiza!$BK$5:$BU$75,11),IF(D4=7,VLOOKUP(I4,TabLiza!$BK$5:$BU$75,11),IF(D4>17,"")))))))))))))) -> 24 | K4: 32 | L4: =IF(D4<7,"",IF(K4="","",IF(D4=17,VLOOKUP(K4,TabLiza!$DP$5:$DQ$75,2),IF(D4=16,VLOOKUP(K4,TabLiza!$DO$5:$DQ$75,3),IF(D4=15,VLOOKUP(K4,TabLiza!$DN$5:$DQ$75,4),IF(D4=14,VLOOKUP(K4,TabLiza!$DM$5:$DQ$75,5),IF(D4=13,VLOOKUP(K4,TabLiza!$DL$5:$DQ$75,6),IF(D4=12,VLOOKUP(K4,TabLiza!$DK$5:$DQ$75,7),IF(D4=11,VLOOKUP(K4,TabLiza!$DJ$5:$DQ$75,8),IF(D4=10,VLOOKUP(K4,TabLiza!$DI$5:$DQ$75,9),IF(D4=9,VLOOKUP(K4,TabLiza!$DH$5:$DQ$75,10),IF(D4=8,VLOOKUP(K4,TabLiza!$DG$5:$DQ$75,11),IF(D4=7,VLOOKUP(K4,TabLiza!$DG$5:$DQ$75,11),IF(D4>17,"")))))))))))))) -> 46 | M4: 191 | N4: =IF(D4<7,"",IF(M4="","",IF(D4=17,VLOOKUP(M4,TabLiza!$CR$5:$CS$75,2),IF(D4=16,VLOOKUP(M4,TabLiza!$CQ$5:$CS$75,3),IF(D4=15,VLOOKUP(M4,TabLiza!$CP$5:$CS$75,4),IF(D4=14,VLOOKUP(M4,TabLiza!$CO$5:$CS$75,5),IF(D4=13,VLOOKUP(M4,TabLiza!$CN$5:$CS$75,6),IF(D4=12,VLOOKUP(M4,TabLiza!$CM$5:$CS$75,7),IF(D4=11,VLOOKUP(M4,TabLiza!$CL$5:$CS$75,8),IF(D4=10,VLOOKUP(M4,TabLiza!$CK$5:$CS$75,9),IF(D4=9,VLOOKUP(M4,TabLiza!$CJ$5:$CS$75,10),IF(D4=8,VLOOKUP(M4,TabLiza!$CI$5:$CS$75,11),IF(D4=7,VLOOKUP(M4,TabLiza!$CI$5:$CS$75,11),IF(D4>17,"")))))))))))))) -> 30 | O4: -3 | P4: =IF(D4<7,"",IF(O4="","",IF(D4=17,VLOOKUP(O4,TabLiza!$EN$5:$EO$75,2),IF(D4=16,VLOOKUP(O4,TabLiza!$EM$5:$EO$75,3),IF(D4=15,VLOOKUP(O4,TabLiza!$EL$5:$EO$75,4),IF(D4=14,VLOOKUP(O4,TabLiza!$EK$5:$EO$75,5),IF(D4=13,VLOOKUP(O4,TabLiza!$EJ$5:$EO$75,6),IF(D4=12,VLOOKUP(O4,TabLiza!$EI$5:$EO$75,7),IF(D4=11,VLOOKUP(O4,TabLiza!$EH$5:$EO$75,8),IF(D4=10,VLOOKUP(O4,TabLiza!$EG$5:$EO$75,9),IF(D4=9,VLOOKUP(O4,TabLiza!$EF$5:$EO$75,10),IF(D4=8,VLOOKUP(O4,TabLiza!$EE$5:$EO$75,11),IF(D4=7,VLOOKUP(O4,TabLiza!$EE$5:$EO$75,11),IF(D4>17,"")))))))))))))) -> 1 | R4: =IF(D4>15,"",IF(Q4="","",IF(D4=15,VLOOKUP(Q4,TabLiza!$AM$5:$AP$75,4),IF(D4=14,VLOOKUP(Q4,TabLiza!$AL$5:$AP$75,5),IF(D4=13,VLOOKUP(Q4,TabLiza!$AK$5:$AP$75,6),IF(D4<13,"")))))) ->  | T4: =IF(D4<16,"",IF(S4="","",IF(D4=17,VLOOKUP(S4,TabLiza!$AO$5:$AP$75,2),IF(D4=16,VLOOKUP(S4,TabLiza!$AN$5:$AP$75,3),IF(D4>17,""))))) ->  | U4: =SUM(F4,H4,J4,L4,N4,P4,R4,T4) -> 175 | V4: =IF(U4=0,"",(RANK(U4,$U$4:$U$11,0))) -> 1
A5: =A4+1 -> 2 | B5: Гаврин Никита | C5: =C4+1 -> 2 | D5: 13 | E5: 00:04:09 | F5: =IF(D5<7,"",IF(E5="","",IF(D5=17,VLOOKUP(E5,TabLiza!$J$5:$K$75,2),IF(D5=16,VLOOKUP(E5,TabLiza!$I$5:$K$75,3),IF(D5=15,VLOOKUP(E5,TabLiza!$H$5:$K$75,4),IF(D5=14,VLOOKUP(E5,TabLiza!$G$5:$K$75,5),IF(D5=13,VLOOKUP(E5,TabLiza!$F$5:$K$75,6),IF(D5=12,VLOOKUP(E5,TabLiza!$E$5:$K$75,7),IF(D5=11,VLOOKUP(E5,TabLiza!$D$5:K$75,8),IF(D5=10,VLOOKUP(E5,TabLiza!$C$5:$K$75,9),IF(D5=9,VLOOKUP(E5,TabLiza!$B$5:$K$75,10),IF(D5=8,VLOOKUP(E5,TabLiza!$A$5:$K$75,11),IF(D5=7,VLOOKUP(E5,TabLiza!$A$5:$K$75,11),IF(D5>17,"")))))))))))))) -> 29 | G5: 5.53 | H5: =IF(D5<7,"",IF(G5="","",IF(D5=17,VLOOKUP(G5,TabLiza!$AH$5:$AI$75,2),IF(D5=16,VLOOKUP(G5,TabLiza!$AG$5:$AI$75,3),IF(D5=15,VLOOKUP(G5,TabLiza!$AF$5:$AI$75,4),IF(D5=14,VLOOKUP(G5,TabLiza!$AE$5:$AI$75,5),IF(D5=13,VLOOKUP(G5,TabLiza!$AD$5:$AI$75,6),IF(D5=12,VLOOKUP(G5,TabLiza!$AC$5:$AI$75,7),IF(D5=11,VLOOKUP(G5,TabLiza!$AB$5:$AI$75,8),IF(D5=10,VLOOKUP(G5,TabLiza!$AA$5:$AI$75,9),IF(D5=9,VLOOKUP(G5,TabLiza!$Z$5:$AI$75,10),IF(D5=8,VLOOKUP(G5,TabLiza!$Y$5:$AI$75,11),IF(D5=7,VLOOKUP(G5,TabLiza!$Y$5:$AI$75,11),IF(D5>12,"")))))))))))))) -> 24 | I5: 6 | J5: =IF(D5<7,"",IF(I5="","",IF(D5=17,VLOOKUP(I5,TabLiza!$BT$5:$BU$75,2),IF(D5=16,VLOOKUP(I5,TabLiza!$BS$5:$BU$75,3),IF(D5=15,VLOOKUP(I5,TabLiza!$BR$5:$BU$75,4),IF(D5=14,VLOOKUP(I5,TabLiza!$BQ$5:$BU$75,5),IF(D5=13,VLOOKUP(I5,TabLiza!$BP$5:$BU$75,6),IF(D5=12,VLOOKUP(I5,TabLiza!$BO$5:$BU$75,7),IF(D5=11,VLOOKUP(I5,TabLiza!$BN$5:$BU$75,8),IF(D5=10,VLOOKUP(I5,TabLiza!$BM$5:$BU$75,9),IF(D5=9,VLOOKUP(I5,TabLiza!$BL$5:$BU$75,10),IF(D5=8,VLOOKUP(I5,TabLiza!$BK$5:$BU$75,11),IF(D5=7,VLOOKUP(I5,TabLiza!$BK$5:$BU$75,11),IF(D5>17,"")))))))))))))) -> 19 | K5: 32 | L5: =IF(D5<7,"",IF(K5="","",IF(D5=17,VLOOKUP(K5,TabLiza!$DP$5:$DQ$75,2),IF(D5=16,VLOOKUP(K5,TabLiza!$DO$5:$DQ$75,3),IF(D5=15,VLOOKUP(K5,TabLiza!$DN$5:$DQ$75,4),IF(D5=14,VLOOKUP(K5,TabLiza!$DM$5:$DQ$75,5),IF(D5=13,VLOOKUP(K5,TabLiza!$DL$5:$DQ$75,6),IF(D5=12,VLOOKUP(K5,TabLiza!$DK$5:$DQ$75,7),IF(D5=11,VLOOKUP(K5,TabLiza!$DJ$5:$DQ$75,8),IF(D5=10,VLOOKUP(K5,TabLiza!$DI$5:$DQ$75,9),IF(D5=9,VLOOKUP(K5,TabLiza!$DH$5:$DQ$75,10),IF(D5=8,VLOOKUP(K5,TabLiza!$DG$5:$DQ$75,11),IF(D5=7,VLOOKUP(K5,TabLiza!$DG$5:$DQ$75,11),IF(D5>17,"")))))))))))))) -> 38 | M5: 212 | N5: =IF(D5<7,"",IF(M5="","",IF(D5=17,VLOOKUP(M5,TabLiza!$CR$5:$CS$75,2),IF(D5=16,VLOOKUP(M5,TabLiza!$CQ$5:$CS$75,3),IF(D5=15,VLOOKUP(M5,TabLiza!$CP$5:$CS$75,4),IF(D5=14,VLOOKUP(M5,TabLiza!$CO$5:$CS$75,5),IF(D5=13,VLOOKUP(M5,TabLiza!$CN$5:$CS$75,6),IF(D5=12,VLOOKUP(M5,TabLiza!$CM$5:$CS$75,7),IF(D5=11,VLOOKUP(M5,TabLiza!$CL$5:$CS$75,8),IF(D5=10,VLOOKUP(M5,TabLiza!$CK$5:$CS$75,9),IF(D5=9,VLOOKUP(M5,TabLiza!$CJ$5:$CS$75,10),IF(D5=8,VLOOKUP(M5,TabLiza!$CI$5:$CS$75,11),IF(D5=7,VLOOKUP(M5,TabLiza!$CI$5:$CS$75,11),IF(D5>17,"")))))))))))))) -> 37 | O5: 7 | P5: =IF(D5<7,"",IF(O5="","",IF(D5=17,VLOOKUP(O5,TabLiza!$EN$5:$EO$75,2),IF(D5=16,VLOOKUP(O5,TabLiza!$EM$5:$EO$75,3),IF(D5=15,VLOOKUP(O5,TabLiza!$EL$5:$EO$75,4),IF(D5=14,VLOOKUP(O5,TabLiza!$EK$5:$EO$75,5),IF(D5=13,VLOOKUP(O5,TabLiza!$EJ$5:$EO$75,6),IF(D5=12,VLOOKUP(O5,TabLiza!$EI$5:$EO$75,7),IF(D5=11,VLOOKUP(O5,TabLiza!$EH$5:$EO$75,8),IF(D5=10,VLOOKUP(O5,TabLiza!$EG$5:$EO$75,9),IF(D5=9,VLOOKUP(O5,TabLiza!$EF$5:$EO$75,10),IF(D5=8,VLOOKUP(O5,TabLiza!$EE$5:$EO$75,11),IF(D5=7,VLOOKUP(O5,TabLiza!$EE$5:$EO$75,11),IF(D5>17,"")))))))))))))) -> 18 | R5: =IF(D5>15,"",IF(Q5="","",IF(D5=15,VLOOKUP(Q5,TabLiza!$AM$5:$AP$75,4),IF(D5=14,VLOOKUP(Q5,TabLiza!$AL$5:$AP$75,5),IF(D5=13,VLOOKUP(Q5,TabLiza!$AK$5:$AP$75,6),IF(D5<13,"")))))) ->  | T5: =IF(D5<16,"",IF(S5="","",IF(D5=17,VLOOKUP(S5,TabLiza!$AO$5:$AP$75,2),IF(D5=16,VLOOKUP(S5,TabLiza!$AN$5:$AP$75,3),IF(D5>17,""))))) ->  | U5: =SUM(F5,H5,J5,L5,N5,P5,R5,T5) -> 165 | V5: 2
A6: =A5+1 -> 3 | B6: Мурашев Кирилл | C6: =C5+1 -> 3 | D6: 12 | E6: 00:03:59 | F6: =IF(D6<7,"",IF(E6="","",IF(D6=17,VLOOKUP(E6,TabLiza!$J$5:$K$75,2),IF(D6=16,VLOOKUP(E6,TabLiza!$I$5:$K$75,3),IF(D6=15,VLOOKUP(E6,TabLiza!$H$5:$K$75,4),IF(D6=14,VLOOKUP(E6,TabLiza!$G$5:$K$75,5),IF(D6=13,VLOOKUP(E6,TabLiza!$F$5:$K$75,6),IF(D6=12,VLOOKUP(E6,TabLiza!$E$5:$K$75,7),IF(D6=11,VLOOKUP(E6,TabLiza!$D$5:K$75,8),IF(D6=10,VLOOKUP(E6,TabLiza!$C$5:$K$75,9),IF(D6=9,VLOOKUP(E6,TabLiza!$B$5:$K$75,10),IF(D6=8,VLOOKUP(E6,TabLiza!$A$5:$K$75,11),IF(D6=7,VLOOKUP(E6,TabLiza!$A$5:$K$75,11),IF(D6>17,"")))))))))))))) -> 40 | G6: 5.67 | H6: =IF(D6<7,"",IF(G6="","",IF(D6=17,VLOOKUP(G6,TabLiza!$AH$5:$AI$75,2),IF(D6=16,VLOOKUP(G6,TabLiza!$AG$5:$AI$75,3),IF(D6=15,VLOOKUP(G6,TabLiza!$AF$5:$AI$75,4),IF(D6=14,VLOOKUP(G6,TabLiza!$AE$5:$AI$75,5),IF(D6=13,VLOOKUP(G6,TabLiza!$AD$5:$AI$75,6),IF(D6=12,VLOOKUP(G6,TabLiza!$AC$5:$AI$75,7),IF(D6=11,VLOOKUP(G6,TabLiza!$AB$5:$AI$75,8),IF(D6=10,VLOOKUP(G6,TabLiza!$AA$5:$AI$75,9),IF(D6=9,VLOOKUP(G6,TabLiza!$Z$5:$AI$75,10),IF(D6=8,VLOOKUP(G6,TabLiza!$Y$5:$AI$75,11),IF(D6=7,VLOOKUP(G6,TabLiza!$Y$5:$AI$75,11),IF(D6>12,"")))))))))))))) -> 26 | I6: 3 | J6: =IF(D6<7,"",IF(I6="","",IF(D6=17,VLOOKUP(I6,TabLiza!$BT$5:$BU$75,2),IF(D6=16,VLOOKUP(I6,TabLiza!$BS$5:$BU$75,3),IF(D6=15,VLOOKUP(I6,TabLiza!$BR$5:$BU$75,4),IF(D6=14,VLOOKUP(I6,TabLiza!$BQ$5:$BU$75,5),IF(D6=13,VLOOKUP(I6,TabLiza!$BP$5:$BU$75,6),IF(D6=12,VLOOKUP(I6,TabLiza!$BO$5:$BU$75,7),IF(D6=11,VLOOKUP(I6,TabLiza!$BN$5:$BU$75,8),IF(D6=10,VLOOKUP(I6,TabLiza!$BM$5:$BU$75,9),IF(D6=9,VLOOKUP(I6,TabLiza!$BL$5:$BU$75,10),IF(D6=8,VLOOKUP(I6,TabLiza!$BK$5:$BU$75,11),IF(D6=7,VLOOKUP(I6,TabLiza!$BK$5:$BU$75,11),IF(D6>17,"")))))))))))))) -> 13 | K6: 26 | L6: =IF(D6<7,"",IF(K6="","",IF(D6=17,VLOOKUP(K6,TabLiza!$DP$5:$DQ$75,2),IF(D6=16,VLOOKUP(K6,TabLiza!$DO$5:$DQ$75,3),IF(D6=15,VLOOKUP(K6,TabLiza!$DN$5:$DQ$75,4),IF(D6=14,VLOOKUP(K6,TabLiza!$DM$5:$DQ$75,5),IF(D6=13,VLOOKUP(K6,TabLiza!$DL$5:$DQ$75,6),IF(D6=12,VLOOKUP(K6,TabLiza!$DK$5:$DQ$75,7),IF(D6=11,VLOOKUP(K6,TabLiza!$DJ$5:$DQ$75,8),IF(D6=10,VLOOKUP(K6,TabLiza!$DI$5:$DQ$75,9),IF(D6=9,VLOOKUP(K6,TabLiza!$DH$5:$DQ$75,10),IF(D6=8,VLOOKUP(K6,TabLiza!$DG$5:$DQ$75,11),IF(D6=7,VLOOKUP(K6,TabLiza!$DG$5:$DQ$75,11),IF(D6>17,"")))))))))))))) -> 34 | M6: 170 | N6: =IF(D6<7,"",IF(M6="","",IF(D6=17,VLOOKUP(M6,TabLiza!$CR$5:$CS$75,2),IF(D6=16,VLOOKUP(M6,TabLiza!$CQ$5:$CS$75,3),IF(D6=15,VLOOKUP(M6,TabLiza!$CP$5:$CS$75,4),IF(D6=14,VLOOKUP(M6,TabLiza!$CO$5:$CS$75,5),IF(D6=13,VLOOKUP(M6,TabLiza!$CN$5:$CS$75,6),IF(D6=12,VLOOKUP(M6,TabLiza!$CM$5:$CS$75,7),IF(D6=11,VLOOKUP(M6,TabLiza!$CL$5:$CS$75,8),IF(D6=10,VLOOKUP(M6,TabLiza!$CK$5:$CS$75,9),IF(D6=9,VLOOKUP(M6,TabLiza!$CJ$5:$CS$75,10),IF(D6=8,VLOOKUP(M6,TabLiza!$CI$5:$CS$75,11),IF(D6=7,VLOOKUP(M6,TabLiza!$CI$5:$CS$75,11),IF(D6>17,"")))))))))))))) -> 20 | O6: 2 | P6: =IF(D6<7,"",IF(O6="","",IF(D6=17,VLOOKUP(O6,TabLiza!$EN$5:$EO$75,2),IF(D6=16,VLOOKUP(O6,TabLiza!$EM$5:$EO$75,3),IF(D6=15,VLOOKUP(O6,TabLiza!$EL$5:$EO$75,4),IF(D6=14,VLOOKUP(O6,TabLiza!$EK$5:$EO$75,5),IF(D6=13,VLOOKUP(O6,TabLiza!$EJ$5:$EO$75,6),IF(D6=12,VLOOKUP(O6,TabLiza!$EI$5:$EO$75,7),IF(D6=11,VLOOKUP(O6,TabLiza!$EH$5:$EO$75,8),IF(D6=10,VLOOKUP(O6,TabLiza!$EG$5:$EO$75,9),IF(D6=9,VLOOKUP(O6,TabLiza!$EF$5:$EO$75,10),IF(D6=8,VLOOKUP(O6,TabLiza!$EE$5:$EO$75,11),IF(D6=7,VLOOKUP(O6,TabLiza!$EE$5:$EO$75,11),IF(D6>17,"")))))))))))))) -> 10 | R6: =IF(D6>15,"",IF(Q6="","",IF(D6=15,VLOOKUP(Q6,TabLiza!$AM$5:$AP$75,4),IF(D6=14,VLOOKUP(Q6,TabLiza!$AL$5:$AP$75,5),IF(D6=13,VLOOKUP(Q6,TabLiza!$AK$5:$AP$75,6),IF(D6<13,"")))))) ->  | T6: =IF(D6<16,"",IF(S6="","",IF(D6=17,VLOOKUP(S6,TabLiza!$AO$5:$AP$75,2),IF(D6=16,VLOOKUP(S6,TabLiza!$AN$5:$AP$75,3),IF(D6>17,""))))) ->  | U6: 143 | V6: 3
A7: 4 | B7: Яковлев Фёдор | C7: 4 | D7: 13 | E7: 00:04:28 | F7: =IF(D7<7,"",IF(E7="","",IF(D7=17,VLOOKUP(E7,TabLiza!$J$5:$K$75,2),IF(D7=16,VLOOKUP(E7,TabLiza!$I$5:$K$75,3),IF(D7=15,VLOOKUP(E7,TabLiza!$H$5:$K$75,4),IF(D7=14,VLOOKUP(E7,TabLiza!$G$5:$K$75,5),IF(D7=13,VLOOKUP(E7,TabLiza!$F$5:$K$75,6),IF(D7=12,VLOOKUP(E7,TabLiza!$E$5:$K$75,7),IF(D7=11,VLOOKUP(E7,TabLiza!$D$5:K$75,8),IF(D7=10,VLOOKUP(E7,TabLiza!$C$5:$K$75,9),IF(D7=9,VLOOKUP(E7,TabLiza!$B$5:$K$75,10),IF(D7=8,VLOOKUP(E7,TabLiza!$A$5:$K$75,11),IF(D7=7,VLOOKUP(E7,TabLiza!$A$5:$K$75,11),IF(D7>17,"")))))))))))))) -> 23 | G7: 5.62 | H7: =IF(D7<7,"",IF(G7="","",IF(D7=17,VLOOKUP(G7,TabLiza!$AH$5:$AI$75,2),IF(D7=16,VLOOKUP(G7,TabLiza!$AG$5:$AI$75,3),IF(D7=15,VLOOKUP(G7,TabLiza!$AF$5:$AI$75,4),IF(D7=14,VLOOKUP(G7,TabLiza!$AE$5:$AI$75,5),IF(D7=13,VLOOKUP(G7,TabLiza!$AD$5:$AI$75,6),IF(D7=12,VLOOKUP(G7,TabLiza!$AC$5:$AI$75,7),IF(D7=11,VLOOKUP(G7,TabLiza!$AB$5:$AI$75,8),IF(D7=10,VLOOKUP(G7,TabLiza!$AA$5:$AI$75,9),IF(D7=9,VLOOKUP(G7,TabLiza!$Z$5:$AI$75,10),IF(D7=8,VLOOKUP(G7,TabLiza!$Y$5:$AI$75,11),IF(D7=7,VLOOKUP(G7,TabLiza!$Y$5:$AI$75,11),IF(D7>12,"")))))))))))))) -> 21 | I7: 4 | J7: =IF(D7<7,"",IF(I7="","",IF(D7=17,VLOOKUP(I7,TabLiza!$BT$5:$BU$75,2),IF(D7=16,VLOOKUP(I7,TabLiza!$BS$5:$BU$75,3),IF(D7=15,VLOOKUP(I7,TabLiza!$BR$5:$BU$75,4),IF(D7=14,VLOOKUP(I7,TabLiza!$BQ$5:$BU$75,5),IF(D7=13,VLOOKUP(I7,TabLiza!$BP$5:$BU$75,6),IF(D7=12,VLOOKUP(I7,TabLiza!$BO$5:$BU$75,7),IF(D7=11,VLOOKUP(I7,TabLiza!$BN$5:$BU$75,8),IF(D7=10,VLOOKUP(I7,TabLiza!$BM$5:$BU$75,9),IF(D7=9,VLOOKUP(I7,TabLiza!$BL$5:$BU$75,10),IF(D7=8,VLOOKUP(I7,TabLiza!$BK$5:$BU$75,11),IF(D7=7,VLOOKUP(I7,TabLiza!$BK$5:$BU$75,11),IF(D7>17,"")))))))))))))) -> 13 | K7: 28 | L7: =IF(D7<7,"",IF(K7="","",IF(D7=17,VLOOKUP(K7,TabLiza!$DP$5:$DQ$75,2),IF(D7=16,VLOOKUP(K7,TabLiza!$DO$5:$DQ$75,3),IF(D7=15,VLOOKUP(K7,TabLiza!$DN$5:$DQ$75,4),IF(D7=14,VLOOKUP(K7,TabLiza!$DM$5:$DQ$75,5),IF(D7=13,VLOOKUP(K7,TabLiza!$DL$5:$DQ$75,6),IF(D7=12,VLOOKUP(K7,TabLiza!$DK$5:$DQ$75,7),IF(D7=11,VLOOKUP(K7,TabLiza!$DJ$5:$DQ$75,8),IF(D7=10,VLOOKUP(K7,TabLiza!$DI$5:$DQ$75,9),IF(D7=9,VLOOKUP(K7,TabLiza!$DH$5:$DQ$75,10),IF(D7=8,VLOOKUP(K7,TabLiza!$DG$5:$DQ$75,11),IF(D7=7,VLOOKUP(K7,TabLiza!$DG$5:$DQ$75,11),IF(D7>17,"")))))))))))))) -> 30 | M7: 180 | N7: =IF(D7<7,"",IF(M7="","",IF(D7=17,VLOOKUP(M7,TabLiza!$CR$5:$CS$75,2),IF(D7=16,VLOOKUP(M7,TabLiza!$CQ$5:$CS$75,3),IF(D7=15,VLOOKUP(M7,TabLiza!$CP$5:$CS$75,4),IF(D7=14,VLOOKUP(M7,TabLiza!$CO$5:$CS$75,5),IF(D7=13,VLOOKUP(M7,TabLiza!$CN$5:$CS$75,6),IF(D7=12,VLOOKUP(M7,TabLiza!$CM$5:$CS$75,7),IF(D7=11,VLOOKUP(M7,TabLiza!$CL$5:$CS$75,8),IF(D7=10,VLOOKUP(M7,TabLiza!$CK$5:$CS$75,9),IF(D7=9,VLOOKUP(M7,TabLiza!$CJ$5:$CS$75,10),IF(D7=8,VLOOKUP(M7,TabLiza!$CI$5:$CS$75,11),IF(D7=7,VLOOKUP(M7,TabLiza!$CI$5:$CS$75,11),IF(D7>17,"")))))))))))))) -> 18 | O7: 0 | P7: =IF(D7<7,"",IF(O7="","",IF(D7=17,VLOOKUP(O7,TabLiza!$EN$5:$EO$75,2),IF(D7=16,VLOOKUP(O7,TabLiza!$EM$5:$EO$75,3),IF(D7=15,VLOOKUP(O7,TabLiza!$EL$5:$EO$75,4),IF(D7=14,VLOOKUP(O7,TabLiza!$EK$5:$EO$75,5),IF(D7=13,VLOOKUP(O7,TabLiza!$EJ$5:$EO$75,6),IF(D7=12,VLOOKUP(O7,TabLiza!$EI$5:$EO$75,7),IF(D7=11,VLOOKUP(O7,TabLiza!$EH$5:$EO$75,8),IF(D7=10,VLOOKUP(O7,TabLiza!$EG$5:$EO$75,9),IF(D7=9,VLOOKUP(O7,TabLiza!$EF$5:$EO$75,10),IF(D7=8,VLOOKUP(O7,TabLiza!$EE$5:$EO$75,11),IF(D7=7,VLOOKUP(O7,TabLiza!$EE$5:$EO$75,11),IF(D7>17,"")))))))))))))) -> 6 | R7: =IF(D7>15,"",IF(Q7="","",IF(D7=15,VLOOKUP(Q7,TabLiza!$AM$5:$AP$75,4),IF(D7=14,VLOOKUP(Q7,TabLiza!$AL$5:$AP$75,5),IF(D7=13,VLOOKUP(Q7,TabLiza!$AK$5:$AP$75,6),IF(D7<13,"")))))) ->  | T7: =IF(D7<16,"",IF(S7="","",IF(D7=17,VLOOKUP(S7,TabLiza!$AO$5:$AP$75,2),IF(D7=16,VLOOKUP(S7,TabLiza!$AN$5:$AP$75,3),IF(D7>17,""))))) ->  | U7: 111 | V7: 7
A8: 5 | B8: Поляков Никита | C8: 5 | D8: 13 | E8: 00:04:05 | F8: =IF(D8<7,"",IF(E8="","",IF(D8=17,VLOOKUP(E8,TabLiza!$J$5:$K$75,2),IF(D8=16,VLOOKUP(E8,TabLiza!$I$5:$K$75,3),IF(D8=15,VLOOKUP(E8,TabLiza!$H$5:$K$75,4),IF(D8=14,VLOOKUP(E8,TabLiza!$G$5:$K$75,5),IF(D8=13,VLOOKUP(E8,TabLiza!$F$5:$K$75,6),IF(D8=12,VLOOKUP(E8,TabLiza!$E$5:$K$75,7),IF(D8=11,VLOOKUP(E8,TabLiza!$D$5:K$75,8),IF(D8=10,VLOOKUP(E8,TabLiza!$C$5:$K$75,9),IF(D8=9,VLOOKUP(E8,TabLiza!$B$5:$K$75,10),IF(D8=8,VLOOKUP(E8,TabLiza!$A$5:$K$75,11),IF(D8=7,VLOOKUP(E8,TabLiza!$A$5:$K$75,11),IF(D8>17,"")))))))))))))) -> 30 | G8: 5.49 | H8: =IF(D8<7,"",IF(G8="","",IF(D8=17,VLOOKUP(G8,TabLiza!$AH$5:$AI$75,2),IF(D8=16,VLOOKUP(G8,TabLiza!$AG$5:$AI$75,3),IF(D8=15,VLOOKUP(G8,TabLiza!$AF$5:$AI$75,4),IF(D8=14,VLOOKUP(G8,TabLiza!$AE$5:$AI$75,5),IF(D8=13,VLOOKUP(G8,TabLiza!$AD$5:$AI$75,6),IF(D8=12,VLOOKUP(G8,TabLiza!$AC$5:$AI$75,7),IF(D8=11,VLOOKUP(G8,TabLiza!$AB$5:$AI$75,8),IF(D8=10,VLOOKUP(G8,TabLiza!$AA$5:$AI$75,9),IF(D8=9,VLOOKUP(G8,TabLiza!$Z$5:$AI$75,10),IF(D8=8,VLOOKUP(G8,TabLiza!$Y$5:$AI$75,11),IF(D8=7,VLOOKUP(G8,TabLiza!$Y$5:$AI$75,11),IF(D8>12,"")))))))))))))) -> 28 | I8: 2 | J8: =IF(D8<7,"",IF(I8="","",IF(D8=17,VLOOKUP(I8,TabLiza!$BT$5:$BU$75,2),IF(D8=16,VLOOKUP(I8,TabLiza!$BS$5:$BU$75,3),IF(D8=15,VLOOKUP(I8,TabLiza!$BR$5:$BU$75,4),IF(D8=14,VLOOKUP(I8,TabLiza!$BQ$5:$BU$75,5),IF(D8=13,VLOOKUP(I8,TabLiza!$BP$5:$BU$75,6),IF(D8=12,VLOOKUP(I8,TabLiza!$BO$5:$BU$75,7),IF(D8=11,VLOOKUP(I8,TabLiza!$BN$5:$BU$75,8),IF(D8=10,VLOOKUP(I8,TabLiza!$BM$5:$BU$75,9),IF(D8=9,VLOOKUP(I8,TabLiza!$BL$5:$BU$75,10),IF(D8=8,VLOOKUP(I8,TabLiza!$BK$5:$BU$75,11),IF(D8=7,VLOOKUP(I8,TabLiza!$BK$5:$BU$75,11),IF(D8>17,"")))))))))))))) -> 7 | K8: 30 | L8: =IF(D8<7,"",IF(K8="","",IF(D8=17,VLOOKUP(K8,TabLiza!$DP$5:$DQ$75,2),IF(D8=16,VLOOKUP(K8,TabLiza!$DO$5:$DQ$75,3),IF(D8=15,VLOOKUP(K8,TabLiza!$DN$5:$DQ$75,4),IF(D8=14,VLOOKUP(K8,TabLiza!$DM$5:$DQ$75,5),IF(D8=13,VLOOKUP(K8,TabLiza!$DL$5:$DQ$75,6),IF(D8=12,VLOOKUP(K8,TabLiza!$DK$5:$DQ$75,7),IF(D8=11,VLOOKUP(K8,TabLiza!$DJ$5:$DQ$75,8),IF(D8=10,VLOOKUP(K8,TabLiza!$DI$5:$DQ$75,9),IF(D8=9,VLOOKUP(K8,TabLiza!$DH$5:$DQ$75,10),IF(D8=8,VLOOKUP(K8,TabLiza!$DG$5:$DQ$75,11),IF(D8=7,VLOOKUP(K8,TabLiza!$DG$5:$DQ$75,11),IF(D8>17,"")))))))))))))) -> 34 | M8: 187 | N8: =IF(D8<7,"",IF(M8="","",IF(D8=17,VLOOKUP(M8,TabLiza!$CR$5:$CS$75,2),IF(D8=16,VLOOKUP(M8,TabLiza!$CQ$5:$CS$75,3),IF(D8=15,VLOOKUP(M8,TabLiza!$CP$5:$CS$75,4),IF(D8=14,VLOOKUP(M8,TabLiza!$CO$5:$CS$75,5),IF(D8=13,VLOOKUP(M8,TabLiza!$CN$5:$CS$75,6),IF(D8=12,VLOOKUP(M8,TabLiza!$CM$5:$CS$75,7),IF(D8=11,VLOOKUP(M8,TabLiza!$CL$5:$CS$75,8),IF(D8=10,VLOOKUP(M8,TabLiza!$CK$5:$CS$75,9),IF(D8=9,VLOOKUP(M8,TabLiza!$CJ$5:$CS$75,10),IF(D8=8,VLOOKUP(M8,TabLiza!$CI$5:$CS$75,11),IF(D8=7,VLOOKUP(M8,TabLiza!$CI$5:$CS$75,11),IF(D8>17,"")))))))))))))) -> 21 | O8: -5 | P8: =IF(D8<7,"",IF(O8="","",IF(D8=17,VLOOKUP(O8,TabLiza!$EN$5:$EO$75,2),IF(D8=16,VLOOKUP(O8,TabLiza!$EM$5:$EO$75,3),IF(D8=15,VLOOKUP(O8,TabLiza!$EL$5:$EO$75,4),IF(D8=14,VLOOKUP(O8,TabLiza!$EK$5:$EO$75,5),IF(D8=13,VLOOKUP(O8,TabLiza!$EJ$5:$EO$75,6),IF(D8=12,VLOOKUP(O8,TabLiza!$EI$5:$EO$75,7),IF(D8=11,VLOOKUP(O8,TabLiza!$EH$5:$EO$75,8),IF(D8=10,VLOOKUP(O8,TabLiza!$EG$5:$EO$75,9),IF(D8=9,VLOOKUP(O8,TabLiza!$EF$5:$EO$75,10),IF(D8=8,VLOOKUP(O8,TabLiza!$EE$5:$EO$75,11),IF(D8=7,VLOOKUP(O8,TabLiza!$EE$5:$EO$75,11),IF(D8>17,"")))))))))))))) -> 0 | R8: =IF(D8>15,"",IF(Q8="","",IF(D8=15,VLOOKUP(Q8,TabLiza!$AM$5:$AP$75,4),IF(D8=14,VLOOKUP(Q8,TabLiza!$AL$5:$AP$75,5),IF(D8=13,VLOOKUP(Q8,TabLiza!$AK$5:$AP$75,6),IF(D8<13,"")))))) ->  | T8: =IF(D8<16,"",IF(S8="","",IF(D8=17,VLOOKUP(S8,TabLiza!$AO$5:$AP$75,2),IF(D8=16,VLOOKUP(S8,TabLiza!$AN$5:$AP$75,3),IF(D8>17,""))))) ->  | U8: 120 | V8: 6
A9: 6 | B9: Зуев Даниил | C9: 6 | D9: 12 | E9: 00:04:32 | F9: =IF(D9<7,"",IF(E9="","",IF(D9=17,VLOOKUP(E9,TabLiza!$J$5:$K$75,2),IF(D9=16,VLOOKUP(E9,TabLiza!$I$5:$K$75,3),IF(D9=15,VLOOKUP(E9,TabLiza!$H$5:$K$75,4),IF(D9=14,VLOOKUP(E9,TabLiza!$G$5:$K$75,5),IF(D9=13,VLOOKUP(E9,TabLiza!$F$5:$K$75,6),IF(D9=12,VLOOKUP(E9,TabLiza!$E$5:$K$75,7),IF(D9=11,VLOOKUP(E9,TabLiza!$D$5:K$75,8),IF(D9=10,VLOOKUP(E9,TabLiza!$C$5:$K$75,9),IF(D9=9,VLOOKUP(E9,TabLiza!$B$5:$K$75,10),IF(D9=8,VLOOKUP(E9,TabLiza!$A$5:$K$75,11),IF(D9=7,VLOOKUP(E9,TabLiza!$A$5:$K$75,11),IF(D9>17,"")))))))))))))) -> 26 | G9: 6.09 | H9: =IF(D9<7,"",IF(G9="","",IF(D9=17,VLOOKUP(G9,TabLiza!$AH$5:$AI$75,2),IF(D9=16,VLOOKUP(G9,TabLiza!$AG$5:$AI$75,3),IF(D9=15,VLOOKUP(G9,TabLiza!$AF$5:$AI$75,4),IF(D9=14,VLOOKUP(G9,TabLiza!$AE$5:$AI$75,5),IF(D9=13,VLOOKUP(G9,TabLiza!$AD$5:$AI$75,6),IF(D9=12,VLOOKUP(G9,TabLiza!$AC$5:$AI$75,7),IF(D9=11,VLOOKUP(G9,TabLiza!$AB$5:$AI$75,8),IF(D9=10,VLOOKUP(G9,TabLiza!$AA$5:$AI$75,9),IF(D9=9,VLOOKUP(G9,TabLiza!$Z$5:$AI$75,10),IF(D9=8,VLOOKUP(G9,TabLiza!$Y$5:$AI$75,11),IF(D9=7,VLOOKUP(G9,TabLiza!$Y$5:$AI$75,11),IF(D9>12,"")))))))))))))) -> 13 | I9: 3 | J9: =IF(D9<7,"",IF(I9="","",IF(D9=17,VLOOKUP(I9,TabLiza!$BT$5:$BU$75,2),IF(D9=16,VLOOKUP(I9,TabLiza!$BS$5:$BU$75,3),IF(D9=15,VLOOKUP(I9,TabLiza!$BR$5:$BU$75,4),IF(D9=14,VLOOKUP(I9,TabLiza!$BQ$5:$BU$75,5),IF(D9=13,VLOOKUP(I9,TabLiza!$BP$5:$BU$75,6),IF(D9=12,VLOOKUP(I9,TabLiza!$BO$5:$BU$75,7),IF(D9=11,VLOOKUP(I9,TabLiza!$BN$5:$BU$75,8),IF(D9=10,VLOOKUP(I9,TabLiza!$BM$5:$BU$75,9),IF(D9=9,VLOOKUP(I9,TabLiza!$BL$5:$BU$75,10),IF(D9=8,VLOOKUP(I9,TabLiza!$BK$5:$BU$75,11),IF(D9=7,VLOOKUP(I9,TabLiza!$BK$5:$BU$75,11),IF(D9>17,"")))))))))))))) -> 13 | K9: 26 | L9: =IF(D9<7,"",IF(K9="","",IF(D9=17,VLOOKUP(K9,TabLiza!$DP$5:$DQ$75,2),IF(D9=16,VLOOKUP(K9,TabLiza!$DO$5:$DQ$75,3),IF(D9=15,VLOOKUP(K9,TabLiza!$DN$5:$DQ$75,4),IF(D9=14,VLOOKUP(K9,TabLiza!$DM$5:$DQ$75,5),IF(D9=13,VLOOKUP(K9,TabLiza!$DL$5:$DQ$75,6),IF(D9=12,VLOOKUP(K9,TabLiza!$DK$5:$DQ$75,7),IF(D9=11,VLOOKUP(K9,TabLiza!$DJ$5:$DQ$75,8),IF(D9=10,VLOOKUP(K9,TabLiza!$DI$5:$DQ$75,9),IF(D9=9,VLOOKUP(K9,TabLiza!$DH$5:$DQ$75,10),IF(D9=8,VLOOKUP(K9,TabLiza!$DG$5:$DQ$75,11),IF(D9=7,VLOOKUP(K9,TabLiza!$DG$5:$DQ$75,11),IF(D9>17,"")))))))))))))) -> 34 | M9: 173 | N9: =IF(D9<7,"",IF(M9="","",IF(D9=17,VLOOKUP(M9,TabLiza!$CR$5:$CS$75,2),IF(D9=16,VLOOKUP(M9,TabLiza!$CQ$5:$CS$75,3),IF(D9=15,VLOOKUP(M9,TabLiza!$CP$5:$CS$75,4),IF(D9=14,VLOOKUP(M9,TabLiza!$CO$5:$CS$75,5),IF(D9=13,VLOOKUP(M9,TabLiza!$CN$5:$CS$75,6),IF(D9=12,VLOOKUP(M9,TabLiza!$CM$5:$CS$75,7),IF(D9=11,VLOOKUP(M9,TabLiza!$CL$5:$CS$75,8),IF(D9=10,VLOOKUP(M9,TabLiza!$CK$5:$CS$75,9),IF(D9=9,VLOOKUP(M9,TabLiza!$CJ$5:$CS$75,10),IF(D9=8,VLOOKUP(M9,TabLiza!$CI$5:$CS$75,11),IF(D9=7,VLOOKUP(M9,TabLiza!$CI$5:$CS$75,11),IF(D9>17,"")))))))))))))) -> 21 | O9: -5 | P9: =IF(D9<7,"",IF(O9="","",IF(D9=17,VLOOKUP(O9,TabLiza!$EN$5:$EO$75,2),IF(D9=16,VLOOKUP(O9,TabLiza!$EM$5:$EO$75,3),IF(D9=15,VLOOKUP(O9,TabLiza!$EL$5:$EO$75,4),IF(D9=14,VLOOKUP(O9,TabLiza!$EK$5:$EO$75,5),IF(D9=13,VLOOKUP(O9,TabLiza!$EJ$5:$EO$75,6),IF(D9=12,VLOOKUP(O9,TabLiza!$EI$5:$EO$75,7),IF(D9=11,VLOOKUP(O9,TabLiza!$EH$5:$EO$75,8),IF(D9=10,VLOOKUP(O9,TabLiza!$EG$5:$EO$75,9),IF(D9=9,VLOOKUP(O9,TabLiza!$EF$5:$EO$75,10),IF(D9=8,VLOOKUP(O9,TabLiza!$EE$5:$EO$75,11),IF(D9=7,VLOOKUP(O9,TabLiza!$EE$5:$EO$75,11),IF(D9>17,"")))))))))))))) -> 0 | R9: =IF(D9>15,"",IF(Q9="","",IF(D9=15,VLOOKUP(Q9,TabLiza!$AM$5:$AP$75,4),IF(D9=14,VLOOKUP(Q9,TabLiza!$AL$5:$AP$75,5),IF(D9=13,VLOOKUP(Q9,TabLiza!$AK$5:$AP$75,6),IF(D9<13,"")))))) ->  | T9: =IF(D9<16,"",IF(S9="","",IF(D9=17,VLOOKUP(S9,TabLiza!$AO$5:$AP$75,2),IF(D9=16,VLOOKUP(S9,TabLiza!$AN$5:$AP$75,3),IF(D9>17,""))))) ->  | U9: 107 | V9: 8
A10: 7 | B10: Еличкин Дмитрий | C10: 7 | D10: 13 | E10: 00:04:11 | F10: =IF(D10<7,"",IF(E10="","",IF(D10=17,VLOOKUP(E10,TabLiza!$J$5:$K$75,2),IF(D10=16,VLOOKUP(E10,TabLiza!$I$5:$K$75,3),IF(D10=15,VLOOKUP(E10,TabLiza!$H$5:$K$75,4),IF(D10=14,VLOOKUP(E10,TabLiza!$G$5:$K$75,5),IF(D10=13,VLOOKUP(E10,TabLiza!$F$5:$K$75,6),IF(D10=12,VLOOKUP(E10,TabLiza!$E$5:$K$75,7),IF(D10=11,VLOOKUP(E10,TabLiza!$D$5:K$75,8),IF(D10=10,VLOOKUP(E10,TabLiza!$C$5:$K$75,9),IF(D10=9,VLOOKUP(E10,TabLiza!$B$5:$K$75,10),IF(D10=8,VLOOKUP(E10,TabLiza!$A$5:$K$75,11),IF(D10=7,VLOOKUP(E10,TabLiza!$A$5:$K$75,11),IF(D10>17,"")))))))))))))) -> 28 | G10: 6.04 | H10: =IF(D10<7,"",IF(G10="","",IF(D10=17,VLOOKUP(G10,TabLiza!$AH$5:$AI$75,2),IF(D10=16,VLOOKUP(G10,TabLiza!$AG$5:$AI$75,3),IF(D10=15,VLOOKUP(G10,TabLiza!$AF$5:$AI$75,4),IF(D10=14,VLOOKUP(G10,TabLiza!$AE$5:$AI$75,5),IF(D10=13,VLOOKUP(G10,TabLiza!$AD$5:$AI$75,6),IF(D10=12,VLOOKUP(G10,TabLiza!$AC$5:$AI$75,7),IF(D10=11,VLOOKUP(G10,TabLiza!$AB$5:$AI$75,8),IF(D10=10,VLOOKUP(G10,TabLiza!$AA$5:$AI$75,9),IF(D10=9,VLOOKUP(G10,TabLiza!$Z$5:$AI$75,10),IF(D10=8,VLOOKUP(G10,TabLiza!$Y$5:$AI$75,11),IF(D10=7,VLOOKUP(G10,TabLiza!$Y$5:$AI$75,11),IF(D10>12,"")))))))))))))) -> 9 | I10: 8 | J10: =IF(D10<7,"",IF(I10="","",IF(D10=17,VLOOKUP(I10,TabLiza!$BT$5:$BU$75,2),IF(D10=16,VLOOKUP(I10,TabLiza!$BS$5:$BU$75,3),IF(D10=15,VLOOKUP(I10,TabLiza!$BR$5:$BU$75,4),IF(D10=14,VLOOKUP(I10,TabLiza!$BQ$5:$BU$75,5),IF(D10=13,VLOOKUP(I10,TabLiza!$BP$5:$BU$75,6),IF(D10=12,VLOOKUP(I10,TabLiza!$BO$5:$BU$75,7),IF(D10=11,VLOOKUP(I10,TabLiza!$BN$5:$BU$75,8),IF(D10=10,VLOOKUP(I10,TabLiza!$BM$5:$BU$75,9),IF(D10=9,VLOOKUP(I10,TabLiza!$BL$5:$BU$75,10),IF(D10=8,VLOOKUP(I10,TabLiza!$BK$5:$BU$75,11),IF(D10=7,VLOOKUP(I10,TabLiza!$BK$5:$BU$75,11),IF(D10>17,"")))))))))))))) -> 26 | K10: 32 | L10: =IF(D10<7,"",IF(K10="","",IF(D10=17,VLOOKUP(K10,TabLiza!$DP$5:$DQ$75,2),IF(D10=16,VLOOKUP(K10,TabLiza!$DO$5:$DQ$75,3),IF(D10=15,VLOOKUP(K10,TabLiza!$DN$5:$DQ$75,4),IF(D10=14,VLOOKUP(K10,TabLiza!$DM$5:$DQ$75,5),IF(D10=13,VLOOKUP(K10,TabLiza!$DL$5:$DQ$75,6),IF(D10=12,VLOOKUP(K10,TabLiza!$DK$5:$DQ$75,7),IF(D10=11,VLOOKUP(K10,TabLiza!$DJ$5:$DQ$75,8),IF(D10=10,VLOOKUP(K10,TabLiza!$DI$5:$DQ$75,9),IF(D10=9,VLOOKUP(K10,TabLiza!$DH$5:$DQ$75,10),IF(D10=8,VLOOKUP(K10,TabLiza!$DG$5:$DQ$75,11),IF(D10=7,VLOOKUP(K10,TabLiza!$DG$5:$DQ$75,11),IF(D10>17,"")))))))))))))) -> 38 | M10: 178 | N10: =IF(D10<7,"",IF(M10="","",IF(D10=17,VLOOKUP(M10,TabLiza!$CR$5:$CS$75,2),IF(D10=16,VLOOKUP(M10,TabLiza!$CQ$5:$CS$75,3),IF(D10=15,VLOOKUP(M10,TabLiza!$CP$5:$CS$75,4),IF(D10=14,VLOOKUP(M10,TabLiza!$CO$5:$CS$75,5),IF(D10=13,VLOOKUP(M10,TabLiza!$CN$5:$CS$75,6),IF(D10=12,VLOOKUP(M10,TabLiza!$CM$5:$CS$75,7),IF(D10=11,VLOOKUP(M10,TabLiza!$CL$5:$CS$75,8),IF(D10=10,VLOOKUP(M10,TabLiza!$CK$5:$CS$75,9),IF(D10=9,VLOOKUP(M10,TabLiza!$CJ$5:$CS$75,10),IF(D10=8,VLOOKUP(M10,TabLiza!$CI$5:$CS$75,11),IF(D10=7,VLOOKUP(M10,TabLiza!$CI$5:$CS$75,11),IF(D10>17,"")))))))))))))) -> 17 | O10: 7 | P10: =IF(D10<7,"",IF(O10="","",IF(D10=17,VLOOKUP(O10,TabLiza!$EN$5:$EO$75,2),IF(D10=16,VLOOKUP(O10,TabLiza!$EM$5:$EO$75,3),IF(D10=15,VLOOKUP(O10,TabLiza!$EL$5:$EO$75,4),IF(D10=14,VLOOKUP(O10,TabLiza!$EK$5:$EO$75,5),IF(D10=13,VLOOKUP(O10,TabLiza!$EJ$5:$EO$75,6),IF(D10=12,VLOOKUP(O10,TabLiza!$EI$5:$EO$75,7),IF(D10=11,VLOOKUP(O10,TabLiza!$EH$5:$EO$75,8),IF(D10=10,VLOOKUP(O10,TabLiza!$EG$5:$EO$75,9),IF(D10=9,VLOOKUP(O10,TabLiza!$EF$5:$EO$75,10),IF(D10=8,VLOOKUP(O10,TabLiza!$EE$5:$EO$75,11),IF(D10=7,VLOOKUP(O10,TabLiza!$EE$5:$EO$75,11),IF(D10>17,"")))))))))))))) -> 18 | R10: =IF(D10>15,"",IF(Q10="","",IF(D10=15,VLOOKUP(Q10,TabLiza!$AM$5:$AP$75,4),IF(D10=14,VLOOKUP(Q10,TabLiza!$AL$5:$AP$75,5),IF(D10=13,VLOOKUP(Q10,TabLiza!$AK$5:$AP$75,6),IF(D10<13,"")))))) ->  | T10: =IF(D10<16,"",IF(S10="","",IF(D10=17,VLOOKUP(S10,TabLiza!$AO$5:$AP$75,2),IF(D10=16,VLOOKUP(S10,TabLiza!$AN$5:$AP$75,3),IF(D10>17,""))))) ->  | U10: 136 | V10: 4
A11: 8 | B11: Туляков Вячеслав | C11: 8 | D11: 12 | E11: 00:04:27 | F11: =IF(D11<7,"",IF(E11="","",IF(D11=17,VLOOKUP(E11,TabLiza!$J$5:$K$75,2),IF(D11=16,VLOOKUP(E11,TabLiza!$I$5:$K$75,3),IF(D11=15,VLOOKUP(E11,TabLiza!$H$5:$K$75,4),IF(D11=14,VLOOKUP(E11,TabLiza!$G$5:$K$75,5),IF(D11=13,VLOOKUP(E11,TabLiza!$F$5:$K$75,6),IF(D11=12,VLOOKUP(E11,TabLiza!$E$5:$K$75,7),IF(D11=11,VLOOKUP(E11,TabLiza!$D$5:K$75,8),IF(D11=10,VLOOKUP(E11,TabLiza!$C$5:$K$75,9),IF(D11=9,VLOOKUP(E11,TabLiza!$B$5:$K$75,10),IF(D11=8,VLOOKUP(E11,TabLiza!$A$5:$K$75,11),IF(D11=7,VLOOKUP(E11,TabLiza!$A$5:$K$75,11),IF(D11>17,"")))))))))))))) -> 28 | G11: 5.73 | H11: =IF(D11<7,"",IF(G11="","",IF(D11=17,VLOOKUP(G11,TabLiza!$AH$5:$AI$75,2),IF(D11=16,VLOOKUP(G11,TabLiza!$AG$5:$AI$75,3),IF(D11=15,VLOOKUP(G11,TabLiza!$AF$5:$AI$75,4),IF(D11=14,VLOOKUP(G11,TabLiza!$AE$5:$AI$75,5),IF(D11=13,VLOOKUP(G11,TabLiza!$AD$5:$AI$75,6),IF(D11=12,VLOOKUP(G11,TabLiza!$AC$5:$AI$75,7),IF(D11=11,VLOOKUP(G11,TabLiza!$AB$5:$AI$75,8),IF(D11=10,VLOOKUP(G11,TabLiza!$AA$5:$AI$75,9),IF(D11=9,VLOOKUP(G11,TabLiza!$Z$5:$AI$75,10),IF(D11=8,VLOOKUP(G11,TabLiza!$Y$5:$AI$75,11),IF(D11=7,VLOOKUP(G11,TabLiza!$Y$5:$AI$75,11),IF(D11>12,"")))))))))))))) -> 22 | I11: 1 | J11: =IF(D11<7,"",IF(I11="","",IF(D11=17,VLOOKUP(I11,TabLiza!$BT$5:$BU$75,2),IF(D11=16,VLOOKUP(I11,TabLiza!$BS$5:$BU$75,3),IF(D11=15,VLOOKUP(I11,TabLiza!$BR$5:$BU$75,4),IF(D11=14,VLOOKUP(I11,TabLiza!$BQ$5:$BU$75,5),IF(D11=13,VLOOKUP(I11,TabLiza!$BP$5:$BU$75,6),IF(D11=12,VLOOKUP(I11,TabLiza!$BO$5:$BU$75,7),IF(D11=11,VLOOKUP(I11,TabLiza!$BN$5:$BU$75,8),IF(D11=10,VLOOKUP(I11,TabLiza!$BM$5:$BU$75,9),IF(D11=9,VLOOKUP(I11,TabLiza!$BL$5:$BU$75,10),IF(D11=8,VLOOKUP(I11,TabLiza!$BK$5:$BU$75,11),IF(D11=7,VLOOKUP(I11,TabLiza!$BK$5:$BU$75,11),IF(D11>17,"")))))))))))))) -> 6 | K11: 29 | L11: =IF(D11<7,"",IF(K11="","",IF(D11=17,VLOOKUP(K11,TabLiza!$DP$5:$DQ$75,2),IF(D11=16,VLOOKUP(K11,TabLiza!$DO$5:$DQ$75,3),IF(D11=15,VLOOKUP(K11,TabLiza!$DN$5:$DQ$75,4),IF(D11=14,VLOOKUP(K11,TabLiza!$DM$5:$DQ$75,5),IF(D11=13,VLOOKUP(K11,TabLiza!$DL$5:$DQ$75,6),IF(D11=12,VLOOKUP(K11,TabLiza!$DK$5:$DQ$75,7),IF(D11=11,VLOOKUP(K11,TabLiza!$DJ$5:$DQ$75,8),IF(D11=10,VLOOKUP(K11,TabLiza!$DI$5:$DQ$75,9),IF(D11=9,VLOOKUP(K11,TabLiza!$DH$5:$DQ$75,10),IF(D11=8,VLOOKUP(K11,TabLiza!$DG$5:$DQ$75,11),IF(D11=7,VLOOKUP(K11,TabLiza!$DG$5:$DQ$75,11),IF(D11>17,"")))))))))))))) -> 40 | M11: 181 | N11: =IF(D11<7,"",IF(M11="","",IF(D11=17,VLOOKUP(M11,TabLiza!$CR$5:$CS$75,2),IF(D11=16,VLOOKUP(M11,TabLiza!$CQ$5:$CS$75,3),IF(D11=15,VLOOKUP(M11,TabLiza!$CP$5:$CS$75,4),IF(D11=14,VLOOKUP(M11,TabLiza!$CO$5:$CS$75,5),IF(D11=13,VLOOKUP(M11,TabLiza!$CN$5:$CS$75,6),IF(D11=12,VLOOKUP(M11,TabLiza!$CM$5:$CS$75,7),IF(D11=11,VLOOKUP(M11,TabLiza!$CL$5:$CS$75,8),IF(D11=10,VLOOKUP(M11,TabLiza!$CK$5:$CS$75,9),IF(D11=9,VLOOKUP(M11,TabLiza!$CJ$5:$CS$75,10),IF(D11=8,VLOOKUP(M11,TabLiza!$CI$5:$CS$75,11),IF(D11=7,VLOOKUP(M11,TabLiza!$CI$5:$CS$75,11),IF(D11>17,"")))))))))))))) -> 25 | O11: -6 | P11: =IF(D11<7,"",IF(O11="","",IF(D11=17,VLOOKUP(O11,TabLiza!$EN$5:$EO$75,2),IF(D11=16,VLOOKUP(O11,TabLiza!$EM$5:$EO$75,3),IF(D11=15,VLOOKUP(O11,TabLiza!$EL$5:$EO$75,4),IF(D11=14,VLOOKUP(O11,TabLiza!$EK$5:$EO$75,5),IF(D11=13,VLOOKUP(O11,TabLiza!$EJ$5:$EO$75,6),IF(D11=12,VLOOKUP(O11,TabLiza!$EI$5:$EO$75,7),IF(D11=11,VLOOKUP(O11,TabLiza!$EH$5:$EO$75,8),IF(D11=10,VLOOKUP(O11,TabLiza!$EG$5:$EO$75,9),IF(D11=9,VLOOKUP(O11,TabLiza!$EF$5:$EO$75,10),IF(D11=8,VLOOKUP(O11,TabLiza!$EE$5:$EO$75,11),IF(D11=7,VLOOKUP(O11,TabLiza!$EE$5:$EO$75,11),IF(D11>17,"")))))))))))))) -> 0 | R11: =IF(D11>15,"",IF(Q11="","",IF(D11=15,VLOOKUP(Q11,TabLiza!$AM$5:$AP$75,4),IF(D11=14,VLOOKUP(Q11,TabLiza!$AL$5:$AP$75,5),IF(D11=13,VLOOKUP(Q11,TabLiza!$AK$5:$AP$75,6),IF(D11<13,"")))))) ->  | T11: =IF(D11<16,"",IF(S11="","",IF(D11=17,VLOOKUP(S11,TabLiza!$AO$5:$AP$75,2),IF(D11=16,VLOOKUP(S11,TabLiza!$AN$5:$AP$75,3),IF(D11>17,""))))) ->  | U11: 121 | V11: 5
B13: класс-команда | D13: 6А | R13: всего очков | зачёт | U13: =SUM(U4:U11) -> 1078 | V13: =U13-MIN(U4:U11) -> 971
A15: № п/п | B15: девочки | C15: № уч-ка | D15: возраст (полных лет) | E15: 1 | G15: 2 | I15: 3 | K15: 4 | M15: 5 | O15: 6 | Q15: 7 | S15: 8 | U15: 9 | V15: 10
B16: Фамилия Имя | E16: бег 1000м | F16: очки | G16: бег 30м | H16: очки | I16: отжимание | J16: очки | K16: пресс за 30" | L16: очки | M16: прыжок с места | N16: очки | O16: гибкость | P16: очки | Q16: бег 60м | R16: очки | S16: бег 100м | T16: очки | U16: сумма очков | V16: Место
A17: 1 | B17: Азбукина Анна | C17: 9 | D17: 12 | E17: 00:03:59 | F17: =IF(D17<7,"",IF(E17="","",IF(D17=17,VLOOKUP(E17,TabLiza!$V$5:$W$75,2),IF(D17=16,VLOOKUP(E17,TabLiza!$U$5:$W$75,3),IF(D17=15,VLOOKUP(E17,TabLiza!$T$5:$W$75,4),IF(D17=14,VLOOKUP(E17,TabLiza!$S$5:$W$75,5),IF(D17=13,VLOOKUP(E17,TabLiza!$R$5:$W$75,6),IF(D17=12,VLOOKUP(E17,TabLiza!$Q$5:$W$75,7),IF(D17=11,VLOOKUP(E17,TabLiza!$P$5:$W$75,8),IF(D17=10,VLOOKUP(E17,TabLiza!$O$5:$W$75,9),IF(D17=9,VLOOKUP(E17,TabLiza!$N$5:$W$75,10),IF(D17=8,VLOOKUP(E17,TabLiza!$M$5:$W$75,11),IF(D17=7,VLOOKUP(E17,TabLiza!$M$5:$W$75,11),IF(D17>17,"")))))))))))))) -> 56 | G17: 5.18 | H17: =IF(D17<7,"",IF(G17="","",IF(D17=17,VLOOKUP(G17,TabLiza!$BA$5:$BB$75,2),IF(D17=16,VLOOKUP(G17,TabLiza!$AZ$5:$BB$75,3),IF(D17=15,VLOOKUP(G17,TabLiza!$AY$5:$BB$75,4),IF(D17=14,VLOOKUP(G17,TabLiza!$AX$5:$BB$75,5),IF(D17=13,VLOOKUP(G17,TabLiza!$AW$5:$BB$75,6),IF(D17=12,VLOOKUP(G17,TabLiza!$AV$5:$BB$75,7),IF(D17=11,VLOOKUP(G17,TabLiza!$AU$5:$BB$75,8),IF(D17=10,VLOOKUP(G17,TabLiza!$AT$5:$BB$75,9),IF(D17=9,VLOOKUP(G17,TabLiza!$AS$5:$BB$75,10),IF(D17=8,VLOOKUP(G17,TabLiza!$AR$5:$BB$75,11),IF(D17=7,VLOOKUP(G17,TabLiza!$AR$5:$BB$75,11),IF(D17>12,"")))))))))))))) -> 59 | I17: 29 | J17: =IF(D17<7,"",IF(I17="","",IF(D17=17,VLOOKUP(I17,TabLiza!$CF$5:$CG$75,2),IF(D17=16,VLOOKUP(I17,TabLiza!$CE$5:$CG$75,3),IF(D17=15,VLOOKUP(I17,TabLiza!$CD$5:$CG$75,4),IF(D17=14,VLOOKUP(I17,TabLiza!$CC$5:$CG$75,5),IF(D17=13,VLOOKUP(I17,TabLiza!$CB$5:$CG$75,6),IF(D17=12,VLOOKUP(I17,TabLiza!$CA$5:$CG$75,7),IF(D17=11,VLOOKUP(I17,TabLiza!$BZ$5:$CG$75,8),IF(D17=10,VLOOKUP(I17,TabLiza!$BY$5:$CG$75,9),IF(D17=9,VLOOKUP(I17,TabLiza!$BX$5:$CG$75,10),IF(D17=8,VLOOKUP(I17,TabLiza!$BW$5:$CG$75,11),IF(D17=7,VLOOKUP(I17,TabLiza!$BW$5:$CG$75,11),IF(D17>17,"")))))))))))))) -> 52 | K17: 30 | L17: =IF(D17<7,"",IF(K17="","",IF(D17=17,VLOOKUP(K17,TabLiza!$EB$5:$EC$75,2),IF(D17=16,VLOOKUP(K17,TabLiza!$EA$5:$EC$75,3),IF(D17=15,VLOOKUP(K17,TabLiza!$DZ$5:$EC$75,4),IF(D17=14,VLOOKUP(K17,TabLiza!$DY$5:$EC$75,5),IF(D17=13,VLOOKUP(K17,TabLiza!$DX$5:$EC$75,6),IF(D17=12,VLOOKUP(K17,TabLiza!$DW$5:$EC$75,7),IF(D17=11,VLOOKUP(K17,TabLiza!$DV$5:$EC$75,8),IF(D17=10,VLOOKUP(K17,TabLiza!$DU$5:$EC$75,9),IF(D17=9,VLOOKUP(K17,TabLiza!$DT$5:$EC$75,10),IF(D17=8,VLOOKUP(K17,TabLiza!$DS$5:$EC$75,11),IF(D17=7,VLOOKUP(K17,TabLiza!$DS$5:$EC$75,11),IF(D17>17,"")))))))))))))) -> 50 | M17: 219 | N17: =IF(D17<7,"",IF(M17="","",IF(D17=17,VLOOKUP(M17,TabLiza!$DD$5:$DE$75,2),IF(D17=16,VLOOKUP(M17,TabLiza!$DC$5:$DE$75,3),IF(D17=15,VLOOKUP(M17,TabLiza!$DB$5:$DE$75,4),IF(D17=14,VLOOKUP(M17,TabLiza!$DA$5:$DE$75,5),IF(D17=13,VLOOKUP(M17,TabLiza!$CZ$5:$DE$75,6),IF(D17=12,VLOOKUP(M17,TabLiza!$CY$5:$DE$75,7),IF(D17=11,VLOOKUP(M17,TabLiza!$CX$5:$DE$75,8),IF(D17=10,VLOOKUP(M17,TabLiza!$CW$5:$DE$75,9),IF(D17=9,VLOOKUP(M17,TabLiza!$CV$5:$DE$75,10),IF(D17=8,VLOOKUP(M17,TabLiza!$CU$5:$DE$75,11),IF(D17=7,VLOOKUP(M17,TabLiza!$CU$5:$DE$75,11),IF(D17>17,"")))))))))))))) -> 59 | O17: 7 | P17: =IF(D17<7,"",IF(O17="","",IF(D17=17,VLOOKUP(O17,TabLiza!$EZ$5:$FA$75,2),IF(D17=16,VLOOKUP(O17,TabLiza!$EY$5:$FA$75,3),IF(D17=15,VLOOKUP(O17,TabLiza!$EX$5:$FA$75,4),IF(D17=14,VLOOKUP(O17,TabLiza!$EW$5:$FA$75,5),IF(D17=13,VLOOKUP(O17,TabLiza!$EV$5:$FA$75,6),IF(D17=12,VLOOKUP(O17,TabLiza!$EU$5:$FA$75,7),IF(D17=11,VLOOKUP(O17,TabLiza!$ET$5:$FA$75,8),IF(D17=10,VLOOKUP(O17,TabLiza!$ES$5:$FA$75,9),IF(D17=9,VLOOKUP(O17,TabLiza!$ER$5:$FA$75,10),IF(D17=8,VLOOKUP(O17,TabLiza!$EQ$5:$FA$75,11),IF(D17=7,VLOOKUP(O17,TabLiza!$EQ$5:$FA$75,11),IF(D17>17,"")))))))))))))) -> 15 | R17: =IF(D17>15,"",IF(Q17="","",IF(D17=15,VLOOKUP(Q17,TabLiza!$BF$5:$BI$75,4),IF(D17=14,VLOOKUP(Q17,TabLiza!$BE$5:$BI$75,5),IF(D17=13,VLOOKUP(Q17,TabLiza!$BD$5:$BI$75,6),IF(D17<13,"")))))) ->  | T17: =IF(D17<16,"",IF(S17="","",IF(D17=17,VLOOKUP(S17,TabLiza!$BH$5:$BI$75,2),IF(D17=16,VLOOKUP(S17,TabLiza!$BG$5:$BI$75,3),IF(D17>17,""))))) ->  | U17: =SUM(F17,H17,J17,L17,N17,P17,R17,T17) -> 291 | V17: =IF(U17=0,"",(RANK(U17,$U$17:$U$24,0))) -> 1
A18: =A17+1 -> 2 | B18: Ерёмина Олеся | C18: =C17+1 -> 10 | D18: 12 | E18: 00:03:34 | F18: =IF(D18<7,"",IF(E18="","",IF(D18=17,VLOOKUP(E18,TabLiza!$V$5:$W$75,2),IF(D18=16,VLOOKUP(E18,TabLiza!$U$5:$W$75,3),IF(D18=15,VLOOKUP(E18,TabLiza!$T$5:$W$75,4),IF(D18=14,VLOOKUP(E18,TabLiza!$S$5:$W$75,5),IF(D18=13,VLOOKUP(E18,TabLiza!$R$5:$W$75,6),IF(D18=12,VLOOKUP(E18,TabLiza!$Q$5:$W$75,7),IF(D18=11,VLOOKUP(E18,TabLiza!$P$5:$W$75,8),IF(D18=10,VLOOKUP(E18,TabLiza!$O$5:$W$75,9),IF(D18=9,VLOOKUP(E18,TabLiza!$N$5:$W$75,10),IF(D18=8,VLOOKUP(E18,TabLiza!$M$5:$W$75,11),IF(D18=7,VLOOKUP(E18,TabLiza!$M$5:$W$75,11),IF(D18>17,"")))))))))))))) -> 64 | G18: 5.43 | H18: =IF(D18<7,"",IF(G18="","",IF(D18=17,VLOOKUP(G18,TabLiza!$BA$5:$BB$75,2),IF(D18=16,VLOOKUP(G18,TabLiza!$AZ$5:$BB$75,3),IF(D18=15,VLOOKUP(G18,TabLiza!$AY$5:$BB$75,4),IF(D18=14,VLOOKUP(G18,TabLiza!$AX$5:$BB$75,5),IF(D18=13,VLOOKUP(G18,TabLiza!$AW$5:$BB$75,6),IF(D18=12,VLOOKUP(G18,TabLiza!$AV$5:$BB$75,7),IF(D18=11,VLOOKUP(G18,TabLiza!$AU$5:$BB$75,8),IF(D18=10,VLOOKUP(G18,TabLiza!$AT$5:$BB$75,9),IF(D18=9,VLOOKUP(G18,TabLiza!$AS$5:$BB$75,10),IF(D18=8,VLOOKUP(G18,TabLiza!$AR$5:$BB$75,11),IF(D18=7,VLOOKUP(G18,TabLiza!$AR$5:$BB$75,11),IF(D18>12,"")))))))))))))) -> 50 | I18: 20 | J18: =IF(D18<7,"",IF(I18="","",IF(D18=17,VLOOKUP(I18,TabLiza!$CF$5:$CG$75,2),IF(D18=16,VLOOKUP(I18,TabLiza!$CE$5:$CG$75,3),IF(D18=15,VLOOKUP(I18,TabLiza!$CD$5:$CG$75,4),IF(D18=14,VLOOKUP(I18,TabLiza!$CC$5:$CG$75,5),IF(D18=13,VLOOKUP(I18,TabLiza!$CB$5:$CG$75,6),IF(D18=12,VLOOKUP(I18,TabLiza!$CA$5:$CG$75,7),IF(D18=11,VLOOKUP(I18,TabLiza!$BZ$5:$CG$75,8),IF(D18=10,VLOOKUP(I18,TabLiza!$BY$5:$CG$75,9),IF(D18=9,VLOOKUP(I18,TabLiza!$BX$5:$CG$75,10),IF(D18=8,VLOOKUP(I18,TabLiza!$BW$5:$CG$75,11),IF(D18=7,VLOOKUP(I18,TabLiza!$BW$5:$CG$75,11),IF(D18>17,"")))))))))))))) -> 34 | K18: 32 | L18: =IF(D18<7,"",IF(K18="","",IF(D18=17,VLOOKUP(K18,TabLiza!$EB$5:$EC$75,2),IF(D18=16,VLOOKUP(K18,TabLiza!$EA$5:$EC$75,3),IF(D18=15,VLOOKUP(K18,TabLiza!$DZ$5:$EC$75,4),IF(D18=14,VLOOKUP(K18,TabLiza!$DY$5:$EC$75,5),IF(D18=13,VLOOKUP(K18,TabLiza!$DX$5:$EC$75,6),IF(D18=12,VLOOKUP(K18,TabLiza!$DW$5:$EC$75,7),IF(D18=11,VLOOKUP(K18,TabLiza!$DV$5:$EC$75,8),IF(D18=10,VLOOKUP(K18,TabLiza!$DU$5:$EC$75,9),IF(D18=9,VLOOKUP(K18,TabLiza!$DT$5:$EC$75,10),IF(D18=8,VLOOKUP(K18,TabLiza!$DS$5:$EC$75,11),IF(D18=7,VLOOKUP(K18,TabLiza!$DS$5:$EC$75,11),IF(D18>17,"")))))))))))))) -> 54 | M18: 199 | N18: =IF(D18<7,"",IF(M18="","",IF(D18=17,VLOOKUP(M18,TabLiza!$DD$5:$DE$75,2),IF(D18=16,VLOOKUP(M18,TabLiza!$DC$5:$DE$75,3),IF(D18=15,VLOOKUP(M18,TabLiza!$DB$5:$DE$75,4),IF(D18=14,VLOOKUP(M18,TabLiza!$DA$5:$DE$75,5),IF(D18=13,VLOOKUP(M18,TabLiza!$CZ$5:$DE$75,6),IF(D18=12,VLOOKUP(M18,TabLiza!$CY$5:$DE$75,7),IF(D18=11,VLOOKUP(M18,TabLiza!$CX$5:$DE$75,8),IF(D18=10,VLOOKUP(M18,TabLiza!$CW$5:$DE$75,9),IF(D18=9,VLOOKUP(M18,TabLiza!$CV$5:$DE$75,10),IF(D18=8,VLOOKUP(M18,TabLiza!$CU$5:$DE$75,11),IF(D18=7,VLOOKUP(M18,TabLiza!$CU$5:$DE$75,11),IF(D18>17,"")))))))))))))) -> 49 | O18: 12 | P18: =IF(D18<7,"",IF(O18="","",IF(D18=17,VLOOKUP(O18,TabLiza!$EZ$5:$FA$75,2),IF(D18=16,VLOOKUP(O18,TabLiza!$EY$5:$FA$75,3),IF(D18=15,VLOOKUP(O18,TabLiza!$EX$5:$FA$75,4),IF(D18=14,VLOOKUP(O18,TabLiza!$EW$5:$FA$75,5),IF(D18=13,VLOOKUP(O18,TabLiza!$EV$5:$FA$75,6),IF(D18=12,VLOOKUP(O18,TabLiza!$EU$5:$FA$75,7),IF(D18=11,VLOOKUP(O18,TabLiza!$ET$5:$FA$75,8),IF(D18=10,VLOOKUP(O18,TabLiza!$ES$5:$FA$75,9),IF(D18=9,VLOOKUP(O18,TabLiza!$ER$5:$FA$75,10),IF(D18=8,VLOOKUP(O18,TabLiza!$EQ$5:$FA$75,11),IF(D18=7,VLOOKUP(O18,TabLiza!$EQ$5:$FA$75,11),IF(D18>17,"")))))))))))))) -> 25 | R18: =IF(D18>15,"",IF(Q18="","",IF(D18=15,VLOOKUP(Q18,TabLiza!$BF$5:$BI$75,4),IF(D18=14,VLOOKUP(Q18,TabLiza!$BE$5:$BI$75,5),IF(D18=13,VLOOKUP(Q18,TabLiza!$BD$5:$BI$75,6),IF(D18<13,"")))))) ->  | T18: =IF(D18<16,"",IF(S18="","",IF(D18=17,VLOOKUP(S18,TabLiza!$BH$5:$BI$75,2),IF(D18=16,VLOOKUP(S18,TabLiza!$BG$5:$BI$75,3),IF(D18>17,""))))) ->  | U18: =SUM(F18,H18,J18,L18,N18,P18,R18,T18) -> 276 | V18: =IF(U18=0,"",(RANK(U18,$U$17:$U$24,0))) -> 2
A19: =A18+1 -> 3 | B19: Варфоломеева Елизавета | C19: =C18+1 -> 11 | D19: 12 | E19: 00:04:53 | F19: =IF(D19<7,"",IF(E19="","",IF(D19=17,VLOOKUP(E19,TabLiza!$V$5:$W$75,2),IF(D19=16,VLOOKUP(E19,TabLiza!$U$5:$W$75,3),IF(D19=15,VLOOKUP(E19,TabLiza!$T$5:$W$75,4),IF(D19=14,VLOOKUP(E19,TabLiza!$S$5:$W$75,5),IF(D19=13,VLOOKUP(E19,TabLiza!$R$5:$W$75,6),IF(D19=12,VLOOKUP(E19,TabLiza!$Q$5:$W$75,7),IF(D19=11,VLOOKUP(E19,TabLiza!$P$5:$W$75,8),IF(D19=10,VLOOKUP(E19,TabLiza!$O$5:$W$75,9),IF(D19=9,VLOOKUP(E19,TabLiza!$N$5:$W$75,10),IF(D19=8,VLOOKUP(E19,TabLiza!$M$5:$W$75,11),IF(D19=7,VLOOKUP(E19,TabLiza!$M$5:$W$75,11),IF(D19>17,"")))))))))))))) -> 29 | G19: 5.78 | H19: =IF(D19<7,"",IF(G19="","",IF(D19=17,VLOOKUP(G19,TabLiza!$BA$5:$BB$75,2),IF(D19=16,VLOOKUP(G19,TabLiza!$AZ$5:$BB$75,3),IF(D19=15,VLOOKUP(G19,TabLiza!$AY$5:$BB$75,4),IF(D19=14,VLOOKUP(G19,TabLiza!$AX$5:$BB$75,5),IF(D19=13,VLOOKUP(G19,TabLiza!$AW$5:$BB$75,6),IF(D19=12,VLOOKUP(G19,TabLiza!$AV$5:$BB$75,7),IF(D19=11,VLOOKUP(G19,TabLiza!$AU$5:$BB$75,8),IF(D19=10,VLOOKUP(G19,TabLiza!$AT$5:$BB$75,9),IF(D19=9,VLOOKUP(G19,TabLiza!$AS$5:$BB$75,10),IF(D19=8,VLOOKUP(G19,TabLiza!$AR$5:$BB$75,11),IF(D19=7,VLOOKUP(G19,TabLiza!$AR$5:$BB$75,11),IF(D19>12,"")))))))))))))) -> 35 | I19: 8 | J19: =IF(D19<7,"",IF(I19="","",IF(D19=17,VLOOKUP(I19,TabLiza!$CF$5:$CG$75,2),IF(D19=16,VLOOKUP(I19,TabLiza!$CE$5:$CG$75,3),IF(D19=15,VLOOKUP(I19,TabLiza!$CD$5:$CG$75,4),IF(D19=14,VLOOKUP(I19,TabLiza!$CC$5:$CG$75,5),IF(D19=13,VLOOKUP(I19,TabLiza!$CB$5:$CG$75,6),IF(D19=12,VLOOKUP(I19,TabLiza!$CA$5:$CG$75,7),IF(D19=11,VLOOKUP(I19,TabLiza!$BZ$5:$CG$75,8),IF(D19=10,VLOOKUP(I19,TabLiza!$BY$5:$CG$75,9),IF(D19=9,VLOOKUP(I19,TabLiza!$BX$5:$CG$75,10),IF(D19=8,VLOOKUP(I19,TabLiza!$BW$5:$CG$75,11),IF(D19=7,VLOOKUP(I19,TabLiza!$BW$5:$CG$75,11),IF(D19>17,"")))))))))))))) -> 10 | K19: 28 | L19: =IF(D19<7,"",IF(K19="","",IF(D19=17,VLOOKUP(K19,TabLiza!$EB$5:$EC$75,2),IF(D19=16,VLOOKUP(K19,TabLiza!$EA$5:$EC$75,3),IF(D19=15,VLOOKUP(K19,TabLiza!$DZ$5:$EC$75,4),IF(D19=14,VLOOKUP(K19,TabLiza!$DY$5:$EC$75,5),IF(D19=13,VLOOKUP(K19,TabLiza!$DX$5:$EC$75,6),IF(D19=12,VLOOKUP(K19,TabLiza!$DW$5:$EC$75,7),IF(D19=11,VLOOKUP(K19,TabLiza!$DV$5:$EC$75,8),IF(D19=10,VLOOKUP(K19,TabLiza!$DU$5:$EC$75,9),IF(D19=9,VLOOKUP(K19,TabLiza!$DT$5:$EC$75,10),IF(D19=8,VLOOKUP(K19,TabLiza!$DS$5:$EC$75,11),IF(D19=7,VLOOKUP(K19,TabLiza!$DS$5:$EC$75,11),IF(D19>17,"")))))))))))))) -> 45 | M19: 175 | N19: =IF(D19<7,"",IF(M19="","",IF(D19=17,VLOOKUP(M19,TabLiza!$DD$5:$DE$75,2),IF(D19=16,VLOOKUP(M19,TabLiza!$DC$5:$DE$75,3),IF(D19=15,VLOOKUP(M19,TabLiza!$DB$5:$DE$75,4),IF(D19=14,VLOOKUP(M19,TabLiza!$DA$5:$DE$75,5),IF(D19=13,VLOOKUP(M19,TabLiza!$CZ$5:$DE$75,6),IF(D19=12,VLOOKUP(M19,TabLiza!$CY$5:$DE$75,7),IF(D19=11,VLOOKUP(M19,TabLiza!$CX$5:$DE$75,8),IF(D19=10,VLOOKUP(M19,TabLiza!$CW$5:$DE$75,9),IF(D19=9,VLOOKUP(M19,TabLiza!$CV$5:$DE$75,10),IF(D19=8,VLOOKUP(M19,TabLiza!$CU$5:$DE$75,11),IF(D19=7,VLOOKUP(M19,TabLiza!$CU$5:$DE$75,11),IF(D19>17,"")))))))))))))) -> 32 | O19: 4 | P19: =IF(D19<7,"",IF(O19="","",IF(D19=17,VLOOKUP(O19,TabLiza!$EZ$5:$FA$75,2),IF(D19=16,VLOOKUP(O19,TabLiza!$EY$5:$FA$75,3),IF(D19=15,VLOOKUP(O19,TabLiza!$EX$5:$FA$75,4),IF(D19=14,VLOOKUP(O19,TabLiza!$EW$5:$FA$75,5),IF(D19=13,VLOOKUP(O19,TabLiza!$EV$5:$FA$75,6),IF(D19=12,VLOOKUP(O19,TabLiza!$EU$5:$FA$75,7),IF(D19=11,VLOOKUP(O19,TabLiza!$ET$5:$FA$75,8),IF(D19=10,VLOOKUP(O19,TabLiza!$ES$5:$FA$75,9),IF(D19=9,VLOOKUP(O19,TabLiza!$ER$5:$FA$75,10),IF(D19=8,VLOOKUP(O19,TabLiza!$EQ$5:$FA$75,11),IF(D19=7,VLOOKUP(O19,TabLiza!$EQ$5:$FA$75,11),IF(D19>17,"")))))))))))))) -> 9 | R19: =IF(D19>15,"",IF(Q19="","",IF(D19=15,VLOOKUP(Q19,TabLiza!$BF$5:$BI$75,4),IF(D19=14,VLOOKUP(Q19,TabLiza!$BE$5:$BI$75,5),IF(D19=13,VLOOKUP(Q19,TabLiza!$BD$5:$BI$75,6),IF(D19<13,"")))))) ->  | T19: =IF(D19<16,"",IF(S19="","",IF(D19=17,VLOOKUP(S19,TabLiza!$BH$5:$BI$75,2),IF(D19=16,VLOOKUP(S19,TabLiza!$BG$5:$BI$75,3),IF(D19>17,""))))) ->  | U19: 160 | V19: 5
A20: 4 | B20: Губанова Кристина | C20: 12 | D20: 12 | E20: 00:04:33 | F20: =IF(D20<7,"",IF(E20="","",IF(D20=17,VLOOKUP(E20,TabLiza!$V$5:$W$75,2),IF(D20=16,VLOOKUP(E20,TabLiza!$U$5:$W$75,3),IF(D20=15,VLOOKUP(E20,TabLiza!$T$5:$W$75,4),IF(D20=14,VLOOKUP(E20,TabLiza!$S$5:$W$75,5),IF(D20=13,VLOOKUP(E20,TabLiza!$R$5:$W$75,6),IF(D20=12,VLOOKUP(E20,TabLiza!$Q$5:$W$75,7),IF(D20=11,VLOOKUP(E20,TabLiza!$P$5:$W$75,8),IF(D20=10,VLOOKUP(E20,TabLiza!$O$5:$W$75,9),IF(D20=9,VLOOKUP(E20,TabLiza!$N$5:$W$75,10),IF(D20=8,VLOOKUP(E20,TabLiza!$M$5:$W$75,11),IF(D20=7,VLOOKUP(E20,TabLiza!$M$5:$W$75,11),IF(D20>17,"")))))))))))))) -> 36 | G20: 6.16 | H20: =IF(D20<7,"",IF(G20="","",IF(D20=17,VLOOKUP(G20,TabLiza!$BA$5:$BB$75,2),IF(D20=16,VLOOKUP(G20,TabLiza!$AZ$5:$BB$75,3),IF(D20=15,VLOOKUP(G20,TabLiza!$AY$5:$BB$75,4),IF(D20=14,VLOOKUP(G20,TabLiza!$AX$5:$BB$75,5),IF(D20=13,VLOOKUP(G20,TabLiza!$AW$5:$BB$75,6),IF(D20=12,VLOOKUP(G20,TabLiza!$AV$5:$BB$75,7),IF(D20=11,VLOOKUP(G20,TabLiza!$AU$5:$BB$75,8),IF(D20=10,VLOOKUP(G20,TabLiza!$AT$5:$BB$75,9),IF(D20=9,VLOOKUP(G20,TabLiza!$AS$5:$BB$75,10),IF(D20=8,VLOOKUP(G20,TabLiza!$AR$5:$BB$75,11),IF(D20=7,VLOOKUP(G20,TabLiza!$AR$5:$BB$75,11),IF(D20>12,"")))))))))))))) -> 19 | I20: 5 | J20: =IF(D20<7,"",IF(I20="","",IF(D20=17,VLOOKUP(I20,TabLiza!$CF$5:$CG$75,2),IF(D20=16,VLOOKUP(I20,TabLiza!$CE$5:$CG$75,3),IF(D20=15,VLOOKUP(I20,TabLiza!$CD$5:$CG$75,4),IF(D20=14,VLOOKUP(I20,TabLiza!$CC$5:$CG$75,5),IF(D20=13,VLOOKUP(I20,TabLiza!$CB$5:$CG$75,6),IF(D20=12,VLOOKUP(I20,TabLiza!$CA$5:$CG$75,7),IF(D20=11,VLOOKUP(I20,TabLiza!$BZ$5:$CG$75,8),IF(D20=10,VLOOKUP(I20,TabLiza!$BY$5:$CG$75,9),IF(D20=9,VLOOKUP(I20,TabLiza!$BX$5:$CG$75,10),IF(D20=8,VLOOKUP(I20,TabLiza!$BW$5:$CG$75,11),IF(D20=7,VLOOKUP(I20,TabLiza!$BW$5:$CG$75,11),IF(D20>17,"")))))))))))))) -> 5 | K20: 27 | L20: =IF(D20<7,"",IF(K20="","",IF(D20=17,VLOOKUP(K20,TabLiza!$EB$5:$EC$75,2),IF(D20=16,VLOOKUP(K20,TabLiza!$EA$5:$EC$75,3),IF(D20=15,VLOOKUP(K20,TabLiza!$DZ$5:$EC$75,4),IF(D20=14,VLOOKUP(K20,TabLiza!$DY$5:$EC$75,5),IF(D20=13,VLOOKUP(K20,TabLiza!$DX$5:$EC$75,6),IF(D20=12,VLOOKUP(K20,TabLiza!$DW$5:$EC$75,7),IF(D20=11,VLOOKUP(K20,TabLiza!$DV$5:$EC$75,8),IF(D20=10,VLOOKUP(K20,TabLiza!$DU$5:$EC$75,9),IF(D20=9,VLOOKUP(K20,TabLiza!$DT$5:$EC$75,10),IF(D20=8,VLOOKUP(K20,TabLiza!$DS$5:$EC$75,11),IF(D20=7,VLOOKUP(K20,TabLiza!$DS$5:$EC$75,11),IF(D20>17,"")))))))))))))) -> 43 | M20: 184 | N20: =IF(D20<7,"",IF(M20="","",IF(D20=17,VLOOKUP(M20,TabLiza!$DD$5:$DE$75,2),IF(D20=16,VLOOKUP(M20,TabLiza!$DC$5:$DE$75,3),IF(D20=15,VLOOKUP(M20,TabLiza!$DB$5:$DE$75,4),IF(D20=14,VLOOKUP(M20,TabLiza!$DA$5:$DE$75,5),IF(D20=13,VLOOKUP(M20,TabLiza!$CZ$5:$DE$75,6),IF(D20=12,VLOOKUP(M20,TabLiza!$CY$5:$DE$75,7),IF(D20=11,VLOOKUP(M20,TabLiza!$CX$5:$DE$75,8),IF(D20=10,VLOOKUP(M20,TabLiza!$CW$5:$DE$75,9),IF(D20=9,VLOOKUP(M20,TabLiza!$CV$5:$DE$75,10),IF(D20=8,VLOOKUP(M20,TabLiza!$CU$5:$DE$75,11),IF(D20=7,VLOOKUP(M20,TabLiza!$CU$5:$DE$75,11),IF(D20>17,"")))))))))))))) -> 37 | O20: 6 | P20: =IF(D20<7,"",IF(O20="","",IF(D20=17,VLOOKUP(O20,TabLiza!$EZ$5:$FA$75,2),IF(D20=16,VLOOKUP(O20,TabLiza!$EY$5:$FA$75,3),IF(D20=15,VLOOKUP(O20,TabLiza!$EX$5:$FA$75,4),IF(D20=14,VLOOKUP(O20,TabLiza!$EW$5:$FA$75,5),IF(D20=13,VLOOKUP(O20,TabLiza!$EV$5:$FA$75,6),IF(D20=12,VLOOKUP(O20,TabLiza!$EU$5:$FA$75,7),IF(D20=11,VLOOKUP(O20,TabLiza!$ET$5:$FA$75,8),IF(D20=10,VLOOKUP(O20,TabLiza!$ES$5:$FA$75,9),IF(D20=9,VLOOKUP(O20,TabLiza!$ER$5:$FA$75,10),IF(D20=8,VLOOKUP(O20,TabLiza!$EQ$5:$FA$75,11),IF(D20=7,VLOOKUP(O20,TabLiza!$EQ$5:$FA$75,11),IF(D20>17,"")))))))))))))) -> 13 | R20: =IF(D20>15,"",IF(Q20="","",IF(D20=15,VLOOKUP(Q20,TabLiza!$BF$5:$BI$75,4),IF(D20=14,VLOOKUP(Q20,TabLiza!$BE$5:$BI$75,5),IF(D20=13,VLOOKUP(Q20,TabLiza!$BD$5:$BI$75,6),IF(D20<13,"")))))) ->  | T20: =IF(D20<16,"",IF(S20="","",IF(D20=17,VLOOKUP(S20,TabLiza!$BH$5:$BI$75,2),IF(D20=16,VLOOKUP(S20,TabLiza!$BG$5:$BI$75,3),IF(D20>17,""))))) ->  | U20: 153 | V20: 6
A21: 5 | B21: Деменьшина Полина | C21: 13 | D21: 12 | E21: 00:04:43 | F21: =IF(D21<7,"",IF(E21="","",IF(D21=17,VLOOKUP(E21,TabLiza!$V$5:$W$75,2),IF(D21=16,VLOOKUP(E21,TabLiza!$U$5:$W$75,3),IF(D21=15,VLOOKUP(E21,TabLiza!$T$5:$W$75,4),IF(D21=14,VLOOKUP(E21,TabLiza!$S$5:$W$75,5),IF(D21=13,VLOOKUP(E21,TabLiza!$R$5:$W$75,6),IF(D21=12,VLOOKUP(E21,TabLiza!$Q$5:$W$75,7),IF(D21=11,VLOOKUP(E21,TabLiza!$P$5:$W$75,8),IF(D21=10,VLOOKUP(E21,TabLiza!$O$5:$W$75,9),IF(D21=9,VLOOKUP(E21,TabLiza!$N$5:$W$75,10),IF(D21=8,VLOOKUP(E21,TabLiza!$M$5:$W$75,11),IF(D21=7,VLOOKUP(E21,TabLiza!$M$5:$W$75,11),IF(D21>17,"")))))))))))))) -> 33 | G21: 6.06 | H21: =IF(D21<7,"",IF(G21="","",IF(D21=17,VLOOKUP(G21,TabLiza!$BA$5:$BB$75,2),IF(D21=16,VLOOKUP(G21,TabLiza!$AZ$5:$BB$75,3),IF(D21=15,VLOOKUP(G21,TabLiza!$AY$5:$BB$75,4),IF(D21=14,VLOOKUP(G21,TabLiza!$AX$5:$BB$75,5),IF(D21=13,VLOOKUP(G21,TabLiza!$AW$5:$BB$75,6),IF(D21=12,VLOOKUP(G21,TabLiza!$AV$5:$BB$75,7),IF(D21=11,VLOOKUP(G21,TabLiza!$AU$5:$BB$75,8),IF(D21=10,VLOOKUP(G21,TabLiza!$AT$5:$BB$75,9),IF(D21=9,VLOOKUP(G21,TabLiza!$AS$5:$BB$75,10),IF(D21=8,VLOOKUP(G21,TabLiza!$AR$5:$BB$75,11),IF(D21=7,VLOOKUP(G21,TabLiza!$AR$5:$BB$75,11),IF(D21>12,"")))))))))))))) -> 22 | I21: 25 | J21: =IF(D21<7,"",IF(I21="","",IF(D21=17,VLOOKUP(I21,TabLiza!$CF$5:$CG$75,2),IF(D21=16,VLOOKUP(I21,TabLiza!$CE$5:$CG$75,3),IF(D21=15,VLOOKUP(I21,TabLiza!$CD$5:$CG$75,4),IF(D21=14,VLOOKUP(I21,TabLiza!$CC$5:$CG$75,5),IF(D21=13,VLOOKUP(I21,TabLiza!$CB$5:$CG$75,6),IF(D21=12,VLOOKUP(I21,TabLiza!$CA$5:$CG$75,7),IF(D21=11,VLOOKUP(I21,TabLiza!$BZ$5:$CG$75,8),IF(D21=10,VLOOKUP(I21,TabLiza!$BY$5:$CG$75,9),IF(D21=9,VLOOKUP(I21,TabLiza!$BX$5:$CG$75,10),IF(D21=8,VLOOKUP(I21,TabLiza!$BW$5:$CG$75,11),IF(D21=7,VLOOKUP(I21,TabLiza!$BW$5:$CG$75,11),IF(D21>17,"")))))))))))))) -> 44 | K21: 35 | L21: =IF(D21<7,"",IF(K21="","",IF(D21=17,VLOOKUP(K21,TabLiza!$EB$5:$EC$75,2),IF(D21=16,VLOOKUP(K21,TabLiza!$EA$5:$EC$75,3),IF(D21=15,VLOOKUP(K21,TabLiza!$DZ$5:$EC$75,4),IF(D21=14,VLOOKUP(K21,TabLiza!$DY$5:$EC$75,5),IF(D21=13,VLOOKUP(K21,TabLiza!$DX$5:$EC$75,6),IF(D21=12,VLOOKUP(K21,TabLiza!$DW$5:$EC$75,7),IF(D21=11,VLOOKUP(K21,TabLiza!$DV$5:$EC$75,8),IF(D21=10,VLOOKUP(K21,TabLiza!$DU$5:$EC$75,9),IF(D21=9,VLOOKUP(K21,TabLiza!$DT$5:$EC$75,10),IF(D21=8,VLOOKUP(K21,TabLiza!$DS$5:$EC$75,11),IF(D21=7,VLOOKUP(K21,TabLiza!$DS$5:$EC$75,11),IF(D21>17,"")))))))))))))) -> 60 | M21: 170 | N21: =IF(D21<7,"",IF(M21="","",IF(D21=17,VLOOKUP(M21,TabLiza!$DD$5:$DE$75,2),IF(D21=16,VLOOKUP(M21,TabLiza!$DC$5:$DE$75,3),IF(D21=15,VLOOKUP(M21,TabLiza!$DB$5:$DE$75,4),IF(D21=14,VLOOKUP(M21,TabLiza!$DA$5:$DE$75,5),IF(D21=13,VLOOKUP(M21,TabLiza!$CZ$5:$DE$75,6),IF(D21=12,VLOOKUP(M21,TabLiza!$CY$5:$DE$75,7),IF(D21=11,VLOOKUP(M21,TabLiza!$CX$5:$DE$75,8),IF(D21=10,VLOOKUP(M21,TabLiza!$CW$5:$DE$75,9),IF(D21=9,VLOOKUP(M21,TabLiza!$CV$5:$DE$75,10),IF(D21=8,VLOOKUP(M21,TabLiza!$CU$5:$DE$75,11),IF(D21=7,VLOOKUP(M21,TabLiza!$CU$5:$DE$75,11),IF(D21>17,"")))))))))))))) -> 30 | O21: 7 | P21: =IF(D21<7,"",IF(O21="","",IF(D21=17,VLOOKUP(O21,TabLiza!$EZ$5:$FA$75,2),IF(D21=16,VLOOKUP(O21,TabLiza!$EY$5:$FA$75,3),IF(D21=15,VLOOKUP(O21,TabLiza!$EX$5:$FA$75,4),IF(D21=14,VLOOKUP(O21,TabLiza!$EW$5:$FA$75,5),IF(D21=13,VLOOKUP(O21,TabLiza!$EV$5:$FA$75,6),IF(D21=12,VLOOKUP(O21,TabLiza!$EU$5:$FA$75,7),IF(D21=11,VLOOKUP(O21,TabLiza!$ET$5:$FA$75,8),IF(D21=10,VLOOKUP(O21,TabLiza!$ES$5:$FA$75,9),IF(D21=9,VLOOKUP(O21,TabLiza!$ER$5:$FA$75,10),IF(D21=8,VLOOKUP(O21,TabLiza!$EQ$5:$FA$75,11),IF(D21=7,VLOOKUP(O21,TabLiza!$EQ$5:$FA$75,11),IF(D21>17,"")))))))))))))) -> 15 | R21: =IF(D21>15,"",IF(Q21="","",IF(D21=15,VLOOKUP(Q21,TabLiza!$BF$5:$BI$75,4),IF(D21=14,VLOOKUP(Q21,TabLiza!$BE$5:$BI$75,5),IF(D21=13,VLOOKUP(Q21,TabLiza!$BD$5:$BI$75,6),IF(D21<13,"")))))) ->  | T21: =IF(D21<16,"",IF(S21="","",IF(D21=17,VLOOKUP(S21,TabLiza!$BH$5:$BI$75,2),IF(D21=16,VLOOKUP(S21,TabLiza!$BG$5:$BI$75,3),IF(D21>17,""))))) ->  | U21: 204 | V21: 3
A22: 6 | B22: Ташбулатова Виктория | C22: 14 | D22: 12 | E22: 00:04:42 | F22: =IF(D22<7,"",IF(E22="","",IF(D22=17,VLOOKUP(E22,TabLiza!$V$5:$W$75,2),IF(D22=16,VLOOKUP(E22,TabLiza!$U$5:$W$75,3),IF(D22=15,VLOOKUP(E22,TabLiza!$T$5:$W$75,4),IF(D22=14,VLOOKUP(E22,TabLiza!$S$5:$W$75,5),IF(D22=13,VLOOKUP(E22,TabLiza!$R$5:$W$75,6),IF(D22=12,VLOOKUP(E22,TabLiza!$Q$5:$W$75,7),IF(D22=11,VLOOKUP(E22,TabLiza!$P$5:$W$75,8),IF(D22=10,VLOOKUP(E22,TabLiza!$O$5:$W$75,9),IF(D22=9,VLOOKUP(E22,TabLiza!$N$5:$W$75,10),IF(D22=8,VLOOKUP(E22,TabLiza!$M$5:$W$75,11),IF(D22=7,VLOOKUP(E22,TabLiza!$M$5:$W$75,11),IF(D22>17,"")))))))))))))) -> 33 | G22: 5.65 | H22: =IF(D22<7,"",IF(G22="","",IF(D22=17,VLOOKUP(G22,TabLiza!$BA$5:$BB$75,2),IF(D22=16,VLOOKUP(G22,TabLiza!$AZ$5:$BB$75,3),IF(D22=15,VLOOKUP(G22,TabLiza!$AY$5:$BB$75,4),IF(D22=14,VLOOKUP(G22,TabLiza!$AX$5:$BB$75,5),IF(D22=13,VLOOKUP(G22,TabLiza!$AW$5:$BB$75,6),IF(D22=12,VLOOKUP(G22,TabLiza!$AV$5:$BB$75,7),IF(D22=11,VLOOKUP(G22,TabLiza!$AU$5:$BB$75,8),IF(D22=10,VLOOKUP(G22,TabLiza!$AT$5:$BB$75,9),IF(D22=9,VLOOKUP(G22,TabLiza!$AS$5:$BB$75,10),IF(D22=8,VLOOKUP(G22,TabLiza!$AR$5:$BB$75,11),IF(D22=7,VLOOKUP(G22,TabLiza!$AR$5:$BB$75,11),IF(D22>12,"")))))))))))))) -> 40 | I22: 10 | J22: =IF(D22<7,"",IF(I22="","",IF(D22=17,VLOOKUP(I22,TabLiza!$CF$5:$CG$75,2),IF(D22=16,VLOOKUP(I22,TabLiza!$CE$5:$CG$75,3),IF(D22=15,VLOOKUP(I22,TabLiza!$CD$5:$CG$75,4),IF(D22=14,VLOOKUP(I22,TabLiza!$CC$5:$CG$75,5),IF(D22=13,VLOOKUP(I22,TabLiza!$CB$5:$CG$75,6),IF(D22=12,VLOOKUP(I22,TabLiza!$CA$5:$CG$75,7),IF(D22=11,VLOOKUP(I22,TabLiza!$BZ$5:$CG$75,8),IF(D22=10,VLOOKUP(I22,TabLiza!$BY$5:$CG$75,9),IF(D22=9,VLOOKUP(I22,TabLiza!$BX$5:$CG$75,10),IF(D22=8,VLOOKUP(I22,TabLiza!$BW$5:$CG$75,11),IF(D22=7,VLOOKUP(I22,TabLiza!$BW$5:$CG$75,11),IF(D22>17,"")))))))))))))) -> 14 | K22: 30 | L22: =IF(D22<7,"",IF(K22="","",IF(D22=17,VLOOKUP(K22,TabLiza!$EB$5:$EC$75,2),IF(D22=16,VLOOKUP(K22,TabLiza!$EA$5:$EC$75,3),IF(D22=15,VLOOKUP(K22,TabLiza!$DZ$5:$EC$75,4),IF(D22=14,VLOOKUP(K22,TabLiza!$DY$5:$EC$75,5),IF(D22=13,VLOOKUP(K22,TabLiza!$DX$5:$EC$75,6),IF(D22=12,VLOOKUP(K22,TabLiza!$DW$5:$EC$75,7),IF(D22=11,VLOOKUP(K22,TabLiza!$DV$5:$EC$75,8),IF(D22=10,VLOOKUP(K22,TabLiza!$DU$5:$EC$75,9),IF(D22=9,VLOOKUP(K22,TabLiza!$DT$5:$EC$75,10),IF(D22=8,VLOOKUP(K22,TabLiza!$DS$5:$EC$75,11),IF(D22=7,VLOOKUP(K22,TabLiza!$DS$5:$EC$75,11),IF(D22>17,"")))))))))))))) -> 50 | M22: 162 | N22: =IF(D22<7,"",IF(M22="","",IF(D22=17,VLOOKUP(M22,TabLiza!$DD$5:$DE$75,2),IF(D22=16,VLOOKUP(M22,TabLiza!$DC$5:$DE$75,3),IF(D22=15,VLOOKUP(M22,TabLiza!$DB$5:$DE$75,4),IF(D22=14,VLOOKUP(M22,TabLiza!$DA$5:$DE$75,5),IF(D22=13,VLOOKUP(M22,TabLiza!$CZ$5:$DE$75,6),IF(D22=12,VLOOKUP(M22,TabLiza!$CY$5:$DE$75,7),IF(D22=11,VLOOKUP(M22,TabLiza!$CX$5:$DE$75,8),IF(D22=10,VLOOKUP(M22,TabLiza!$CW$5:$DE$75,9),IF(D22=9,VLOOKUP(M22,TabLiza!$CV$5:$DE$75,10),IF(D22=8,VLOOKUP(M22,TabLiza!$CU$5:$DE$75,11),IF(D22=7,VLOOKUP(M22,TabLiza!$CU$5:$DE$75,11),IF(D22>17,"")))))))))))))) -> 26 | O22: 4 | P22: =IF(D22<7,"",IF(O22="","",IF(D22=17,VLOOKUP(O22,TabLiza!$EZ$5:$FA$75,2),IF(D22=16,VLOOKUP(O22,TabLiza!$EY$5:$FA$75,3),IF(D22=15,VLOOKUP(O22,TabLiza!$EX$5:$FA$75,4),IF(D22=14,VLOOKUP(O22,TabLiza!$EW$5:$FA$75,5),IF(D22=13,VLOOKUP(O22,TabLiza!$EV$5:$FA$75,6),IF(D22=12,VLOOKUP(O22,TabLiza!$EU$5:$FA$75,7),IF(D22=11,VLOOKUP(O22,TabLiza!$ET$5:$FA$75,8),IF(D22=10,VLOOKUP(O22,TabLiza!$ES$5:$FA$75,9),IF(D22=9,VLOOKUP(O22,TabLiza!$ER$5:$FA$75,10),IF(D22=8,VLOOKUP(O22,TabLiza!$EQ$5:$FA$75,11),IF(D22=7,VLOOKUP(O22,TabLiza!$EQ$5:$FA$75,11),IF(D22>17,"")))))))))))))) -> 9 | R22: =IF(D22>15,"",IF(Q22="","",IF(D22=15,VLOOKUP(Q22,TabLiza!$BF$5:$BI$75,4),IF(D22=14,VLOOKUP(Q22,TabLiza!$BE$5:$BI$75,5),IF(D22=13,VLOOKUP(Q22,TabLiza!$BD$5:$BI$75,6),IF(D22<13,"")))))) ->  | T22: =IF(D22<16,"",IF(S22="","",IF(D22=17,VLOOKUP(S22,TabLiza!$BH$5:$BI$75,2),IF(D22=16,VLOOKUP(S22,TabLiza!$BG$5:$BI$75,3),IF(D22>17,""))))) ->  | U22: 172 | V22: 4
A23: 7 | B23: Устьянцева Дарья | C23: 15 | D23: 13 | E23: 00:04:58 | F23: =IF(D23<7,"",IF(E23="","",IF(D23=17,VLOOKUP(E23,TabLiza!$V$5:$W$75,2),IF(D23=16,VLOOKUP(E23,TabLiza!$U$5:$W$75,3),IF(D23=15,VLOOKUP(E23,TabLiza!$T$5:$W$75,4),IF(D23=14,VLOOKUP(E23,TabLiza!$S$5:$W$75,5),IF(D23=13,VLOOKUP(E23,TabLiza!$R$5:$W$75,6),IF(D23=12,VLOOKUP(E23,TabLiza!$Q$5:$W$75,7),IF(D23=11,VLOOKUP(E23,TabLiza!$P$5:$W$75,8),IF(D23=10,VLOOKUP(E23,TabLiza!$O$5:$W$75,9),IF(D23=9,VLOOKUP(E23,TabLiza!$N$5:$W$75,10),IF(D23=8,VLOOKUP(E23,TabLiza!$M$5:$W$75,11),IF(D23=7,VLOOKUP(E23,TabLiza!$M$5:$W$75,11),IF(D23>17,"")))))))))))))) -> 23 | G23: 6.1 | H23: =IF(D23<7,"",IF(G23="","",IF(D23=17,VLOOKUP(G23,TabLiza!$BA$5:$BB$75,2),IF(D23=16,VLOOKUP(G23,TabLiza!$AZ$5:$BB$75,3),IF(D23=15,VLOOKUP(G23,TabLiza!$AY$5:$BB$75,4),IF(D23=14,VLOOKUP(G23,TabLiza!$AX$5:$BB$75,5),IF(D23=13,VLOOKUP(G23,TabLiza!$AW$5:$BB$75,6),IF(D23=12,VLOOKUP(G23,TabLiza!$AV$5:$BB$75,7),IF(D23=11,VLOOKUP(G23,TabLiza!$AU$5:$BB$75,8),IF(D23=10,VLOOKUP(G23,TabLiza!$AT$5:$BB$75,9),IF(D23=9,VLOOKUP(G23,TabLiza!$AS$5:$BB$75,10),IF(D23=8,VLOOKUP(G23,TabLiza!$AR$5:$BB$75,11),IF(D23=7,VLOOKUP(G23,TabLiza!$AR$5:$BB$75,11),IF(D23>12,"")))))))))))))) -> 15 | I23: 13 | J23: =IF(D23<7,"",IF(I23="","",IF(D23=17,VLOOKUP(I23,TabLiza!$CF$5:$CG$75,2),IF(D23=16,VLOOKUP(I23,TabLiza!$CE$5:$CG$75,3),IF(D23=15,VLOOKUP(I23,TabLiza!$CD$5:$CG$75,4),IF(D23=14,VLOOKUP(I23,TabLiza!$CC$5:$CG$75,5),IF(D23=13,VLOOKUP(I23,TabLiza!$CB$5:$CG$75,6),IF(D23=12,VLOOKUP(I23,TabLiza!$CA$5:$CG$75,7),IF(D23=11,VLOOKUP(I23,TabLiza!$BZ$5:$CG$75,8),IF(D23=10,VLOOKUP(I23,TabLiza!$BY$5:$CG$75,9),IF(D23=9,VLOOKUP(I23,TabLiza!$BX$5:$CG$75,10),IF(D23=8,VLOOKUP(I23,TabLiza!$BW$5:$CG$75,11),IF(D23=7,VLOOKUP(I23,TabLiza!$BW$5:$CG$75,11),IF(D23>17,"")))))))))))))) -> 14 | K23: 29 | L23: =IF(D23<7,"",IF(K23="","",IF(D23=17,VLOOKUP(K23,TabLiza!$EB$5:$EC$75,2),IF(D23=16,VLOOKUP(K23,TabLiza!$EA$5:$EC$75,3),IF(D23=15,VLOOKUP(K23,TabLiza!$DZ$5:$EC$75,4),IF(D23=14,VLOOKUP(K23,TabLiza!$DY$5:$EC$75,5),IF(D23=13,VLOOKUP(K23,TabLiza!$DX$5:$EC$75,6),IF(D23=12,VLOOKUP(K23,TabLiza!$DW$5:$EC$75,7),IF(D23=11,VLOOKUP(K23,TabLiza!$DV$5:$EC$75,8),IF(D23=10,VLOOKUP(K23,TabLiza!$DU$5:$EC$75,9),IF(D23=9,VLOOKUP(K23,TabLiza!$DT$5:$EC$75,10),IF(D23=8,VLOOKUP(K23,TabLiza!$DS$5:$EC$75,11),IF(D23=7,VLOOKUP(K23,TabLiza!$DS$5:$EC$75,11),IF(D23>17,"")))))))))))))) -> 38 | M23: 175 | N23: =IF(D23<7,"",IF(M23="","",IF(D23=17,VLOOKUP(M23,TabLiza!$DD$5:$DE$75,2),IF(D23=16,VLOOKUP(M23,TabLiza!$DC$5:$DE$75,3),IF(D23=15,VLOOKUP(M23,TabLiza!$DB$5:$DE$75,4),IF(D23=14,VLOOKUP(M23,TabLiza!$DA$5:$DE$75,5),IF(D23=13,VLOOKUP(M23,TabLiza!$CZ$5:$DE$75,6),IF(D23=12,VLOOKUP(M23,TabLiza!$CY$5:$DE$75,7),IF(D23=11,VLOOKUP(M23,TabLiza!$CX$5:$DE$75,8),IF(D23=10,VLOOKUP(M23,TabLiza!$CW$5:$DE$75,9),IF(D23=9,VLOOKUP(M23,TabLiza!$CV$5:$DE$75,10),IF(D23=8,VLOOKUP(M23,TabLiza!$CU$5:$DE$75,11),IF(D23=7,VLOOKUP(M23,TabLiza!$CU$5:$DE$75,11),IF(D23>17,"")))))))))))))) -> 25 | O23: 8 | P23: =IF(D23<7,"",IF(O23="","",IF(D23=17,VLOOKUP(O23,TabLiza!$EZ$5:$FA$75,2),IF(D23=16,VLOOKUP(O23,TabLiza!$EY$5:$FA$75,3),IF(D23=15,VLOOKUP(O23,TabLiza!$EX$5:$FA$75,4),IF(D23=14,VLOOKUP(O23,TabLiza!$EW$5:$FA$75,5),IF(D23=13,VLOOKUP(O23,TabLiza!$EV$5:$FA$75,6),IF(D23=12,VLOOKUP(O23,TabLiza!$EU$5:$FA$75,7),IF(D23=11,VLOOKUP(O23,TabLiza!$ET$5:$FA$75,8),IF(D23=10,VLOOKUP(O23,TabLiza!$ES$5:$FA$75,9),IF(D23=9,VLOOKUP(O23,TabLiza!$ER$5:$FA$75,10),IF(D23=8,VLOOKUP(O23,TabLiza!$EQ$5:$FA$75,11),IF(D23=7,VLOOKUP(O23,TabLiza!$EQ$5:$FA$75,11),IF(D23>17,"")))))))))))))) -> 16 | R23: =IF(D23>15,"",IF(Q23="","",IF(D23=15,VLOOKUP(Q23,TabLiza!$BF$5:$BI$75,4),IF(D23=14,VLOOKUP(Q23,TabLiza!$BE$5:$BI$75,5),IF(D23=13,VLOOKUP(Q23,TabLiza!$BD$5:$BI$75,6),IF(D23<13,"")))))) ->  | T23: =IF(D23<16,"",IF(S23="","",IF(D23=17,VLOOKUP(S23,TabLiza!$BH$5:$BI$75,2),IF(D23=16,VLOOKUP(S23,TabLiza!$BG$5:$BI$75,3),IF(D23>17,""))))) ->  | U23: 131 | V23: 8
A24: 8 | B24: Писмарева Любовь | C24: 16 | D24: 12 | E24: 00:04:52 | F24: =IF(D24<7,"",IF(E24="","",IF(D24=17,VLOOKUP(E24,TabLiza!$V$5:$W$75,2),IF(D24=16,VLOOKUP(E24,TabLiza!$U$5:$W$75,3),IF(D24=15,VLOOKUP(E24,TabLiza!$T$5:$W$75,4),IF(D24=14,VLOOKUP(E24,TabLiza!$S$5:$W$75,5),IF(D24=13,VLOOKUP(E24,TabLiza!$R$5:$W$75,6),IF(D24=12,VLOOKUP(E24,TabLiza!$Q$5:$W$75,7),IF(D24=11,VLOOKUP(E24,TabLiza!$P$5:$W$75,8),IF(D24=10,VLOOKUP(E24,TabLiza!$O$5:$W$75,9),IF(D24=9,VLOOKUP(E24,TabLiza!$N$5:$W$75,10),IF(D24=8,VLOOKUP(E24,TabLiza!$M$5:$W$75,11),IF(D24=7,VLOOKUP(E24,TabLiza!$M$5:$W$75,11),IF(D24>17,"")))))))))))))) -> 30 | G24: 6.44 | H24: =IF(D24<7,"",IF(G24="","",IF(D24=17,VLOOKUP(G24,TabLiza!$BA$5:$BB$75,2),IF(D24=16,VLOOKUP(G24,TabLiza!$AZ$5:$BB$75,3),IF(D24=15,VLOOKUP(G24,TabLiza!$AY$5:$BB$75,4),IF(D24=14,VLOOKUP(G24,TabLiza!$AX$5:$BB$75,5),IF(D24=13,VLOOKUP(G24,TabLiza!$AW$5:$BB$75,6),IF(D24=12,VLOOKUP(G24,TabLiza!$AV$5:$BB$75,7),IF(D24=11,VLOOKUP(G24,TabLiza!$AU$5:$BB$75,8),IF(D24=10,VLOOKUP(G24,TabLiza!$AT$5:$BB$75,9),IF(D24=9,VLOOKUP(G24,TabLiza!$AS$5:$BB$75,10),IF(D24=8,VLOOKUP(G24,TabLiza!$AR$5:$BB$75,11),IF(D24=7,VLOOKUP(G24,TabLiza!$AR$5:$BB$75,11),IF(D24>12,"")))))))))))))) -> 11 | I24: 6 | J24: =IF(D24<7,"",IF(I24="","",IF(D24=17,VLOOKUP(I24,TabLiza!$CF$5:$CG$75,2),IF(D24=16,VLOOKUP(I24,TabLiza!$CE$5:$CG$75,3),IF(D24=15,VLOOKUP(I24,TabLiza!$CD$5:$CG$75,4),IF(D24=14,VLOOKUP(I24,TabLiza!$CC$5:$CG$75,5),IF(D24=13,VLOOKUP(I24,TabLiza!$CB$5:$CG$75,6),IF(D24=12,VLOOKUP(I24,TabLiza!$CA$5:$CG$75,7),IF(D24=11,VLOOKUP(I24,TabLiza!$BZ$5:$CG$75,8),IF(D24=10,VLOOKUP(I24,TabLiza!$BY$5:$CG$75,9),IF(D24=9,VLOOKUP(I24,TabLiza!$BX$5:$CG$75,10),IF(D24=8,VLOOKUP(I24,TabLiza!$BW$5:$CG$75,11),IF(D24=7,VLOOKUP(I24,TabLiza!$BW$5:$CG$75,11),IF(D24>17,"")))))))))))))) -> 6 | K24: 27 | L24: =IF(D24<7,"",IF(K24="","",IF(D24=17,VLOOKUP(K24,TabLiza!$EB$5:$EC$75,2),IF(D24=16,VLOOKUP(K24,TabLiza!$EA$5:$EC$75,3),IF(D24=15,VLOOKUP(K24,TabLiza!$DZ$5:$EC$75,4),IF(D24=14,VLOOKUP(K24,TabLiza!$DY$5:$EC$75,5),IF(D24=13,VLOOKUP(K24,TabLiza!$DX$5:$EC$75,6),IF(D24=12,VLOOKUP(K24,TabLiza!$DW$5:$EC$75,7),IF(D24=11,VLOOKUP(K24,TabLiza!$DV$5:$EC$75,8),IF(D24=10,VLOOKUP(K24,TabLiza!$DU$5:$EC$75,9),IF(D24=9,VLOOKUP(K24,TabLiza!$DT$5:$EC$75,10),IF(D24=8,VLOOKUP(K24,TabLiza!$DS$5:$EC$75,11),IF(D24=7,VLOOKUP(K24,TabLiza!$DS$5:$EC$75,11),IF(D24>17,"")))))))))))))) -> 43 | M24: 167 | N24: =IF(D24<7,"",IF(M24="","",IF(D24=17,VLOOKUP(M24,TabLiza!$DD$5:$DE$75,2),IF(D24=16,VLOOKUP(M24,TabLiza!$DC$5:$DE$75,3),IF(D24=15,VLOOKUP(M24,TabLiza!$DB$5:$DE$75,4),IF(D24=14,VLOOKUP(M24,TabLiza!$DA$5:$DE$75,5),IF(D24=13,VLOOKUP(M24,TabLiza!$CZ$5:$DE$75,6),IF(D24=12,VLOOKUP(M24,TabLiza!$CY$5:$DE$75,7),IF(D24=11,VLOOKUP(M24,TabLiza!$CX$5:$DE$75,8),IF(D24=10,VLOOKUP(M24,TabLiza!$CW$5:$DE$75,9),IF(D24=9,VLOOKUP(M24,TabLiza!$CV$5:$DE$75,10),IF(D24=8,VLOOKUP(M24,TabLiza!$CU$5:$DE$75,11),IF(D24=7,VLOOKUP(M24,TabLiza!$CU$5:$DE$75,11),IF(D24>17,"")))))))))))))) -> 28 | O24: 12 | P24: =IF(D24<7,"",IF(O24="","",IF(D24=17,VLOOKUP(O24,TabLiza!$EZ$5:$FA$75,2),IF(D24=16,VLOOKUP(O24,TabLiza!$EY$5:$FA$75,3),IF(D24=15,VLOOKUP(O24,TabLiza!$EX$5:$FA$75,4),IF(D24=14,VLOOKUP(O24,TabLiza!$EW$5:$FA$75,5),IF(D24=13,VLOOKUP(O24,TabLiza!$EV$5:$FA$75,6),IF(D24=12,VLOOKUP(O24,TabLiza!$EU$5:$FA$75,7),IF(D24=11,VLOOKUP(O24,TabLiza!$ET$5:$FA$75,8),IF(D24=10,VLOOKUP(O24,TabLiza!$ES$5:$FA$75,9),IF(D24=9,VLOOKUP(O24,TabLiza!$ER$5:$FA$75,10),IF(D24=8,VLOOKUP(O24,TabLiza!$EQ$5:$FA$75,11),IF(D24=7,VLOOKUP(O24,TabLiza!$EQ$5:$FA$75,11),IF(D24>17,"")))))))))))))) -> 25 | R24: =IF(D24>15,"",IF(Q24="","",IF(D24=15,VLOOKUP(Q24,TabLiza!$BF$5:$BI$75,4),IF(D24=14,VLOOKUP(Q24,TabLiza!$BE$5:$BI$75,5),IF(D24=13,VLOOKUP(Q24,TabLiza!$BD$5:$BI$75,6),IF(D24<13,"")))))) ->  | T24: =IF(D24<16,"",IF(S24="","",IF(D24=17,VLOOKUP(S24,TabLiza!$BH$5:$BI$75,2),IF(D24=16,VLOOKUP(S24,TabLiza!$BG$5:$BI$75,3),IF(D24>17,""))))) ->  | U24: 143 | V24: 7
B26: Главный судья | R26: всего очков | зачёт | U26: =SUM(U17:U24) -> 1530 | V26: =U26-MIN(U17:U24) -> 1399
B27: Главный секретарь | R27: командных очков в зачёт: | V27: =SUM(V13,V26) -> 2370

Sheet 126-6а (hidden)
B1: МБОУ №126
A2: № п/п | B2: мальчики | C2: № уч-ка | D2: возраст (полных лет) | E2: 1 | G2: 2 | I2: 3 | K2: 4 | M2: 5 | O2: 6 | Q2: 7 | S2: 8 | U2: 9 | V2: 10
B3: Фамилия Имя | E3: бег 1000м | F3: очки | G3: бег 30м | H3: очки | I3: подтягивание | J3: очки | K3: пресс за 30" | L3: очки | M3: прыжок с места | N3: очки | O3: гибкость | P3: очки | Q3: бег 60м | R3: очки | S3: бег 100м | T3: очки | U3: сумма очков | V3: Место
